Workbook

Sheet INDICE
F1: AMÉRICA DO SUL - DÉCADA
F2: Trocas comerciais com Portugal (PT) 2009-2018 Agroalimentar, Mar & Florestas
C3: Fonte
D4: Estatísticas do Comércio Internacional | F4: 1. América do Sul - Síntese
D5: dados: 2017 provisórios; 2018 preliminares | F5: 2. Evolução da balança comercial
F6: 3. Principais transações de Agroalimentar, Mar & Florestas (NC 2 e 4 dígitos)
C7: Data | D7: 2019-11-28T16:59:05.600 | F7: 3A Principais produtos agrícolas e agroalimentares transacionados (NC 2D)
F8: 3B Principais origens/destinos para Agroalimentar, Mar & Florestas
F9: 3C Principais origens/destinos produtos agrícolas e agroalimentares
F10: 4. Evolução da balança comercial por país e produto
F11: 4A Evolução da balança comercial por produto
F12: 5.1. Trocas comerciais por país
F13: 5.1A Trocas comerciais por país (produtos agrícolas e agroalimentares)
F14: 5.2. Trocas comerciais por produto (NC 2 dígitos)
C22: Lista de países
D23: Argentina, Bolívia, Brasil, Chile, Colômbia, Equador, Guiana, Paraguai, Peru, Suriname, Uruguai, Venezuela

Sheet 1
A1: América do Sul - Síntese para Agroalimentar, Mar & Florestas 2009-2018
A3: • As trocas comerciais de bens transacionáveis (excluindo serviços) entre Portugal e América do Sul representam um total de 1 mil milhões de € em exportações e 1,7 mil milhões de € em importações, na média do período 2009-2018, correspondendo a um saldo negativo da balança comercial de cerca de -0,7 mil milhões.
A4: • No que respeita aos produtos dos setores agrícola e agroalimentar, mar e florestas, Portugal exportou para América do Sul 401 milhões de € em média anual, no mesmo período, enquanto as importações ascenderam a 713 milhões de € . Estes setores representam perto de 39% do total de exportações de bens transacionáveis e as importações 42% das correspondentes importações. Se nos referirmos apenas ao setor agrícola e agroalimentar, as exportações representam, em média, 262 milhões de € e as importações 569 milhões.
A5: • As principais exportações do setor Agroalimentar, Mar & Florestas (NC 4 dígitos) neste período são Azeite (processos mecânicos ou físicos) (38%), Vinhos de uvas frescas (8%) e Maçãs, peras e marmelos, frescos (8%). As importações mais relevantes do mesmo setor referem-se a Soja, mesmo triturada (27%), Lenha, resíduos de madeira, etc. (10%) e Milho (9%).
A6: • Os principais destinos das exportações do setor Agroalimentar, Mar & Florestas no mesmo período são Brasil (76%), Chile (8%) e Venezuela (7%). As principais origens das importações são Brasil (54%), Argentina (11%) e Uruguai (10%).
A8: Trocas PT-América do Sul (milhões de euros) Agroalimentar, Mar & Florestas | H8: Trocas PT-América do Sul (milhões de euros) produtos agrícolas e agroalimentares
B10: 2016 | C10: 2017 | D10: 2018 | E10: média 2009-2018 | F10: TVMA* 2009-2018 | G10: TVT* 2009-2018 | I10: 2016 | J10: 2017 | K10: 2018 | L10: média 2009-2018 | M10: TVMA* 2009-2018 | N10: TVT* 2009-2018
A11: Exportações | B11: 431.898644 | C11: 484.551104 | D11: 513.100462 | E11: 401.2424397 | F11: 0.0971873633 | G11: 1.528179878 | H11: Exportações | I11: 296.7564 | J11: 325.935564 | K11: 356.675488 | L11: 261.9777307 | M11: 0.1085844826 | N11: 1.803418614
A12: Importações | B12: 694.561029 | C12: 786.503185 | D12: 795.393076 | E12: 712.7472705 | F12: 0.03504161501 | G12: 0.4111660331 | H12: Importações | I12: 516.985257 | J12: 602.959962 | K12: 547.416923 | L12: 568.6466357 | M12: 0.01166672814 | N12: 0.1229868501
A13: Saldo | B13: -262.662385 | C13: -301.952081 | D13: -282.292614 | E13: -311.5048308 | H13: Saldo | I13: -220.228857 | J13: -277.024398 | K13: -190.741435 | L13: -306.668905
A14: *TVMA - Taxa de variação média anual; TVT - Taxa de variação total
C15: Saldo da Balança Comercial PT-América do Sul (milhões de euros)
C16: 2009 | D16: 2010 | E16: 2011 | F16: 2012 | G16: 2013 | H16: 2014 | I16: 2015 | J16: 2016 | K16: 2017 | L16: 2018 | M16: média 2009-2018
A17: Total bens transacionáveis* | C17: -833.008202 | D17: -909.350616 | E17: -1238.607283 | F17: -866.874343 | G17: -102.66874 | H17: -167.416946 | I17: -441.686298 | J17: -865.654994 | K17: -743.512325 | L17: -517.983954 | M17: -668.6763701
A18: Agrícola e Agroalimentar (AA) | C18: -360.236358 | D18: -425.935318 | E18: -499.415246 | F18: -368.201124 | G18: -400.297282 | H18: -93.615838 | I18: -230.993194 | J18: -220.228857 | K18: -277.024398 | L18: -190.741435 | M18: -306.668905
B19: Mar (M) | C19: 6.728833 | D19: 37.597139 | E19: 43.9423 | F19: 56.254961 | G19: 47.037018 | H19: 41.88042 | I19: 24.351288 | J19: 5.61053 | K19: 12.611046 | L19: 0.769023 | M19: 27.6782558
B20: Florestas (F) | C20: -7.182408 | D20: -84.298431 | E20: -60.751292 | F20: 12.634359 | G20: 7.196803 | H20: 4.002138 | I20: -18.839996 | J20: -48.044058 | K20: -37.538729 | L20: -92.320202 | M20: -32.5141816
B21: AA + M + F | C21: -360.689933 | D21: -472.63661 | E21: -516.224238 | F21: -299.311804 | G21: -346.063461 | H21: -47.73328 | I21: -225.481902 | J21: -262.662385 | K21: -301.952081 | L21: -282.292614 | M21: -311.5048308
B22: *exclui serviços
A23: Evolução das trocas comerciais PT-América do Sul (em milhões de euros 2009-2018)
F32: Exportações | H32: Importações | J32: Saldo
A33: Principais transações de Agroalimentar, Mar & Florestas (NC 2 dígitos)
A52: Principais origens e destinos em América do Sul para Agroalimentar, Mar & Florestas (média 2009-2018)
A67: Principais transações de Agroalimentar, Mar & Florestas (NC 4 dígitos - média 2009-2018)
A89: Fonte: GPP a partir de dados INE/Comércio Internacional (2017 provisórios; 2018 preliminares) | L89: 2019-11-28T16:59:05.600

Sheet 2
A1: Evolução da balança comercial Portugal-América do Sul 2009-2018 em milhões de euros
A3: Total de Bens Transacionáveis (BT)(1) | B3: 2009 | C3: 2010 | D3: 2011 | E3: 2012 | F3: 2013 | G3: 2014 | H3: 2015 | I3: 2016 | J3: 2017 | K3: 2018 | L3: média período | M3: var. 09/10 | N3: var. 10/11 | O3: var. 11/12 | P3: var. 12/13 | Q3: var. 13/14 | R3: var. 14/15 | S3: var. 15/16 | T3: var. 16/17 | U3: var. 17/18 | V3: TVMA* 2009-2018 | W3: TVT* 2009-2018
A4: Exportações | B4: 509.863664 | C4: 779.39551 | D4: 931.198442 | E4: 1231.503868 | F4: 1225.044994 | G4: 1161.270219 | H4: 1049.41255 | I4: 924.183153 | J4: 1280.840954 | K4: 1196.976429 | L4: 1028.968978 | M4: 0.5286351333 | N4: 0.1947700879 | O4: 0.3224934799 | P4: -0.005244704599 | Q4: -0.0520591287 | R4: -0.09632354914 | S4: -0.1193328563 | T4: 0.3859167957 | U4: -0.06547614264 | V4: 0.08908845322 | W4: 1.34764019
A5: Importações | B5: 1342.871866 | C5: 1688.746126 | D5: 2169.805725 | E5: 2098.378211 | F5: 1327.713734 | G5: 1328.687165 | H5: 1491.098848 | I5: 1789.838147 | J5: 2024.353279 | K5: 1714.960383 | L5: 1697.645348 | M5: 0.2575631144 | N5: 0.284862 | O5: -0.03291885222 | P5: -0.3672667172 | Q5: 0.000733163313 | R5: 0.1222347045 | S5: 0.2003484205 | T5: 0.1310258877 | U5: -0.1528354261 | V5: 0.02475949659 | W5: 0.2770841555
A6: Saldo (exp-imp) | B6: -833.008202 | C6: -909.350616 | D6: -1238.607283 | E6: -866.874343 | F6: -102.66874 | G6: -167.416946 | H6: -441.686298 | I6: -865.654994 | J6: -743.512325 | K6: -517.983954 | L6: -668.6763701
A7: Cobertura (exp/imp) | B7: 0.3796815444 | C7: 0.4615231964 | D7: 0.4291621279 | E7: 0.5868836521 | F7: 0.922672533 | G7: 0.8739982214 | H7: 0.7037846964 | I7: 0.5163501262 | J7: 0.6327161209 | K7: 0.6979615628 | L7: 0.6061153935
A8: Exp BT América do Sul / Exp BT Mundo | B8: 0.01615307084 | C8: 0.02097440899 | D8: 0.02173733138 | E8: 0.02723247835 | F8: 0.02588938173 | G8: 0.02416282014 | H8: 0.02113571877 | I8: 0.01846643026 | J8: 0.02327641013 | K8: 0.02070451484 | L8: 0.02214262104 | V8: Exportações
A9: Imp BT América do Sul / Imp BT Mundo | B9: 0.02617737914 | C9: 0.02883628716 | D9: 0.03643579295 | E9: 0.03722239198 | F9: 0.02328798366 | G9: 0.02250786774 | H9: 0.02470964954 | I9: 0.02913906149 | J9: 0.02904857188 | K9: 0.02275572306 | L9: 0.02789179717 | V9: Importações
A10: Exp BT América do Sul / Exp TE Mundo | B10: 0.01073112124 | C10: 0.01450014257 | D10: 0.01541467408 | E10: 0.01939259051 | F10: 0.01820709713 | G10: 0.01674256621 | H10: 0.01444525668 | I10: 0.01238533593 | J10: 0.01541353363 | K10: 0.01362245032 | L10: 0.01513068259
A11: Imp BT América do Sul / Imp TE Mundo | B11: 0.0225105841 | C11: 0.02507395704 | D11: 0.03193147764 | E11: 0.03260427301 | F11: 0.02024796283 | G11: 0.0192470631 | H11: 0.02082523072 | I11: 0.02467273614 | J11: 0.02482700418 | K11: 0.01958102046 | L11: 0.02400558996
A12: (1) Todos os produtos transacionados entre PT e América do Sul (exclui serviços) | D12: TE - Total da Economia (bens e serviços) Fonte: INE/Contas Nacionais | M12: *TVMA - Taxa de variação média anual; TVT - Taxa de variação total
A24: Agro(1) + Mar + Florestas (AMF) | B24: 2009 | C24: 2010 | D24: 2011 | E24: 2012 | F24: 2013 | G24: 2014 | H24: 2015 | I24: 2016 | J24: 2017 | K24: 2018 | L24: média período | M24: var. 09/10 | N24: var. 10/11 | O24: var. 11/12 | P24: var. 12/13 | Q24: var. 13/14 | R24: var. 14/15 | S24: var. 15/16 | T24: var. 16/17 | U24: var. 17/18 | V24: TVMA* 2009-2018 | W24: TVT* 2009-2018
A25: Exportações | B25: 202.952514 | C25: 293.49394 | D25: 356.958627 | E25: 414.162075 | F25: 422.241181 | G25: 465.545364 | H25: 427.520486 | I25: 431.898644 | J25: 484.551104 | K25: 513.100462 | L25: 401.2424397 | M25: 0.4461212341 | N25: 0.216238492 | O25: 0.1602523197 | P25: 0.01950711204 | Q25: 0.1025579336 | R25: -0.08167813696 | S25: 0.01024081452 | T25: 0.1219092968 | U25: 0.05891918884 | V25: 0.0971873633 | W25: 1.528179878
A26: Importações | B26: 563.642447 | C26: 766.13055 | D26: 873.182865 | E26: 713.473879 | F26: 768.304642 | G26: 513.278644 | H26: 653.002388 | I26: 694.561029 | J26: 786.503185 | K26: 795.393076 | L26: 712.7472705 | M26: 0.3592492086 | N26: 0.1397311659 | O26: -0.1829043977 | P26: 0.07685041403 | Q26: -0.3319334338 | R26: 0.2722181132 | S26: 0.06364240279 | T26: 0.1323744814 | U26: 0.01130305785 | V26: 0.03504161501 | W26: 0.4111660331
A27: Saldo (exp-imp) | B27: -360.689933 | C27: -472.63661 | D27: -516.224238 | E27: -299.311804 | F27: -346.063461 | G27: -47.73328 | H27: -225.481902 | I27: -262.662385 | J27: -301.952081 | K27: -282.292614 | L27: -311.5048308
A28: Cobertura (exp/imp) | B28: 0.3600731547 | C28: 0.383086068 | D28: 0.4088016855 | E28: 0.5804866684 | F28: 0.5495752048 | G28: 0.9070031832 | H28: 0.6546997283 | I28: 0.6218296535 | J28: 0.6160828249 | K28: 0.6450904307 | L28: 0.5629519134
A29: Exp AMF / Exp BT | B29: 0.3980525155 | C29: 0.376566116 | D29: 0.3833325002 | E29: 0.3363059474 | F29: 0.3446740186 | G29: 0.4008932257 | H29: 0.4073902928 | I29: 0.4673301419 | J29: 0.3783070041 | K29: 0.4286637979 | L29: 0.3899460996 | V29: Exportações
A30: Imp AMF / Imp BT | B30: 0.4197291352 | C30: 0.4536682798 | D30: 0.4024244452 | E30: 0.3400120509 | F30: 0.5786673907 | G30: 0.3863051119 | H30: 0.4379336681 | I30: 0.3880580097 | J30: 0.3885207158 | K30: 0.463796764 | L30: 0.4198446225 | V30: Importações
A31: Exp AMF América do Sul / Exp AMF Mundo | B31: 0.03028179354 | C31: 0.03758264203 | D31: 0.04117985455 | E31: 0.0461364669 | F31: 0.04436797771 | G31: 0.04669838304 | H31: 0.04108320056 | I31: 0.0410846071 | J31: 0.04346328687 | K31: 0.04620052935 | L31: 0.04231814944
A32: Imp AMF América do Sul / Imp AMF Mundo | B32: 0.05945125747 | C32: 0.07409850161 | D32: 0.07792287032 | E32: 0.06739800654 | F32: 0.06968938072 | G32: 0.04663236722 | H32: 0.05682248167 | I32: 0.05827862378 | J32: 0.06034547052 | K32: 0.06300234177 | L32: 0.06323642625
A33: (1) Produtos agrícolas e agroalimentares | B33: BT - Total de Bens Transacionáveis (exclui serviços) | M33: *TVMA - Taxa de variação média anual; TVT - Taxa de variação total
A49: Agroalimentar (AA)(1) | B49: 2009 | C49: 2010 | D49: 2011 | E49: 2012 | F49: 2013 | G49: 2014 | H49: 2015 | I49: 2016 | J49: 2017 | K49: 2018 | L49: média período | M49: var. 09/10 | N49: var. 10/11 | O49: var. 11/12 | P49: var. 12/13 | Q49: var. 13/14 | R49: var. 14/15 | S49: var. 15/16 | T49: var. 16/17 | U49: var. 17/18 | V49: TVMA* 2009-2018 | W49: TVT* 2009-2018
A50: Exportações | B50: 127.228765 | C50: 184.519367 | D50: 216.417026 | E50: 250.800434 | F50: 266.101968 | G50: 308.845553 | H50: 286.496742 | I50: 296.7564 | J50: 325.935564 | K50: 356.675488 | L50: 261.9777307 | M50: 0.4502959846 | N50: 0.1728688946 | O50: 0.1588757069 | P50: 0.06101079554 | Q50: 0.1606285941 | R50: -0.07236241799 | S50: 0.03581073184 | T50: 0.09832699143 | U50: 0.09431288695 | V50: 0.1085844826 | W50: 1.803418614
A51: Importações | B51: 487.465123 | C51: 610.454685 | D51: 715.832272 | E51: 619.001558 | F51: 666.39925 | G51: 402.461391 | H51: 517.489936 | I51: 516.985257 | J51: 602.959962 | K51: 547.416923 | L51: 568.6466357 | M51: 0.2523043315 | N51: 0.1726214731 | O51: -0.1352701153 | P51: 0.07657119984 | Q51: -0.3960656603 | R51: 0.285812621 | S51: -0.0009752440867 | T51: 0.1663001098 | U51: -0.09211729219 | V51: 0.01166672814 | W51: 0.1229868501
A52: Saldo (exp-imp) | B52: -360.236358 | C52: -425.935318 | D52: -499.415246 | E52: -368.201124 | F52: -400.297282 | G52: -93.615838 | H52: -230.993194 | I52: -220.228857 | J52: -277.024398 | K52: -190.741435 | L52: -306.668905
A53: Cobertura (exp/imp) | B53: 0.2610007547 | C53: 0.3022654614 | D53: 0.3023292389 | E53: 0.4051693098 | F53: 0.3993131265 | G53: 0.7673917546 | H53: 0.5536276593 | I53: 0.574013274 | J53: 0.5405592154 | K53: 0.6515609456 | L53: 0.4607039139
A54: Exp AA / Exp AMF | B54: 0.6268893274 | C54: 0.6286990696 | D54: 0.6062804192 | E54: 0.6055610814 | F54: 0.6302132051 | G54: 0.6634059254 | H54: 0.6701357043 | I54: 0.6870973181 | J54: 0.6726546721 | K54: 0.6951377253 | L54: 0.6529163039 | V54: Exportações
A55: Imp AA / Imp AMF | B55: 0.8648481419 | C55: 0.7968024314 | D55: 0.8197965177 | E55: 0.8675882555 | F55: 0.8673633004 | G55: 0.7840992329 | H55: 0.7924778615 | I55: 0.74433381 | J55: 0.7666338465 | K55: 0.6882344586 | L55: 0.7978236596 | V55: Importações
A56: Exp AA / Exp BT | B56: 0.2495348737 | C56: 0.2367467667 | D56: 0.2324069889 | E56: 0.2036537932 | F56: 0.2172181179 | G56: 0.2659549414 | H56: 0.2730067808 | I56: 0.3211012872 | J56: 0.2544699738 | K56: 0.2979803774 | L56: 0.2546021661
A57: Imp AA / Imp BT | B57: 0.3630019627 | C57: 0.3614839884 | D57: 0.3299061588 | E57: 0.294990462 | F57: 0.5019148578 | G57: 0.3029015419 | H57: 0.3470527368 | I57: 0.2888446969 | J57: 0.2978531308 | K57: 0.3192009147 | L57: 0.3349619732
A58: Exp AA América do Sul / Exp AA Mundo | B58: 0.03617252601 | C58: 0.0495627834 | D58: 0.05206710318 | E58: 0.05605323221 | F58: 0.05516214159 | G58: 0.05990965684 | H58: 0.05325388805 | I58: 0.05424366259 | J58: 0.05534538257 | K58: 0.05862591394 | L58: 0.0538230375
A59: Imp AA América do Sul / Imp AA Mundo | B59: 0.07463942237 | C59: 0.08739989202 | D59: 0.09354710041 | E59: 0.08301374453 | F59: 0.08506205217 | G59: 0.05341441924 | H59: 0.06665269039 | I59: 0.06482890508 | J59: 0.06900928832 | K59: 0.06086894408 | L59: 0.07340921476
A60: (1) Produtos agrícolas e agroalimentares | B60: AMF - Agroalimentar, Mar e Florestas; BT - Total de Bens Transacionáveis (exclui serviços) | M60: *TVMA - Taxa de variação média anual; TVT - Taxa de variação total
A72: Mar (M) | B72: 2009 | C72: 2010 | D72: 2011 | E72: 2012 | F72: 2013 | G72: 2014 | H72: 2015 | I72: 2016 | J72: 2017 | K72: 2018 | L72: média período | M72: var. 09/10 | N72: var. 10/11 | O72: var. 11/12 | P72: var. 12/13 | Q72: var. 13/14 | R72: var. 14/15 | S72: var. 15/16 | T72: var. 16/17 | U72: var. 17/18 | V72: TVMA* 2009-2018 | W72: TVT* 2009-2018
A73: Exportações | B73: 32.574135 | C73: 56.663794 | D73: 73.491061 | E73: 79.531043 | F73: 75.668132 | G73: 72.680051 | H73: 57.533897 | I73: 57.7679 | J73: 77.371168 | K73: 75.76809 | L73: 65.9049271 | M73: 0.7395333445 | N73: 0.2969668251 | O73: 0.08218662131 | P73: -0.04857110952 | Q73: -0.03948929253 | R73: -0.2083949281 | S73: 0.004067219712 | T73: 0.3393453458 | U73: -0.02071932015 | V73: 0.08808129566 | W73: 1.326020016
A74: Importações | B74: 25.845302 | C74: 19.066655 | D74: 29.548761 | E74: 23.276082 | F74: 28.631114 | G74: 30.799631 | H74: 33.182609 | I74: 52.15737 | J74: 64.760122 | K74: 74.999067 | L74: 38.2266713 | M74: -0.2622777246 | N74: 0.5497611406 | O74: -0.2122823018 | P74: 0.2300658676 | Q74: 0.07573987516 | R74: 0.07737034252 | S74: 0.571828484 | T74: 0.2416293613 | U74: 0.1581057089 | V74: 0.1124165077 | W74: 1.901845256
A75: Saldo (exp-imp) | B75: 6.728833 | C75: 37.597139 | D75: 43.9423 | E75: 56.254961 | F75: 47.037018 | G75: 41.88042 | H75: 24.351288 | I75: 5.61053 | J75: 12.611046 | K75: 0.769023 | L75: 27.6782558
A76: Cobertura (exp/imp) | B76: 1.260350334 | C76: 2.971879126 | D76: 2.487111422 | E76: 3.416856969 | F76: 2.642863704 | G76: 2.359770187 | H76: 1.733856943 | I76: 1.107569266 | J76: 1.194734747 | K76: 1.010253768 | L76: 1.724056133
A77: Exp M / Exp AMF | B77: 0.1605012639 | C77: 0.1930663168 | D77: 0.2058811735 | E77: 0.1920287921 | F77: 0.1792059501 | G77: 0.1561180856 | H77: 0.1345757663 | I77: 0.133753372 | J77: 0.1596759709 | K77: 0.1476671639 | L77: 0.1642521343 | V77: Exportações
A78: Imp M / Imp AMF | B78: 0.04585407316 | C78: 0.02488695301 | D78: 0.03384028957 | E78: 0.03262359378 | F78: 0.03726531435 | G78: 0.06000567403 | H78: 0.05081544817 | I78: 0.07509400589 | J78: 0.08233930038 | K78: 0.09429182786 | L78: 0.05363285541 | V78: Importações
A79: Exp M / Exp BT | B79: 0.06388793181 | C79: 0.07270223304 | D79: 0.07892094497 | E79: 0.06458042485 | F79: 0.06176763496 | G79: 0.06258668294 | H79: 0.05482486082 | I79: 0.06250698231 | J79: 0.06040653819 | K79: 0.06329956728 | L79: 0.06404947913
A80: Imp M / Imp BT | B80: 0.01924629047 | C80: 0.01129042116 | D80: 0.01361815975 | E80: 0.01109241503 | F80: 0.02156422222 | G80: 0.02318049862 | H80: 0.02225379561 | I80: 0.02914083046 | J80: 0.03199052392 | K80: 0.04373224463 | L80: 0.02251746593
A81: Exp M América do Sul / Exp M Mundo | B81: 0.06284821088 | C81: 0.08251358159 | D81: 0.09231263911 | E81: 0.1014000109 | F81: 0.0925233963 | G81: 0.0809184163 | H81: 0.06401865308 | I81: 0.06010993084 | J81: 0.07288830543 | K81: 0.06965277648 | L81: 0.07743937609
A82: Imp M América do Sul / Imp M Mundo | B82: 0.02032980865 | C82: 0.01364569493 | D82: 0.01958749004 | E82: 0.01593578801 | F82: 0.01983773916 | G82: 0.01957164942 | H82: 0.01881415082 | I82: 0.02702693419 | J82: 0.03030503176 | K82: 0.03404388418 | L82: 0.02290644179
A83: AMF - Agroalimentar, Mar e Florestas; BT - Total de Bens Transacionáveis (exclui serviços) | M83: *TVMA - Taxa de variação média anual; TVT - Taxa de variação total
A95: Florestas (F) | B95: 2009 | C95: 2010 | D95: 2011 | E95: 2012 | F95: 2013 | G95: 2014 | H95: 2015 | I95: 2016 | J95: 2017 | K95: 2018 | L95: média período | M95: var. 09/10 | N95: var. 10/11 | O95: var. 11/12 | P95: var. 12/13 | Q95: var. 13/14 | R95: var. 14/15 | S95: var. 15/16 | T95: var. 16/17 | U95: var. 17/18 | V95: TVMA* 2009-2018 | W95: TVT* 2009-2018
A96: Exportações | B96: 43.149614 | C96: 52.310779 | D96: 67.05054 | E96: 83.830598 | F96: 80.471081 | G96: 84.01976 | H96: 83.489847 | I96: 77.374344 | J96: 81.244372 | K96: 80.656884 | L96: 73.3597819 | M96: 0.2123116327 | N96: 0.281772921 | O96: 0.2502598488 | P96: -0.04007506901 | Q96: 0.0440988111 | R96: -0.006307004448 | S96: -0.07324846337 | T96: 0.05001694102 | U96: -0.007231122422 | V96: 0.06455095159 | W96: 0.8692376715
A97: Importações | B97: 50.332022 | C97: 136.60921 | D97: 127.801832 | E97: 71.196239 | F97: 73.274278 | G97: 80.017622 | H97: 102.329843 | I97: 125.418402 | J97: 118.783101 | K97: 172.977086 | L97: 105.8739635 | M97: 1.714160977 | N97: -0.06447133396 | O97: -0.4429169137 | P97: 0.02918748278 | Q97: 0.0920288017 | R97: 0.2788413407 | S97: 0.2256287934 | T97: -0.05290532246 | U97: 0.4562432244 | V97: 0.1313954292 | W97: 2.436720384
A98: Saldo (exp-imp) | B98: -7.182408 | C98: -84.298431 | D98: -60.751292 | E98: 12.634359 | F98: 7.196803 | G98: 4.002138 | H98: -18.839996 | I98: -48.044058 | J98: -37.538729 | K98: -92.320202 | L98: -32.5141816
A99: Cobertura (exp/imp) | B99: 0.8572994345 | C99: 0.3829227839 | D99: 0.5246445919 | E99: 1.177458236 | F99: 1.098217317 | G99: 1.050015708 | H99: 0.815889525 | I99: 0.6169297549 | J99: 0.6839724785 | K99: 0.4662865231 | L99: 0.6928972854
A100: Exp F / Exp AMF | B100: 0.2126094087 | C100: 0.1782346136 | D100: 0.1878384074 | E100: 0.2024101265 | F100: 0.1905808448 | G100: 0.180475989 | H100: 0.1952885294 | I100: 0.1791493099 | J100: 0.1676693569 | K100: 0.1571951108 | L100: 0.1828315618 | V100: Exportações
A101: Imp F / Imp AMF | B101: 0.08929778491 | C101: 0.1783106156 | D101: 0.1463631928 | E101: 0.09978815076 | F101: 0.09537138525 | G101: 0.1558950931 | H101: 0.1567066903 | I101: 0.1805721841 | J101: 0.1510268531 | K101: 0.2174737136 | L101: 0.148543485 | V101: Importações
A102: Exp F / Exp BT | B102: 0.08462970995 | C102: 0.06711711619 | D102: 0.07200456635 | E102: 0.06807172935 | F102: 0.06568826565 | G102: 0.0723516014 | H102: 0.07955865117 | I102: 0.08372187239 | J102: 0.06343049209 | K102: 0.06738385322 | L102: 0.0712944544
A103: Imp F / Imp BT | B103: 0.03748088204 | C103: 0.08089387025 | D103: 0.05890012665 | E103: 0.03392917379 | F103: 0.05518831065 | G103: 0.0602230714 | H103: 0.06862713571 | I103: 0.07007248237 | J103: 0.05867706108 | K103: 0.1008636046 | L103: 0.0623651834
A104: Exp F América do Sul / Exp F Mundo | B104: 0.01618178181 | C104: 0.01538718757 | D104: 0.01804534209 | E104: 0.02254579712 | F104: 0.02076685428 | G104: 0.02145649591 | H104: 0.02022682708 | I104: 0.01896160782 | J104: 0.01935360981 | K104: 0.02050134395 | L104: 0.01949437053
A105: Imp F América do Sul / Imp F Mundo | B105: 0.0299860532 | C105: 0.06978860511 | D105: 0.06249250015 | E105: 0.04266449708 | F105: 0.04193895985 | G105: 0.04214700446 | H105: 0.05209505827 | I105: 0.0622888012 | J105: 0.05501699524 | K105: 0.1210954068 | L105: 0.05704182607
A106: AMF - Agroalimentar, Mar e Florestas; BT - Total de Bens Transacionáveis (exclui serviços) | M106: *TVMA - Taxa de variação média anual; TVT - Taxa de variação total
A116: Fonte: GPP a partir de dados INE/Comércio Internacional (2017 provisórios; 2018 preliminares) | M116: 2019-11-28T16:59:05.600

Sheet 3
A1: Principais transações de Agroalimentar, Mar & Florestas entre Portugal e América do Sul em 2009-2018 (NC a 2 e 4 dígitos) em milhões de euros
AC4: P | AE4: Cód.NC | AF4: Descritivo | AG4: Média export quinquénio | AH4: % do total | AI4: % acumulada | AN4: P | AO4: NC | AP4: Exportações | AQ4: 2009 | AR4: 2010 | AS4: 2011 | AT4: 2012 | AU4: 2013 | AV4: 2014 | AW4: 2015 | AX4: 2016 | AY4: 2017 | AZ4: 2018 | BA4: média período
AC5: 1 | AD5: º | AE5: 15 | AF5: Gorduras e óleos animais ou vegetais | AG5: 156.6175411 | AH5: 0.3937253621 | AN5: 1º | AO5: 15 | AP5: Gorduras e óleos animais ou vegetais | AQ5: 85.334533 | AR5: 111.668414 | AS5: 133.828873 | AT5: 160.888023 | AU5: 175.847222 | AV5: 169.924733 | AW5: 153.024529 | AX5: 144.301382 | AY5: 203.429002 | AZ5: 227.9287 | BA5: 156.6175411
AC6: 2 | AD6: º | AE6: 03 | AF6: Peixes e crustáceos | AG6: 59.9293343 | AH6: 0.1506580852 | AN6: 2º | AO6: 03 | AP6: Peixes e crustáceos | AQ6: 30.135475 | AR6: 55.33068 | AS6: 67.060901 | AT6: 65.705275 | AU6: 63.409905 | AV6: 67.697254 | AW6: 53.624363 | AX6: 54.148603 | AY6: 72.067044 | AZ6: 70.113843 | BA6: 59.9293343
AC7: 3 | AD7: º | AE7: 45 | AF7: Cortiça e suas obras | AG7: 44.8082183 | AH7: 0.1126446747 | AI7: 0.6570281221 | AN7: 3º | AO7: 45 | AP7: Cortiça e suas obras | AQ7: 39.044047 | AR7: 39.602474 | AS7: 44.280581 | AT7: 44.010997 | AU7: 44.070282 | AV7: 44.953677 | AW7: 47.523833 | AX7: 48.13172 | AY7: 48.768911 | AZ7: 47.695661 | BA7: 44.8082183
AC8: 4 | AD8: º | AE8: 08 | AF8: Frutas | AG8: 36.6085214 | AH8: 0.09203121978 | AO8: - | AP8: Outros | AQ8: 47.145138 | AR8: 83.950946 | AS8: 107.106802 | AT8: 139.072767 | AU8: 136.907245 | AV8: 180.397127 | AW8: 171.419319 | AX8: 184.028022 | AY8: 156.38602 | AZ8: 157.872925 | BA8: 136.4286311
AC9: 5 | AD9: º | AE9: 22 | AF9: Bebidas, líquidos alcoólicos e vinagres | AG9: 34.0721505 | AH9: 0.08565496368 | AP9: Total | AQ9: 201.659193 | AR9: 290.552514 | AS9: 352.277157 | AT9: 409.677062 | AU9: 420.234654 | AV9: 462.972791 | AW9: 425.592044 | AX9: 430.609727 | AY9: 480.650977 | AZ9: 503.611129 | BA9: 397.7837248
AC10: 6 | AD10: º | AE10: 48 | AF10: Papel e cartão | AG10: 23.1233655 | AH10: 0.0581304967
AC11: 7 | AD11: º | AE11: 02 | AF11: Carnes e miudezas | AG11: 17.7334586 | AH11: 0.04458065399
AC12: 8 | AD12: º | AE12: 16p | AF12: Preparações e conservas de peixes ou crustáceos (NC 1604-05) (p) | AG12: 5.9662037 | AH12: 0.01499861188
AC13: 9 | AD13: º | AE13: 44 | AF13: Madeira e suas obras | AG13: 4.7742611 | AH13: 0.01200215293
AC14: 10 | AD14: º | AE14: 19a | AF14: Preparações à base de cereais (exc. NC 19022010) (a) | AG14: 3.2785712 | AH14: 0.008242094876 | AI14: 0.9726683159
AE15: - | AF15: Outros | AG15: 10.8720991 | AH15: 0.02733168408
AE16: Total | AG16: 397.7837248 | AH16: 1
AC38: P | AE38: Cód.NC | AF38: Descritivo | AG38: Média import quinquénio | AH38: % do total | AI38: % acumulada | AN38: P | AO38: NC | AP38: Importações | AQ38: 2009 | AR38: 2010 | AS38: 2011 | AT38: 2012 | AU38: 2013 | AV38: 2014 | AW38: 2015 | AX38: 2016 | AY38: 2017 | AZ38: 2018 | BA38: média período
AC39: 1 | AD39: º | AE39: 12 | AF39: Sementes e frutos oleaginosos | AG39: 196.9807601 | AH39: 0.2808977407 | AN39: 1º | AO39: 12 | AP39: Sementes e frutos oleaginosos | AQ39: 207.449758 | AR39: 192.655082 | AS39: 171.073797 | AT39: 203.811234 | AU39: 244.820921 | AV39: 165.105516 | AW39: 224.676727 | AX39: 192.828807 | AY39: 202.178386 | AZ39: 165.207373 | BA39: 196.9807601
AC40: 2 | AD40: º | AE40: 10 | AF40: Cereais | AG40: 90.9313929 | AH40: 0.1296696327 | AN40: 2º | AO40: 10 | AP40: Cereais | AQ40: 28.365394 | AR40: 109.378224 | AS40: 94.678329 | AT40: 51.810598 | AU40: 170.114047 | AV40: 41.838929 | AW40: 73.877328 | AX40: 69.429515 | AY40: 116.915184 | AZ40: 152.906381 | BA40: 90.9313929
AC41: 3 | AD41: º | AE41: 08 | AF41: Frutas | AG41: 87.4805253 | AH41: 0.1247486399 | AI41: 0.5353160133 | AN41: 3º | AO41: 08 | AP41: Frutas | AQ41: 92.35374 | AR41: 102.175518 | AS41: 83.769835 | AT41: 60.94586 | AU41: 74.144921 | AV41: 66.844004 | AW41: 87.920955 | AX41: 92.796268 | AY41: 112.667048 | AZ41: 101.187104 | BA41: 87.4805253
AC42: 4 | AD42: º | AE42: 44 | AF42: Madeira e suas obras | AG42: 85.4546766 | AH42: 0.121859747 | AO42: - | AP42: Outros | AQ42: 222.849953 | AR42: 347.24728 | AS42: 514.001298 | AT42: 387.256861 | AU42: 270.978862 | AV42: 233.067933 | AW42: 256.52061 | AX42: 332.185879 | AY42: 346.699859 | AZ42: 347.808095 | BA42: 325.861663
AC43: 5 | AD43: º | AE43: 17 | AF43: Açúcares e produtos de confeitaria | AG43: 47.7402727 | AH43: 0.06807839879 | AP43: Total | AQ43: 551.018845 | AR43: 751.456104 | AS43: 863.523259 | AT43: 703.824553 | AU43: 760.058751 | AV43: 506.856382 | AW43: 642.99562 | AX43: 687.240469 | AY43: 778.460477 | AZ43: 767.108953 | BA43: 701.2543413
AC44: 6 | AD44: º | AE44: 23a | AF44: Resíduos indústrias alimentares; alimentos p/ animais (exc. NC 230120) (a) | AG44: 33.2627904 | AH44: 0.04743327555
AC45: 7 | AD45: º | AE45: 03 | AF45: Peixes e crustáceos | AG45: 30.981204 | AH45: 0.04417969655
AC46: 8 | AD46: º | AE46: 09 | AF46: Café, chá, mate e especiarias | AG46: 21.3426405 | AH46: 0.03043494955
AC47: 9 | AD47: º | AE47: 24 | AF47: Tabaco | AG47: 19.2884478 | AH47: 0.02750563763
AC48: 10 | AD48: º | AE48: 07 | AF48: Produtos hortícolas | AG48: 17.3746487 | AH48: 0.02477652925 | AI48: 0.8995842476
AE49: - | AF49: Outros | AG49: 70.4169823 | AH49: 0.1004157524
AE50: Total | AG50: 701.2543413 | AH50: 1
AC62: DESAGREGAÇÃO A 4 DÍGITOS | AN62: DESAGREGAÇÃO A 4 DÍGITOS
AC64: P | AE64: Cód.NC | AF64: Descritivo | AG64: Média export quinquénio | AH64: % do total | AI64: % acumulada | AN64: P | AO64: NC | AP64: Exportações | AQ64: 2009 | AR64: 2010 | AS64: 2011 | AT64: 2012 | AU64: 2013 | AV64: 2014 | AW64: 2015 | AX64: 2016 | AY64: 2017 | AZ64: 2018 | BA64: média período
AC65: 1 | AD65: º | AE65: 1509 | AF65: Azeite (processos mecânicos ou físicos) | AG65: 151.7615999 | AH65: 0.3782291824 | AN65: 1º | AO65: 1509 | AP65: Azeite (processos mecânicos ou físicos) | AQ65: 81.397132 | AR65: 108.285543 | AS65: 117.360385 | AT65: 148.447667 | AU65: 174.789715 | AV65: 168.074101 | AW65: 150.280378 | AX65: 141.88516 | AY65: 201.168615 | AZ65: 225.927303 | BA65: 151.7615999
AC66: 2 | AD66: º | AE66: 2204 | AF66: Vinhos de uvas frescas | AG66: 32.8160847 | AH66: 0.08178617577 | AN66: 2º | AO66: 2204 | AP66: Vinhos de uvas frescas | AQ66: 18.87022 | AR66: 26.575085 | AS66: 31.247794 | AT66: 31.017511 | AU66: 30.250182 | AV66: 30.436804 | AW66: 29.848343 | AX66: 30.360659 | AY66: 46.210661 | AZ66: 53.343588 | BA66: 32.8160847
AC67: 3 | AD67: º | AE67: 0808 | AF67: Maçãs, peras e marmelos, frescos | AG67: 31.3290942 | AH67: 0.07808021062 | AI67: 0.5380955688 | AN67: 3º | AO67: 0808 | AP67: Maçãs, peras e marmelos, frescos | AQ67: 11.976424 | AR67: 20.177669 | AS67: 29.874657 | AT67: 27.835356 | AU67: 23.029545 | AV67: 39.002075 | AW67: 38.717839 | AX67: 39.973243 | AY67: 47.477835 | AZ67: 35.226299 | BA67: 31.3290942
AC68: 4 | AD68: º | AE68: 4503 | AF68: Obras de cortiça natural | AG68: 28.8519721 | AH68: 0.07190658127 | AN68: - | AO68: - | AP68: Outros | AQ68: 90.708738 | AR68: 138.455643 | AS68: 178.475791 | AT68: 206.861541 | AU68: 194.171739 | AV68: 228.032384 | AW68: 208.673926 | AX68: 219.679582 | AY68: 189.693993 | AZ68: 198.603272 | BA68: 185.3356609
AC69: 5 | AD69: º | AE69: 0303 | AF69: Peixes congelados | AG69: 23.2688301 | AH69: 0.05799194651 | AP69: Total | AQ69: 202.952514 | AR69: 293.49394 | AS69: 356.958627 | AT69: 414.162075 | AU69: 422.241181 | AV69: 465.545364 | AW69: 427.520486 | AX69: 431.898644 | AY69: 484.551104 | AZ69: 513.100462 | BA69: 401.2424397
AC70: 6 | AD70: º | AE70: 0305 | AF70: Peixes secos, salgados ou fumados | AG70: 22.6380902 | AH70: 0.05641997944
AC71: 7 | AD71: º | AE71: 4802 | AF71: Papel e cartão p/ escrita, etc. | AG71: 19.6158244 | AH71: 0.04888771092
AC72: 8 | AD72: º | AE72: 0203 | AF72: Carnes de suíno | AG72: 17.3583217 | AH72: 0.04326142995
AC73: 9 | AD73: º | AE73: 4504 | AF73: Cortiça aglomerada e suas obras | AG73: 14.0443228 | AH73: 0.03500208704
AC74: 10 | AD74: º | AE74: 0304 | AF74: Filetes de peixes | AG74: 12.6127019 | AH74: 0.03143411726 | AI74: 0.8829994212
AE75: - | AF75: Outros | AG75: 46.9455977 | AH75: 0.1170005788
AE76: Total | AG76: 401.2424397 | AH76: 1
AC89: DESAGREGAÇÃO A 4 DÍGITOS | AN89: DESAGREGAÇÃO A 4 DÍGITOS
G91: média 2009-2018 em milhões de euros | I91: Cód. NC | J91: Descritivo | K91: Export | L91: Import | M91: Saldo | AC91: P | AE91: Cód.NC | AF91: Descritivo | AG91: Média import quinquénio | AH91: % do total | AI91: % acumulada | AN91: P | AO91: NC | AP91: Importações | AQ91: 2009 | AR91: 2010 | AS91: 2011 | AT91: 2012 | AU91: 2013 | AV91: 2014 | AW91: 2015 | AX91: 2016 | AY91: 2017 | AZ91: 2018 | BA91: média período
I92: 1509 | J92: Azeite (processos mecânicos ou físicos) | K92: 151.7615999 | L92: 1.4378908 | M92: 150.3237091 | AC92: 1 | AD92: º | AE92: 1201 | AF92: Soja, mesmo triturada | AG92: 189.9976275 | AH92: 0.2665708244 | AN92: 1º | AO92: 1201 | AP92: Soja, mesmo triturada | AQ92: 205.77158 | AR92: 188.882859 | AS92: 166.9105 | AT92: 199.821238 | AU92: 233.170713 | AV92: 162.566962 | AW92: 219.897951 | AX92: 167.24614 | AY92: 195.982702 | AZ92: 159.72563 | BA92: 189.9976275
I93: 2204 | J93: Vinhos de uvas frescas | K93: 32.8160847 | L93: 0.4650145 | M93: 32.3510702 | AC93: 2 | AD93: º | AE93: 4401 | AF93: Lenha, resíduos de madeira, etc. | AG93: 68.4842203 | AH93: 0.09608485803 | AN93: 2º | AO93: 4401 | AP93: Lenha, resíduos de madeira, etc. | AQ93: 0.008825 | AR93: 62.991451 | AS93: 89.018076 | AT93: 39.800477 | AU93: 52.631911 | AV93: 59.475177 | AW93: 82.137033 | AX93: 102.272441 | AY93: 92.523419 | AZ93: 103.983393 | BA93: 68.4842203
I94: 4503 | J94: Obras de cortiça natural | K94: 28.8519721 | L94: 0.8764538 | M94: 27.9755183 | AC94: 3 | AD94: º | AE94: 1005 | AF94: Milho | AG94: 62.5612962 | AH94: 0.08777486606 | AI94: 0.4504305485 | AN94: 3º | AO94: 1005 | AP94: Milho | AQ94: 2.894946 | AR94: 81.707151 | AS94: 48.231683 | AT94: 23.708018 | AU94: 148.042761 | AV94: 19.637813 | AW94: 46.731704 | AX94: 36.89173 | AY94: 95.101344 | AZ94: 122.665812 | BA94: 62.5612962
I95: 0305 | J95: Peixes secos, salgados ou fumados | K95: 22.6380902 | L95: 0.0254394 | M95: 22.6126508 | AC95: 4 | AD95: º | AE95: 1701 | AF95: Açúcares (cana/beterraba); sacarose pura | AG95: 47.4883347 | AH95: 0.0666271716 | AN95: - | AO95: - | AP95: Outros | AQ95: 354.967096 | AR95: 432.549089 | AS95: 569.022606 | AT95: 450.144146 | AU95: 334.459257 | AV95: 271.598692 | AW95: 304.2357 | AX95: 388.150718 | AY95: 402.89572 | AZ95: 409.018241 | BA95: 391.7041265
I96: 4802 | J96: Papel e cartão p/ escrita, etc. | K96: 19.6158244 | L96: 0.2303187 | M96: 19.3855057 | AC96: 5 | AD96: º | AE96: 2304 | AF96: Bagaços e outros resíduos sólidos de soja | AG96: 32.2106263 | AH96: 0.04519221277 | AP96: Total | AQ96: 563.642447 | AR96: 766.13055 | AS96: 873.182865 | AT96: 713.473879 | AU96: 768.304642 | AV96: 513.278644 | AW96: 653.002388 | AX96: 694.561029 | AY96: 786.503185 | AZ96: 795.393076 | BA96: 712.7472705
I97: 0808 | J97: Maçãs, peras e marmelos, frescos | K97: 31.3290942 | L97: 12.4592945 | M97: 18.8697997 | AC97: 6 | AD97: º | AE97: 1006 | AF97: Arroz | AG97: 26.3921394 | AH97: 0.03702874847
I98: 0203 | J98: Carnes de suíno | K98: 17.3583217 | L98: 0.00225 | M98: 17.3560717 | AC98: 7 | AD98: º | AE98: 0901 | AF98: Café | AG98: 21.23308 | AH98: 0.02979047536
I99: 0303 | J99: Peixes congelados | K99: 23.2688301 | L99: 7.681316 | M99: 15.5875141 | AC99: 8 | AD99: º | AE99: 2401 | AF99: Tabaco não manufaturado | AG99: 18.9305063 | AH99: 0.02655991413
I100: 4504 | J100: Cortiça aglomerada e suas obras | K100: 14.0443228 | L100: 0.1443851 | M100: 13.8999377 | AC100: 9 | AD100: º | AE100: 0803 | AF100: Bananas, frescas ou secas | AG100: 18.1213728 | AH100: 0.02542468214
I101: 0304 | J101: Filetes de peixes | K101: 12.6127019 | L101: 6.9134548 | M101: 5.6992471 | AC101: 10 | AD101: º | AE101: 0713 | AF101: Legumes de vagem, secos, em grão | AG101: 17.2372864 | AH101: 0.0241842896 | AI101: 0.7052380426
I102: - | J102: Outros | K102: 45.7925292 | L102: 179.854963 | M102: -134.0624338 | AE102: - | AF102: Outros | AG102: 210.0907806 | AH102: 0.2947619574
I103: 0713 | J103: Legumes de vagem, secos, em grão | K103: 0.015678 | L103: 17.2372864 | M103: -17.2216084 | AE103: Total | AG103: 712.7472705 | AH103: 1
I104: 0803 | J104: Bananas, frescas ou secas | K104: 0 | L104: 18.1213728 | M104: -18.1213728
I105: 2401 | J105: Tabaco não manufaturado | K105: 0.0219451 | L105: 18.9305063 | M105: -18.9085612
I106: 0901 | J106: Café | K106: 0.9144711 | L106: 21.23308 | M106: -20.3186089
J107: Arroz | K107: 0.0253548 | L107: 26.3921394 | M107: -26.3667846
I108: 2304 | J108: Bagaços e outros resíduos sólidos de soja | K108: 0 | L108: 32.2106263 | M108: -32.2106263
I109: 1701 | J109: Açúcares (cana/beterraba); sacarose pura | K109: 0.005139 | L109: 47.4883347 | M109: -47.4831957
I110: 1005 | J110: Milho | K110: 3e-07 | L110: 62.5612962 | M110: -62.5612959
I111: 4401 | J111: Lenha, resíduos de madeira, etc. | K111: 0.1704802 | L111: 68.4842203 | M111: -68.3137401
I112: 1201 | J112: Soja, mesmo triturada | K112: 0 | L112: 189.9976275 | M112: -189.9976275
I113: Total | K113: 401.2424397 | L113: 712.7472705 | M113: -311.5048308
A116: Fonte: GPP a partir de dados INE/Comércio Internacional (2017 provisórios; 2018 preliminares) | Y116: 2019-11-28T16:59:05.600

Sheet 3A
A1: Principais produtos agrícolas e agroalimentares transacionados entre Portugal e América do Sul em 2009-2018 (NC 2 dígitos) em milhões de euros
AC4: P | AE4: Cód.NC | AF4: Descritivo | AG4: Média export quinquénio | AH4: % do total | AI4: % acumulada | AN4: P | AO4: NC | AP4: Exportações | AQ4: 2009 | AR4: 2010 | AS4: 2011 | AT4: 2012 | AU4: 2013 | AV4: 2014 | AW4: 2015 | AX4: 2016 | AY4: 2017 | AZ4: 2018 | BA4: média período
AC5: 1 | AD5: º | AE5: 15 | AF5: Gorduras e óleos animais ou vegetais | AG5: 156.6175411 | AH5: 0.5978276882 | AN5: 1º | AO5: 15 | AP5: Gorduras e óleos animais ou vegetais | AQ5: 85.334533 | AR5: 111.668414 | AS5: 133.828873 | AT5: 160.888023 | AU5: 175.847222 | AV5: 169.924733 | AW5: 153.024529 | AX5: 144.301382 | AY5: 203.429002 | AZ5: 227.9287 | BA5: 156.6175411
AC6: 2 | AD6: º | AE6: 08 | AF6: Frutas | AG6: 36.6085214 | AH6: 0.1397390584 | AN6: 2º | AO6: 08 | AP6: Frutas | AQ6: 16.611185 | AR6: 26.4138 | AS6: 35.475888 | AT6: 34.745503 | AU6: 28.736515 | AV6: 45.138873 | AW6: 42.832249 | AX6: 44.648606 | AY6: 51.878879 | AZ6: 39.603716 | BA6: 36.6085214
AC7: 3 | AD7: º | AE7: 22 | AF7: Bebidas, líquidos alcoólicos e vinagres | AG7: 34.0721505 | AH7: 0.1300574305 | AI7: 0.867624177 | AN7: 3º | AO7: 22 | AP7: Bebidas, líquidos alcoólicos e vinagres | AQ7: 19.129064 | AR7: 27.155356 | AS7: 31.861945 | AT7: 32.051193 | AU7: 31.095562 | AV7: 31.533398 | AW7: 30.790962 | AX7: 31.450551 | AY7: 48.869181 | AZ7: 56.784293 | BA7: 34.0721505
AC8: 4 | AD8: º | AE8: 02 | AF8: Carnes e miudezas | AG8: 17.7334586 | AH8: 0.06769071002 | AO8: - | AP8: Outros | AQ8: 6.153983 | AR8: 19.281797 | AS8: 15.25032 | AT8: 23.115715 | AU8: 30.422669 | AV8: 62.248549 | AW8: 59.849002 | AX8: 76.355861 | AY8: 21.758502 | AZ8: 32.358779 | BA8: 34.6795177
AC9: 5 | AD9: º | AE9: 19a | AF9: Preparações à base de cereais (exc. NC 19022010) (a) | AG9: 3.2785712 | AH9: 0.01251469425 | AP9: Total | AQ9: 127.228765 | AR9: 184.519367 | AS9: 216.417026 | AT9: 250.800434 | AU9: 266.101968 | AV9: 308.845553 | AW9: 286.496742 | AX9: 296.7564 | AY9: 325.935564 | AZ9: 356.675488 | BA9: 261.9777307
AC10: 6 | AD10: º | AE10: 05a | AF10: Outros produtos de origem animal (exc. NC 0508, 051191) (a) | AG10: 2.7965178 | AH10: 0.01067463938
AC11: 7 | AD11: º | AE11: 20 | AF11: Preparações de produtos vegetais | AG11: 2.1555978 | AH11: 0.008228171892
AC12: 8 | AD12: º | AE12: 09 | AF12: Café, chá, mate e especiarias | AG12: 2.0350983 | AH12: 0.007768211041
AC13: 9 | AD13: º | AE13: 04 | AF13: Leite e laticínios; ovos; mel, etc. | AG13: 1.9510669 | AH13: 0.007447453243
AC14: 10 | AD14: º | AE14: 07 | AF14: Produtos hortícolas | AG14: 1.462857 | AH14: 0.005583898281 | AI14: 0.9875319551
AE15: - | AF15: Outros | AG15: 3.2663501 | AH15: 0.01246804487
AE16: Total | AG16: 261.9777307 | AH16: 1
AC38: P | AE38: Cód.NC | AF38: Descritivo | AG38: Média import quinquénio | AH38: % do total | AI38: % acumulada | AN38: P | AO38: NC | AP38: Importações | AQ38: 2009 | AR38: 2010 | AS38: 2011 | AT38: 2012 | AU38: 2013 | AV38: 2014 | AW38: 2015 | AX38: 2016 | AY38: 2017 | AZ38: 2018 | BA38: média período
AC39: 1 | AD39: º | AE39: 12 | AF39: Sementes e frutos oleaginosos | AG39: 196.9807601 | AH39: 0.346402753 | AN39: 1º | AO39: 12 | AP39: Sementes e frutos oleaginosos | AQ39: 207.449758 | AR39: 192.655082 | AS39: 171.073797 | AT39: 203.811234 | AU39: 244.820921 | AV39: 165.105516 | AW39: 224.676727 | AX39: 192.828807 | AY39: 202.178386 | AZ39: 165.207373 | BA39: 196.9807601
AC40: 2 | AD40: º | AE40: 10 | AF40: Cereais | AG40: 90.9313929 | AH40: 0.1599084338 | AN40: 2º | AO40: 10 | AP40: Cereais | AQ40: 28.365394 | AR40: 109.378224 | AS40: 94.678329 | AT40: 51.810598 | AU40: 170.114047 | AV40: 41.838929 | AW40: 73.877328 | AX40: 69.429515 | AY40: 116.915184 | AZ40: 152.906381 | BA40: 90.9313929
AC41: 3 | AD41: º | AE41: 08 | AF41: Frutas | AG41: 87.4805253 | AH41: 0.1538398714 | AI41: 0.6601510582 | AN41: 3º | AO41: 08 | AP41: Frutas | AQ41: 92.35374 | AR41: 102.175518 | AS41: 83.769835 | AT41: 60.94586 | AU41: 74.144921 | AV41: 66.844004 | AW41: 87.920955 | AX41: 92.796268 | AY41: 112.667048 | AZ41: 101.187104 | BA41: 87.4805253
AC42: 4 | AD42: º | AE42: 17 | AF42: Açúcares e produtos de confeitaria | AG42: 47.7402727 | AH42: 0.0839541988 | AO42: - | AP42: Outros | AQ42: 159.296231 | AR42: 206.245861 | AS42: 366.310311 | AT42: 302.433866 | AU42: 177.319361 | AV42: 128.672942 | AW42: 131.014926 | AX42: 161.930667 | AY42: 171.199344 | AZ42: 128.116065 | BA42: 193.2539574
AC43: 5 | AD43: º | AE43: 23a | AF43: Resíduos indústrias alimentares; alimentos p/ animais (exc. NC 230120) (a) | AG43: 33.2627904 | AH43: 0.05849465786 | AP43: Total | AQ43: 487.465123 | AR43: 610.454685 | AS43: 715.832272 | AT43: 619.001558 | AU43: 666.39925 | AV43: 402.461391 | AW43: 517.489936 | AX43: 516.985257 | AY43: 602.959962 | AZ43: 547.416923 | BA43: 568.6466357
AC44: 6 | AD44: º | AE44: 09 | AF44: Café, chá, mate e especiarias | AG44: 21.3426405 | AH44: 0.03753234286
AC45: 7 | AD45: º | AE45: 24 | AF45: Tabaco | AG45: 19.2884478 | AH45: 0.03391991896
AC46: 8 | AD46: º | AE46: 07 | AF46: Produtos hortícolas | AG46: 17.3746487 | AH46: 0.03055438582
AC47: 9 | AD47: º | AE47: 02 | AF47: Carnes e miudezas | AG47: 14.5324895 | AH47: 0.02555627447
AC48: 10 | AD48: º | AE48: 15 | AF48: Gorduras e óleos animais ou vegetais | AG48: 10.0977776 | AH48: 0.01775756149 | AI48: 0.9479203985
AE49: - | AF49: Outros | AG49: 29.6148902 | AH49: 0.05207960153
AE50: Total | AG50: 568.6466357 | AH50: 1
A56: Fonte: GPP a partir de dados INE/Comércio Internacional (2017 provisórios; 2018 preliminares) | Y56: 2019-11-28T17:07:14.720

Sheet 3B
A1: Principais origens e destinos em América do Sul para Agroalimentar, Mar & Florestas (2009-2018) em milhões de euros
AC4: P | AE4: País | AF4: Média export quinquénio | AG4: % do total | AH4: % acumulada | AM4: P | AN4: Exportações | AO4: 2009 | AP4: 2010 | AQ4: 2011 | AR4: 2012 | AS4: 2013 | AT4: 2014 | AU4: 2015 | AV4: 2016 | AW4: 2017 | AX4: 2018 | AY4: média período
AC5: 1 | AD5: º | AE5: Brasil | AF5: 303.3322481 | AG5: 0.7559824637 | AM5: 1º | AN5: Brasil | AO5: 155.181717 | AP5: 227.362042 | AQ5: 268.243887 | AR5: 301.8178 | AS5: 322.487227 | AT5: 337.706071 | AU5: 297.187507 | AV5: 292.346759 | AW5: 403.960331 | AX5: 427.02914 | AY5: 303.3322481
AC6: 2 | AD6: º | AE6: Chile | AF6: 32.0328544 | AG6: 0.07983416317 | AM6: 2º | AN6: Chile | AO6: 19.890671 | AP6: 21.133161 | AQ6: 23.94574 | AR6: 33.243053 | AS6: 30.623361 | AT6: 35.377076 | AU6: 36.988723 | AV6: 36.270348 | AW6: 36.533784 | AX6: 46.322627 | AY6: 32.0328544
AC7: 3 | AD7: º | AE7: Venezuela | AF7: 30.0449383 | AG7: 0.07487976178 | AH7: 0.9106963886 | AM7: 3º | AN7: Venezuela | AO7: 9.560827 | AP7: 21.126488 | AQ7: 32.905421 | AR7: 45.204457 | AS7: 30.29048 | AT7: 54.28448 | AU7: 44.386165 | AV7: 60.685127 | AW7: 1.016888 | AX7: 0.98905 | AY7: 30.0449383
AC8: 4 | AD8: º | AE8: Argentina | AF8: 18.6267862 | AG8: 0.04642277176 | AN8: Outros | AO8: 18.319299 | AP8: 23.872249 | AQ8: 31.863579 | AR8: 33.896765 | AS8: 38.840113 | AT8: 38.177737 | AU8: 48.958091 | AV8: 42.59641 | AW8: 43.040101 | AX8: 38.759645 | AY8: 35.8323989
AC9: 5 | AD9: º | AE9: Peru | AF9: 7.2352249 | AG9: 0.0180320529 | AN9: Total | AO9: 202.952514 | AP9: 293.49394 | AQ9: 356.958627 | AR9: 414.162075 | AS9: 422.241181 | AT9: 465.545364 | AU9: 427.520486 | AV9: 431.898644 | AW9: 484.551104 | AX9: 513.100462 | AY9: 401.2424397
AC10: 6 | AD10: º | AE10: Colômbia | AF10: 2.9664437 | AG10: 0.007393145407
AC11: 7 | AD11: º | AE11: Equador | AF11: 2.9594901 | AG11: 0.007375815236
AC12: 8 | AD12: º | AE12: Uruguai | AF12: 1.5558894 | AG12: 0.003877679044
AC13: 9 | AD13: º | AE13: Paraguai | AF13: 1.1320427 | AG13: 0.002821343377
AC14: 10 | AD14: º | AE14: Bolívia | AF14: 0.9693137 | AG14: 0.002415780596 | AH14: 0.999034977
AE15: Outros | AF15: 0.3872082 | AG15: 0.0009650230427
AE16: Total | AF16: 401.2424397 | AG16: 1
AC38: P | AE38: País | AF38: Média import quinquénio | AG38: % do total | AH38: % acumulada | AM38: P | AN38: Importações | AO38: 2009 | AP38: 2010 | AQ38: 2011 | AR38: 2012 | AS38: 2013 | AT38: 2014 | AU38: 2015 | AV38: 2016 | AW38: 2017 | AX38: 2018 | AY38: média período
AC39: 1 | AD39: º | AE39: Brasil | AF39: 385.8087895 | AG39: 0.5412981648 | AM39: 1º | AN39: Brasil | AO39: 345.963741 | AP39: 411.729086 | AQ39: 448.773991 | AR39: 454.029826 | AS39: 495.951627 | AT39: 287.92945 | AU39: 366.986145 | AV39: 270.456682 | AW39: 359.351142 | AX39: 416.916205 | AY39: 385.8087895
AC40: 2 | AD40: º | AE40: Argentina | AF40: 79.1520122 | AG40: 0.1110520033 | AM40: 2º | AN40: Argentina | AO40: 102.708646 | AP40: 79.600415 | AQ40: 134.675118 | AR40: 80.360002 | AS40: 57.702391 | AT40: 44.903349 | AU40: 39.591441 | AV40: 97.840646 | AW40: 92.130178 | AX40: 62.007936 | AY40: 79.1520122
AC41: 3 | AD41: º | AE41: Uruguai | AF41: 72.2336461 | AG41: 0.1013453844 | AH41: 0.7536955525 | AM41: 3º | AN41: Uruguai | AO41: 13.558021 | AP41: 81.27624 | AQ41: 85.683925 | AR41: 55.596353 | AS41: 63.331287 | AT41: 53.384642 | AU41: 74.638479 | AV41: 93.203427 | AW41: 81.138362 | AX41: 120.525725 | AY41: 72.2336461
AC42: 4 | AD42: º | AE42: Paraguai | AF42: 50.2183929 | AG42: 0.07045750293 | AN42: Outros | AO42: 101.412039 | AP42: 193.524809 | AQ42: 204.049831 | AR42: 123.487698 | AS42: 151.319337 | AT42: 127.061203 | AU42: 171.786323 | AV42: 233.060274 | AW42: 253.883503 | AX42: 195.94321 | AY42: 175.5528227
AC43: 5 | AD43: º | AE43: Chile | AF43: 41.4716293 | AG43: 0.05818560241 | AN43: Total | AO43: 563.642447 | AP43: 766.13055 | AQ43: 873.182865 | AR43: 713.473879 | AS43: 768.304642 | AT43: 513.278644 | AU43: 653.002388 | AV43: 694.561029 | AW43: 786.503185 | AX43: 795.393076 | AY43: 712.7472705
AC44: 6 | AD44: º | AE44: Guiana | AF44: 28.7684759 | AG44: 0.04036280052
AC45: 7 | AD45: º | AE45: Equador | AF45: 19.5012711 | AG45: 0.02736070962
AC46: 8 | AD46: º | AE46: Colômbia | AF46: 17.7830945 | AG46: 0.02495007029
AC47: 9 | AD47: º | AE47: Peru | AF47: 11.0161482 | AG47: 0.01545589672
AC48: 10 | AD48: º | AE48: Suriname | AF48: 3.2954863 | AG48: 0.004623639313 | AH48: 0.9950917743
AE49: Outros | AF49: 3.4983245 | AG49: 0.004908225741
AE50: Total | AF50: 712.7472705 | AG50: 1
A57: Fonte: GPP a partir de dados INE/Comércio Internacional (2017 provisórios; 2018 preliminares) | Y57: 2019-11-28T16:59:05.600

Sheet 3C
A1: Principais origens e destinos em América do Sul para os produtos agrícolas e agroalimentares (2009-2018) em milhões de euros
AC4: P | AE4: País | AF4: Média export quinquénio | AG4: % do total | AH4: % acumulada | AM4: P | AN4: Exportações | AO4: 2009 | AP4: 2010 | AQ4: 2011 | AR4: 2012 | AS4: 2013 | AT4: 2014 | AU4: 2015 | AV4: 2016 | AW4: 2017 | AX4: 2018 | AY4: média período
AC5: 1 | AD5: º | AE5: Brasil | AF5: 229.6315656 | AG5: 0.87653086 | AM5: 1º | AN5: Brasil | AO5: 119.249916 | AP5: 164.97796 | AQ5: 188.590468 | AR5: 219.452279 | AS5: 241.19525 | AT5: 252.424352 | AU5: 232.970951 | AV5: 226.293688 | AW5: 313.410428 | AX5: 337.750364 | AY5: 229.6315656
AC6: 2 | AD6: º | AE6: Venezuela | AF6: 25.1968788 | AG6: 0.09617946813 | AM6: 2º | AN6: Venezuela | AO6: 6.367324 | AP6: 17.157331 | AQ6: 24.974277 | AR6: 28.696676 | AS6: 19.349862 | AT6: 50.578555 | AU6: 43.313422 | AV6: 60.182338 | AW6: 0.822746 | AX6: 0.526257 | AY6: 25.1968788
AC7: 3 | AD7: º | AE7: Chile | AF7: 1.8844599 | AG7: 0.007193206441 | AH7: 0.9799035346 | AM7: 3º | AN7: Chile | AO7: 0.114005 | AP7: 0.322786 | AQ7: 0.334233 | AR7: 0.442976 | AS7: 1.121526 | AT7: 1.17786 | AU7: 1.623305 | AV7: 2.782872 | AW7: 3.332943 | AX7: 7.592093 | AY7: 1.8844599
AC8: 4 | AD8: º | AE8: Colômbia | AF8: 1.6663145 | AG8: 0.006360519635 | AN8: Outros | AO8: 1.49752 | AP8: 2.06129 | AQ8: 2.518048 | AR8: 2.208503 | AS8: 4.43533 | AT8: 4.664786 | AU8: 8.589064 | AV8: 7.497502 | AW8: 8.369447 | AX8: 10.806774 | AY8: 5.2648264
AC9: 5 | AD9: º | AE9: Argentina | AF9: 1.2028196 | AG9: 0.004591304752 | AN9: Total | AO9: 127.228765 | AP9: 184.519367 | AQ9: 216.417026 | AR9: 250.800434 | AS9: 266.101968 | AT9: 308.845553 | AU9: 286.496742 | AV9: 296.7564 | AW9: 325.935564 | AX9: 356.675488 | AY9: 261.9777307
AC10: 6 | AD10: º | AE10: Uruguai | AF10: 0.6540851 | AG10: 0.00249672023
AC11: 7 | AD11: º | AE11: Bolívia | AF11: 0.5553672 | AG11: 0.002119902323
AC12: 8 | AD12: º | AE12: Paraguai | AF12: 0.4227639 | AG12: 0.001613739835
AC13: 9 | AD13: º | AE13: Peru | AF13: 0.4004938 | AG13: 0.001528732228
AC14: 10 | AD14: º | AE14: Equador | AF14: 0.3221544 | AG14: 0.001229701468 | AH14: 0.9998441551
AE15: Outros | AF15: 0.0408279 | AG15: 0.0001558449258
AE16: Total | AF16: 261.9777307 | AG16: 1
AC38: P | AE38: País | AF38: Média import quinquénio | AG38: % do total | AH38: % acumulada | AM38: P | AN38: Importações | AO38: 2009 | AP38: 2010 | AQ38: 2011 | AR38: 2012 | AS38: 2013 | AT38: 2014 | AU38: 2015 | AV38: 2016 | AW38: 2017 | AX38: 2018 | AY38: média período
AC39: 1 | AD39: º | AE39: Brasil | AF39: 347.2755745 | AG39: 0.610705406 | AM39: 1º | AN39: Brasil | AO39: 306.295092 | AP39: 361.063752 | AQ39: 413.498023 | AR39: 424.754097 | AS39: 473.574245 | AT39: 262.797571 | AU39: 327.676138 | AV39: 227.417466 | AW39: 327.222502 | AX39: 348.456859 | AY39: 347.2755745
AC40: 2 | AD40: º | AE40: Argentina | AF40: 66.7442489 | AG40: 0.117373857 | AM40: 2º | AN40: Argentina | AO40: 85.160452 | AP40: 72.322686 | AQ40: 124.25919 | AR40: 73.922331 | AS40: 49.883748 | AT40: 33.354999 | AU40: 29.598093 | AV40: 84.507223 | AW40: 77.71163 | AX40: 36.722137 | AY40: 66.7442489
AC41: 3 | AD41: º | AE41: Paraguai | AF41: 49.7914253 | AG41: 0.0875612765 | AH41: 0.8156405395 | AM41: 3º | AN41: Paraguai | AO41: 0.349398 | AP41: 44.179281 | AQ41: 65.241328 | AR41: 37.576452 | AS41: 43.555536 | AT41: 19.926848 | AU41: 64.148504 | AV41: 87.667687 | AW41: 84.57643 | AX41: 50.692789 | AY41: 49.7914253
AC42: 4 | AD42: º | AE42: Guiana | AF42: 28.7684759 | AG42: 0.05059113005 | AN42: Outros | AO42: 95.660181 | AP42: 132.888966 | AQ42: 112.833731 | AR42: 82.748678 | AS42: 99.385721 | AT42: 86.381973 | AU42: 96.067201 | AV42: 117.392881 | AW42: 113.4494 | AX42: 111.545138 | AY42: 104.835387
AC43: 5 | AD43: º | AE43: Chile | AF43: 23.8556229 | AG43: 0.04195157661 | AN43: Total | AO43: 487.465123 | AP43: 610.454685 | AQ43: 715.832272 | AR43: 619.001558 | AS43: 666.39925 | AT43: 402.461391 | AU43: 517.489936 | AV43: 516.985257 | AW43: 602.959962 | AX43: 547.416923 | AY43: 568.6466357
AC44: 6 | AD44: º | AE44: Colômbia | AF44: 17.058237 | AG44: 0.02999795643
AC45: 7 | AD45: º | AE45: Uruguai | AF45: 14.7820864 | AG45: 0.02599520594
AC46: 8 | AD46: º | AE46: Equador | AF46: 8.4543976 | AG46: 0.01486757693
AC47: 9 | AD47: º | AE47: Peru | AF47: 6.3177797 | AG47: 0.01111020325
AC48: 10 | AD48: º | AE48: Suriname | AF48: 2.5835978 | AG48: 0.004543415256 | AH48: 0.9946976039
AE49: Outros | AF49: 3.0151897 | AG49: 0.005302396094
AE50: Total | AF50: 568.6466357 | AG50: 1
A57: Fonte: GPP a partir de dados INE/Comércio Internacional (2017 provisórios; 2018 preliminares) | Y57: 2019-11-28T16:59:05.600

Sheet 4
A1: Evolução da balança comercial por país e por produto 2009-2018 em euros (NC 2 dígitos) Agroalimentar, Mar & Florestas
A2: =+aux!A55 -> Evolução da balança comercial Portugal-Brasil
A4: Selecione o país:
A19: =+aux!A56 -> Evolução da balança comercial Portugal-Brasil para Gorduras e óleos animais ou vegetais
M21: Selecione o produto:
A38: Fonte: GPP a partir de dados INE/Comércio Internacional (2017 provisórios; 2018 preliminares) | R38: 2019-11-28T16:59:05.600

Sheet 4A
A1: Evolução da balança comercial Portugal-América do Sul 2009-2018 por produto em euros (NC 2 dígitos)
A3: =+aux!A31 -> Evolução da balança comercial Portugal-América do Sul para Gorduras e óleos animais ou vegetais
A5: Selecione o produto:
U7: Para obter uma maior desagregação deste produto, clique no botão respetivo:
A20: =+aux!A43 -> Evolução da balança comercial Portugal-América do Sul para Sementes e frutos oleaginosos
A22: Selecione o produto:
A38: Fonte: GPP a partir de dados INE/Comércio Internacional (2017 provisórios; 2018 preliminares) | R38: 2019-11-28T16:59:05.600

Sheet 5.1
A1: Trocas comerciais Portugal-América do Sul (2009-2018) por país em milhares de euros | C1: Agroalimentar, Mar & Florestas
A2: Cód. País | B2: País | C2: Importações | O2: Exportações | AA2: Saldo período (exp-imp) | AB2: Evolução das importações | AC2: =+"Variação das Importações " & INDEX(C3:K3,1,aux!$BA$1) & "-"& L3 &"" -> Variação das Importações 2009-2018 | AG2: Evolução das exportações | AH2: ="Variação das Exportações " & INDEX(O3:W3,1,aux!BA1) & "-"& X3 &"" -> Variação das Exportações 2009-2018
C3: 2009 | D3: 2010 | E3: 2011 | F3: 2012 | G3: 2013 | H3: 2014 | I3: 2015 | J3: 2016 | K3: 2017 | L3: 2018 | M3: média período | N3: % Total | O3: 2009 | P3: 2010 | Q3: 2011 | R3: 2012 | S3: 2013 | T3: 2014 | U3: 2015 | V3: 2016 | W3: 2017 | X3: 2018 | Y3: média período | Z3: % Total | AC3: variação total em valor | AD3: % no total de variação | AE3: taxa de variação média anual | AF3: taxa de variação total | AH3: variação total em valor | AI3: % no total de variação | AJ3: taxa de variação média anual | AK3: taxa de variação total | CC3: filtro
A4: 0660 | B4: Afeganistão | C4: 0 | D4: 0 | E4: 0 | F4: 0 | G4: 0 | H4: 0 | I4: 0 | J4: 0 | K4: 0 | L4: 0 | M4: 0 | N4: 0 | O4: 0 | P4: 0 | Q4: 0 | R4: 0 | S4: 0 | T4: 0 | U4: 0 | V4: 0 | W4: 0 | X4: 0 | Y4: 0 | Z4: 0 | AA4: 0 | AC4: =L4-INDEX($C4:$L4,1,aux!$BA$1) -> 0 | AD4: =AC4/$AC$252 -> 0 | AE4: =+IF(INDEX($C4:$L4,1,aux!$BA$1)>0,(L4/INDEX($C4:$L4,1,aux!$BA$1))^(1/($L$3-INDEX($C$3:$L$3,1,aux!$BA$1)))-1,"n.d.") -> n.d. | AF4: =IF(INDEX($C4:$L4,1,aux!$BA$1)>0,(L4-INDEX($C4:$L4,1,aux!$BA$1))/INDEX($C4:$L4,1,aux!$BA$1),"n.d.") -> n.d. | AH4: =X4-INDEX($O4:$X4,1,aux!$BA$1) -> 0 | AI4: =AH4/$AH$252 -> 0 | AJ4: =+IF(INDEX($O4:$X4,1,aux!$BA$1)>0,(X4/INDEX($O4:$X4,1,aux!$BA$1))^(1/($X$3-INDEX($O$3:$X$3,1,aux!$BA$1)))-1,"n.d.") -> n.d. | AK4: =IF(INDEX($O4:$X4,1,aux!$BA$1)>0,(X4-INDEX($O4:$X4,1,aux!$BA$1))/INDEX($O4:$X4,1,aux!$BA$1),"n.d.") -> n.d. | AM4: =SUM(A4:AA4) -> 0 | CC4: =+IF(ISNA(MATCH('5.1'!A4,AUX_2d_pais!$G$2:$G$40000,0)),0,1) -> 0
A5: 0388 | B5: África do Sul | C5: 0 | D5: 0 | E5: 0 | F5: 0 | G5: 0 | H5: 0 | I5: 0 | J5: 0 | K5: 0 | L5: 0 | M5: 0 | N5: 0 | O5: 0 | P5: 0 | Q5: 0 | R5: 0 | S5: 0 | T5: 0 | U5: 0 | V5: 0 | W5: 0 | X5: 0 | Y5: 0 | Z5: 0 | AA5: 0 | AC5: =L5-INDEX($C5:$L5,1,aux!$BA$1) -> 0 | AD5: 0 | AE5: =+IF(INDEX($C5:$L5,1,aux!$BA$1)>0,(L5/INDEX($C5:$L5,1,aux!$BA$1))^(1/($L$3-INDEX($C$3:$L$3,1,aux!$BA$1)))-1,"n.d.") -> n.d. | AF5: =IF(INDEX($C5:$L5,1,aux!$BA$1)>0,(L5-INDEX($C5:$L5,1,aux!$BA$1))/INDEX($C5:$L5,1,aux!$BA$1),"n.d.") -> n.d. | AH5: =X5-INDEX($O5:$X5,1,aux!$BA$1) -> 0 | AI5: 0 | AJ5: =+IF(INDEX($O5:$X5,1,aux!$BA$1)>0,(X5/INDEX($O5:$X5,1,aux!$BA$1))^(1/($X$3-INDEX($O$3:$X$3,1,aux!$BA$1)))-1,"n.d.") -> n.d. | AK5: =IF(INDEX($O5:$X5,1,aux!$BA$1)>0,(X5-INDEX($O5:$X5,1,aux!$BA$1))/INDEX($O5:$X5,1,aux!$BA$1),"n.d.") -> n.d. | AM5: 0 | CC5: =+IF(ISNA(MATCH('5.1'!A5,AUX_2d_pais!$G$2:$G$40000,0)),0,1) -> 0
A6: 0070 | B6: Albânia | C6: 0 | D6: 0 | E6: 0 | F6: 0 | G6: 0 | H6: 0 | I6: 0 | J6: 0 | K6: 0 | L6: 0 | M6: 0 | N6: 0 | O6: 0 | P6: 0 | Q6: 0 | R6: 0 | S6: 0 | T6: 0 | U6: 0 | V6: 0 | W6: 0 | X6: 0 | Y6: 0 | Z6: 0 | AA6: 0 | AC6: =L6-INDEX($C6:$L6,1,aux!$BA$1) -> 0 | AD6: 0 | AE6: =+IF(INDEX($C6:$L6,1,aux!$BA$1)>0,(L6/INDEX($C6:$L6,1,aux!$BA$1))^(1/($L$3-INDEX($C$3:$L$3,1,aux!$BA$1)))-1,"n.d.") -> n.d. | AF6: =IF(INDEX($C6:$L6,1,aux!$BA$1)>0,(L6-INDEX($C6:$L6,1,aux!$BA$1))/INDEX($C6:$L6,1,aux!$BA$1),"n.d.") -> n.d. | AH6: =X6-INDEX($O6:$X6,1,aux!$BA$1) -> 0 | AI6: 0 | AJ6: =+IF(INDEX($O6:$X6,1,aux!$BA$1)>0,(X6/INDEX($O6:$X6,1,aux!$BA$1))^(1/($X$3-INDEX($O$3:$X$3,1,aux!$BA$1)))-1,"n.d.") -> n.d. | AK6: =IF(INDEX($O6:$X6,1,aux!$BA$1)>0,(X6-INDEX($O6:$X6,1,aux!$BA$1))/INDEX($O6:$X6,1,aux!$BA$1),"n.d.") -> n.d. | AM6: 0 | CC6: =+IF(ISNA(MATCH('5.1'!A6,AUX_2d_pais!$G$2:$G$40000,0)),0,1) -> 0
A7: 0004 | B7: Alemanha | C7: 0 | D7: 0 | E7: 0 | F7: 0 | G7: 0 | H7: 0 | I7: 0 | J7: 0 | K7: 0 | L7: 0 | M7: 0 | N7: 0 | O7: 0 | P7: 0 | Q7: 0 | R7: 0 | S7: 0 | T7: 0 | U7: 0 | V7: 0 | W7: 0 | X7: 0 | Y7: 0 | Z7: 0 | AA7: 0 | AC7: =L7-INDEX($C7:$L7,1,aux!$BA$1) -> 0 | AD7: 0 | AE7: =+IF(INDEX($C7:$L7,1,aux!$BA$1)>0,(L7/INDEX($C7:$L7,1,aux!$BA$1))^(1/($L$3-INDEX($C$3:$L$3,1,aux!$BA$1)))-1,"n.d.") -> n.d. | AF7: =IF(INDEX($C7:$L7,1,aux!$BA$1)>0,(L7-INDEX($C7:$L7,1,aux!$BA$1))/INDEX($C7:$L7,1,aux!$BA$1),"n.d.") -> n.d. | AH7: =X7-INDEX($O7:$X7,1,aux!$BA$1) -> 0 | AI7: 0 | AJ7: =+IF(INDEX($O7:$X7,1,aux!$BA$1)>0,(X7/INDEX($O7:$X7,1,aux!$BA$1))^(1/($X$3-INDEX($O$3:$X$3,1,aux!$BA$1)))-1,"n.d.") -> n.d. | AK7: =IF(INDEX($O7:$X7,1,aux!$BA$1)>0,(X7-INDEX($O7:$X7,1,aux!$BA$1))/INDEX($O7:$X7,1,aux!$BA$1),"n.d.") -> n.d. | AM7: 0 | CC7: =+IF(ISNA(MATCH('5.1'!A7,AUX_2d_pais!$G$2:$G$40000,0)),0,1) -> 0
A8: 0043 | B8: Andorra | C8: 0 | D8: 0 | E8: 0 | F8: 0 | G8: 0 | H8: 0 | I8: 0 | J8: 0 | K8: 0 | L8: 0 | M8: 0 | N8: 0 | O8: 0 | P8: 0 | Q8: 0 | R8: 0 | S8: 0 | T8: 0 | U8: 0 | V8: 0 | W8: 0 | X8: 0 | Y8: 0 | Z8: 0 | AA8: 0 | AC8: =L8-INDEX($C8:$L8,1,aux!$BA$1) -> 0 | AD8: 0 | AE8: =+IF(INDEX($C8:$L8,1,aux!$BA$1)>0,(L8/INDEX($C8:$L8,1,aux!$BA$1))^(1/($L$3-INDEX($C$3:$L$3,1,aux!$BA$1)))-1,"n.d.") -> n.d. | AF8: =IF(INDEX($C8:$L8,1,aux!$BA$1)>0,(L8-INDEX($C8:$L8,1,aux!$BA$1))/INDEX($C8:$L8,1,aux!$BA$1),"n.d.") -> n.d. | AH8: =X8-INDEX($O8:$X8,1,aux!$BA$1) -> 0 | AI8: 0 | AJ8: =+IF(INDEX($O8:$X8,1,aux!$BA$1)>0,(X8/INDEX($O8:$X8,1,aux!$BA$1))^(1/($X$3-INDEX($O$3:$X$3,1,aux!$BA$1)))-1,"n.d.") -> n.d. | AK8: =IF(INDEX($O8:$X8,1,aux!$BA$1)>0,(X8-INDEX($O8:$X8,1,aux!$BA$1))/INDEX($O8:$X8,1,aux!$BA$1),"n.d.") -> n.d. | AM8: 0 | CC8: =+IF(ISNA(MATCH('5.1'!A8,AUX_2d_pais!$G$2:$G$40000,0)),0,1) -> 0
A9: 0330 | B9: Angola | C9: 0 | D9: 0 | E9: 0 | F9: 0 | G9: 0 | H9: 0 | I9: 0 | J9: 0 | K9: 0 | L9: 0 | M9: 0 | N9: 0 | O9: 0 | P9: 0 | Q9: 0 | R9: 0 | S9: 0 | T9: 0 | U9: 0 | V9: 0 | W9: 0 | X9: 0 | Y9: 0 | Z9: 0 | AA9: 0 | AC9: =L9-INDEX($C9:$L9,1,aux!$BA$1) -> 0 | AD9: 0 | AE9: =+IF(INDEX($C9:$L9,1,aux!$BA$1)>0,(L9/INDEX($C9:$L9,1,aux!$BA$1))^(1/($L$3-INDEX($C$3:$L$3,1,aux!$BA$1)))-1,"n.d.") -> n.d. | AF9: =IF(INDEX($C9:$L9,1,aux!$BA$1)>0,(L9-INDEX($C9:$L9,1,aux!$BA$1))/INDEX($C9:$L9,1,aux!$BA$1),"n.d.") -> n.d. | AH9: =X9-INDEX($O9:$X9,1,aux!$BA$1) -> 0 | AI9: 0 | AJ9: =+IF(INDEX($O9:$X9,1,aux!$BA$1)>0,(X9/INDEX($O9:$X9,1,aux!$BA$1))^(1/($X$3-INDEX($O$3:$X$3,1,aux!$BA$1)))-1,"n.d.") -> n.d. | AK9: =IF(INDEX($O9:$X9,1,aux!$BA$1)>0,(X9-INDEX($O9:$X9,1,aux!$BA$1))/INDEX($O9:$X9,1,aux!$BA$1),"n.d.") -> n.d. | AM9: 0 | CC9: =+IF(ISNA(MATCH('5.1'!A9,AUX_2d_pais!$G$2:$G$40000,0)),0,1) -> 0
A10: 0446 | B10: Anguila | C10: 0 | D10: 0 | E10: 0 | F10: 0 | G10: 0 | H10: 0 | I10: 0 | J10: 0 | K10: 0 | L10: 0 | M10: 0 | N10: 0 | O10: 0 | P10: 0 | Q10: 0 | R10: 0 | S10: 0 | T10: 0 | U10: 0 | V10: 0 | W10: 0 | X10: 0 | Y10: 0 | Z10: 0 | AA10: 0 | AC10: =L10-INDEX($C10:$L10,1,aux!$BA$1) -> 0 | AD10: 0 | AE10: =+IF(INDEX($C10:$L10,1,aux!$BA$1)>0,(L10/INDEX($C10:$L10,1,aux!$BA$1))^(1/($L$3-INDEX($C$3:$L$3,1,aux!$BA$1)))-1,"n.d.") -> n.d. | AF10: =IF(INDEX($C10:$L10,1,aux!$BA$1)>0,(L10-INDEX($C10:$L10,1,aux!$BA$1))/INDEX($C10:$L10,1,aux!$BA$1),"n.d.") -> n.d. | AH10: =X10-INDEX($O10:$X10,1,aux!$BA$1) -> 0 | AI10: 0 | AJ10: =+IF(INDEX($O10:$X10,1,aux!$BA$1)>0,(X10/INDEX($O10:$X10,1,aux!$BA$1))^(1/($X$3-INDEX($O$3:$X$3,1,aux!$BA$1)))-1,"n.d.") -> n.d. | AK10: =IF(INDEX($O10:$X10,1,aux!$BA$1)>0,(X10-INDEX($O10:$X10,1,aux!$BA$1))/INDEX($O10:$X10,1,aux!$BA$1),"n.d.") -> n.d. | AM10: 0 | CC10: =+IF(ISNA(MATCH('5.1'!A10,AUX_2d_pais!$G$2:$G$40000,0)),0,1) -> 0
A11: 0891 | B11: Antárctica | C11: 0 | D11: 0 | E11: 0 | F11: 0 | G11: 0 | H11: 0 | I11: 0 | J11: 0 | K11: 0 | L11: 0 | M11: 0 | N11: 0 | O11: 0 | P11: 0 | Q11: 0 | R11: 0 | S11: 0 | T11: 0 | U11: 0 | V11: 0 | W11: 0 | X11: 0 | Y11: 0 | Z11: 0 | AA11: 0 | AC11: =L11-INDEX($C11:$L11,1,aux!$BA$1) -> 0 | AD11: 0 | AE11: =+IF(INDEX($C11:$L11,1,aux!$BA$1)>0,(L11/INDEX($C11:$L11,1,aux!$BA$1))^(1/($L$3-INDEX($C$3:$L$3,1,aux!$BA$1)))-1,"n.d.") -> n.d. | AF11: =IF(INDEX($C11:$L11,1,aux!$BA$1)>0,(L11-INDEX($C11:$L11,1,aux!$BA$1))/INDEX($C11:$L11,1,aux!$BA$1),"n.d.") -> n.d. | AH11: =X11-INDEX($O11:$X11,1,aux!$BA$1) -> 0 | AI11: 0 | AJ11: =+IF(INDEX($O11:$X11,1,aux!$BA$1)>0,(X11/INDEX($O11:$X11,1,aux!$BA$1))^(1/($X$3-INDEX($O$3:$X$3,1,aux!$BA$1)))-1,"n.d.") -> n.d. | AK11: =IF(INDEX($O11:$X11,1,aux!$BA$1)>0,(X11-INDEX($O11:$X11,1,aux!$BA$1))/INDEX($O11:$X11,1,aux!$BA$1),"n.d.") -> n.d. | AM11: 0 | BO11: =SUM(C11:L11,O11:X11) -> 0 | CC11: =+IF(ISNA(MATCH('5.1'!A11,AUX_2d_pais!$G$2:$G$40000,0)),0,1) -> 0
A12: 0459 | B12: Antígua e Barbuda | C12: 0 | D12: 0 | E12: 0 | F12: 0 | G12: 0 | H12: 0 | I12: 0 | J12: 0 | K12: 0 | L12: 0 | M12: 0 | N12: 0 | O12: 0 | P12: 0 | Q12: 0 | R12: 0 | S12: 0 | T12: 0 | U12: 0 | V12: 0 | W12: 0 | X12: 0 | Y12: 0 | Z12: 0 | AA12: 0 | AC12: =L12-INDEX($C12:$L12,1,aux!$BA$1) -> 0 | AD12: 0 | AE12: =+IF(INDEX($C12:$L12,1,aux!$BA$1)>0,(L12/INDEX($C12:$L12,1,aux!$BA$1))^(1/($L$3-INDEX($C$3:$L$3,1,aux!$BA$1)))-1,"n.d.") -> n.d. | AF12: =IF(INDEX($C12:$L12,1,aux!$BA$1)>0,(L12-INDEX($C12:$L12,1,aux!$BA$1))/INDEX($C12:$L12,1,aux!$BA$1),"n.d.") -> n.d. | AH12: =X12-INDEX($O12:$X12,1,aux!$BA$1) -> 0 | AI12: 0 | AJ12: =+IF(INDEX($O12:$X12,1,aux!$BA$1)>0,(X12/INDEX($O12:$X12,1,aux!$BA$1))^(1/($X$3-INDEX($O$3:$X$3,1,aux!$BA$1)))-1,"n.d.") -> n.d. | AK12: =IF(INDEX($O12:$X12,1,aux!$BA$1)>0,(X12-INDEX($O12:$X12,1,aux!$BA$1))/INDEX($O12:$X12,1,aux!$BA$1),"n.d.") -> n.d. | AM12: 0 | CC12: =+IF(ISNA(MATCH('5.1'!A12,AUX_2d_pais!$G$2:$G$40000,0)),0,1) -> 0
A13: 0478 | B13: Antilhas Holandesas | C13: 0 | D13: 0 | E13: 0 | F13: 0 | G13: 0 | H13: 0 | I13: 0 | J13: 0 | K13: 0 | L13: 0 | M13: 0 | N13: 0 | O13: 0 | P13: 0 | Q13: 0 | R13: 0 | S13: 0 | T13: 0 | U13: 0 | V13: 0 | W13: 0 | X13: 0 | Y13: 0 | Z13: 0 | AA13: 0 | AC13: =L13-INDEX($C13:$L13,1,aux!$BA$1) -> 0 | AD13: 0 | AE13: =+IF(INDEX($C13:$L13,1,aux!$BA$1)>0,(L13/INDEX($C13:$L13,1,aux!$BA$1))^(1/($L$3-INDEX($C$3:$L$3,1,aux!$BA$1)))-1,"n.d.") -> n.d. | AF13: =IF(INDEX($C13:$L13,1,aux!$BA$1)>0,(L13-INDEX($C13:$L13,1,aux!$BA$1))/INDEX($C13:$L13,1,aux!$BA$1),"n.d.") -> n.d. | AH13: =X13-INDEX($O13:$X13,1,aux!$BA$1) -> 0 | AI13: 0 | AJ13: =+IF(INDEX($O13:$X13,1,aux!$BA$1)>0,(X13/INDEX($O13:$X13,1,aux!$BA$1))^(1/($X$3-INDEX($O$3:$X$3,1,aux!$BA$1)))-1,"n.d.") -> n.d. | AK13: =IF(INDEX($O13:$X13,1,aux!$BA$1)>0,(X13-INDEX($O13:$X13,1,aux!$BA$1))/INDEX($O13:$X13,1,aux!$BA$1),"n.d.") -> n.d. | AM13: 0 | BO13: 0 | CC13: =+IF(ISNA(MATCH('5.1'!A13,AUX_2d_pais!$G$2:$G$40000,0)),0,1) -> 0
A14: 0632 | B14: Arábia Saudita | C14: 0 | D14: 0 | E14: 0 | F14: 0 | G14: 0 | H14: 0 | I14: 0 | J14: 0 | K14: 0 | L14: 0 | M14: 0 | N14: 0 | O14: 0 | P14: 0 | Q14: 0 | R14: 0 | S14: 0 | T14: 0 | U14: 0 | V14: 0 | W14: 0 | X14: 0 | Y14: 0 | Z14: 0 | AA14: 0 | AC14: =L14-INDEX($C14:$L14,1,aux!$BA$1) -> 0 | AD14: 0 | AE14: =+IF(INDEX($C14:$L14,1,aux!$BA$1)>0,(L14/INDEX($C14:$L14,1,aux!$BA$1))^(1/($L$3-INDEX($C$3:$L$3,1,aux!$BA$1)))-1,"n.d.") -> n.d. | AF14: =IF(INDEX($C14:$L14,1,aux!$BA$1)>0,(L14-INDEX($C14:$L14,1,aux!$BA$1))/INDEX($C14:$L14,1,aux!$BA$1),"n.d.") -> n.d. | AH14: =X14-INDEX($O14:$X14,1,aux!$BA$1) -> 0 | AI14: 0 | AJ14: =+IF(INDEX($O14:$X14,1,aux!$BA$1)>0,(X14/INDEX($O14:$X14,1,aux!$BA$1))^(1/($X$3-INDEX($O$3:$X$3,1,aux!$BA$1)))-1,"n.d.") -> n.d. | AK14: =IF(INDEX($O14:$X14,1,aux!$BA$1)>0,(X14-INDEX($O14:$X14,1,aux!$BA$1))/INDEX($O14:$X14,1,aux!$BA$1),"n.d.") -> n.d. | AM14: 0 | CC14: =+IF(ISNA(MATCH('5.1'!A14,AUX_2d_pais!$G$2:$G$40000,0)),0,1) -> 0
A15: 0208 | B15: Argélia | C15: 0 | D15: 0 | E15: 0 | F15: 0 | G15: 0 | H15: 0 | I15: 0 | J15: 0 | K15: 0 | L15: 0 | M15: 0 | N15: 0 | O15: 0 | P15: 0 | Q15: 0 | R15: 0 | S15: 0 | T15: 0 | U15: 0 | V15: 0 | W15: 0 | X15: 0 | Y15: 0 | Z15: 0 | AA15: 0 | AC15: =L15-INDEX($C15:$L15,1,aux!$BA$1) -> 0 | AD15: 0 | AE15: =+IF(INDEX($C15:$L15,1,aux!$BA$1)>0,(L15/INDEX($C15:$L15,1,aux!$BA$1))^(1/($L$3-INDEX($C$3:$L$3,1,aux!$BA$1)))-1,"n.d.") -> n.d. | AF15: =IF(INDEX($C15:$L15,1,aux!$BA$1)>0,(L15-INDEX($C15:$L15,1,aux!$BA$1))/INDEX($C15:$L15,1,aux!$BA$1),"n.d.") -> n.d. | AH15: =X15-INDEX($O15:$X15,1,aux!$BA$1) -> 0 | AI15: 0 | AJ15: =+IF(INDEX($O15:$X15,1,aux!$BA$1)>0,(X15/INDEX($O15:$X15,1,aux!$BA$1))^(1/($X$3-INDEX($O$3:$X$3,1,aux!$BA$1)))-1,"n.d.") -> n.d. | AK15: =IF(INDEX($O15:$X15,1,aux!$BA$1)>0,(X15-INDEX($O15:$X15,1,aux!$BA$1))/INDEX($O15:$X15,1,aux!$BA$1),"n.d.") -> n.d. | AM15: 0 | CC15: =+IF(ISNA(MATCH('5.1'!A15,AUX_2d_pais!$G$2:$G$40000,0)),0,1) -> 0
A16: 0528 | B16: Argentina | C16: 102708.646 | D16: 79600.415 | E16: 134675.118 | F16: 80360.002 | G16: 57702.391 | H16: 44903.349 | I16: 39591.441 | J16: 97840.646 | K16: 92130.178 | L16: 62007.936 | M16: 79152.0122 | N16: 0.1110520033 | O16: 15616.725 | P16: 16525.998 | Q16: 18490.579 | R16: 18485.118 | S16: 20357.771 | T16: 19256.212 | U16: 24212.897 | V16: 19689.899 | W16: 21134.873 | X16: 12497.79 | Y16: 18626.7862 | Z16: 0.04642277176 | AA16: -60525.226 | AC16: =L16-INDEX($C16:$L16,1,aux!$BA$1) -> -40700.71 | AD16: -0.1756228675 | AE16: =+IF(INDEX($C16:$L16,1,aux!$BA$1)>0,(L16/INDEX($C16:$L16,1,aux!$BA$1))^(1/($L$3-INDEX($C$3:$L$3,1,aux!$BA$1)))-1,"n.d.") -> -0.05452746171 | AF16: =IF(INDEX($C16:$L16,1,aux!$BA$1)>0,(L16-INDEX($C16:$L16,1,aux!$BA$1))/INDEX($C16:$L16,1,aux!$BA$1),"n.d.") -> -0.3962734549 | AH16: =X16-INDEX($O16:$X16,1,aux!$BA$1) -> -3118.935 | AI16: -0.01005628127 | AJ16: =+IF(INDEX($O16:$X16,1,aux!$BA$1)>0,(X16/INDEX($O16:$X16,1,aux!$BA$1))^(1/($X$3-INDEX($O$3:$X$3,1,aux!$BA$1)))-1,"n.d.") -> -0.02445063372 | AK16: =IF(INDEX($O16:$X16,1,aux!$BA$1)>0,(X16-INDEX($O16:$X16,1,aux!$BA$1))/INDEX($O16:$X16,1,aux!$BA$1),"n.d.") -> -0.1997176104 | CC16: =+IF(ISNA(MATCH('5.1'!A16,AUX_2d_pais!$G$2:$G$40000,0)),0,1) -> 1
A17: 0077 | B17: Arménia | C17: 0 | D17: 0 | E17: 0 | F17: 0 | G17: 0 | H17: 0 | I17: 0 | J17: 0 | K17: 0 | L17: 0 | M17: 0 | N17: 0 | O17: 0 | P17: 0 | Q17: 0 | R17: 0 | S17: 0 | T17: 0 | U17: 0 | V17: 0 | W17: 0 | X17: 0 | Y17: 0 | Z17: 0 | AA17: 0 | AC17: =L17-INDEX($C17:$L17,1,aux!$BA$1) -> 0 | AD17: 0 | AE17: =+IF(INDEX($C17:$L17,1,aux!$BA$1)>0,(L17/INDEX($C17:$L17,1,aux!$BA$1))^(1/($L$3-INDEX($C$3:$L$3,1,aux!$BA$1)))-1,"n.d.") -> n.d. | AF17: =IF(INDEX($C17:$L17,1,aux!$BA$1)>0,(L17-INDEX($C17:$L17,1,aux!$BA$1))/INDEX($C17:$L17,1,aux!$BA$1),"n.d.") -> n.d. | AH17: =X17-INDEX($O17:$X17,1,aux!$BA$1) -> 0 | AI17: 0 | AJ17: =+IF(INDEX($O17:$X17,1,aux!$BA$1)>0,(X17/INDEX($O17:$X17,1,aux!$BA$1))^(1/($X$3-INDEX($O$3:$X$3,1,aux!$BA$1)))-1,"n.d.") -> n.d. | AK17: =IF(INDEX($O17:$X17,1,aux!$BA$1)>0,(X17-INDEX($O17:$X17,1,aux!$BA$1))/INDEX($O17:$X17,1,aux!$BA$1),"n.d.") -> n.d. | AM17: 0 | CC17: =+IF(ISNA(MATCH('5.1'!A17,AUX_2d_pais!$G$2:$G$40000,0)),0,1) -> 0
A18: 0474 | B18: Aruba | C18: 0 | D18: 0 | E18: 0 | F18: 0 | G18: 0 | H18: 0 | I18: 0 | J18: 0 | K18: 0 | L18: 0 | M18: 0 | N18: 0 | O18: 0 | P18: 0 | Q18: 0 | R18: 0 | S18: 0 | T18: 0 | U18: 0 | V18: 0 | W18: 0 | X18: 0 | Y18: 0 | Z18: 0 | AA18: 0 | AC18: =L18-INDEX($C18:$L18,1,aux!$BA$1) -> 0 | AD18: 0 | AE18: =+IF(INDEX($C18:$L18,1,aux!$BA$1)>0,(L18/INDEX($C18:$L18,1,aux!$BA$1))^(1/($L$3-INDEX($C$3:$L$3,1,aux!$BA$1)))-1,"n.d.") -> n.d. | AF18: =IF(INDEX($C18:$L18,1,aux!$BA$1)>0,(L18-INDEX($C18:$L18,1,aux!$BA$1))/INDEX($C18:$L18,1,aux!$BA$1),"n.d.") -> n.d. | AH18: =X18-INDEX($O18:$X18,1,aux!$BA$1) -> 0 | AI18: 0 | AJ18: =+IF(INDEX($O18:$X18,1,aux!$BA$1)>0,(X18/INDEX($O18:$X18,1,aux!$BA$1))^(1/($X$3-INDEX($O$3:$X$3,1,aux!$BA$1)))-1,"n.d.") -> n.d. | AK18: =IF(INDEX($O18:$X18,1,aux!$BA$1)>0,(X18-INDEX($O18:$X18,1,aux!$BA$1))/INDEX($O18:$X18,1,aux!$BA$1),"n.d.") -> n.d. | AM18: 0 | BO18: 0 | CC18: =+IF(ISNA(MATCH('5.1'!A18,AUX_2d_pais!$G$2:$G$40000,0)),0,1) -> 0
A19: 0800 | B19: Austrália | C19: 0 | D19: 0 | E19: 0 | F19: 0 | G19: 0 | H19: 0 | I19: 0 | J19: 0 | K19: 0 | L19: 0 | M19: 0 | N19: 0 | O19: 0 | P19: 0 | Q19: 0 | R19: 0 | S19: 0 | T19: 0 | U19: 0 | V19: 0 | W19: 0 | X19: 0 | Y19: 0 | Z19: 0 | AA19: 0 | AC19: =L19-INDEX($C19:$L19,1,aux!$BA$1) -> 0 | AD19: 0 | AE19: =+IF(INDEX($C19:$L19,1,aux!$BA$1)>0,(L19/INDEX($C19:$L19,1,aux!$BA$1))^(1/($L$3-INDEX($C$3:$L$3,1,aux!$BA$1)))-1,"n.d.") -> n.d. | AF19: =IF(INDEX($C19:$L19,1,aux!$BA$1)>0,(L19-INDEX($C19:$L19,1,aux!$BA$1))/INDEX($C19:$L19,1,aux!$BA$1),"n.d.") -> n.d. | AH19: =X19-INDEX($O19:$X19,1,aux!$BA$1) -> 0 | AI19: 0 | AJ19: =+IF(INDEX($O19:$X19,1,aux!$BA$1)>0,(X19/INDEX($O19:$X19,1,aux!$BA$1))^(1/($X$3-INDEX($O$3:$X$3,1,aux!$BA$1)))-1,"n.d.") -> n.d. | AK19: =IF(INDEX($O19:$X19,1,aux!$BA$1)>0,(X19-INDEX($O19:$X19,1,aux!$BA$1))/INDEX($O19:$X19,1,aux!$BA$1),"n.d.") -> n.d. | AM19: 0 | CC19: =+IF(ISNA(MATCH('5.1'!A19,AUX_2d_pais!$G$2:$G$40000,0)),0,1) -> 0
A20: 0038 | B20: Áustria | C20: 0 | D20: 0 | E20: 0 | F20: 0 | G20: 0 | H20: 0 | I20: 0 | J20: 0 | K20: 0 | L20: 0 | M20: 0 | N20: 0 | O20: 0 | P20: 0 | Q20: 0 | R20: 0 | S20: 0 | T20: 0 | U20: 0 | V20: 0 | W20: 0 | X20: 0 | Y20: 0 | Z20: 0 | AA20: 0 | AC20: =L20-INDEX($C20:$L20,1,aux!$BA$1) -> 0 | AD20: 0 | AE20: =+IF(INDEX($C20:$L20,1,aux!$BA$1)>0,(L20/INDEX($C20:$L20,1,aux!$BA$1))^(1/($L$3-INDEX($C$3:$L$3,1,aux!$BA$1)))-1,"n.d.") -> n.d. | AF20: =IF(INDEX($C20:$L20,1,aux!$BA$1)>0,(L20-INDEX($C20:$L20,1,aux!$BA$1))/INDEX($C20:$L20,1,aux!$BA$1),"n.d.") -> n.d. | AH20: =X20-INDEX($O20:$X20,1,aux!$BA$1) -> 0 | AI20: 0 | AJ20: =+IF(INDEX($O20:$X20,1,aux!$BA$1)>0,(X20/INDEX($O20:$X20,1,aux!$BA$1))^(1/($X$3-INDEX($O$3:$X$3,1,aux!$BA$1)))-1,"n.d.") -> n.d. | AK20: =IF(INDEX($O20:$X20,1,aux!$BA$1)>0,(X20-INDEX($O20:$X20,1,aux!$BA$1))/INDEX($O20:$X20,1,aux!$BA$1),"n.d.") -> n.d. | AM20: 0 | CC20: =+IF(ISNA(MATCH('5.1'!A20,AUX_2d_pais!$G$2:$G$40000,0)),0,1) -> 0
A21: 0078 | B21: Azerbaijão | C21: 0 | D21: 0 | E21: 0 | F21: 0 | G21: 0 | H21: 0 | I21: 0 | J21: 0 | K21: 0 | L21: 0 | M21: 0 | N21: 0 | O21: 0 | P21: 0 | Q21: 0 | R21: 0 | S21: 0 | T21: 0 | U21: 0 | V21: 0 | W21: 0 | X21: 0 | Y21: 0 | Z21: 0 | AA21: 0 | AC21: =L21-INDEX($C21:$L21,1,aux!$BA$1) -> 0 | AD21: 0 | AE21: =+IF(INDEX($C21:$L21,1,aux!$BA$1)>0,(L21/INDEX($C21:$L21,1,aux!$BA$1))^(1/($L$3-INDEX($C$3:$L$3,1,aux!$BA$1)))-1,"n.d.") -> n.d. | AF21: =IF(INDEX($C21:$L21,1,aux!$BA$1)>0,(L21-INDEX($C21:$L21,1,aux!$BA$1))/INDEX($C21:$L21,1,aux!$BA$1),"n.d.") -> n.d. | AH21: =X21-INDEX($O21:$X21,1,aux!$BA$1) -> 0 | AI21: 0 | AJ21: =+IF(INDEX($O21:$X21,1,aux!$BA$1)>0,(X21/INDEX($O21:$X21,1,aux!$BA$1))^(1/($X$3-INDEX($O$3:$X$3,1,aux!$BA$1)))-1,"n.d.") -> n.d. | AK21: =IF(INDEX($O21:$X21,1,aux!$BA$1)>0,(X21-INDEX($O21:$X21,1,aux!$BA$1))/INDEX($O21:$X21,1,aux!$BA$1),"n.d.") -> n.d. | AM21: 0 | CC21: =+IF(ISNA(MATCH('5.1'!A21,AUX_2d_pais!$G$2:$G$40000,0)),0,1) -> 0
A22: 0453 | B22: Bahamas | C22: 0 | D22: 0 | E22: 0 | F22: 0 | G22: 0 | H22: 0 | I22: 0 | J22: 0 | K22: 0 | L22: 0 | M22: 0 | N22: 0 | O22: 0 | P22: 0 | Q22: 0 | R22: 0 | S22: 0 | T22: 0 | U22: 0 | V22: 0 | W22: 0 | X22: 0 | Y22: 0 | Z22: 0 | AA22: 0 | AC22: =L22-INDEX($C22:$L22,1,aux!$BA$1) -> 0 | AD22: 0 | AE22: =+IF(INDEX($C22:$L22,1,aux!$BA$1)>0,(L22/INDEX($C22:$L22,1,aux!$BA$1))^(1/($L$3-INDEX($C$3:$L$3,1,aux!$BA$1)))-1,"n.d.") -> n.d. | AF22: =IF(INDEX($C22:$L22,1,aux!$BA$1)>0,(L22-INDEX($C22:$L22,1,aux!$BA$1))/INDEX($C22:$L22,1,aux!$BA$1),"n.d.") -> n.d. | AH22: =X22-INDEX($O22:$X22,1,aux!$BA$1) -> 0 | AI22: 0 | AJ22: =+IF(INDEX($O22:$X22,1,aux!$BA$1)>0,(X22/INDEX($O22:$X22,1,aux!$BA$1))^(1/($X$3-INDEX($O$3:$X$3,1,aux!$BA$1)))-1,"n.d.") -> n.d. | AK22: =IF(INDEX($O22:$X22,1,aux!$BA$1)>0,(X22-INDEX($O22:$X22,1,aux!$BA$1))/INDEX($O22:$X22,1,aux!$BA$1),"n.d.") -> n.d. | AM22: 0 | BO22: 0 | CC22: =+IF(ISNA(MATCH('5.1'!A22,AUX_2d_pais!$G$2:$G$40000,0)),0,1) -> 0
A23: 0666 | B23: Bangladesh | C23: 0 | D23: 0 | E23: 0 | F23: 0 | G23: 0 | H23: 0 | I23: 0 | J23: 0 | K23: 0 | L23: 0 | M23: 0 | N23: 0 | O23: 0 | P23: 0 | Q23: 0 | R23: 0 | S23: 0 | T23: 0 | U23: 0 | V23: 0 | W23: 0 | X23: 0 | Y23: 0 | Z23: 0 | AA23: 0 | AC23: =L23-INDEX($C23:$L23,1,aux!$BA$1) -> 0 | AD23: 0 | AE23: =+IF(INDEX($C23:$L23,1,aux!$BA$1)>0,(L23/INDEX($C23:$L23,1,aux!$BA$1))^(1/($L$3-INDEX($C$3:$L$3,1,aux!$BA$1)))-1,"n.d.") -> n.d. | AF23: =IF(INDEX($C23:$L23,1,aux!$BA$1)>0,(L23-INDEX($C23:$L23,1,aux!$BA$1))/INDEX($C23:$L23,1,aux!$BA$1),"n.d.") -> n.d. | AH23: =X23-INDEX($O23:$X23,1,aux!$BA$1) -> 0 | AI23: 0 | AJ23: =+IF(INDEX($O23:$X23,1,aux!$BA$1)>0,(X23/INDEX($O23:$X23,1,aux!$BA$1))^(1/($X$3-INDEX($O$3:$X$3,1,aux!$BA$1)))-1,"n.d.") -> n.d. | AK23: =IF(INDEX($O23:$X23,1,aux!$BA$1)>0,(X23-INDEX($O23:$X23,1,aux!$BA$1))/INDEX($O23:$X23,1,aux!$BA$1),"n.d.") -> n.d. | AM23: 0 | CC23: =+IF(ISNA(MATCH('5.1'!A23,AUX_2d_pais!$G$2:$G$40000,0)),0,1) -> 0
A24: 0469 | B24: Barbados | C24: 0 | D24: 0 | E24: 0 | F24: 0 | G24: 0 | H24: 0 | I24: 0 | J24: 0 | K24: 0 | L24: 0 | M24: 0 | N24: 0 | O24: 0 | P24: 0 | Q24: 0 | R24: 0 | S24: 0 | T24: 0 | U24: 0 | V24: 0 | W24: 0 | X24: 0 | Y24: 0 | Z24: 0 | AA24: 0 | AC24: =L24-INDEX($C24:$L24,1,aux!$BA$1) -> 0 | AD24: 0 | AE24: =+IF(INDEX($C24:$L24,1,aux!$BA$1)>0,(L24/INDEX($C24:$L24,1,aux!$BA$1))^(1/($L$3-INDEX($C$3:$L$3,1,aux!$BA$1)))-1,"n.d.") -> n.d. | AF24: =IF(INDEX($C24:$L24,1,aux!$BA$1)>0,(L24-INDEX($C24:$L24,1,aux!$BA$1))/INDEX($C24:$L24,1,aux!$BA$1),"n.d.") -> n.d. | AH24: =X24-INDEX($O24:$X24,1,aux!$BA$1) -> 0 | AI24: 0 | AJ24: =+IF(INDEX($O24:$X24,1,aux!$BA$1)>0,(X24/INDEX($O24:$X24,1,aux!$BA$1))^(1/($X$3-INDEX($O$3:$X$3,1,aux!$BA$1)))-1,"n.d.") -> n.d. | AK24: =IF(INDEX($O24:$X24,1,aux!$BA$1)>0,(X24-INDEX($O24:$X24,1,aux!$BA$1))/INDEX($O24:$X24,1,aux!$BA$1),"n.d.") -> n.d. | AM24: 0 | BO24: 0 | CC24: =+IF(ISNA(MATCH('5.1'!A24,AUX_2d_pais!$G$2:$G$40000,0)),0,1) -> 0
A25: 0640 | B25: Barém | C25: 0 | D25: 0 | E25: 0 | F25: 0 | G25: 0 | H25: 0 | I25: 0 | J25: 0 | K25: 0 | L25: 0 | M25: 0 | N25: 0 | O25: 0 | P25: 0 | Q25: 0 | R25: 0 | S25: 0 | T25: 0 | U25: 0 | V25: 0 | W25: 0 | X25: 0 | Y25: 0 | Z25: 0 | AA25: 0 | AC25: =L25-INDEX($C25:$L25,1,aux!$BA$1) -> 0 | AD25: 0 | AE25: =+IF(INDEX($C25:$L25,1,aux!$BA$1)>0,(L25/INDEX($C25:$L25,1,aux!$BA$1))^(1/($L$3-INDEX($C$3:$L$3,1,aux!$BA$1)))-1,"n.d.") -> n.d. | AF25: =IF(INDEX($C25:$L25,1,aux!$BA$1)>0,(L25-INDEX($C25:$L25,1,aux!$BA$1))/INDEX($C25:$L25,1,aux!$BA$1),"n.d.") -> n.d. | AH25: =X25-INDEX($O25:$X25,1,aux!$BA$1) -> 0 | AI25: 0 | AJ25: =+IF(INDEX($O25:$X25,1,aux!$BA$1)>0,(X25/INDEX($O25:$X25,1,aux!$BA$1))^(1/($X$3-INDEX($O$3:$X$3,1,aux!$BA$1)))-1,"n.d.") -> n.d. | AK25: =IF(INDEX($O25:$X25,1,aux!$BA$1)>0,(X25-INDEX($O25:$X25,1,aux!$BA$1))/INDEX($O25:$X25,1,aux!$BA$1),"n.d.") -> n.d. | AM25: 0 | CC25: =+IF(ISNA(MATCH('5.1'!A25,AUX_2d_pais!$G$2:$G$40000,0)),0,1) -> 0
A26: 0073 | B26: Belarus | C26: 0 | D26: 0 | E26: 0 | F26: 0 | G26: 0 | H26: 0 | I26: 0 | J26: 0 | K26: 0 | L26: 0 | M26: 0 | N26: 0 | O26: 0 | P26: 0 | Q26: 0 | R26: 0 | S26: 0 | T26: 0 | U26: 0 | V26: 0 | W26: 0 | X26: 0 | Y26: 0 | Z26: 0 | AA26: 0 | AC26: =L26-INDEX($C26:$L26,1,aux!$BA$1) -> 0 | AD26: 0 | AE26: =+IF(INDEX($C26:$L26,1,aux!$BA$1)>0,(L26/INDEX($C26:$L26,1,aux!$BA$1))^(1/($L$3-INDEX($C$3:$L$3,1,aux!$BA$1)))-1,"n.d.") -> n.d. | AF26: =IF(INDEX($C26:$L26,1,aux!$BA$1)>0,(L26-INDEX($C26:$L26,1,aux!$BA$1))/INDEX($C26:$L26,1,aux!$BA$1),"n.d.") -> n.d. | AH26: =X26-INDEX($O26:$X26,1,aux!$BA$1) -> 0 | AI26: 0 | AJ26: =+IF(INDEX($O26:$X26,1,aux!$BA$1)>0,(X26/INDEX($O26:$X26,1,aux!$BA$1))^(1/($X$3-INDEX($O$3:$X$3,1,aux!$BA$1)))-1,"n.d.") -> n.d. | AK26: =IF(INDEX($O26:$X26,1,aux!$BA$1)>0,(X26-INDEX($O26:$X26,1,aux!$BA$1))/INDEX($O26:$X26,1,aux!$BA$1),"n.d.") -> n.d. | AM26: 0 | CC26: =+IF(ISNA(MATCH('5.1'!A26,AUX_2d_pais!$G$2:$G$40000,0)),0,1) -> 0
A27: 0017 | B27: Bélgica | C27: 0 | D27: 0 | E27: 0 | F27: 0 | G27: 0 | H27: 0 | I27: 0 | J27: 0 | K27: 0 | L27: 0 | M27: 0 | N27: 0 | O27: 0 | P27: 0 | Q27: 0 | R27: 0 | S27: 0 | T27: 0 | U27: 0 | V27: 0 | W27: 0 | X27: 0 | Y27: 0 | Z27: 0 | AA27: 0 | AC27: =L27-INDEX($C27:$L27,1,aux!$BA$1) -> 0 | AD27: 0 | AE27: =+IF(INDEX($C27:$L27,1,aux!$BA$1)>0,(L27/INDEX($C27:$L27,1,aux!$BA$1))^(1/($L$3-INDEX($C$3:$L$3,1,aux!$BA$1)))-1,"n.d.") -> n.d. | AF27: =IF(INDEX($C27:$L27,1,aux!$BA$1)>0,(L27-INDEX($C27:$L27,1,aux!$BA$1))/INDEX($C27:$L27,1,aux!$BA$1),"n.d.") -> n.d. | AH27: =X27-INDEX($O27:$X27,1,aux!$BA$1) -> 0 | AI27: 0 | AJ27: =+IF(INDEX($O27:$X27,1,aux!$BA$1)>0,(X27/INDEX($O27:$X27,1,aux!$BA$1))^(1/($X$3-INDEX($O$3:$X$3,1,aux!$BA$1)))-1,"n.d.") -> n.d. | AK27: =IF(INDEX($O27:$X27,1,aux!$BA$1)>0,(X27-INDEX($O27:$X27,1,aux!$BA$1))/INDEX($O27:$X27,1,aux!$BA$1),"n.d.") -> n.d. | AM27: 0 | CC27: =+IF(ISNA(MATCH('5.1'!A27,AUX_2d_pais!$G$2:$G$40000,0)),0,1) -> 0
A28: 0421 | B28: Belize | C28: 0 | D28: 0 | E28: 0 | F28: 0 | G28: 0 | H28: 0 | I28: 0 | J28: 0 | K28: 0 | L28: 0 | M28: 0 | N28: 0 | O28: 0 | P28: 0 | Q28: 0 | R28: 0 | S28: 0 | T28: 0 | U28: 0 | V28: 0 | W28: 0 | X28: 0 | Y28: 0 | Z28: 0 | AA28: 0 | AC28: =L28-INDEX($C28:$L28,1,aux!$BA$1) -> 0 | AD28: 0 | AE28: =+IF(INDEX($C28:$L28,1,aux!$BA$1)>0,(L28/INDEX($C28:$L28,1,aux!$BA$1))^(1/($L$3-INDEX($C$3:$L$3,1,aux!$BA$1)))-1,"n.d.") -> n.d. | AF28: =IF(INDEX($C28:$L28,1,aux!$BA$1)>0,(L28-INDEX($C28:$L28,1,aux!$BA$1))/INDEX($C28:$L28,1,aux!$BA$1),"n.d.") -> n.d. | AH28: =X28-INDEX($O28:$X28,1,aux!$BA$1) -> 0 | AI28: 0 | AJ28: =+IF(INDEX($O28:$X28,1,aux!$BA$1)>0,(X28/INDEX($O28:$X28,1,aux!$BA$1))^(1/($X$3-INDEX($O$3:$X$3,1,aux!$BA$1)))-1,"n.d.") -> n.d. | AK28: =IF(INDEX($O28:$X28,1,aux!$BA$1)>0,(X28-INDEX($O28:$X28,1,aux!$BA$1))/INDEX($O28:$X28,1,aux!$BA$1),"n.d.") -> n.d. | AM28: 0 | CC28: =+IF(ISNA(MATCH('5.1'!A28,AUX_2d_pais!$G$2:$G$40000,0)),0,1) -> 0
A29: 0284 | B29: Benim | C29: 0 | D29: 0 | E29: 0 | F29: 0 | G29: 0 | H29: 0 | I29: 0 | J29: 0 | K29: 0 | L29: 0 | M29: 0 | N29: 0 | O29: 0 | P29: 0 | Q29: 0 | R29: 0 | S29: 0 | T29: 0 | U29: 0 | V29: 0 | W29: 0 | X29: 0 | Y29: 0 | Z29: 0 | AA29: 0 | AC29: =L29-INDEX($C29:$L29,1,aux!$BA$1) -> 0 | AD29: 0 | AE29: =+IF(INDEX($C29:$L29,1,aux!$BA$1)>0,(L29/INDEX($C29:$L29,1,aux!$BA$1))^(1/($L$3-INDEX($C$3:$L$3,1,aux!$BA$1)))-1,"n.d.") -> n.d. | AF29: =IF(INDEX($C29:$L29,1,aux!$BA$1)>0,(L29-INDEX($C29:$L29,1,aux!$BA$1))/INDEX($C29:$L29,1,aux!$BA$1),"n.d.") -> n.d. | AH29: =X29-INDEX($O29:$X29,1,aux!$BA$1) -> 0 | AI29: 0 | AJ29: =+IF(INDEX($O29:$X29,1,aux!$BA$1)>0,(X29/INDEX($O29:$X29,1,aux!$BA$1))^(1/($X$3-INDEX($O$3:$X$3,1,aux!$BA$1)))-1,"n.d.") -> n.d. | AK29: =IF(INDEX($O29:$X29,1,aux!$BA$1)>0,(X29-INDEX($O29:$X29,1,aux!$BA$1))/INDEX($O29:$X29,1,aux!$BA$1),"n.d.") -> n.d. | AM29: 0 | CC29: =+IF(ISNA(MATCH('5.1'!A29,AUX_2d_pais!$G$2:$G$40000,0)),0,1) -> 0
A30: 0413 | B30: Bermudas | C30: 0 | D30: 0 | E30: 0 | F30: 0 | G30: 0 | H30: 0 | I30: 0 | J30: 0 | K30: 0 | L30: 0 | M30: 0 | N30: 0 | O30: 0 | P30: 0 | Q30: 0 | R30: 0 | S30: 0 | T30: 0 | U30: 0 | V30: 0 | W30: 0 | X30: 0 | Y30: 0 | Z30: 0 | AA30: 0 | AC30: =L30-INDEX($C30:$L30,1,aux!$BA$1) -> 0 | AD30: 0 | AE30: =+IF(INDEX($C30:$L30,1,aux!$BA$1)>0,(L30/INDEX($C30:$L30,1,aux!$BA$1))^(1/($L$3-INDEX($C$3:$L$3,1,aux!$BA$1)))-1,"n.d.") -> n.d. | AF30: =IF(INDEX($C30:$L30,1,aux!$BA$1)>0,(L30-INDEX($C30:$L30,1,aux!$BA$1))/INDEX($C30:$L30,1,aux!$BA$1),"n.d.") -> n.d. | AH30: =X30-INDEX($O30:$X30,1,aux!$BA$1) -> 0 | AI30: 0 | AJ30: =+IF(INDEX($O30:$X30,1,aux!$BA$1)>0,(X30/INDEX($O30:$X30,1,aux!$BA$1))^(1/($X$3-INDEX($O$3:$X$3,1,aux!$BA$1)))-1,"n.d.") -> n.d. | AK30: =IF(INDEX($O30:$X30,1,aux!$BA$1)>0,(X30-INDEX($O30:$X30,1,aux!$BA$1))/INDEX($O30:$X30,1,aux!$BA$1),"n.d.") -> n.d. | AM30: 0 | CC30: =+IF(ISNA(MATCH('5.1'!A30,AUX_2d_pais!$G$2:$G$40000,0)),0,1) -> 0
A31: 0516 | B31: Bolívia | C31: 552.431 | D31: 1481.171 | E31: 1030.298 | F31: 759.065 | G31: 10101.212 | H31: 245.271 | I31: 789.13 | J31: 908.047 | K31: 373.935 | L31: 759.726 | M31: 1700.0286 | N31: 0.002385177286 | O31: 394.369 | P31: 551.525 | Q31: 904.476 | R31: 788.047 | S31: 728.006 | T31: 889.02 | U31: 661.86 | V31: 1120.132 | W31: 1704.109 | X31: 1951.593 | Y31: 969.3137 | Z31: 0.002415780596 | AA31: -730.7149 | AC31: =L31-INDEX($C31:$L31,1,aux!$BA$1) -> 207.295 | AD31: 0.0008944743792 | AE31: =+IF(INDEX($C31:$L31,1,aux!$BA$1)>0,(L31/INDEX($C31:$L31,1,aux!$BA$1))^(1/($L$3-INDEX($C$3:$L$3,1,aux!$BA$1)))-1,"n.d.") -> 0.03603741279 | AF31: =IF(INDEX($C31:$L31,1,aux!$BA$1)>0,(L31-INDEX($C31:$L31,1,aux!$BA$1))/INDEX($C31:$L31,1,aux!$BA$1),"n.d.") -> 0.3752414329 | AH31: =X31-INDEX($O31:$X31,1,aux!$BA$1) -> 1557.224 | AI31: 0.00502090699 | AJ31: =+IF(INDEX($O31:$X31,1,aux!$BA$1)>0,(X31/INDEX($O31:$X31,1,aux!$BA$1))^(1/($X$3-INDEX($O$3:$X$3,1,aux!$BA$1)))-1,"n.d.") -> 0.1944422715 | AK31: =IF(INDEX($O31:$X31,1,aux!$BA$1)>0,(X31-INDEX($O31:$X31,1,aux!$BA$1))/INDEX($O31:$X31,1,aux!$BA$1),"n.d.") -> 3.948647079 | CC31: =+IF(ISNA(MATCH('5.1'!A31,AUX_2d_pais!$G$2:$G$40000,0)),0,1) -> 1
A32: 0477 | B32: Bonaire, Santo Eustáquio e Saba | C32: 0 | D32: 0 | E32: 0 | F32: 0 | G32: 0 | H32: 0 | I32: 0 | J32: 0 | K32: 0 | L32: 0 | M32: 0 | N32: 0 | O32: 0 | P32: 0 | Q32: 0 | R32: 0 | S32: 0 | T32: 0 | U32: 0 | V32: 0 | W32: 0 | X32: 0 | Y32: 0 | Z32: 0 | AA32: 0 | AC32: =L32-INDEX($C32:$L32,1,aux!$BA$1) -> 0 | AD32: 0 | AE32: =+IF(INDEX($C32:$L32,1,aux!$BA$1)>0,(L32/INDEX($C32:$L32,1,aux!$BA$1))^(1/($L$3-INDEX($C$3:$L$3,1,aux!$BA$1)))-1,"n.d.") -> n.d. | AF32: =IF(INDEX($C32:$L32,1,aux!$BA$1)>0,(L32-INDEX($C32:$L32,1,aux!$BA$1))/INDEX($C32:$L32,1,aux!$BA$1),"n.d.") -> n.d. | AH32: =X32-INDEX($O32:$X32,1,aux!$BA$1) -> 0 | AI32: 0 | AJ32: =+IF(INDEX($O32:$X32,1,aux!$BA$1)>0,(X32/INDEX($O32:$X32,1,aux!$BA$1))^(1/($X$3-INDEX($O$3:$X$3,1,aux!$BA$1)))-1,"n.d.") -> n.d. | AK32: =IF(INDEX($O32:$X32,1,aux!$BA$1)>0,(X32-INDEX($O32:$X32,1,aux!$BA$1))/INDEX($O32:$X32,1,aux!$BA$1),"n.d.") -> n.d. | AM32: 0 | BO32: 0 | CC32: =+IF(ISNA(MATCH('5.1'!A32,AUX_2d_pais!$G$2:$G$40000,0)),0,1) -> 0
A33: 0093 | B33: Bósnia-Herzegovina | C33: 0 | D33: 0 | E33: 0 | F33: 0 | G33: 0 | H33: 0 | I33: 0 | J33: 0 | K33: 0 | L33: 0 | M33: 0 | N33: 0 | O33: 0 | P33: 0 | Q33: 0 | R33: 0 | S33: 0 | T33: 0 | U33: 0 | V33: 0 | W33: 0 | X33: 0 | Y33: 0 | Z33: 0 | AA33: 0 | AC33: =L33-INDEX($C33:$L33,1,aux!$BA$1) -> 0 | AD33: 0 | AE33: =+IF(INDEX($C33:$L33,1,aux!$BA$1)>0,(L33/INDEX($C33:$L33,1,aux!$BA$1))^(1/($L$3-INDEX($C$3:$L$3,1,aux!$BA$1)))-1,"n.d.") -> n.d. | AF33: =IF(INDEX($C33:$L33,1,aux!$BA$1)>0,(L33-INDEX($C33:$L33,1,aux!$BA$1))/INDEX($C33:$L33,1,aux!$BA$1),"n.d.") -> n.d. | AH33: =X33-INDEX($O33:$X33,1,aux!$BA$1) -> 0 | AI33: 0 | AJ33: =+IF(INDEX($O33:$X33,1,aux!$BA$1)>0,(X33/INDEX($O33:$X33,1,aux!$BA$1))^(1/($X$3-INDEX($O$3:$X$3,1,aux!$BA$1)))-1,"n.d.") -> n.d. | AK33: =IF(INDEX($O33:$X33,1,aux!$BA$1)>0,(X33-INDEX($O33:$X33,1,aux!$BA$1))/INDEX($O33:$X33,1,aux!$BA$1),"n.d.") -> n.d. | AM33: 0 | CC33: =+IF(ISNA(MATCH('5.1'!A33,AUX_2d_pais!$G$2:$G$40000,0)),0,1) -> 0
A34: 0391 | B34: Botswana | C34: 0 | D34: 0 | E34: 0 | F34: 0 | G34: 0 | H34: 0 | I34: 0 | J34: 0 | K34: 0 | L34: 0 | M34: 0 | N34: 0 | O34: 0 | P34: 0 | Q34: 0 | R34: 0 | S34: 0 | T34: 0 | U34: 0 | V34: 0 | W34: 0 | X34: 0 | Y34: 0 | Z34: 0 | AA34: 0 | AC34: =L34-INDEX($C34:$L34,1,aux!$BA$1) -> 0 | AD34: 0 | AE34: =+IF(INDEX($C34:$L34,1,aux!$BA$1)>0,(L34/INDEX($C34:$L34,1,aux!$BA$1))^(1/($L$3-INDEX($C$3:$L$3,1,aux!$BA$1)))-1,"n.d.") -> n.d. | AF34: =IF(INDEX($C34:$L34,1,aux!$BA$1)>0,(L34-INDEX($C34:$L34,1,aux!$BA$1))/INDEX($C34:$L34,1,aux!$BA$1),"n.d.") -> n.d. | AH34: =X34-INDEX($O34:$X34,1,aux!$BA$1) -> 0 | AI34: 0 | AJ34: =+IF(INDEX($O34:$X34,1,aux!$BA$1)>0,(X34/INDEX($O34:$X34,1,aux!$BA$1))^(1/($X$3-INDEX($O$3:$X$3,1,aux!$BA$1)))-1,"n.d.") -> n.d. | AK34: =IF(INDEX($O34:$X34,1,aux!$BA$1)>0,(X34-INDEX($O34:$X34,1,aux!$BA$1))/INDEX($O34:$X34,1,aux!$BA$1),"n.d.") -> n.d. | AM34: 0 | CC34: =+IF(ISNA(MATCH('5.1'!A34,AUX_2d_pais!$G$2:$G$40000,0)),0,1) -> 0
A35: 0892 | B35: Bouvet, Ilha | C35: 0 | D35: 0 | E35: 0 | F35: 0 | G35: 0 | H35: 0 | I35: 0 | J35: 0 | K35: 0 | L35: 0 | M35: 0 | N35: 0 | O35: 0 | P35: 0 | Q35: 0 | R35: 0 | S35: 0 | T35: 0 | U35: 0 | V35: 0 | W35: 0 | X35: 0 | Y35: 0 | Z35: 0 | AA35: 0 | AC35: =L35-INDEX($C35:$L35,1,aux!$BA$1) -> 0 | AD35: 0 | AE35: =+IF(INDEX($C35:$L35,1,aux!$BA$1)>0,(L35/INDEX($C35:$L35,1,aux!$BA$1))^(1/($L$3-INDEX($C$3:$L$3,1,aux!$BA$1)))-1,"n.d.") -> n.d. | AF35: =IF(INDEX($C35:$L35,1,aux!$BA$1)>0,(L35-INDEX($C35:$L35,1,aux!$BA$1))/INDEX($C35:$L35,1,aux!$BA$1),"n.d.") -> n.d. | AH35: =X35-INDEX($O35:$X35,1,aux!$BA$1) -> 0 | AI35: 0 | AJ35: =+IF(INDEX($O35:$X35,1,aux!$BA$1)>0,(X35/INDEX($O35:$X35,1,aux!$BA$1))^(1/($X$3-INDEX($O$3:$X$3,1,aux!$BA$1)))-1,"n.d.") -> n.d. | AK35: =IF(INDEX($O35:$X35,1,aux!$BA$1)>0,(X35-INDEX($O35:$X35,1,aux!$BA$1))/INDEX($O35:$X35,1,aux!$BA$1),"n.d.") -> n.d. | AM35: 0 | BO35: 0 | CC35: =+IF(ISNA(MATCH('5.1'!A35,AUX_2d_pais!$G$2:$G$40000,0)),0,1) -> 0
A36: 0508 | B36: Brasil | C36: 345963.741 | D36: 411729.086 | E36: 448773.991 | F36: 454029.826 | G36: 495951.627 | H36: 287929.45 | I36: 366986.145 | J36: 270456.682 | K36: 359351.142 | L36: 416916.205 | M36: 385808.7895 | N36: 0.5412981648 | O36: 155181.717 | P36: 227362.042 | Q36: 268243.887 | R36: 301817.8 | S36: 322487.227 | T36: 337706.071 | U36: 297187.507 | V36: 292346.759 | W36: 403960.331 | X36: 427029.14 | Y36: 303332.2481 | Z36: 0.7559824637 | AA36: -82476.5414 | AC36: =L36-INDEX($C36:$L36,1,aux!$BA$1) -> 70952.464 | AD36: =AC36/$AC$252 -> 0.3061586685 | AE36: =+IF(INDEX($C36:$L36,1,aux!$BA$1)>0,(L36/INDEX($C36:$L36,1,aux!$BA$1))^(1/($L$3-INDEX($C$3:$L$3,1,aux!$BA$1)))-1,"n.d.") -> 0.02094423529 | AF36: =IF(INDEX($C36:$L36,1,aux!$BA$1)>0,(L36-INDEX($C36:$L36,1,aux!$BA$1))/INDEX($C36:$L36,1,aux!$BA$1),"n.d.") -> 0.2050864168 | AH36: =X36-INDEX($O36:$X36,1,aux!$BA$1) -> 271847.423 | AI36: =AH36/$AH$252 -> 0.8765088557 | AJ36: =+IF(INDEX($O36:$X36,1,aux!$BA$1)>0,(X36/INDEX($O36:$X36,1,aux!$BA$1))^(1/($X$3-INDEX($O$3:$X$3,1,aux!$BA$1)))-1,"n.d.") -> 0.1190418505 | AK36: =IF(INDEX($O36:$X36,1,aux!$BA$1)>0,(X36-INDEX($O36:$X36,1,aux!$BA$1))/INDEX($O36:$X36,1,aux!$BA$1),"n.d.") -> 1.751800587 | CC36: =+IF(ISNA(MATCH('5.1'!A36,AUX_2d_pais!$G$2:$G$40000,0)),0,1) -> 1
A37: 0703 | B37: Brunei Darussalam | C37: 0 | D37: 0 | E37: 0 | F37: 0 | G37: 0 | H37: 0 | I37: 0 | J37: 0 | K37: 0 | L37: 0 | M37: 0 | N37: 0 | O37: 0 | P37: 0 | Q37: 0 | R37: 0 | S37: 0 | T37: 0 | U37: 0 | V37: 0 | W37: 0 | X37: 0 | Y37: 0 | Z37: 0 | AA37: 0 | AC37: =L37-INDEX($C37:$L37,1,aux!$BA$1) -> 0 | AD37: 0 | AE37: =+IF(INDEX($C37:$L37,1,aux!$BA$1)>0,(L37/INDEX($C37:$L37,1,aux!$BA$1))^(1/($L$3-INDEX($C$3:$L$3,1,aux!$BA$1)))-1,"n.d.") -> n.d. | AF37: =IF(INDEX($C37:$L37,1,aux!$BA$1)>0,(L37-INDEX($C37:$L37,1,aux!$BA$1))/INDEX($C37:$L37,1,aux!$BA$1),"n.d.") -> n.d. | AH37: =X37-INDEX($O37:$X37,1,aux!$BA$1) -> 0 | AI37: 0 | AJ37: =+IF(INDEX($O37:$X37,1,aux!$BA$1)>0,(X37/INDEX($O37:$X37,1,aux!$BA$1))^(1/($X$3-INDEX($O$3:$X$3,1,aux!$BA$1)))-1,"n.d.") -> n.d. | AK37: =IF(INDEX($O37:$X37,1,aux!$BA$1)>0,(X37-INDEX($O37:$X37,1,aux!$BA$1))/INDEX($O37:$X37,1,aux!$BA$1),"n.d.") -> n.d. | AM37: 0 | BO37: 0 | CC37: =+IF(ISNA(MATCH('5.1'!A37,AUX_2d_pais!$G$2:$G$40000,0)),0,1) -> 0
A38: 0068 | B38: Bulgária | C38: 0 | D38: 0 | E38: 0 | F38: 0 | G38: 0 | H38: 0 | I38: 0 | J38: 0 | K38: 0 | L38: 0 | M38: 0 | N38: 0 | O38: 0 | P38: 0 | Q38: 0 | R38: 0 | S38: 0 | T38: 0 | U38: 0 | V38: 0 | W38: 0 | X38: 0 | Y38: 0 | Z38: 0 | AA38: 0 | AC38: =L38-INDEX($C38:$L38,1,aux!$BA$1) -> 0 | AD38: 0 | AE38: =+IF(INDEX($C38:$L38,1,aux!$BA$1)>0,(L38/INDEX($C38:$L38,1,aux!$BA$1))^(1/($L$3-INDEX($C$3:$L$3,1,aux!$BA$1)))-1,"n.d.") -> n.d. | AF38: =IF(INDEX($C38:$L38,1,aux!$BA$1)>0,(L38-INDEX($C38:$L38,1,aux!$BA$1))/INDEX($C38:$L38,1,aux!$BA$1),"n.d.") -> n.d. | AH38: =X38-INDEX($O38:$X38,1,aux!$BA$1) -> 0 | AI38: 0 | AJ38: =+IF(INDEX($O38:$X38,1,aux!$BA$1)>0,(X38/INDEX($O38:$X38,1,aux!$BA$1))^(1/($X$3-INDEX($O$3:$X$3,1,aux!$BA$1)))-1,"n.d.") -> n.d. | AK38: =IF(INDEX($O38:$X38,1,aux!$BA$1)>0,(X38-INDEX($O38:$X38,1,aux!$BA$1))/INDEX($O38:$X38,1,aux!$BA$1),"n.d.") -> n.d. | AM38: 0 | CC38: =+IF(ISNA(MATCH('5.1'!A38,AUX_2d_pais!$G$2:$G$40000,0)),0,1) -> 0
A39: 0236 | B39: Burquina Faso | C39: 0 | D39: 0 | E39: 0 | F39: 0 | G39: 0 | H39: 0 | I39: 0 | J39: 0 | K39: 0 | L39: 0 | M39: 0 | N39: 0 | O39: 0 | P39: 0 | Q39: 0 | R39: 0 | S39: 0 | T39: 0 | U39: 0 | V39: 0 | W39: 0 | X39: 0 | Y39: 0 | Z39: 0 | AA39: 0 | AC39: =L39-INDEX($C39:$L39,1,aux!$BA$1) -> 0 | AD39: 0 | AE39: =+IF(INDEX($C39:$L39,1,aux!$BA$1)>0,(L39/INDEX($C39:$L39,1,aux!$BA$1))^(1/($L$3-INDEX($C$3:$L$3,1,aux!$BA$1)))-1,"n.d.") -> n.d. | AF39: =IF(INDEX($C39:$L39,1,aux!$BA$1)>0,(L39-INDEX($C39:$L39,1,aux!$BA$1))/INDEX($C39:$L39,1,aux!$BA$1),"n.d.") -> n.d. | AH39: =X39-INDEX($O39:$X39,1,aux!$BA$1) -> 0 | AI39: 0 | AJ39: =+IF(INDEX($O39:$X39,1,aux!$BA$1)>0,(X39/INDEX($O39:$X39,1,aux!$BA$1))^(1/($X$3-INDEX($O$3:$X$3,1,aux!$BA$1)))-1,"n.d.") -> n.d. | AK39: =IF(INDEX($O39:$X39,1,aux!$BA$1)>0,(X39-INDEX($O39:$X39,1,aux!$BA$1))/INDEX($O39:$X39,1,aux!$BA$1),"n.d.") -> n.d. | AM39: 0 | CC39: =+IF(ISNA(MATCH('5.1'!A39,AUX_2d_pais!$G$2:$G$40000,0)),0,1) -> 0
A40: 0328 | B40: Burundi | C40: 0 | D40: 0 | E40: 0 | F40: 0 | G40: 0 | H40: 0 | I40: 0 | J40: 0 | K40: 0 | L40: 0 | M40: 0 | N40: 0 | O40: 0 | P40: 0 | Q40: 0 | R40: 0 | S40: 0 | T40: 0 | U40: 0 | V40: 0 | W40: 0 | X40: 0 | Y40: 0 | Z40: 0 | AA40: 0 | AC40: =L40-INDEX($C40:$L40,1,aux!$BA$1) -> 0 | AD40: 0 | AE40: =+IF(INDEX($C40:$L40,1,aux!$BA$1)>0,(L40/INDEX($C40:$L40,1,aux!$BA$1))^(1/($L$3-INDEX($C$3:$L$3,1,aux!$BA$1)))-1,"n.d.") -> n.d. | AF40: =IF(INDEX($C40:$L40,1,aux!$BA$1)>0,(L40-INDEX($C40:$L40,1,aux!$BA$1))/INDEX($C40:$L40,1,aux!$BA$1),"n.d.") -> n.d. | AH40: =X40-INDEX($O40:$X40,1,aux!$BA$1) -> 0 | AI40: 0 | AJ40: =+IF(INDEX($O40:$X40,1,aux!$BA$1)>0,(X40/INDEX($O40:$X40,1,aux!$BA$1))^(1/($X$3-INDEX($O$3:$X$3,1,aux!$BA$1)))-1,"n.d.") -> n.d. | AK40: =IF(INDEX($O40:$X40,1,aux!$BA$1)>0,(X40-INDEX($O40:$X40,1,aux!$BA$1))/INDEX($O40:$X40,1,aux!$BA$1),"n.d.") -> n.d. | AM40: 0 | BO40: 0 | CC40: =+IF(ISNA(MATCH('5.1'!A40,AUX_2d_pais!$G$2:$G$40000,0)),0,1) -> 0
A41: 0675 | B41: Butão | C41: 0 | D41: 0 | E41: 0 | F41: 0 | G41: 0 | H41: 0 | I41: 0 | J41: 0 | K41: 0 | L41: 0 | M41: 0 | N41: 0 | O41: 0 | P41: 0 | Q41: 0 | R41: 0 | S41: 0 | T41: 0 | U41: 0 | V41: 0 | W41: 0 | X41: 0 | Y41: 0 | Z41: 0 | AA41: 0 | AC41: =L41-INDEX($C41:$L41,1,aux!$BA$1) -> 0 | AD41: 0 | AE41: =+IF(INDEX($C41:$L41,1,aux!$BA$1)>0,(L41/INDEX($C41:$L41,1,aux!$BA$1))^(1/($L$3-INDEX($C$3:$L$3,1,aux!$BA$1)))-1,"n.d.") -> n.d. | AF41: =IF(INDEX($C41:$L41,1,aux!$BA$1)>0,(L41-INDEX($C41:$L41,1,aux!$BA$1))/INDEX($C41:$L41,1,aux!$BA$1),"n.d.") -> n.d. | AH41: =X41-INDEX($O41:$X41,1,aux!$BA$1) -> 0 | AI41: 0 | AJ41: =+IF(INDEX($O41:$X41,1,aux!$BA$1)>0,(X41/INDEX($O41:$X41,1,aux!$BA$1))^(1/($X$3-INDEX($O$3:$X$3,1,aux!$BA$1)))-1,"n.d.") -> n.d. | AK41: =IF(INDEX($O41:$X41,1,aux!$BA$1)>0,(X41-INDEX($O41:$X41,1,aux!$BA$1))/INDEX($O41:$X41,1,aux!$BA$1),"n.d.") -> n.d. | AM41: 0 | BO41: 0 | CC41: =+IF(ISNA(MATCH('5.1'!A41,AUX_2d_pais!$G$2:$G$40000,0)),0,1) -> 0
A42: 0247 | B42: Cabo Verde | C42: 0 | D42: 0 | E42: 0 | F42: 0 | G42: 0 | H42: 0 | I42: 0 | J42: 0 | K42: 0 | L42: 0 | M42: 0 | N42: 0 | O42: 0 | P42: 0 | Q42: 0 | R42: 0 | S42: 0 | T42: 0 | U42: 0 | V42: 0 | W42: 0 | X42: 0 | Y42: 0 | Z42: 0 | AA42: 0 | AC42: =L42-INDEX($C42:$L42,1,aux!$BA$1) -> 0 | AD42: 0 | AE42: =+IF(INDEX($C42:$L42,1,aux!$BA$1)>0,(L42/INDEX($C42:$L42,1,aux!$BA$1))^(1/($L$3-INDEX($C$3:$L$3,1,aux!$BA$1)))-1,"n.d.") -> n.d. | AF42: =IF(INDEX($C42:$L42,1,aux!$BA$1)>0,(L42-INDEX($C42:$L42,1,aux!$BA$1))/INDEX($C42:$L42,1,aux!$BA$1),"n.d.") -> n.d. | AH42: =X42-INDEX($O42:$X42,1,aux!$BA$1) -> 0 | AI42: 0 | AJ42: =+IF(INDEX($O42:$X42,1,aux!$BA$1)>0,(X42/INDEX($O42:$X42,1,aux!$BA$1))^(1/($X$3-INDEX($O$3:$X$3,1,aux!$BA$1)))-1,"n.d.") -> n.d. | AK42: =IF(INDEX($O42:$X42,1,aux!$BA$1)>0,(X42-INDEX($O42:$X42,1,aux!$BA$1))/INDEX($O42:$X42,1,aux!$BA$1),"n.d.") -> n.d. | AM42: 0 | CC42: =+IF(ISNA(MATCH('5.1'!A42,AUX_2d_pais!$G$2:$G$40000,0)),0,1) -> 0
A43: 0463 | B43: Caimão, Ilhas | C43: 0 | D43: 0 | E43: 0 | F43: 0 | G43: 0 | H43: 0 | I43: 0 | J43: 0 | K43: 0 | L43: 0 | M43: 0 | N43: 0 | O43: 0 | P43: 0 | Q43: 0 | R43: 0 | S43: 0 | T43: 0 | U43: 0 | V43: 0 | W43: 0 | X43: 0 | Y43: 0 | Z43: 0 | AA43: 0 | AC43: =L43-INDEX($C43:$L43,1,aux!$BA$1) -> 0 | AD43: 0 | AE43: =+IF(INDEX($C43:$L43,1,aux!$BA$1)>0,(L43/INDEX($C43:$L43,1,aux!$BA$1))^(1/($L$3-INDEX($C$3:$L$3,1,aux!$BA$1)))-1,"n.d.") -> n.d. | AF43: =IF(INDEX($C43:$L43,1,aux!$BA$1)>0,(L43-INDEX($C43:$L43,1,aux!$BA$1))/INDEX($C43:$L43,1,aux!$BA$1),"n.d.") -> n.d. | AH43: =X43-INDEX($O43:$X43,1,aux!$BA$1) -> 0 | AI43: 0 | AJ43: =+IF(INDEX($O43:$X43,1,aux!$BA$1)>0,(X43/INDEX($O43:$X43,1,aux!$BA$1))^(1/($X$3-INDEX($O$3:$X$3,1,aux!$BA$1)))-1,"n.d.") -> n.d. | AK43: =IF(INDEX($O43:$X43,1,aux!$BA$1)>0,(X43-INDEX($O43:$X43,1,aux!$BA$1))/INDEX($O43:$X43,1,aux!$BA$1),"n.d.") -> n.d. | AM43: 0 | BO43: 0 | CC43: =+IF(ISNA(MATCH('5.1'!A43,AUX_2d_pais!$G$2:$G$40000,0)),0,1) -> 0
A44: 0302 | B44: Camarões | C44: 0 | D44: 0 | E44: 0 | F44: 0 | G44: 0 | H44: 0 | I44: 0 | J44: 0 | K44: 0 | L44: 0 | M44: 0 | N44: 0 | O44: 0 | P44: 0 | Q44: 0 | R44: 0 | S44: 0 | T44: 0 | U44: 0 | V44: 0 | W44: 0 | X44: 0 | Y44: 0 | Z44: 0 | AA44: 0 | AC44: =L44-INDEX($C44:$L44,1,aux!$BA$1) -> 0 | AD44: 0 | AE44: =+IF(INDEX($C44:$L44,1,aux!$BA$1)>0,(L44/INDEX($C44:$L44,1,aux!$BA$1))^(1/($L$3-INDEX($C$3:$L$3,1,aux!$BA$1)))-1,"n.d.") -> n.d. | AF44: =IF(INDEX($C44:$L44,1,aux!$BA$1)>0,(L44-INDEX($C44:$L44,1,aux!$BA$1))/INDEX($C44:$L44,1,aux!$BA$1),"n.d.") -> n.d. | AH44: =X44-INDEX($O44:$X44,1,aux!$BA$1) -> 0 | AI44: 0 | AJ44: =+IF(INDEX($O44:$X44,1,aux!$BA$1)>0,(X44/INDEX($O44:$X44,1,aux!$BA$1))^(1/($X$3-INDEX($O$3:$X$3,1,aux!$BA$1)))-1,"n.d.") -> n.d. | AK44: =IF(INDEX($O44:$X44,1,aux!$BA$1)>0,(X44-INDEX($O44:$X44,1,aux!$BA$1))/INDEX($O44:$X44,1,aux!$BA$1),"n.d.") -> n.d. | AM44: 0 | CC44: =+IF(ISNA(MATCH('5.1'!A44,AUX_2d_pais!$G$2:$G$40000,0)),0,1) -> 0
A45: 0696 | B45: Camboja | C45: 0 | D45: 0 | E45: 0 | F45: 0 | G45: 0 | H45: 0 | I45: 0 | J45: 0 | K45: 0 | L45: 0 | M45: 0 | N45: 0 | O45: 0 | P45: 0 | Q45: 0 | R45: 0 | S45: 0 | T45: 0 | U45: 0 | V45: 0 | W45: 0 | X45: 0 | Y45: 0 | Z45: 0 | AA45: 0 | AC45: =L45-INDEX($C45:$L45,1,aux!$BA$1) -> 0 | AD45: 0 | AE45: =+IF(INDEX($C45:$L45,1,aux!$BA$1)>0,(L45/INDEX($C45:$L45,1,aux!$BA$1))^(1/($L$3-INDEX($C$3:$L$3,1,aux!$BA$1)))-1,"n.d.") -> n.d. | AF45: =IF(INDEX($C45:$L45,1,aux!$BA$1)>0,(L45-INDEX($C45:$L45,1,aux!$BA$1))/INDEX($C45:$L45,1,aux!$BA$1),"n.d.") -> n.d. | AH45: =X45-INDEX($O45:$X45,1,aux!$BA$1) -> 0 | AI45: 0 | AJ45: =+IF(INDEX($O45:$X45,1,aux!$BA$1)>0,(X45/INDEX($O45:$X45,1,aux!$BA$1))^(1/($X$3-INDEX($O$3:$X$3,1,aux!$BA$1)))-1,"n.d.") -> n.d. | AK45: =IF(INDEX($O45:$X45,1,aux!$BA$1)>0,(X45-INDEX($O45:$X45,1,aux!$BA$1))/INDEX($O45:$X45,1,aux!$BA$1),"n.d.") -> n.d. | AM45: 0 | CC45: =+IF(ISNA(MATCH('5.1'!A45,AUX_2d_pais!$G$2:$G$40000,0)),0,1) -> 0
A46: 0404 | B46: Canadá | C46: 0 | D46: 0 | E46: 0 | F46: 0 | G46: 0 | H46: 0 | I46: 0 | J46: 0 | K46: 0 | L46: 0 | M46: 0 | N46: 0 | O46: 0 | P46: 0 | Q46: 0 | R46: 0 | S46: 0 | T46: 0 | U46: 0 | V46: 0 | W46: 0 | X46: 0 | Y46: 0 | Z46: 0 | AA46: 0 | AC46: =L46-INDEX($C46:$L46,1,aux!$BA$1) -> 0 | AD46: 0 | AE46: =+IF(INDEX($C46:$L46,1,aux!$BA$1)>0,(L46/INDEX($C46:$L46,1,aux!$BA$1))^(1/($L$3-INDEX($C$3:$L$3,1,aux!$BA$1)))-1,"n.d.") -> n.d. | AF46: =IF(INDEX($C46:$L46,1,aux!$BA$1)>0,(L46-INDEX($C46:$L46,1,aux!$BA$1))/INDEX($C46:$L46,1,aux!$BA$1),"n.d.") -> n.d. | AH46: =X46-INDEX($O46:$X46,1,aux!$BA$1) -> 0 | AI46: 0 | AJ46: =+IF(INDEX($O46:$X46,1,aux!$BA$1)>0,(X46/INDEX($O46:$X46,1,aux!$BA$1))^(1/($X$3-INDEX($O$3:$X$3,1,aux!$BA$1)))-1,"n.d.") -> n.d. | AK46: =IF(INDEX($O46:$X46,1,aux!$BA$1)>0,(X46-INDEX($O46:$X46,1,aux!$BA$1))/INDEX($O46:$X46,1,aux!$BA$1),"n.d.") -> n.d. | AM46: 0 | CC46: =+IF(ISNA(MATCH('5.1'!A46,AUX_2d_pais!$G$2:$G$40000,0)),0,1) -> 0
A47: 0644 | B47: Catar | C47: 0 | D47: 0 | E47: 0 | F47: 0 | G47: 0 | H47: 0 | I47: 0 | J47: 0 | K47: 0 | L47: 0 | M47: 0 | N47: 0 | O47: 0 | P47: 0 | Q47: 0 | R47: 0 | S47: 0 | T47: 0 | U47: 0 | V47: 0 | W47: 0 | X47: 0 | Y47: 0 | Z47: 0 | AA47: 0 | AC47: =L47-INDEX($C47:$L47,1,aux!$BA$1) -> 0 | AD47: 0 | AE47: =+IF(INDEX($C47:$L47,1,aux!$BA$1)>0,(L47/INDEX($C47:$L47,1,aux!$BA$1))^(1/($L$3-INDEX($C$3:$L$3,1,aux!$BA$1)))-1,"n.d.") -> n.d. | AF47: =IF(INDEX($C47:$L47,1,aux!$BA$1)>0,(L47-INDEX($C47:$L47,1,aux!$BA$1))/INDEX($C47:$L47,1,aux!$BA$1),"n.d.") -> n.d. | AH47: =X47-INDEX($O47:$X47,1,aux!$BA$1) -> 0 | AI47: 0 | AJ47: =+IF(INDEX($O47:$X47,1,aux!$BA$1)>0,(X47/INDEX($O47:$X47,1,aux!$BA$1))^(1/($X$3-INDEX($O$3:$X$3,1,aux!$BA$1)))-1,"n.d.") -> n.d. | AK47: =IF(INDEX($O47:$X47,1,aux!$BA$1)>0,(X47-INDEX($O47:$X47,1,aux!$BA$1))/INDEX($O47:$X47,1,aux!$BA$1),"n.d.") -> n.d. | AM47: 0 | CC47: =+IF(ISNA(MATCH('5.1'!A47,AUX_2d_pais!$G$2:$G$40000,0)),0,1) -> 0
A48: 0079 | B48: Cazaquistão | C48: 0 | D48: 0 | E48: 0 | F48: 0 | G48: 0 | H48: 0 | I48: 0 | J48: 0 | K48: 0 | L48: 0 | M48: 0 | N48: 0 | O48: 0 | P48: 0 | Q48: 0 | R48: 0 | S48: 0 | T48: 0 | U48: 0 | V48: 0 | W48: 0 | X48: 0 | Y48: 0 | Z48: 0 | AA48: 0 | AC48: =L48-INDEX($C48:$L48,1,aux!$BA$1) -> 0 | AD48: 0 | AE48: =+IF(INDEX($C48:$L48,1,aux!$BA$1)>0,(L48/INDEX($C48:$L48,1,aux!$BA$1))^(1/($L$3-INDEX($C$3:$L$3,1,aux!$BA$1)))-1,"n.d.") -> n.d. | AF48: =IF(INDEX($C48:$L48,1,aux!$BA$1)>0,(L48-INDEX($C48:$L48,1,aux!$BA$1))/INDEX($C48:$L48,1,aux!$BA$1),"n.d.") -> n.d. | AH48: =X48-INDEX($O48:$X48,1,aux!$BA$1) -> 0 | AI48: 0 | AJ48: =+IF(INDEX($O48:$X48,1,aux!$BA$1)>0,(X48/INDEX($O48:$X48,1,aux!$BA$1))^(1/($X$3-INDEX($O$3:$X$3,1,aux!$BA$1)))-1,"n.d.") -> n.d. | AK48: =IF(INDEX($O48:$X48,1,aux!$BA$1)>0,(X48-INDEX($O48:$X48,1,aux!$BA$1))/INDEX($O48:$X48,1,aux!$BA$1),"n.d.") -> n.d. | AM48: 0 | CC48: =+IF(ISNA(MATCH('5.1'!A48,AUX_2d_pais!$G$2:$G$40000,0)),0,1) -> 0
A49: 0306 | B49: Centro-Africana, República | C49: 0 | D49: 0 | E49: 0 | F49: 0 | G49: 0 | H49: 0 | I49: 0 | J49: 0 | K49: 0 | L49: 0 | M49: 0 | N49: 0 | O49: 0 | P49: 0 | Q49: 0 | R49: 0 | S49: 0 | T49: 0 | U49: 0 | V49: 0 | W49: 0 | X49: 0 | Y49: 0 | Z49: 0 | AA49: 0 | AC49: =L49-INDEX($C49:$L49,1,aux!$BA$1) -> 0 | AD49: 0 | AE49: =+IF(INDEX($C49:$L49,1,aux!$BA$1)>0,(L49/INDEX($C49:$L49,1,aux!$BA$1))^(1/($L$3-INDEX($C$3:$L$3,1,aux!$BA$1)))-1,"n.d.") -> n.d. | AF49: =IF(INDEX($C49:$L49,1,aux!$BA$1)>0,(L49-INDEX($C49:$L49,1,aux!$BA$1))/INDEX($C49:$L49,1,aux!$BA$1),"n.d.") -> n.d. | AH49: =X49-INDEX($O49:$X49,1,aux!$BA$1) -> 0 | AI49: 0 | AJ49: =+IF(INDEX($O49:$X49,1,aux!$BA$1)>0,(X49/INDEX($O49:$X49,1,aux!$BA$1))^(1/($X$3-INDEX($O$3:$X$3,1,aux!$BA$1)))-1,"n.d.") -> n.d. | AK49: =IF(INDEX($O49:$X49,1,aux!$BA$1)>0,(X49-INDEX($O49:$X49,1,aux!$BA$1))/INDEX($O49:$X49,1,aux!$BA$1),"n.d.") -> n.d. | AM49: 0 | BO49: 0 | CC49: =+IF(ISNA(MATCH('5.1'!A49,AUX_2d_pais!$G$2:$G$40000,0)),0,1) -> 0
A50: 0021 | B50: Ceuta | C50: 0 | D50: 0 | E50: 0 | F50: 0 | G50: 0 | H50: 0 | I50: 0 | J50: 0 | K50: 0 | L50: 0 | M50: 0 | N50: 0 | O50: 0 | P50: 0 | Q50: 0 | R50: 0 | S50: 0 | T50: 0 | U50: 0 | V50: 0 | W50: 0 | X50: 0 | Y50: 0 | Z50: 0 | AA50: 0 | AC50: =L50-INDEX($C50:$L50,1,aux!$BA$1) -> 0 | AD50: 0 | AE50: =+IF(INDEX($C50:$L50,1,aux!$BA$1)>0,(L50/INDEX($C50:$L50,1,aux!$BA$1))^(1/($L$3-INDEX($C$3:$L$3,1,aux!$BA$1)))-1,"n.d.") -> n.d. | AF50: =IF(INDEX($C50:$L50,1,aux!$BA$1)>0,(L50-INDEX($C50:$L50,1,aux!$BA$1))/INDEX($C50:$L50,1,aux!$BA$1),"n.d.") -> n.d. | AH50: =X50-INDEX($O50:$X50,1,aux!$BA$1) -> 0 | AI50: 0 | AJ50: =+IF(INDEX($O50:$X50,1,aux!$BA$1)>0,(X50/INDEX($O50:$X50,1,aux!$BA$1))^(1/($X$3-INDEX($O$3:$X$3,1,aux!$BA$1)))-1,"n.d.") -> n.d. | AK50: =IF(INDEX($O50:$X50,1,aux!$BA$1)>0,(X50-INDEX($O50:$X50,1,aux!$BA$1))/INDEX($O50:$X50,1,aux!$BA$1),"n.d.") -> n.d. | AM50: 0 | CC50: =+IF(ISNA(MATCH('5.1'!A50,AUX_2d_pais!$G$2:$G$40000,0)),0,1) -> 0
A51: 0022 | B51: Ceuta e Melilha | C51: 0 | D51: 0 | E51: 0 | F51: 0 | G51: 0 | H51: 0 | I51: 0 | J51: 0 | K51: 0 | L51: 0 | M51: 0 | N51: 0 | O51: 0 | P51: 0 | Q51: 0 | R51: 0 | S51: 0 | T51: 0 | U51: 0 | V51: 0 | W51: 0 | X51: 0 | Y51: 0 | Z51: 0 | AA51: 0 | AC51: =L51-INDEX($C51:$L51,1,aux!$BA$1) -> 0 | AD51: 0 | AE51: =+IF(INDEX($C51:$L51,1,aux!$BA$1)>0,(L51/INDEX($C51:$L51,1,aux!$BA$1))^(1/($L$3-INDEX($C$3:$L$3,1,aux!$BA$1)))-1,"n.d.") -> n.d. | AF51: =IF(INDEX($C51:$L51,1,aux!$BA$1)>0,(L51-INDEX($C51:$L51,1,aux!$BA$1))/INDEX($C51:$L51,1,aux!$BA$1),"n.d.") -> n.d. | AH51: =X51-INDEX($O51:$X51,1,aux!$BA$1) -> 0 | AI51: 0 | AJ51: =+IF(INDEX($O51:$X51,1,aux!$BA$1)>0,(X51/INDEX($O51:$X51,1,aux!$BA$1))^(1/($X$3-INDEX($O$3:$X$3,1,aux!$BA$1)))-1,"n.d.") -> n.d. | AK51: =IF(INDEX($O51:$X51,1,aux!$BA$1)>0,(X51-INDEX($O51:$X51,1,aux!$BA$1))/INDEX($O51:$X51,1,aux!$BA$1),"n.d.") -> n.d. | AM51: 0 | CC51: =+IF(ISNA(MATCH('5.1'!A51,AUX_2d_pais!$G$2:$G$40000,0)),0,1) -> 0
A52: 0244 | B52: Chade | C52: 0 | D52: 0 | E52: 0 | F52: 0 | G52: 0 | H52: 0 | I52: 0 | J52: 0 | K52: 0 | L52: 0 | M52: 0 | N52: 0 | O52: 0 | P52: 0 | Q52: 0 | R52: 0 | S52: 0 | T52: 0 | U52: 0 | V52: 0 | W52: 0 | X52: 0 | Y52: 0 | Z52: 0 | AA52: 0 | AC52: =L52-INDEX($C52:$L52,1,aux!$BA$1) -> 0 | AD52: 0 | AE52: =+IF(INDEX($C52:$L52,1,aux!$BA$1)>0,(L52/INDEX($C52:$L52,1,aux!$BA$1))^(1/($L$3-INDEX($C$3:$L$3,1,aux!$BA$1)))-1,"n.d.") -> n.d. | AF52: =IF(INDEX($C52:$L52,1,aux!$BA$1)>0,(L52-INDEX($C52:$L52,1,aux!$BA$1))/INDEX($C52:$L52,1,aux!$BA$1),"n.d.") -> n.d. | AH52: =X52-INDEX($O52:$X52,1,aux!$BA$1) -> 0 | AI52: 0 | AJ52: =+IF(INDEX($O52:$X52,1,aux!$BA$1)>0,(X52/INDEX($O52:$X52,1,aux!$BA$1))^(1/($X$3-INDEX($O$3:$X$3,1,aux!$BA$1)))-1,"n.d.") -> n.d. | AK52: =IF(INDEX($O52:$X52,1,aux!$BA$1)>0,(X52-INDEX($O52:$X52,1,aux!$BA$1))/INDEX($O52:$X52,1,aux!$BA$1),"n.d.") -> n.d. | AM52: 0 | CC52: =+IF(ISNA(MATCH('5.1'!A52,AUX_2d_pais!$G$2:$G$40000,0)),0,1) -> 0
A53: 0061 | B53: Checa, República | C53: 0 | D53: 0 | E53: 0 | F53: 0 | G53: 0 | H53: 0 | I53: 0 | J53: 0 | K53: 0 | L53: 0 | M53: 0 | N53: 0 | O53: 0 | P53: 0 | Q53: 0 | R53: 0 | S53: 0 | T53: 0 | U53: 0 | V53: 0 | W53: 0 | X53: 0 | Y53: 0 | Z53: 0 | AA53: 0 | AC53: =L53-INDEX($C53:$L53,1,aux!$BA$1) -> 0 | AD53: 0 | AE53: =+IF(INDEX($C53:$L53,1,aux!$BA$1)>0,(L53/INDEX($C53:$L53,1,aux!$BA$1))^(1/($L$3-INDEX($C$3:$L$3,1,aux!$BA$1)))-1,"n.d.") -> n.d. | AF53: =IF(INDEX($C53:$L53,1,aux!$BA$1)>0,(L53-INDEX($C53:$L53,1,aux!$BA$1))/INDEX($C53:$L53,1,aux!$BA$1),"n.d.") -> n.d. | AH53: =X53-INDEX($O53:$X53,1,aux!$BA$1) -> 0 | AI53: 0 | AJ53: =+IF(INDEX($O53:$X53,1,aux!$BA$1)>0,(X53/INDEX($O53:$X53,1,aux!$BA$1))^(1/($X$3-INDEX($O$3:$X$3,1,aux!$BA$1)))-1,"n.d.") -> n.d. | AK53: =IF(INDEX($O53:$X53,1,aux!$BA$1)>0,(X53-INDEX($O53:$X53,1,aux!$BA$1))/INDEX($O53:$X53,1,aux!$BA$1),"n.d.") -> n.d. | AM53: 0 | CC53: =+IF(ISNA(MATCH('5.1'!A53,AUX_2d_pais!$G$2:$G$40000,0)),0,1) -> 0
A54: 0512 | B54: Chile | C54: 23488.849 | D54: 44122.462 | E54: 47025.236 | F54: 23211.971 | G54: 30442.071 | H54: 44434.042 | I54: 38624.676 | J54: 49753.62 | K54: 67212.404 | L54: 46400.962 | M54: 41471.6293 | N54: 0.05818560241 | O54: 19890.671 | P54: 21133.161 | Q54: 23945.74 | R54: 33243.053 | S54: 30623.361 | T54: 35377.076 | U54: 36988.723 | V54: 36270.348 | W54: 36533.784 | X54: 46322.627 | Y54: 32032.8544 | Z54: 0.07983416317 | AA54: -9438.7749 | AC54: =L54-INDEX($C54:$L54,1,aux!$BA$1) -> 22912.113 | AD54: 0.09886537568 | AE54: =+IF(INDEX($C54:$L54,1,aux!$BA$1)>0,(L54/INDEX($C54:$L54,1,aux!$BA$1))^(1/($L$3-INDEX($C$3:$L$3,1,aux!$BA$1)))-1,"n.d.") -> 0.07857833936 | AF54: =IF(INDEX($C54:$L54,1,aux!$BA$1)>0,(L54-INDEX($C54:$L54,1,aux!$BA$1))/INDEX($C54:$L54,1,aux!$BA$1),"n.d.") -> 0.9754463916 | AH54: =X54-INDEX($O54:$X54,1,aux!$BA$1) -> 26431.956 | AI54: 0.08522370104 | AJ54: =+IF(INDEX($O54:$X54,1,aux!$BA$1)>0,(X54/INDEX($O54:$X54,1,aux!$BA$1))^(1/($X$3-INDEX($O$3:$X$3,1,aux!$BA$1)))-1,"n.d.") -> 0.09848403554 | AK54: =IF(INDEX($O54:$X54,1,aux!$BA$1)>0,(X54-INDEX($O54:$X54,1,aux!$BA$1))/INDEX($O54:$X54,1,aux!$BA$1),"n.d.") -> 1.328861957 | CC54: =+IF(ISNA(MATCH('5.1'!A54,AUX_2d_pais!$G$2:$G$40000,0)),0,1) -> 1
A55: 0720 | B55: China, República Popular da | C55: 0 | D55: 0 | E55: 0 | F55: 0 | G55: 0 | H55: 0 | I55: 0 | J55: 0 | K55: 0 | L55: 0 | M55: 0 | N55: 0 | O55: 0 | P55: 0 | Q55: 0 | R55: 0 | S55: 0 | T55: 0 | U55: 0 | V55: 0 | W55: 0 | X55: 0 | Y55: 0 | Z55: 0 | AA55: 0 | AC55: =L55-INDEX($C55:$L55,1,aux!$BA$1) -> 0 | AD55: 0 | AE55: =+IF(INDEX($C55:$L55,1,aux!$BA$1)>0,(L55/INDEX($C55:$L55,1,aux!$BA$1))^(1/($L$3-INDEX($C$3:$L$3,1,aux!$BA$1)))-1,"n.d.") -> n.d. | AF55: =IF(INDEX($C55:$L55,1,aux!$BA$1)>0,(L55-INDEX($C55:$L55,1,aux!$BA$1))/INDEX($C55:$L55,1,aux!$BA$1),"n.d.") -> n.d. | AH55: =X55-INDEX($O55:$X55,1,aux!$BA$1) -> 0 | AI55: 0 | AJ55: =+IF(INDEX($O55:$X55,1,aux!$BA$1)>0,(X55/INDEX($O55:$X55,1,aux!$BA$1))^(1/($X$3-INDEX($O$3:$X$3,1,aux!$BA$1)))-1,"n.d.") -> n.d. | AK55: =IF(INDEX($O55:$X55,1,aux!$BA$1)>0,(X55-INDEX($O55:$X55,1,aux!$BA$1))/INDEX($O55:$X55,1,aux!$BA$1),"n.d.") -> n.d. | AM55: 0 | CC55: =+IF(ISNA(MATCH('5.1'!A55,AUX_2d_pais!$G$2:$G$40000,0)),0,1) -> 0
A56: 0600 | B56: Chipre | C56: 0 | D56: 0 | E56: 0 | F56: 0 | G56: 0 | H56: 0 | I56: 0 | J56: 0 | K56: 0 | L56: 0 | M56: 0 | N56: 0 | O56: 0 | P56: 0 | Q56: 0 | R56: 0 | S56: 0 | T56: 0 | U56: 0 | V56: 0 | W56: 0 | X56: 0 | Y56: 0 | Z56: 0 | AA56: 0 | AC56: =L56-INDEX($C56:$L56,1,aux!$BA$1) -> 0 | AD56: 0 | AE56: =+IF(INDEX($C56:$L56,1,aux!$BA$1)>0,(L56/INDEX($C56:$L56,1,aux!$BA$1))^(1/($L$3-INDEX($C$3:$L$3,1,aux!$BA$1)))-1,"n.d.") -> n.d. | AF56: =IF(INDEX($C56:$L56,1,aux!$BA$1)>0,(L56-INDEX($C56:$L56,1,aux!$BA$1))/INDEX($C56:$L56,1,aux!$BA$1),"n.d.") -> n.d. | AH56: =X56-INDEX($O56:$X56,1,aux!$BA$1) -> 0 | AI56: 0 | AJ56: =+IF(INDEX($O56:$X56,1,aux!$BA$1)>0,(X56/INDEX($O56:$X56,1,aux!$BA$1))^(1/($X$3-INDEX($O$3:$X$3,1,aux!$BA$1)))-1,"n.d.") -> n.d. | AK56: =IF(INDEX($O56:$X56,1,aux!$BA$1)>0,(X56-INDEX($O56:$X56,1,aux!$BA$1))/INDEX($O56:$X56,1,aux!$BA$1),"n.d.") -> n.d. | AM56: 0 | CC56: =+IF(ISNA(MATCH('5.1'!A56,AUX_2d_pais!$G$2:$G$40000,0)),0,1) -> 0
A57: 0834 | B57: Christmas, Ilha | C57: 0 | D57: 0 | E57: 0 | F57: 0 | G57: 0 | H57: 0 | I57: 0 | J57: 0 | K57: 0 | L57: 0 | M57: 0 | N57: 0 | O57: 0 | P57: 0 | Q57: 0 | R57: 0 | S57: 0 | T57: 0 | U57: 0 | V57: 0 | W57: 0 | X57: 0 | Y57: 0 | Z57: 0 | AA57: 0 | AC57: =L57-INDEX($C57:$L57,1,aux!$BA$1) -> 0 | AD57: 0 | AE57: =+IF(INDEX($C57:$L57,1,aux!$BA$1)>0,(L57/INDEX($C57:$L57,1,aux!$BA$1))^(1/($L$3-INDEX($C$3:$L$3,1,aux!$BA$1)))-1,"n.d.") -> n.d. | AF57: =IF(INDEX($C57:$L57,1,aux!$BA$1)>0,(L57-INDEX($C57:$L57,1,aux!$BA$1))/INDEX($C57:$L57,1,aux!$BA$1),"n.d.") -> n.d. | AH57: =X57-INDEX($O57:$X57,1,aux!$BA$1) -> 0 | AI57: 0 | AJ57: =+IF(INDEX($O57:$X57,1,aux!$BA$1)>0,(X57/INDEX($O57:$X57,1,aux!$BA$1))^(1/($X$3-INDEX($O$3:$X$3,1,aux!$BA$1)))-1,"n.d.") -> n.d. | AK57: =IF(INDEX($O57:$X57,1,aux!$BA$1)>0,(X57-INDEX($O57:$X57,1,aux!$BA$1))/INDEX($O57:$X57,1,aux!$BA$1),"n.d.") -> n.d. | AM57: 0 | BO57: 0 | CC57: =+IF(ISNA(MATCH('5.1'!A57,AUX_2d_pais!$G$2:$G$40000,0)),0,1) -> 0
A58: 0833 | B58: Cocos (Keeling), Ilhas | C58: 0 | D58: 0 | E58: 0 | F58: 0 | G58: 0 | H58: 0 | I58: 0 | J58: 0 | K58: 0 | L58: 0 | M58: 0 | N58: 0 | O58: 0 | P58: 0 | Q58: 0 | R58: 0 | S58: 0 | T58: 0 | U58: 0 | V58: 0 | W58: 0 | X58: 0 | Y58: 0 | Z58: 0 | AA58: 0 | AC58: =L58-INDEX($C58:$L58,1,aux!$BA$1) -> 0 | AD58: 0 | AE58: =+IF(INDEX($C58:$L58,1,aux!$BA$1)>0,(L58/INDEX($C58:$L58,1,aux!$BA$1))^(1/($L$3-INDEX($C$3:$L$3,1,aux!$BA$1)))-1,"n.d.") -> n.d. | AF58: =IF(INDEX($C58:$L58,1,aux!$BA$1)>0,(L58-INDEX($C58:$L58,1,aux!$BA$1))/INDEX($C58:$L58,1,aux!$BA$1),"n.d.") -> n.d. | AH58: =X58-INDEX($O58:$X58,1,aux!$BA$1) -> 0 | AI58: 0 | AJ58: =+IF(INDEX($O58:$X58,1,aux!$BA$1)>0,(X58/INDEX($O58:$X58,1,aux!$BA$1))^(1/($X$3-INDEX($O$3:$X$3,1,aux!$BA$1)))-1,"n.d.") -> n.d. | AK58: =IF(INDEX($O58:$X58,1,aux!$BA$1)>0,(X58-INDEX($O58:$X58,1,aux!$BA$1))/INDEX($O58:$X58,1,aux!$BA$1),"n.d.") -> n.d. | AM58: 0 | BO58: 0 | CC58: =+IF(ISNA(MATCH('5.1'!A58,AUX_2d_pais!$G$2:$G$40000,0)),0,1) -> 0
A59: 0480 | B59: Colômbia | C59: 20600.411 | D59: 14279.911 | E59: 16391.121 | F59: 17473.051 | G59: 15935.747 | H59: 5927.369 | I59: 17190.682 | J59: 15386.163 | K59: 29373.18 | L59: 25273.31 | M59: 17783.0945 | N59: 0.02495007029 | O59: 614.239 | P59: 2470.466 | Q59: 1782.693 | R59: 1822.929 | S59: 1062.46 | T59: 2072.466 | U59: 3029.896 | V59: 3393.962 | W59: 5673.053 | X59: 7742.273 | Y59: 2966.4437 | Z59: 0.007393145407 | AA59: -14816.6508 | AC59: =L59-INDEX($C59:$L59,1,aux!$BA$1) -> 4672.899 | AD59: 0.02016347925 | AE59: =+IF(INDEX($C59:$L59,1,aux!$BA$1)>0,(L59/INDEX($C59:$L59,1,aux!$BA$1))^(1/($L$3-INDEX($C$3:$L$3,1,aux!$BA$1)))-1,"n.d.") -> 0.02297527648 | AF59: =IF(INDEX($C59:$L59,1,aux!$BA$1)>0,(L59-INDEX($C59:$L59,1,aux!$BA$1))/INDEX($C59:$L59,1,aux!$BA$1),"n.d.") -> 0.2268352316 | AH59: =X59-INDEX($O59:$X59,1,aux!$BA$1) -> 7128.034 | AI59: 0.02298268954 | AJ59: =+IF(INDEX($O59:$X59,1,aux!$BA$1)>0,(X59/INDEX($O59:$X59,1,aux!$BA$1))^(1/($X$3-INDEX($O$3:$X$3,1,aux!$BA$1)))-1,"n.d.") -> 0.3251994061 | AK59: =IF(INDEX($O59:$X59,1,aux!$BA$1)>0,(X59-INDEX($O59:$X59,1,aux!$BA$1))/INDEX($O59:$X59,1,aux!$BA$1),"n.d.") -> 11.60465877 | CC59: =+IF(ISNA(MATCH('5.1'!A59,AUX_2d_pais!$G$2:$G$40000,0)),0,1) -> 1
A60: 0375 | B60: Comores | C60: 0 | D60: 0 | E60: 0 | F60: 0 | G60: 0 | H60: 0 | I60: 0 | J60: 0 | K60: 0 | L60: 0 | M60: 0 | N60: 0 | O60: 0 | P60: 0 | Q60: 0 | R60: 0 | S60: 0 | T60: 0 | U60: 0 | V60: 0 | W60: 0 | X60: 0 | Y60: 0 | Z60: 0 | AA60: 0 | AC60: =L60-INDEX($C60:$L60,1,aux!$BA$1) -> 0 | AD60: 0 | AE60: =+IF(INDEX($C60:$L60,1,aux!$BA$1)>0,(L60/INDEX($C60:$L60,1,aux!$BA$1))^(1/($L$3-INDEX($C$3:$L$3,1,aux!$BA$1)))-1,"n.d.") -> n.d. | AF60: =IF(INDEX($C60:$L60,1,aux!$BA$1)>0,(L60-INDEX($C60:$L60,1,aux!$BA$1))/INDEX($C60:$L60,1,aux!$BA$1),"n.d.") -> n.d. | AH60: =X60-INDEX($O60:$X60,1,aux!$BA$1) -> 0 | AI60: 0 | AJ60: =+IF(INDEX($O60:$X60,1,aux!$BA$1)>0,(X60/INDEX($O60:$X60,1,aux!$BA$1))^(1/($X$3-INDEX($O$3:$X$3,1,aux!$BA$1)))-1,"n.d.") -> n.d. | AK60: =IF(INDEX($O60:$X60,1,aux!$BA$1)>0,(X60-INDEX($O60:$X60,1,aux!$BA$1))/INDEX($O60:$X60,1,aux!$BA$1),"n.d.") -> n.d. | AM60: 0 | CC60: =+IF(ISNA(MATCH('5.1'!A60,AUX_2d_pais!$G$2:$G$40000,0)),0,1) -> 0
A61: 0318 | B61: Congo | C61: 0 | D61: 0 | E61: 0 | F61: 0 | G61: 0 | H61: 0 | I61: 0 | J61: 0 | K61: 0 | L61: 0 | M61: 0 | N61: 0 | O61: 0 | P61: 0 | Q61: 0 | R61: 0 | S61: 0 | T61: 0 | U61: 0 | V61: 0 | W61: 0 | X61: 0 | Y61: 0 | Z61: 0 | AA61: 0 | AC61: =L61-INDEX($C61:$L61,1,aux!$BA$1) -> 0 | AD61: 0 | AE61: =+IF(INDEX($C61:$L61,1,aux!$BA$1)>0,(L61/INDEX($C61:$L61,1,aux!$BA$1))^(1/($L$3-INDEX($C$3:$L$3,1,aux!$BA$1)))-1,"n.d.") -> n.d. | AF61: =IF(INDEX($C61:$L61,1,aux!$BA$1)>0,(L61-INDEX($C61:$L61,1,aux!$BA$1))/INDEX($C61:$L61,1,aux!$BA$1),"n.d.") -> n.d. | AH61: =X61-INDEX($O61:$X61,1,aux!$BA$1) -> 0 | AI61: 0 | AJ61: =+IF(INDEX($O61:$X61,1,aux!$BA$1)>0,(X61/INDEX($O61:$X61,1,aux!$BA$1))^(1/($X$3-INDEX($O$3:$X$3,1,aux!$BA$1)))-1,"n.d.") -> n.d. | AK61: =IF(INDEX($O61:$X61,1,aux!$BA$1)>0,(X61-INDEX($O61:$X61,1,aux!$BA$1))/INDEX($O61:$X61,1,aux!$BA$1),"n.d.") -> n.d. | AM61: 0 | CC61: =+IF(ISNA(MATCH('5.1'!A61,AUX_2d_pais!$G$2:$G$40000,0)),0,1) -> 0
A62: 0322 | B62: Congo, República Democrática do | C62: 0 | D62: 0 | E62: 0 | F62: 0 | G62: 0 | H62: 0 | I62: 0 | J62: 0 | K62: 0 | L62: 0 | M62: 0 | N62: 0 | O62: 0 | P62: 0 | Q62: 0 | R62: 0 | S62: 0 | T62: 0 | U62: 0 | V62: 0 | W62: 0 | X62: 0 | Y62: 0 | Z62: 0 | AA62: 0 | AC62: =L62-INDEX($C62:$L62,1,aux!$BA$1) -> 0 | AD62: 0 | AE62: =+IF(INDEX($C62:$L62,1,aux!$BA$1)>0,(L62/INDEX($C62:$L62,1,aux!$BA$1))^(1/($L$3-INDEX($C$3:$L$3,1,aux!$BA$1)))-1,"n.d.") -> n.d. | AF62: =IF(INDEX($C62:$L62,1,aux!$BA$1)>0,(L62-INDEX($C62:$L62,1,aux!$BA$1))/INDEX($C62:$L62,1,aux!$BA$1),"n.d.") -> n.d. | AH62: =X62-INDEX($O62:$X62,1,aux!$BA$1) -> 0 | AI62: 0 | AJ62: =+IF(INDEX($O62:$X62,1,aux!$BA$1)>0,(X62/INDEX($O62:$X62,1,aux!$BA$1))^(1/($X$3-INDEX($O$3:$X$3,1,aux!$BA$1)))-1,"n.d.") -> n.d. | AK62: =IF(INDEX($O62:$X62,1,aux!$BA$1)>0,(X62-INDEX($O62:$X62,1,aux!$BA$1))/INDEX($O62:$X62,1,aux!$BA$1),"n.d.") -> n.d. | AM62: 0 | CC62: =+IF(ISNA(MATCH('5.1'!A62,AUX_2d_pais!$G$2:$G$40000,0)),0,1) -> 0
A63: 0837 | B63: Cook, Ilhas | C63: 0 | D63: 0 | E63: 0 | F63: 0 | G63: 0 | H63: 0 | I63: 0 | J63: 0 | K63: 0 | L63: 0 | M63: 0 | N63: 0 | O63: 0 | P63: 0 | Q63: 0 | R63: 0 | S63: 0 | T63: 0 | U63: 0 | V63: 0 | W63: 0 | X63: 0 | Y63: 0 | Z63: 0 | AA63: 0 | AC63: =L63-INDEX($C63:$L63,1,aux!$BA$1) -> 0 | AD63: 0 | AE63: =+IF(INDEX($C63:$L63,1,aux!$BA$1)>0,(L63/INDEX($C63:$L63,1,aux!$BA$1))^(1/($L$3-INDEX($C$3:$L$3,1,aux!$BA$1)))-1,"n.d.") -> n.d. | AF63: =IF(INDEX($C63:$L63,1,aux!$BA$1)>0,(L63-INDEX($C63:$L63,1,aux!$BA$1))/INDEX($C63:$L63,1,aux!$BA$1),"n.d.") -> n.d. | AH63: =X63-INDEX($O63:$X63,1,aux!$BA$1) -> 0 | AI63: 0 | AJ63: =+IF(INDEX($O63:$X63,1,aux!$BA$1)>0,(X63/INDEX($O63:$X63,1,aux!$BA$1))^(1/($X$3-INDEX($O$3:$X$3,1,aux!$BA$1)))-1,"n.d.") -> n.d. | AK63: =IF(INDEX($O63:$X63,1,aux!$BA$1)>0,(X63-INDEX($O63:$X63,1,aux!$BA$1))/INDEX($O63:$X63,1,aux!$BA$1),"n.d.") -> n.d. | AM63: 0 | BO63: 0 | CC63: =+IF(ISNA(MATCH('5.1'!A63,AUX_2d_pais!$G$2:$G$40000,0)),0,1) -> 0
A64: 0728 | B64: Coreia, República da | C64: 0 | D64: 0 | E64: 0 | F64: 0 | G64: 0 | H64: 0 | I64: 0 | J64: 0 | K64: 0 | L64: 0 | M64: 0 | N64: 0 | O64: 0 | P64: 0 | Q64: 0 | R64: 0 | S64: 0 | T64: 0 | U64: 0 | V64: 0 | W64: 0 | X64: 0 | Y64: 0 | Z64: 0 | AA64: 0 | AC64: =L64-INDEX($C64:$L64,1,aux!$BA$1) -> 0 | AD64: 0 | AE64: =+IF(INDEX($C64:$L64,1,aux!$BA$1)>0,(L64/INDEX($C64:$L64,1,aux!$BA$1))^(1/($L$3-INDEX($C$3:$L$3,1,aux!$BA$1)))-1,"n.d.") -> n.d. | AF64: =IF(INDEX($C64:$L64,1,aux!$BA$1)>0,(L64-INDEX($C64:$L64,1,aux!$BA$1))/INDEX($C64:$L64,1,aux!$BA$1),"n.d.") -> n.d. | AH64: =X64-INDEX($O64:$X64,1,aux!$BA$1) -> 0 | AI64: 0 | AJ64: =+IF(INDEX($O64:$X64,1,aux!$BA$1)>0,(X64/INDEX($O64:$X64,1,aux!$BA$1))^(1/($X$3-INDEX($O$3:$X$3,1,aux!$BA$1)))-1,"n.d.") -> n.d. | AK64: =IF(INDEX($O64:$X64,1,aux!$BA$1)>0,(X64-INDEX($O64:$X64,1,aux!$BA$1))/INDEX($O64:$X64,1,aux!$BA$1),"n.d.") -> n.d. | AM64: 0 | CC64: =+IF(ISNA(MATCH('5.1'!A64,AUX_2d_pais!$G$2:$G$40000,0)),0,1) -> 0
A65: 0724 | B65: Coreia, República Popular Democrática da | C65: 0 | D65: 0 | E65: 0 | F65: 0 | G65: 0 | H65: 0 | I65: 0 | J65: 0 | K65: 0 | L65: 0 | M65: 0 | N65: 0 | O65: 0 | P65: 0 | Q65: 0 | R65: 0 | S65: 0 | T65: 0 | U65: 0 | V65: 0 | W65: 0 | X65: 0 | Y65: 0 | Z65: 0 | AA65: 0 | AC65: =L65-INDEX($C65:$L65,1,aux!$BA$1) -> 0 | AD65: 0 | AE65: =+IF(INDEX($C65:$L65,1,aux!$BA$1)>0,(L65/INDEX($C65:$L65,1,aux!$BA$1))^(1/($L$3-INDEX($C$3:$L$3,1,aux!$BA$1)))-1,"n.d.") -> n.d. | AF65: =IF(INDEX($C65:$L65,1,aux!$BA$1)>0,(L65-INDEX($C65:$L65,1,aux!$BA$1))/INDEX($C65:$L65,1,aux!$BA$1),"n.d.") -> n.d. | AH65: =X65-INDEX($O65:$X65,1,aux!$BA$1) -> 0 | AI65: 0 | AJ65: =+IF(INDEX($O65:$X65,1,aux!$BA$1)>0,(X65/INDEX($O65:$X65,1,aux!$BA$1))^(1/($X$3-INDEX($O$3:$X$3,1,aux!$BA$1)))-1,"n.d.") -> n.d. | AK65: =IF(INDEX($O65:$X65,1,aux!$BA$1)>0,(X65-INDEX($O65:$X65,1,aux!$BA$1))/INDEX($O65:$X65,1,aux!$BA$1),"n.d.") -> n.d. | AM65: 0 | BO65: 0 | CC65: =+IF(ISNA(MATCH('5.1'!A65,AUX_2d_pais!$G$2:$G$40000,0)),0,1) -> 0
A66: 0272 | B66: Costa do Marfim | C66: 0 | D66: 0 | E66: 0 | F66: 0 | G66: 0 | H66: 0 | I66: 0 | J66: 0 | K66: 0 | L66: 0 | M66: 0 | N66: 0 | O66: 0 | P66: 0 | Q66: 0 | R66: 0 | S66: 0 | T66: 0 | U66: 0 | V66: 0 | W66: 0 | X66: 0 | Y66: 0 | Z66: 0 | AA66: 0 | AC66: =L66-INDEX($C66:$L66,1,aux!$BA$1) -> 0 | AD66: 0 | AE66: =+IF(INDEX($C66:$L66,1,aux!$BA$1)>0,(L66/INDEX($C66:$L66,1,aux!$BA$1))^(1/($L$3-INDEX($C$3:$L$3,1,aux!$BA$1)))-1,"n.d.") -> n.d. | AF66: =IF(INDEX($C66:$L66,1,aux!$BA$1)>0,(L66-INDEX($C66:$L66,1,aux!$BA$1))/INDEX($C66:$L66,1,aux!$BA$1),"n.d.") -> n.d. | AH66: =X66-INDEX($O66:$X66,1,aux!$BA$1) -> 0 | AI66: 0 | AJ66: =+IF(INDEX($O66:$X66,1,aux!$BA$1)>0,(X66/INDEX($O66:$X66,1,aux!$BA$1))^(1/($X$3-INDEX($O$3:$X$3,1,aux!$BA$1)))-1,"n.d.") -> n.d. | AK66: =IF(INDEX($O66:$X66,1,aux!$BA$1)>0,(X66-INDEX($O66:$X66,1,aux!$BA$1))/INDEX($O66:$X66,1,aux!$BA$1),"n.d.") -> n.d. | AM66: 0 | CC66: =+IF(ISNA(MATCH('5.1'!A66,AUX_2d_pais!$G$2:$G$40000,0)),0,1) -> 0
A67: 0436 | B67: Costa Rica | C67: 0 | D67: 0 | E67: 0 | F67: 0 | G67: 0 | H67: 0 | I67: 0 | J67: 0 | K67: 0 | L67: 0 | M67: 0 | N67: 0 | O67: 0 | P67: 0 | Q67: 0 | R67: 0 | S67: 0 | T67: 0 | U67: 0 | V67: 0 | W67: 0 | X67: 0 | Y67: 0 | Z67: 0 | AA67: 0 | AC67: =L67-INDEX($C67:$L67,1,aux!$BA$1) -> 0 | AD67: 0 | AE67: =+IF(INDEX($C67:$L67,1,aux!$BA$1)>0,(L67/INDEX($C67:$L67,1,aux!$BA$1))^(1/($L$3-INDEX($C$3:$L$3,1,aux!$BA$1)))-1,"n.d.") -> n.d. | AF67: =IF(INDEX($C67:$L67,1,aux!$BA$1)>0,(L67-INDEX($C67:$L67,1,aux!$BA$1))/INDEX($C67:$L67,1,aux!$BA$1),"n.d.") -> n.d. | AH67: =X67-INDEX($O67:$X67,1,aux!$BA$1) -> 0 | AI67: 0 | AJ67: =+IF(INDEX($O67:$X67,1,aux!$BA$1)>0,(X67/INDEX($O67:$X67,1,aux!$BA$1))^(1/($X$3-INDEX($O$3:$X$3,1,aux!$BA$1)))-1,"n.d.") -> n.d. | AK67: =IF(INDEX($O67:$X67,1,aux!$BA$1)>0,(X67-INDEX($O67:$X67,1,aux!$BA$1))/INDEX($O67:$X67,1,aux!$BA$1),"n.d.") -> n.d. | AM67: 0 | CC67: =+IF(ISNA(MATCH('5.1'!A67,AUX_2d_pais!$G$2:$G$40000,0)),0,1) -> 0
A68: 0092 | B68: Croácia | C68: 0 | D68: 0 | E68: 0 | F68: 0 | G68: 0 | H68: 0 | I68: 0 | J68: 0 | K68: 0 | L68: 0 | M68: 0 | N68: 0 | O68: 0 | P68: 0 | Q68: 0 | R68: 0 | S68: 0 | T68: 0 | U68: 0 | V68: 0 | W68: 0 | X68: 0 | Y68: 0 | Z68: 0 | AA68: 0 | AC68: =L68-INDEX($C68:$L68,1,aux!$BA$1) -> 0 | AD68: =AC68/$AC$252 -> 0 | AE68: =+IF(INDEX($C68:$L68,1,aux!$BA$1)>0,(L68/INDEX($C68:$L68,1,aux!$BA$1))^(1/($L$3-INDEX($C$3:$L$3,1,aux!$BA$1)))-1,"n.d.") -> n.d. | AF68: =IF(INDEX($C68:$L68,1,aux!$BA$1)>0,(L68-INDEX($C68:$L68,1,aux!$BA$1))/INDEX($C68:$L68,1,aux!$BA$1),"n.d.") -> n.d. | AH68: =X68-INDEX($O68:$X68,1,aux!$BA$1) -> 0 | AI68: =AH68/$AH$252 -> 0 | AJ68: =+IF(INDEX($O68:$X68,1,aux!$BA$1)>0,(X68/INDEX($O68:$X68,1,aux!$BA$1))^(1/($X$3-INDEX($O$3:$X$3,1,aux!$BA$1)))-1,"n.d.") -> n.d. | AK68: =IF(INDEX($O68:$X68,1,aux!$BA$1)>0,(X68-INDEX($O68:$X68,1,aux!$BA$1))/INDEX($O68:$X68,1,aux!$BA$1),"n.d.") -> n.d. | AM68: =SUM(A68:AA68) -> 0 | CC68: =+IF(ISNA(MATCH('5.1'!A68,AUX_2d_pais!$G$2:$G$40000,0)),0,1) -> 0
A69: 0448 | B69: Cuba | C69: 0 | D69: 0 | E69: 0 | F69: 0 | G69: 0 | H69: 0 | I69: 0 | J69: 0 | K69: 0 | L69: 0 | M69: 0 | N69: 0 | O69: 0 | P69: 0 | Q69: 0 | R69: 0 | S69: 0 | T69: 0 | U69: 0 | V69: 0 | W69: 0 | X69: 0 | Y69: 0 | Z69: 0 | AA69: 0 | AC69: =L69-INDEX($C69:$L69,1,aux!$BA$1) -> 0 | AD69: 0 | AE69: =+IF(INDEX($C69:$L69,1,aux!$BA$1)>0,(L69/INDEX($C69:$L69,1,aux!$BA$1))^(1/($L$3-INDEX($C$3:$L$3,1,aux!$BA$1)))-1,"n.d.") -> n.d. | AF69: =IF(INDEX($C69:$L69,1,aux!$BA$1)>0,(L69-INDEX($C69:$L69,1,aux!$BA$1))/INDEX($C69:$L69,1,aux!$BA$1),"n.d.") -> n.d. | AH69: =X69-INDEX($O69:$X69,1,aux!$BA$1) -> 0 | AI69: 0 | AJ69: =+IF(INDEX($O69:$X69,1,aux!$BA$1)>0,(X69/INDEX($O69:$X69,1,aux!$BA$1))^(1/($X$3-INDEX($O$3:$X$3,1,aux!$BA$1)))-1,"n.d.") -> n.d. | AK69: =IF(INDEX($O69:$X69,1,aux!$BA$1)>0,(X69-INDEX($O69:$X69,1,aux!$BA$1))/INDEX($O69:$X69,1,aux!$BA$1),"n.d.") -> n.d. | AM69: 0 | CC69: =+IF(ISNA(MATCH('5.1'!A69,AUX_2d_pais!$G$2:$G$40000,0)),0,1) -> 0
A70: 0475 | B70: Curaçau | C70: 0 | D70: 0 | E70: 0 | F70: 0 | G70: 0 | H70: 0 | I70: 0 | J70: 0 | K70: 0 | L70: 0 | M70: 0 | N70: 0 | O70: 0 | P70: 0 | Q70: 0 | R70: 0 | S70: 0 | T70: 0 | U70: 0 | V70: 0 | W70: 0 | X70: 0 | Y70: 0 | Z70: 0 | AA70: 0 | AC70: =L70-INDEX($C70:$L70,1,aux!$BA$1) -> 0 | AD70: 0 | AE70: =+IF(INDEX($C70:$L70,1,aux!$BA$1)>0,(L70/INDEX($C70:$L70,1,aux!$BA$1))^(1/($L$3-INDEX($C$3:$L$3,1,aux!$BA$1)))-1,"n.d.") -> n.d. | AF70: =IF(INDEX($C70:$L70,1,aux!$BA$1)>0,(L70-INDEX($C70:$L70,1,aux!$BA$1))/INDEX($C70:$L70,1,aux!$BA$1),"n.d.") -> n.d. | AH70: =X70-INDEX($O70:$X70,1,aux!$BA$1) -> 0 | AI70: 0 | AJ70: =+IF(INDEX($O70:$X70,1,aux!$BA$1)>0,(X70/INDEX($O70:$X70,1,aux!$BA$1))^(1/($X$3-INDEX($O$3:$X$3,1,aux!$BA$1)))-1,"n.d.") -> n.d. | AK70: =IF(INDEX($O70:$X70,1,aux!$BA$1)>0,(X70-INDEX($O70:$X70,1,aux!$BA$1))/INDEX($O70:$X70,1,aux!$BA$1),"n.d.") -> n.d. | AM70: 0 | CC70: =+IF(ISNA(MATCH('5.1'!A70,AUX_2d_pais!$G$2:$G$40000,0)),0,1) -> 0
A71: 0008 | B71: Dinamarca | C71: 0 | D71: 0 | E71: 0 | F71: 0 | G71: 0 | H71: 0 | I71: 0 | J71: 0 | K71: 0 | L71: 0 | M71: 0 | N71: 0 | O71: 0 | P71: 0 | Q71: 0 | R71: 0 | S71: 0 | T71: 0 | U71: 0 | V71: 0 | W71: 0 | X71: 0 | Y71: 0 | Z71: 0 | AA71: 0 | AC71: =L71-INDEX($C71:$L71,1,aux!$BA$1) -> 0 | AD71: 0 | AE71: =+IF(INDEX($C71:$L71,1,aux!$BA$1)>0,(L71/INDEX($C71:$L71,1,aux!$BA$1))^(1/($L$3-INDEX($C$3:$L$3,1,aux!$BA$1)))-1,"n.d.") -> n.d. | AF71: =IF(INDEX($C71:$L71,1,aux!$BA$1)>0,(L71-INDEX($C71:$L71,1,aux!$BA$1))/INDEX($C71:$L71,1,aux!$BA$1),"n.d.") -> n.d. | AH71: =X71-INDEX($O71:$X71,1,aux!$BA$1) -> 0 | AI71: 0 | AJ71: =+IF(INDEX($O71:$X71,1,aux!$BA$1)>0,(X71/INDEX($O71:$X71,1,aux!$BA$1))^(1/($X$3-INDEX($O$3:$X$3,1,aux!$BA$1)))-1,"n.d.") -> n.d. | AK71: =IF(INDEX($O71:$X71,1,aux!$BA$1)>0,(X71-INDEX($O71:$X71,1,aux!$BA$1))/INDEX($O71:$X71,1,aux!$BA$1),"n.d.") -> n.d. | AM71: 0 | CC71: =+IF(ISNA(MATCH('5.1'!A71,AUX_2d_pais!$G$2:$G$40000,0)),0,1) -> 0
A72: 0460 | B72: Domínica | C72: 0 | D72: 0 | E72: 0 | F72: 0 | G72: 0 | H72: 0 | I72: 0 | J72: 0 | K72: 0 | L72: 0 | M72: 0 | N72: 0 | O72: 0 | P72: 0 | Q72: 0 | R72: 0 | S72: 0 | T72: 0 | U72: 0 | V72: 0 | W72: 0 | X72: 0 | Y72: 0 | Z72: 0 | AA72: 0 | AC72: =L72-INDEX($C72:$L72,1,aux!$BA$1) -> 0 | AD72: 0 | AE72: =+IF(INDEX($C72:$L72,1,aux!$BA$1)>0,(L72/INDEX($C72:$L72,1,aux!$BA$1))^(1/($L$3-INDEX($C$3:$L$3,1,aux!$BA$1)))-1,"n.d.") -> n.d. | AF72: =IF(INDEX($C72:$L72,1,aux!$BA$1)>0,(L72-INDEX($C72:$L72,1,aux!$BA$1))/INDEX($C72:$L72,1,aux!$BA$1),"n.d.") -> n.d. | AH72: =X72-INDEX($O72:$X72,1,aux!$BA$1) -> 0 | AI72: 0 | AJ72: =+IF(INDEX($O72:$X72,1,aux!$BA$1)>0,(X72/INDEX($O72:$X72,1,aux!$BA$1))^(1/($X$3-INDEX($O$3:$X$3,1,aux!$BA$1)))-1,"n.d.") -> n.d. | AK72: =IF(INDEX($O72:$X72,1,aux!$BA$1)>0,(X72-INDEX($O72:$X72,1,aux!$BA$1))/INDEX($O72:$X72,1,aux!$BA$1),"n.d.") -> n.d. | AM72: 0 | BO72: =SUM(C72:L72,O72:X72) -> 0 | CC72: =+IF(ISNA(MATCH('5.1'!A72,AUX_2d_pais!$G$2:$G$40000,0)),0,1) -> 0
A73: 0456 | B73: Dominicana, República | C73: 0 | D73: 0 | E73: 0 | F73: 0 | G73: 0 | H73: 0 | I73: 0 | J73: 0 | K73: 0 | L73: 0 | M73: 0 | N73: 0 | O73: 0 | P73: 0 | Q73: 0 | R73: 0 | S73: 0 | T73: 0 | U73: 0 | V73: 0 | W73: 0 | X73: 0 | Y73: 0 | Z73: 0 | AA73: 0 | AC73: =L73-INDEX($C73:$L73,1,aux!$BA$1) -> 0 | AD73: 0 | AE73: =+IF(INDEX($C73:$L73,1,aux!$BA$1)>0,(L73/INDEX($C73:$L73,1,aux!$BA$1))^(1/($L$3-INDEX($C$3:$L$3,1,aux!$BA$1)))-1,"n.d.") -> n.d. | AF73: =IF(INDEX($C73:$L73,1,aux!$BA$1)>0,(L73-INDEX($C73:$L73,1,aux!$BA$1))/INDEX($C73:$L73,1,aux!$BA$1),"n.d.") -> n.d. | AH73: =X73-INDEX($O73:$X73,1,aux!$BA$1) -> 0 | AI73: 0 | AJ73: =+IF(INDEX($O73:$X73,1,aux!$BA$1)>0,(X73/INDEX($O73:$X73,1,aux!$BA$1))^(1/($X$3-INDEX($O$3:$X$3,1,aux!$BA$1)))-1,"n.d.") -> n.d. | AK73: =IF(INDEX($O73:$X73,1,aux!$BA$1)>0,(X73-INDEX($O73:$X73,1,aux!$BA$1))/INDEX($O73:$X73,1,aux!$BA$1),"n.d.") -> n.d. | AM73: 0 | CC73: =+IF(ISNA(MATCH('5.1'!A73,AUX_2d_pais!$G$2:$G$40000,0)),0,1) -> 0
A74: 0220 | B74: Egito | C74: 0 | D74: 0 | E74: 0 | F74: 0 | G74: 0 | H74: 0 | I74: 0 | J74: 0 | K74: 0 | L74: 0 | M74: 0 | N74: 0 | O74: 0 | P74: 0 | Q74: 0 | R74: 0 | S74: 0 | T74: 0 | U74: 0 | V74: 0 | W74: 0 | X74: 0 | Y74: 0 | Z74: 0 | AA74: 0 | AC74: =L74-INDEX($C74:$L74,1,aux!$BA$1) -> 0 | AD74: 0 | AE74: =+IF(INDEX($C74:$L74,1,aux!$BA$1)>0,(L74/INDEX($C74:$L74,1,aux!$BA$1))^(1/($L$3-INDEX($C$3:$L$3,1,aux!$BA$1)))-1,"n.d.") -> n.d. | AF74: =IF(INDEX($C74:$L74,1,aux!$BA$1)>0,(L74-INDEX($C74:$L74,1,aux!$BA$1))/INDEX($C74:$L74,1,aux!$BA$1),"n.d.") -> n.d. | AH74: =X74-INDEX($O74:$X74,1,aux!$BA$1) -> 0 | AI74: 0 | AJ74: =+IF(INDEX($O74:$X74,1,aux!$BA$1)>0,(X74/INDEX($O74:$X74,1,aux!$BA$1))^(1/($X$3-INDEX($O$3:$X$3,1,aux!$BA$1)))-1,"n.d.") -> n.d. | AK74: =IF(INDEX($O74:$X74,1,aux!$BA$1)>0,(X74-INDEX($O74:$X74,1,aux!$BA$1))/INDEX($O74:$X74,1,aux!$BA$1),"n.d.") -> n.d. | AM74: 0 | CC74: =+IF(ISNA(MATCH('5.1'!A74,AUX_2d_pais!$G$2:$G$40000,0)),0,1) -> 0
A75: 0428 | B75: El Salvador | C75: 0 | D75: 0 | E75: 0 | F75: 0 | G75: 0 | H75: 0 | I75: 0 | J75: 0 | K75: 0 | L75: 0 | M75: 0 | N75: 0 | O75: 0 | P75: 0 | Q75: 0 | R75: 0 | S75: 0 | T75: 0 | U75: 0 | V75: 0 | W75: 0 | X75: 0 | Y75: 0 | Z75: 0 | AA75: 0 | AC75: =L75-INDEX($C75:$L75,1,aux!$BA$1) -> 0 | AD75: 0 | AE75: =+IF(INDEX($C75:$L75,1,aux!$BA$1)>0,(L75/INDEX($C75:$L75,1,aux!$BA$1))^(1/($L$3-INDEX($C$3:$L$3,1,aux!$BA$1)))-1,"n.d.") -> n.d. | AF75: =IF(INDEX($C75:$L75,1,aux!$BA$1)>0,(L75-INDEX($C75:$L75,1,aux!$BA$1))/INDEX($C75:$L75,1,aux!$BA$1),"n.d.") -> n.d. | AH75: =X75-INDEX($O75:$X75,1,aux!$BA$1) -> 0 | AI75: 0 | AJ75: =+IF(INDEX($O75:$X75,1,aux!$BA$1)>0,(X75/INDEX($O75:$X75,1,aux!$BA$1))^(1/($X$3-INDEX($O$3:$X$3,1,aux!$BA$1)))-1,"n.d.") -> n.d. | AK75: =IF(INDEX($O75:$X75,1,aux!$BA$1)>0,(X75-INDEX($O75:$X75,1,aux!$BA$1))/INDEX($O75:$X75,1,aux!$BA$1),"n.d.") -> n.d. | AM75: 0 | CC75: =+IF(ISNA(MATCH('5.1'!A75,AUX_2d_pais!$G$2:$G$40000,0)),0,1) -> 0
A76: 0647 | B76: Emirados Árabes Unidos | C76: 0 | D76: 0 | E76: 0 | F76: 0 | G76: 0 | H76: 0 | I76: 0 | J76: 0 | K76: 0 | L76: 0 | M76: 0 | N76: 0 | O76: 0 | P76: 0 | Q76: 0 | R76: 0 | S76: 0 | T76: 0 | U76: 0 | V76: 0 | W76: 0 | X76: 0 | Y76: 0 | Z76: 0 | AA76: 0 | AC76: =L76-INDEX($C76:$L76,1,aux!$BA$1) -> 0 | AD76: 0 | AE76: =+IF(INDEX($C76:$L76,1,aux!$BA$1)>0,(L76/INDEX($C76:$L76,1,aux!$BA$1))^(1/($L$3-INDEX($C$3:$L$3,1,aux!$BA$1)))-1,"n.d.") -> n.d. | AF76: =IF(INDEX($C76:$L76,1,aux!$BA$1)>0,(L76-INDEX($C76:$L76,1,aux!$BA$1))/INDEX($C76:$L76,1,aux!$BA$1),"n.d.") -> n.d. | AH76: =X76-INDEX($O76:$X76,1,aux!$BA$1) -> 0 | AI76: 0 | AJ76: =+IF(INDEX($O76:$X76,1,aux!$BA$1)>0,(X76/INDEX($O76:$X76,1,aux!$BA$1))^(1/($X$3-INDEX($O$3:$X$3,1,aux!$BA$1)))-1,"n.d.") -> n.d. | AK76: =IF(INDEX($O76:$X76,1,aux!$BA$1)>0,(X76-INDEX($O76:$X76,1,aux!$BA$1))/INDEX($O76:$X76,1,aux!$BA$1),"n.d.") -> n.d. | AM76: 0 | CC76: =+IF(ISNA(MATCH('5.1'!A76,AUX_2d_pais!$G$2:$G$40000,0)),0,1) -> 0
A77: 0500 | B77: Equador | C77: 23785.579 | D77: 21812.538 | E77: 21749.973 | F77: 12215.045 | G77: 16057.221 | H77: 13998.156 | I77: 13363.068 | J77: 17915.844 | K77: 25037.02 | L77: 29078.267 | M77: 19501.2711 | N77: 0.02736070962 | O77: 301.873 | P77: 1482.762 | Q77: 3647.257 | R77: 2138.757 | S77: 6523.192 | T77: 4325.287 | U77: 2550.75 | V77: 3573.32 | W77: 1881.327 | X77: 3170.376 | Y77: 2959.4901 | Z77: 0.007375815236 | AA77: -16541.781 | AC77: =L77-INDEX($C77:$L77,1,aux!$BA$1) -> 5292.688 | AD77: 0.02283785819 | AE77: =+IF(INDEX($C77:$L77,1,aux!$BA$1)>0,(L77/INDEX($C77:$L77,1,aux!$BA$1))^(1/($L$3-INDEX($C$3:$L$3,1,aux!$BA$1)))-1,"n.d.") -> 0.02257454338 | AF77: =IF(INDEX($C77:$L77,1,aux!$BA$1)>0,(L77-INDEX($C77:$L77,1,aux!$BA$1))/INDEX($C77:$L77,1,aux!$BA$1),"n.d.") -> 0.222516677 | AH77: =X77-INDEX($O77:$X77,1,aux!$BA$1) -> 2868.503 | AI77: 0.009248821469 | AJ77: =+IF(INDEX($O77:$X77,1,aux!$BA$1)>0,(X77/INDEX($O77:$X77,1,aux!$BA$1))^(1/($X$3-INDEX($O$3:$X$3,1,aux!$BA$1)))-1,"n.d.") -> 0.2986026294 | AK77: =IF(INDEX($O77:$X77,1,aux!$BA$1)>0,(X77-INDEX($O77:$X77,1,aux!$BA$1))/INDEX($O77:$X77,1,aux!$BA$1),"n.d.") -> 9.502350326 | CC77: =+IF(ISNA(MATCH('5.1'!A77,AUX_2d_pais!$G$2:$G$40000,0)),0,1) -> 1
A78: 0336 | B78: Eritreia | C78: 0 | D78: 0 | E78: 0 | F78: 0 | G78: 0 | H78: 0 | I78: 0 | J78: 0 | K78: 0 | L78: 0 | M78: 0 | N78: 0 | O78: 0 | P78: 0 | Q78: 0 | R78: 0 | S78: 0 | T78: 0 | U78: 0 | V78: 0 | W78: 0 | X78: 0 | Y78: 0 | Z78: 0 | AA78: 0 | AC78: =L78-INDEX($C78:$L78,1,aux!$BA$1) -> 0 | AD78: 0 | AE78: =+IF(INDEX($C78:$L78,1,aux!$BA$1)>0,(L78/INDEX($C78:$L78,1,aux!$BA$1))^(1/($L$3-INDEX($C$3:$L$3,1,aux!$BA$1)))-1,"n.d.") -> n.d. | AF78: =IF(INDEX($C78:$L78,1,aux!$BA$1)>0,(L78-INDEX($C78:$L78,1,aux!$BA$1))/INDEX($C78:$L78,1,aux!$BA$1),"n.d.") -> n.d. | AH78: =X78-INDEX($O78:$X78,1,aux!$BA$1) -> 0 | AI78: 0 | AJ78: =+IF(INDEX($O78:$X78,1,aux!$BA$1)>0,(X78/INDEX($O78:$X78,1,aux!$BA$1))^(1/($X$3-INDEX($O$3:$X$3,1,aux!$BA$1)))-1,"n.d.") -> n.d. | AK78: =IF(INDEX($O78:$X78,1,aux!$BA$1)>0,(X78-INDEX($O78:$X78,1,aux!$BA$1))/INDEX($O78:$X78,1,aux!$BA$1),"n.d.") -> n.d. | AM78: 0 | BO78: 0 | CC78: =+IF(ISNA(MATCH('5.1'!A78,AUX_2d_pais!$G$2:$G$40000,0)),0,1) -> 0
A79: 0063 | B79: Eslováquia | C79: 0 | D79: 0 | E79: 0 | F79: 0 | G79: 0 | H79: 0 | I79: 0 | J79: 0 | K79: 0 | L79: 0 | M79: 0 | N79: 0 | O79: 0 | P79: 0 | Q79: 0 | R79: 0 | S79: 0 | T79: 0 | U79: 0 | V79: 0 | W79: 0 | X79: 0 | Y79: 0 | Z79: 0 | AA79: 0 | AC79: =L79-INDEX($C79:$L79,1,aux!$BA$1) -> 0 | AD79: 0 | AE79: =+IF(INDEX($C79:$L79,1,aux!$BA$1)>0,(L79/INDEX($C79:$L79,1,aux!$BA$1))^(1/($L$3-INDEX($C$3:$L$3,1,aux!$BA$1)))-1,"n.d.") -> n.d. | AF79: =IF(INDEX($C79:$L79,1,aux!$BA$1)>0,(L79-INDEX($C79:$L79,1,aux!$BA$1))/INDEX($C79:$L79,1,aux!$BA$1),"n.d.") -> n.d. | AH79: =X79-INDEX($O79:$X79,1,aux!$BA$1) -> 0 | AI79: 0 | AJ79: =+IF(INDEX($O79:$X79,1,aux!$BA$1)>0,(X79/INDEX($O79:$X79,1,aux!$BA$1))^(1/($X$3-INDEX($O$3:$X$3,1,aux!$BA$1)))-1,"n.d.") -> n.d. | AK79: =IF(INDEX($O79:$X79,1,aux!$BA$1)>0,(X79-INDEX($O79:$X79,1,aux!$BA$1))/INDEX($O79:$X79,1,aux!$BA$1),"n.d.") -> n.d. | AM79: 0 | CC79: =+IF(ISNA(MATCH('5.1'!A79,AUX_2d_pais!$G$2:$G$40000,0)),0,1) -> 0
A80: 0091 | B80: Eslovénia | C80: 0 | D80: 0 | E80: 0 | F80: 0 | G80: 0 | H80: 0 | I80: 0 | J80: 0 | K80: 0 | L80: 0 | M80: 0 | N80: 0 | O80: 0 | P80: 0 | Q80: 0 | R80: 0 | S80: 0 | T80: 0 | U80: 0 | V80: 0 | W80: 0 | X80: 0 | Y80: 0 | Z80: 0 | AA80: 0 | AC80: =L80-INDEX($C80:$L80,1,aux!$BA$1) -> 0 | AD80: 0 | AE80: =+IF(INDEX($C80:$L80,1,aux!$BA$1)>0,(L80/INDEX($C80:$L80,1,aux!$BA$1))^(1/($L$3-INDEX($C$3:$L$3,1,aux!$BA$1)))-1,"n.d.") -> n.d. | AF80: =IF(INDEX($C80:$L80,1,aux!$BA$1)>0,(L80-INDEX($C80:$L80,1,aux!$BA$1))/INDEX($C80:$L80,1,aux!$BA$1),"n.d.") -> n.d. | AH80: =X80-INDEX($O80:$X80,1,aux!$BA$1) -> 0 | AI80: 0 | AJ80: =+IF(INDEX($O80:$X80,1,aux!$BA$1)>0,(X80/INDEX($O80:$X80,1,aux!$BA$1))^(1/($X$3-INDEX($O$3:$X$3,1,aux!$BA$1)))-1,"n.d.") -> n.d. | AK80: =IF(INDEX($O80:$X80,1,aux!$BA$1)>0,(X80-INDEX($O80:$X80,1,aux!$BA$1))/INDEX($O80:$X80,1,aux!$BA$1),"n.d.") -> n.d. | AM80: 0 | CC80: =+IF(ISNA(MATCH('5.1'!A80,AUX_2d_pais!$G$2:$G$40000,0)),0,1) -> 0
A81: 0011 | B81: Espanha | C81: 0 | D81: 0 | E81: 0 | F81: 0 | G81: 0 | H81: 0 | I81: 0 | J81: 0 | K81: 0 | L81: 0 | M81: 0 | N81: 0 | O81: 0 | P81: 0 | Q81: 0 | R81: 0 | S81: 0 | T81: 0 | U81: 0 | V81: 0 | W81: 0 | X81: 0 | Y81: 0 | Z81: 0 | AA81: 0 | AC81: =L81-INDEX($C81:$L81,1,aux!$BA$1) -> 0 | AD81: 0 | AE81: =+IF(INDEX($C81:$L81,1,aux!$BA$1)>0,(L81/INDEX($C81:$L81,1,aux!$BA$1))^(1/($L$3-INDEX($C$3:$L$3,1,aux!$BA$1)))-1,"n.d.") -> n.d. | AF81: =IF(INDEX($C81:$L81,1,aux!$BA$1)>0,(L81-INDEX($C81:$L81,1,aux!$BA$1))/INDEX($C81:$L81,1,aux!$BA$1),"n.d.") -> n.d. | AH81: =X81-INDEX($O81:$X81,1,aux!$BA$1) -> 0 | AI81: 0 | AJ81: =+IF(INDEX($O81:$X81,1,aux!$BA$1)>0,(X81/INDEX($O81:$X81,1,aux!$BA$1))^(1/($X$3-INDEX($O$3:$X$3,1,aux!$BA$1)))-1,"n.d.") -> n.d. | AK81: =IF(INDEX($O81:$X81,1,aux!$BA$1)>0,(X81-INDEX($O81:$X81,1,aux!$BA$1))/INDEX($O81:$X81,1,aux!$BA$1),"n.d.") -> n.d. | AM81: 0 | CC81: =+IF(ISNA(MATCH('5.1'!A81,AUX_2d_pais!$G$2:$G$40000,0)),0,1) -> 0
A82: 0400 | B82: Estados Unidos | C82: 0 | D82: 0 | E82: 0 | F82: 0 | G82: 0 | H82: 0 | I82: 0 | J82: 0 | K82: 0 | L82: 0 | M82: 0 | N82: 0 | O82: 0 | P82: 0 | Q82: 0 | R82: 0 | S82: 0 | T82: 0 | U82: 0 | V82: 0 | W82: 0 | X82: 0 | Y82: 0 | Z82: 0 | AA82: 0 | AC82: =L82-INDEX($C82:$L82,1,aux!$BA$1) -> 0 | AD82: 0 | AE82: =+IF(INDEX($C82:$L82,1,aux!$BA$1)>0,(L82/INDEX($C82:$L82,1,aux!$BA$1))^(1/($L$3-INDEX($C$3:$L$3,1,aux!$BA$1)))-1,"n.d.") -> n.d. | AF82: =IF(INDEX($C82:$L82,1,aux!$BA$1)>0,(L82-INDEX($C82:$L82,1,aux!$BA$1))/INDEX($C82:$L82,1,aux!$BA$1),"n.d.") -> n.d. | AH82: =X82-INDEX($O82:$X82,1,aux!$BA$1) -> 0 | AI82: 0 | AJ82: =+IF(INDEX($O82:$X82,1,aux!$BA$1)>0,(X82/INDEX($O82:$X82,1,aux!$BA$1))^(1/($X$3-INDEX($O$3:$X$3,1,aux!$BA$1)))-1,"n.d.") -> n.d. | AK82: =IF(INDEX($O82:$X82,1,aux!$BA$1)>0,(X82-INDEX($O82:$X82,1,aux!$BA$1))/INDEX($O82:$X82,1,aux!$BA$1),"n.d.") -> n.d. | AM82: 0 | CC82: =+IF(ISNA(MATCH('5.1'!A82,AUX_2d_pais!$G$2:$G$40000,0)),0,1) -> 0
A83: 0053 | B83: Estónia | C83: 0 | D83: 0 | E83: 0 | F83: 0 | G83: 0 | H83: 0 | I83: 0 | J83: 0 | K83: 0 | L83: 0 | M83: 0 | N83: 0 | O83: 0 | P83: 0 | Q83: 0 | R83: 0 | S83: 0 | T83: 0 | U83: 0 | V83: 0 | W83: 0 | X83: 0 | Y83: 0 | Z83: 0 | AA83: 0 | AC83: =L83-INDEX($C83:$L83,1,aux!$BA$1) -> 0 | AD83: 0 | AE83: =+IF(INDEX($C83:$L83,1,aux!$BA$1)>0,(L83/INDEX($C83:$L83,1,aux!$BA$1))^(1/($L$3-INDEX($C$3:$L$3,1,aux!$BA$1)))-1,"n.d.") -> n.d. | AF83: =IF(INDEX($C83:$L83,1,aux!$BA$1)>0,(L83-INDEX($C83:$L83,1,aux!$BA$1))/INDEX($C83:$L83,1,aux!$BA$1),"n.d.") -> n.d. | AH83: =X83-INDEX($O83:$X83,1,aux!$BA$1) -> 0 | AI83: 0 | AJ83: =+IF(INDEX($O83:$X83,1,aux!$BA$1)>0,(X83/INDEX($O83:$X83,1,aux!$BA$1))^(1/($X$3-INDEX($O$3:$X$3,1,aux!$BA$1)))-1,"n.d.") -> n.d. | AK83: =IF(INDEX($O83:$X83,1,aux!$BA$1)>0,(X83-INDEX($O83:$X83,1,aux!$BA$1))/INDEX($O83:$X83,1,aux!$BA$1),"n.d.") -> n.d. | AM83: 0 | CC83: =+IF(ISNA(MATCH('5.1'!A83,AUX_2d_pais!$G$2:$G$40000,0)),0,1) -> 0
A84: 0334 | B84: Etiópia | C84: 0 | D84: 0 | E84: 0 | F84: 0 | G84: 0 | H84: 0 | I84: 0 | J84: 0 | K84: 0 | L84: 0 | M84: 0 | N84: 0 | O84: 0 | P84: 0 | Q84: 0 | R84: 0 | S84: 0 | T84: 0 | U84: 0 | V84: 0 | W84: 0 | X84: 0 | Y84: 0 | Z84: 0 | AA84: 0 | AC84: =L84-INDEX($C84:$L84,1,aux!$BA$1) -> 0 | AD84: 0 | AE84: =+IF(INDEX($C84:$L84,1,aux!$BA$1)>0,(L84/INDEX($C84:$L84,1,aux!$BA$1))^(1/($L$3-INDEX($C$3:$L$3,1,aux!$BA$1)))-1,"n.d.") -> n.d. | AF84: =IF(INDEX($C84:$L84,1,aux!$BA$1)>0,(L84-INDEX($C84:$L84,1,aux!$BA$1))/INDEX($C84:$L84,1,aux!$BA$1),"n.d.") -> n.d. | AH84: =X84-INDEX($O84:$X84,1,aux!$BA$1) -> 0 | AI84: 0 | AJ84: =+IF(INDEX($O84:$X84,1,aux!$BA$1)>0,(X84/INDEX($O84:$X84,1,aux!$BA$1))^(1/($X$3-INDEX($O$3:$X$3,1,aux!$BA$1)))-1,"n.d.") -> n.d. | AK84: =IF(INDEX($O84:$X84,1,aux!$BA$1)>0,(X84-INDEX($O84:$X84,1,aux!$BA$1))/INDEX($O84:$X84,1,aux!$BA$1),"n.d.") -> n.d. | AM84: 0 | CC84: =+IF(ISNA(MATCH('5.1'!A84,AUX_2d_pais!$G$2:$G$40000,0)),0,1) -> 0
A85: 0529 | B85: Falkland Ilhas (Malvinas) | C85: 0 | D85: 0 | E85: 0 | F85: 0 | G85: 0 | H85: 0 | I85: 0 | J85: 0 | K85: 0 | L85: 0 | M85: 0 | N85: 0 | O85: 0 | P85: 0 | Q85: 0 | R85: 0 | S85: 0 | T85: 0 | U85: 0 | V85: 0 | W85: 0 | X85: 0 | Y85: 0 | Z85: 0 | AA85: 0 | AC85: =L85-INDEX($C85:$L85,1,aux!$BA$1) -> 0 | AD85: 0 | AE85: =+IF(INDEX($C85:$L85,1,aux!$BA$1)>0,(L85/INDEX($C85:$L85,1,aux!$BA$1))^(1/($L$3-INDEX($C$3:$L$3,1,aux!$BA$1)))-1,"n.d.") -> n.d. | AF85: =IF(INDEX($C85:$L85,1,aux!$BA$1)>0,(L85-INDEX($C85:$L85,1,aux!$BA$1))/INDEX($C85:$L85,1,aux!$BA$1),"n.d.") -> n.d. | AH85: =X85-INDEX($O85:$X85,1,aux!$BA$1) -> 0 | AI85: 0 | AJ85: =+IF(INDEX($O85:$X85,1,aux!$BA$1)>0,(X85/INDEX($O85:$X85,1,aux!$BA$1))^(1/($X$3-INDEX($O$3:$X$3,1,aux!$BA$1)))-1,"n.d.") -> n.d. | AK85: =IF(INDEX($O85:$X85,1,aux!$BA$1)>0,(X85-INDEX($O85:$X85,1,aux!$BA$1))/INDEX($O85:$X85,1,aux!$BA$1),"n.d.") -> n.d. | AM85: 0 | BO85: 0 | CC85: =+IF(ISNA(MATCH('5.1'!A85,AUX_2d_pais!$G$2:$G$40000,0)),0,1) -> 0
A86: 0041 | B86: Faroé, Ilhas | C86: 0 | D86: 0 | E86: 0 | F86: 0 | G86: 0 | H86: 0 | I86: 0 | J86: 0 | K86: 0 | L86: 0 | M86: 0 | N86: 0 | O86: 0 | P86: 0 | Q86: 0 | R86: 0 | S86: 0 | T86: 0 | U86: 0 | V86: 0 | W86: 0 | X86: 0 | Y86: 0 | Z86: 0 | AA86: 0 | AC86: =L86-INDEX($C86:$L86,1,aux!$BA$1) -> 0 | AD86: 0 | AE86: =+IF(INDEX($C86:$L86,1,aux!$BA$1)>0,(L86/INDEX($C86:$L86,1,aux!$BA$1))^(1/($L$3-INDEX($C$3:$L$3,1,aux!$BA$1)))-1,"n.d.") -> n.d. | AF86: =IF(INDEX($C86:$L86,1,aux!$BA$1)>0,(L86-INDEX($C86:$L86,1,aux!$BA$1))/INDEX($C86:$L86,1,aux!$BA$1),"n.d.") -> n.d. | AH86: =X86-INDEX($O86:$X86,1,aux!$BA$1) -> 0 | AI86: 0 | AJ86: =+IF(INDEX($O86:$X86,1,aux!$BA$1)>0,(X86/INDEX($O86:$X86,1,aux!$BA$1))^(1/($X$3-INDEX($O$3:$X$3,1,aux!$BA$1)))-1,"n.d.") -> n.d. | AK86: =IF(INDEX($O86:$X86,1,aux!$BA$1)>0,(X86-INDEX($O86:$X86,1,aux!$BA$1))/INDEX($O86:$X86,1,aux!$BA$1),"n.d.") -> n.d. | AM86: 0 | BO86: 0 | CC86: =+IF(ISNA(MATCH('5.1'!A86,AUX_2d_pais!$G$2:$G$40000,0)),0,1) -> 0
A87: 0815 | B87: Fiji, Ilhas | C87: 0 | D87: 0 | E87: 0 | F87: 0 | G87: 0 | H87: 0 | I87: 0 | J87: 0 | K87: 0 | L87: 0 | M87: 0 | N87: 0 | O87: 0 | P87: 0 | Q87: 0 | R87: 0 | S87: 0 | T87: 0 | U87: 0 | V87: 0 | W87: 0 | X87: 0 | Y87: 0 | Z87: 0 | AA87: 0 | AC87: =L87-INDEX($C87:$L87,1,aux!$BA$1) -> 0 | AD87: 0 | AE87: =+IF(INDEX($C87:$L87,1,aux!$BA$1)>0,(L87/INDEX($C87:$L87,1,aux!$BA$1))^(1/($L$3-INDEX($C$3:$L$3,1,aux!$BA$1)))-1,"n.d.") -> n.d. | AF87: =IF(INDEX($C87:$L87,1,aux!$BA$1)>0,(L87-INDEX($C87:$L87,1,aux!$BA$1))/INDEX($C87:$L87,1,aux!$BA$1),"n.d.") -> n.d. | AH87: =X87-INDEX($O87:$X87,1,aux!$BA$1) -> 0 | AI87: 0 | AJ87: =+IF(INDEX($O87:$X87,1,aux!$BA$1)>0,(X87/INDEX($O87:$X87,1,aux!$BA$1))^(1/($X$3-INDEX($O$3:$X$3,1,aux!$BA$1)))-1,"n.d.") -> n.d. | AK87: =IF(INDEX($O87:$X87,1,aux!$BA$1)>0,(X87-INDEX($O87:$X87,1,aux!$BA$1))/INDEX($O87:$X87,1,aux!$BA$1),"n.d.") -> n.d. | AM87: 0 | BO87: 0 | CC87: =+IF(ISNA(MATCH('5.1'!A87,AUX_2d_pais!$G$2:$G$40000,0)),0,1) -> 0
A88: 0708 | B88: Filipinas | C88: 0 | D88: 0 | E88: 0 | F88: 0 | G88: 0 | H88: 0 | I88: 0 | J88: 0 | K88: 0 | L88: 0 | M88: 0 | N88: 0 | O88: 0 | P88: 0 | Q88: 0 | R88: 0 | S88: 0 | T88: 0 | U88: 0 | V88: 0 | W88: 0 | X88: 0 | Y88: 0 | Z88: 0 | AA88: 0 | AC88: =L88-INDEX($C88:$L88,1,aux!$BA$1) -> 0 | AD88: 0 | AE88: =+IF(INDEX($C88:$L88,1,aux!$BA$1)>0,(L88/INDEX($C88:$L88,1,aux!$BA$1))^(1/($L$3-INDEX($C$3:$L$3,1,aux!$BA$1)))-1,"n.d.") -> n.d. | AF88: =IF(INDEX($C88:$L88,1,aux!$BA$1)>0,(L88-INDEX($C88:$L88,1,aux!$BA$1))/INDEX($C88:$L88,1,aux!$BA$1),"n.d.") -> n.d. | AH88: =X88-INDEX($O88:$X88,1,aux!$BA$1) -> 0 | AI88: 0 | AJ88: =+IF(INDEX($O88:$X88,1,aux!$BA$1)>0,(X88/INDEX($O88:$X88,1,aux!$BA$1))^(1/($X$3-INDEX($O$3:$X$3,1,aux!$BA$1)))-1,"n.d.") -> n.d. | AK88: =IF(INDEX($O88:$X88,1,aux!$BA$1)>0,(X88-INDEX($O88:$X88,1,aux!$BA$1))/INDEX($O88:$X88,1,aux!$BA$1),"n.d.") -> n.d. | AM88: 0 | CC88: =+IF(ISNA(MATCH('5.1'!A88,AUX_2d_pais!$G$2:$G$40000,0)),0,1) -> 0
A89: 0032 | B89: Finlândia | C89: 0 | D89: 0 | E89: 0 | F89: 0 | G89: 0 | H89: 0 | I89: 0 | J89: 0 | K89: 0 | L89: 0 | M89: 0 | N89: 0 | O89: 0 | P89: 0 | Q89: 0 | R89: 0 | S89: 0 | T89: 0 | U89: 0 | V89: 0 | W89: 0 | X89: 0 | Y89: 0 | Z89: 0 | AA89: 0 | AC89: =L89-INDEX($C89:$L89,1,aux!$BA$1) -> 0 | AD89: 0 | AE89: =+IF(INDEX($C89:$L89,1,aux!$BA$1)>0,(L89/INDEX($C89:$L89,1,aux!$BA$1))^(1/($L$3-INDEX($C$3:$L$3,1,aux!$BA$1)))-1,"n.d.") -> n.d. | AF89: =IF(INDEX($C89:$L89,1,aux!$BA$1)>0,(L89-INDEX($C89:$L89,1,aux!$BA$1))/INDEX($C89:$L89,1,aux!$BA$1),"n.d.") -> n.d. | AH89: =X89-INDEX($O89:$X89,1,aux!$BA$1) -> 0 | AI89: 0 | AJ89: =+IF(INDEX($O89:$X89,1,aux!$BA$1)>0,(X89/INDEX($O89:$X89,1,aux!$BA$1))^(1/($X$3-INDEX($O$3:$X$3,1,aux!$BA$1)))-1,"n.d.") -> n.d. | AK89: =IF(INDEX($O89:$X89,1,aux!$BA$1)>0,(X89-INDEX($O89:$X89,1,aux!$BA$1))/INDEX($O89:$X89,1,aux!$BA$1),"n.d.") -> n.d. | AM89: 0 | CC89: =+IF(ISNA(MATCH('5.1'!A89,AUX_2d_pais!$G$2:$G$40000,0)),0,1) -> 0
A90: 0001 | B90: França | C90: 0 | D90: 0 | E90: 0 | F90: 0 | G90: 0 | H90: 0 | I90: 0 | J90: 0 | K90: 0 | L90: 0 | M90: 0 | N90: 0 | O90: 0 | P90: 0 | Q90: 0 | R90: 0 | S90: 0 | T90: 0 | U90: 0 | V90: 0 | W90: 0 | X90: 0 | Y90: 0 | Z90: 0 | AA90: 0 | AC90: =L90-INDEX($C90:$L90,1,aux!$BA$1) -> 0 | AD90: 0 | AE90: =+IF(INDEX($C90:$L90,1,aux!$BA$1)>0,(L90/INDEX($C90:$L90,1,aux!$BA$1))^(1/($L$3-INDEX($C$3:$L$3,1,aux!$BA$1)))-1,"n.d.") -> n.d. | AF90: =IF(INDEX($C90:$L90,1,aux!$BA$1)>0,(L90-INDEX($C90:$L90,1,aux!$BA$1))/INDEX($C90:$L90,1,aux!$BA$1),"n.d.") -> n.d. | AH90: =X90-INDEX($O90:$X90,1,aux!$BA$1) -> 0 | AI90: 0 | AJ90: =+IF(INDEX($O90:$X90,1,aux!$BA$1)>0,(X90/INDEX($O90:$X90,1,aux!$BA$1))^(1/($X$3-INDEX($O$3:$X$3,1,aux!$BA$1)))-1,"n.d.") -> n.d. | AK90: =IF(INDEX($O90:$X90,1,aux!$BA$1)>0,(X90-INDEX($O90:$X90,1,aux!$BA$1))/INDEX($O90:$X90,1,aux!$BA$1),"n.d.") -> n.d. | AM90: 0 | CC90: =+IF(ISNA(MATCH('5.1'!A90,AUX_2d_pais!$G$2:$G$40000,0)),0,1) -> 0
A91: 0314 | B91: Gabão | C91: 0 | D91: 0 | E91: 0 | F91: 0 | G91: 0 | H91: 0 | I91: 0 | J91: 0 | K91: 0 | L91: 0 | M91: 0 | N91: 0 | O91: 0 | P91: 0 | Q91: 0 | R91: 0 | S91: 0 | T91: 0 | U91: 0 | V91: 0 | W91: 0 | X91: 0 | Y91: 0 | Z91: 0 | AA91: 0 | AC91: =L91-INDEX($C91:$L91,1,aux!$BA$1) -> 0 | AD91: 0 | AE91: =+IF(INDEX($C91:$L91,1,aux!$BA$1)>0,(L91/INDEX($C91:$L91,1,aux!$BA$1))^(1/($L$3-INDEX($C$3:$L$3,1,aux!$BA$1)))-1,"n.d.") -> n.d. | AF91: =IF(INDEX($C91:$L91,1,aux!$BA$1)>0,(L91-INDEX($C91:$L91,1,aux!$BA$1))/INDEX($C91:$L91,1,aux!$BA$1),"n.d.") -> n.d. | AH91: =X91-INDEX($O91:$X91,1,aux!$BA$1) -> 0 | AI91: 0 | AJ91: =+IF(INDEX($O91:$X91,1,aux!$BA$1)>0,(X91/INDEX($O91:$X91,1,aux!$BA$1))^(1/($X$3-INDEX($O$3:$X$3,1,aux!$BA$1)))-1,"n.d.") -> n.d. | AK91: =IF(INDEX($O91:$X91,1,aux!$BA$1)>0,(X91-INDEX($O91:$X91,1,aux!$BA$1))/INDEX($O91:$X91,1,aux!$BA$1),"n.d.") -> n.d. | AM91: 0 | CC91: =+IF(ISNA(MATCH('5.1'!A91,AUX_2d_pais!$G$2:$G$40000,0)),0,1) -> 0
A92: 0252 | B92: Gâmbia | C92: 0 | D92: 0 | E92: 0 | F92: 0 | G92: 0 | H92: 0 | I92: 0 | J92: 0 | K92: 0 | L92: 0 | M92: 0 | N92: 0 | O92: 0 | P92: 0 | Q92: 0 | R92: 0 | S92: 0 | T92: 0 | U92: 0 | V92: 0 | W92: 0 | X92: 0 | Y92: 0 | Z92: 0 | AA92: 0 | AC92: =L92-INDEX($C92:$L92,1,aux!$BA$1) -> 0 | AD92: 0 | AE92: =+IF(INDEX($C92:$L92,1,aux!$BA$1)>0,(L92/INDEX($C92:$L92,1,aux!$BA$1))^(1/($L$3-INDEX($C$3:$L$3,1,aux!$BA$1)))-1,"n.d.") -> n.d. | AF92: =IF(INDEX($C92:$L92,1,aux!$BA$1)>0,(L92-INDEX($C92:$L92,1,aux!$BA$1))/INDEX($C92:$L92,1,aux!$BA$1),"n.d.") -> n.d. | AH92: =X92-INDEX($O92:$X92,1,aux!$BA$1) -> 0 | AI92: 0 | AJ92: =+IF(INDEX($O92:$X92,1,aux!$BA$1)>0,(X92/INDEX($O92:$X92,1,aux!$BA$1))^(1/($X$3-INDEX($O$3:$X$3,1,aux!$BA$1)))-1,"n.d.") -> n.d. | AK92: =IF(INDEX($O92:$X92,1,aux!$BA$1)>0,(X92-INDEX($O92:$X92,1,aux!$BA$1))/INDEX($O92:$X92,1,aux!$BA$1),"n.d.") -> n.d. | AM92: 0 | CC92: =+IF(ISNA(MATCH('5.1'!A92,AUX_2d_pais!$G$2:$G$40000,0)),0,1) -> 0
A93: 0276 | B93: Gana | C93: 0 | D93: 0 | E93: 0 | F93: 0 | G93: 0 | H93: 0 | I93: 0 | J93: 0 | K93: 0 | L93: 0 | M93: 0 | N93: 0 | O93: 0 | P93: 0 | Q93: 0 | R93: 0 | S93: 0 | T93: 0 | U93: 0 | V93: 0 | W93: 0 | X93: 0 | Y93: 0 | Z93: 0 | AA93: 0 | AC93: =L93-INDEX($C93:$L93,1,aux!$BA$1) -> 0 | AD93: 0 | AE93: =+IF(INDEX($C93:$L93,1,aux!$BA$1)>0,(L93/INDEX($C93:$L93,1,aux!$BA$1))^(1/($L$3-INDEX($C$3:$L$3,1,aux!$BA$1)))-1,"n.d.") -> n.d. | AF93: =IF(INDEX($C93:$L93,1,aux!$BA$1)>0,(L93-INDEX($C93:$L93,1,aux!$BA$1))/INDEX($C93:$L93,1,aux!$BA$1),"n.d.") -> n.d. | AH93: =X93-INDEX($O93:$X93,1,aux!$BA$1) -> 0 | AI93: 0 | AJ93: =+IF(INDEX($O93:$X93,1,aux!$BA$1)>0,(X93/INDEX($O93:$X93,1,aux!$BA$1))^(1/($X$3-INDEX($O$3:$X$3,1,aux!$BA$1)))-1,"n.d.") -> n.d. | AK93: =IF(INDEX($O93:$X93,1,aux!$BA$1)>0,(X93-INDEX($O93:$X93,1,aux!$BA$1))/INDEX($O93:$X93,1,aux!$BA$1),"n.d.") -> n.d. | AM93: 0 | CC93: =+IF(ISNA(MATCH('5.1'!A93,AUX_2d_pais!$G$2:$G$40000,0)),0,1) -> 0
A94: 0076 | B94: Geórgia | C94: 0 | D94: 0 | E94: 0 | F94: 0 | G94: 0 | H94: 0 | I94: 0 | J94: 0 | K94: 0 | L94: 0 | M94: 0 | N94: 0 | O94: 0 | P94: 0 | Q94: 0 | R94: 0 | S94: 0 | T94: 0 | U94: 0 | V94: 0 | W94: 0 | X94: 0 | Y94: 0 | Z94: 0 | AA94: 0 | AC94: =L94-INDEX($C94:$L94,1,aux!$BA$1) -> 0 | AD94: 0 | AE94: =+IF(INDEX($C94:$L94,1,aux!$BA$1)>0,(L94/INDEX($C94:$L94,1,aux!$BA$1))^(1/($L$3-INDEX($C$3:$L$3,1,aux!$BA$1)))-1,"n.d.") -> n.d. | AF94: =IF(INDEX($C94:$L94,1,aux!$BA$1)>0,(L94-INDEX($C94:$L94,1,aux!$BA$1))/INDEX($C94:$L94,1,aux!$BA$1),"n.d.") -> n.d. | AH94: =X94-INDEX($O94:$X94,1,aux!$BA$1) -> 0 | AI94: 0 | AJ94: =+IF(INDEX($O94:$X94,1,aux!$BA$1)>0,(X94/INDEX($O94:$X94,1,aux!$BA$1))^(1/($X$3-INDEX($O$3:$X$3,1,aux!$BA$1)))-1,"n.d.") -> n.d. | AK94: =IF(INDEX($O94:$X94,1,aux!$BA$1)>0,(X94-INDEX($O94:$X94,1,aux!$BA$1))/INDEX($O94:$X94,1,aux!$BA$1),"n.d.") -> n.d. | AM94: 0 | CC94: =+IF(ISNA(MATCH('5.1'!A94,AUX_2d_pais!$G$2:$G$40000,0)),0,1) -> 0
A95: 0893 | B95: Geórgia do Sul e Ilhas Sandwich do Sul | C95: 0 | D95: 0 | E95: 0 | F95: 0 | G95: 0 | H95: 0 | I95: 0 | J95: 0 | K95: 0 | L95: 0 | M95: 0 | N95: 0 | O95: 0 | P95: 0 | Q95: 0 | R95: 0 | S95: 0 | T95: 0 | U95: 0 | V95: 0 | W95: 0 | X95: 0 | Y95: 0 | Z95: 0 | AA95: 0 | AC95: =L95-INDEX($C95:$L95,1,aux!$BA$1) -> 0 | AD95: 0 | AE95: =+IF(INDEX($C95:$L95,1,aux!$BA$1)>0,(L95/INDEX($C95:$L95,1,aux!$BA$1))^(1/($L$3-INDEX($C$3:$L$3,1,aux!$BA$1)))-1,"n.d.") -> n.d. | AF95: =IF(INDEX($C95:$L95,1,aux!$BA$1)>0,(L95-INDEX($C95:$L95,1,aux!$BA$1))/INDEX($C95:$L95,1,aux!$BA$1),"n.d.") -> n.d. | AH95: =X95-INDEX($O95:$X95,1,aux!$BA$1) -> 0 | AI95: 0 | AJ95: =+IF(INDEX($O95:$X95,1,aux!$BA$1)>0,(X95/INDEX($O95:$X95,1,aux!$BA$1))^(1/($X$3-INDEX($O$3:$X$3,1,aux!$BA$1)))-1,"n.d.") -> n.d. | AK95: =IF(INDEX($O95:$X95,1,aux!$BA$1)>0,(X95-INDEX($O95:$X95,1,aux!$BA$1))/INDEX($O95:$X95,1,aux!$BA$1),"n.d.") -> n.d. | AM95: 0 | BO95: 0 | CC95: =+IF(ISNA(MATCH('5.1'!A95,AUX_2d_pais!$G$2:$G$40000,0)),0,1) -> 0
A96: 0044 | B96: Gibraltar | C96: 0 | D96: 0 | E96: 0 | F96: 0 | G96: 0 | H96: 0 | I96: 0 | J96: 0 | K96: 0 | L96: 0 | M96: 0 | N96: 0 | O96: 0 | P96: 0 | Q96: 0 | R96: 0 | S96: 0 | T96: 0 | U96: 0 | V96: 0 | W96: 0 | X96: 0 | Y96: 0 | Z96: 0 | AA96: 0 | AC96: =L96-INDEX($C96:$L96,1,aux!$BA$1) -> 0 | AD96: 0 | AE96: =+IF(INDEX($C96:$L96,1,aux!$BA$1)>0,(L96/INDEX($C96:$L96,1,aux!$BA$1))^(1/($L$3-INDEX($C$3:$L$3,1,aux!$BA$1)))-1,"n.d.") -> n.d. | AF96: =IF(INDEX($C96:$L96,1,aux!$BA$1)>0,(L96-INDEX($C96:$L96,1,aux!$BA$1))/INDEX($C96:$L96,1,aux!$BA$1),"n.d.") -> n.d. | AH96: =X96-INDEX($O96:$X96,1,aux!$BA$1) -> 0 | AI96: 0 | AJ96: =+IF(INDEX($O96:$X96,1,aux!$BA$1)>0,(X96/INDEX($O96:$X96,1,aux!$BA$1))^(1/($X$3-INDEX($O$3:$X$3,1,aux!$BA$1)))-1,"n.d.") -> n.d. | AK96: =IF(INDEX($O96:$X96,1,aux!$BA$1)>0,(X96-INDEX($O96:$X96,1,aux!$BA$1))/INDEX($O96:$X96,1,aux!$BA$1),"n.d.") -> n.d. | AM96: 0 | CC96: =+IF(ISNA(MATCH('5.1'!A96,AUX_2d_pais!$G$2:$G$40000,0)),0,1) -> 0
A97: 0473 | B97: Granada | C97: 0 | D97: 0 | E97: 0 | F97: 0 | G97: 0 | H97: 0 | I97: 0 | J97: 0 | K97: 0 | L97: 0 | M97: 0 | N97: 0 | O97: 0 | P97: 0 | Q97: 0 | R97: 0 | S97: 0 | T97: 0 | U97: 0 | V97: 0 | W97: 0 | X97: 0 | Y97: 0 | Z97: 0 | AA97: 0 | AC97: =L97-INDEX($C97:$L97,1,aux!$BA$1) -> 0 | AD97: 0 | AE97: =+IF(INDEX($C97:$L97,1,aux!$BA$1)>0,(L97/INDEX($C97:$L97,1,aux!$BA$1))^(1/($L$3-INDEX($C$3:$L$3,1,aux!$BA$1)))-1,"n.d.") -> n.d. | AF97: =IF(INDEX($C97:$L97,1,aux!$BA$1)>0,(L97-INDEX($C97:$L97,1,aux!$BA$1))/INDEX($C97:$L97,1,aux!$BA$1),"n.d.") -> n.d. | AH97: =X97-INDEX($O97:$X97,1,aux!$BA$1) -> 0 | AI97: 0 | AJ97: =+IF(INDEX($O97:$X97,1,aux!$BA$1)>0,(X97/INDEX($O97:$X97,1,aux!$BA$1))^(1/($X$3-INDEX($O$3:$X$3,1,aux!$BA$1)))-1,"n.d.") -> n.d. | AK97: =IF(INDEX($O97:$X97,1,aux!$BA$1)>0,(X97-INDEX($O97:$X97,1,aux!$BA$1))/INDEX($O97:$X97,1,aux!$BA$1),"n.d.") -> n.d. | AM97: 0 | BO97: 0 | CC97: =+IF(ISNA(MATCH('5.1'!A97,AUX_2d_pais!$G$2:$G$40000,0)),0,1) -> 0
A98: 0009 | B98: Grécia | C98: 0 | D98: 0 | E98: 0 | F98: 0 | G98: 0 | H98: 0 | I98: 0 | J98: 0 | K98: 0 | L98: 0 | M98: 0 | N98: 0 | O98: 0 | P98: 0 | Q98: 0 | R98: 0 | S98: 0 | T98: 0 | U98: 0 | V98: 0 | W98: 0 | X98: 0 | Y98: 0 | Z98: 0 | AA98: 0 | AC98: =L98-INDEX($C98:$L98,1,aux!$BA$1) -> 0 | AD98: 0 | AE98: =+IF(INDEX($C98:$L98,1,aux!$BA$1)>0,(L98/INDEX($C98:$L98,1,aux!$BA$1))^(1/($L$3-INDEX($C$3:$L$3,1,aux!$BA$1)))-1,"n.d.") -> n.d. | AF98: =IF(INDEX($C98:$L98,1,aux!$BA$1)>0,(L98-INDEX($C98:$L98,1,aux!$BA$1))/INDEX($C98:$L98,1,aux!$BA$1),"n.d.") -> n.d. | AH98: =X98-INDEX($O98:$X98,1,aux!$BA$1) -> 0 | AI98: 0 | AJ98: =+IF(INDEX($O98:$X98,1,aux!$BA$1)>0,(X98/INDEX($O98:$X98,1,aux!$BA$1))^(1/($X$3-INDEX($O$3:$X$3,1,aux!$BA$1)))-1,"n.d.") -> n.d. | AK98: =IF(INDEX($O98:$X98,1,aux!$BA$1)>0,(X98-INDEX($O98:$X98,1,aux!$BA$1))/INDEX($O98:$X98,1,aux!$BA$1),"n.d.") -> n.d. | AM98: 0 | CC98: =+IF(ISNA(MATCH('5.1'!A98,AUX_2d_pais!$G$2:$G$40000,0)),0,1) -> 0
A99: 0406 | B99: Gronelândia | C99: 0 | D99: 0 | E99: 0 | F99: 0 | G99: 0 | H99: 0 | I99: 0 | J99: 0 | K99: 0 | L99: 0 | M99: 0 | N99: 0 | O99: 0 | P99: 0 | Q99: 0 | R99: 0 | S99: 0 | T99: 0 | U99: 0 | V99: 0 | W99: 0 | X99: 0 | Y99: 0 | Z99: 0 | AA99: 0 | AC99: =L99-INDEX($C99:$L99,1,aux!$BA$1) -> 0 | AD99: 0 | AE99: =+IF(INDEX($C99:$L99,1,aux!$BA$1)>0,(L99/INDEX($C99:$L99,1,aux!$BA$1))^(1/($L$3-INDEX($C$3:$L$3,1,aux!$BA$1)))-1,"n.d.") -> n.d. | AF99: =IF(INDEX($C99:$L99,1,aux!$BA$1)>0,(L99-INDEX($C99:$L99,1,aux!$BA$1))/INDEX($C99:$L99,1,aux!$BA$1),"n.d.") -> n.d. | AH99: =X99-INDEX($O99:$X99,1,aux!$BA$1) -> 0 | AI99: 0 | AJ99: =+IF(INDEX($O99:$X99,1,aux!$BA$1)>0,(X99/INDEX($O99:$X99,1,aux!$BA$1))^(1/($X$3-INDEX($O$3:$X$3,1,aux!$BA$1)))-1,"n.d.") -> n.d. | AK99: =IF(INDEX($O99:$X99,1,aux!$BA$1)>0,(X99-INDEX($O99:$X99,1,aux!$BA$1))/INDEX($O99:$X99,1,aux!$BA$1),"n.d.") -> n.d. | AM99: 0 | BO99: 0 | CC99: =+IF(ISNA(MATCH('5.1'!A99,AUX_2d_pais!$G$2:$G$40000,0)),0,1) -> 0
A100: 0458 | B100: Guadalupe | C100: 0 | D100: 0 | E100: 0 | F100: 0 | G100: 0 | H100: 0 | I100: 0 | J100: 0 | K100: 0 | L100: 0 | M100: 0 | N100: 0 | O100: 0 | P100: 0 | Q100: 0 | R100: 0 | S100: 0 | T100: 0 | U100: 0 | V100: 0 | W100: 0 | X100: 0 | Y100: 0 | Z100: 0 | AA100: 0 | AC100: =L100-INDEX($C100:$L100,1,aux!$BA$1) -> 0 | AD100: =AC100/$AC$252 -> 0 | AE100: =+IF(INDEX($C100:$L100,1,aux!$BA$1)>0,(L100/INDEX($C100:$L100,1,aux!$BA$1))^(1/($L$3-INDEX($C$3:$L$3,1,aux!$BA$1)))-1,"n.d.") -> n.d. | AF100: =IF(INDEX($C100:$L100,1,aux!$BA$1)>0,(L100-INDEX($C100:$L100,1,aux!$BA$1))/INDEX($C100:$L100,1,aux!$BA$1),"n.d.") -> n.d. | AH100: =X100-INDEX($O100:$X100,1,aux!$BA$1) -> 0 | AI100: =AH100/$AH$252 -> 0 | AJ100: =+IF(INDEX($O100:$X100,1,aux!$BA$1)>0,(X100/INDEX($O100:$X100,1,aux!$BA$1))^(1/($X$3-INDEX($O$3:$X$3,1,aux!$BA$1)))-1,"n.d.") -> n.d. | AK100: =IF(INDEX($O100:$X100,1,aux!$BA$1)>0,(X100-INDEX($O100:$X100,1,aux!$BA$1))/INDEX($O100:$X100,1,aux!$BA$1),"n.d.") -> n.d. | AM100: 0 | BO100: 0 | CC100: =+IF(ISNA(MATCH('5.1'!A100,AUX_2d_pais!$G$2:$G$40000,0)),0,1) -> 0
A101: 0831 | B101: Guam | C101: 0 | D101: 0 | E101: 0 | F101: 0 | G101: 0 | H101: 0 | I101: 0 | J101: 0 | K101: 0 | L101: 0 | M101: 0 | N101: 0 | O101: 0 | P101: 0 | Q101: 0 | R101: 0 | S101: 0 | T101: 0 | U101: 0 | V101: 0 | W101: 0 | X101: 0 | Y101: 0 | Z101: 0 | AA101: 0 | AC101: =L101-INDEX($C101:$L101,1,aux!$BA$1) -> 0 | AD101: =AC101/$AC$252 -> 0 | AE101: =+IF(INDEX($C101:$L101,1,aux!$BA$1)>0,(L101/INDEX($C101:$L101,1,aux!$BA$1))^(1/($L$3-INDEX($C$3:$L$3,1,aux!$BA$1)))-1,"n.d.") -> n.d. | AF101: =IF(INDEX($C101:$L101,1,aux!$BA$1)>0,(L101-INDEX($C101:$L101,1,aux!$BA$1))/INDEX($C101:$L101,1,aux!$BA$1),"n.d.") -> n.d. | AH101: =X101-INDEX($O101:$X101,1,aux!$BA$1) -> 0 | AI101: =AH101/$AH$252 -> 0 | AJ101: =+IF(INDEX($O101:$X101,1,aux!$BA$1)>0,(X101/INDEX($O101:$X101,1,aux!$BA$1))^(1/($X$3-INDEX($O$3:$X$3,1,aux!$BA$1)))-1,"n.d.") -> n.d. | AK101: =IF(INDEX($O101:$X101,1,aux!$BA$1)>0,(X101-INDEX($O101:$X101,1,aux!$BA$1))/INDEX($O101:$X101,1,aux!$BA$1),"n.d.") -> n.d. | AM101: 0 | BO101: 0 | CC101: =+IF(ISNA(MATCH('5.1'!A101,AUX_2d_pais!$G$2:$G$40000,0)),0,1) -> 0
A102: 0416 | B102: Guatemala | C102: 0 | D102: 0 | E102: 0 | F102: 0 | G102: 0 | H102: 0 | I102: 0 | J102: 0 | K102: 0 | L102: 0 | M102: 0 | N102: 0 | O102: 0 | P102: 0 | Q102: 0 | R102: 0 | S102: 0 | T102: 0 | U102: 0 | V102: 0 | W102: 0 | X102: 0 | Y102: 0 | Z102: 0 | AA102: 0 | AC102: =L102-INDEX($C102:$L102,1,aux!$BA$1) -> 0 | AD102: 0 | AE102: =+IF(INDEX($C102:$L102,1,aux!$BA$1)>0,(L102/INDEX($C102:$L102,1,aux!$BA$1))^(1/($L$3-INDEX($C$3:$L$3,1,aux!$BA$1)))-1,"n.d.") -> n.d. | AF102: =IF(INDEX($C102:$L102,1,aux!$BA$1)>0,(L102-INDEX($C102:$L102,1,aux!$BA$1))/INDEX($C102:$L102,1,aux!$BA$1),"n.d.") -> n.d. | AH102: =X102-INDEX($O102:$X102,1,aux!$BA$1) -> 0 | AI102: 0 | AJ102: =+IF(INDEX($O102:$X102,1,aux!$BA$1)>0,(X102/INDEX($O102:$X102,1,aux!$BA$1))^(1/($X$3-INDEX($O$3:$X$3,1,aux!$BA$1)))-1,"n.d.") -> n.d. | AK102: =IF(INDEX($O102:$X102,1,aux!$BA$1)>0,(X102-INDEX($O102:$X102,1,aux!$BA$1))/INDEX($O102:$X102,1,aux!$BA$1),"n.d.") -> n.d. | AM102: 0 | CC102: =+IF(ISNA(MATCH('5.1'!A102,AUX_2d_pais!$G$2:$G$40000,0)),0,1) -> 0
A103: 0488 | B103: Guiana | C103: 22556.066 | D103: 43936.18 | E103: 33379.142 | F103: 17199.116 | G103: 23239.804 | H103: 26812.054 | I103: 25925.748 | J103: 46692.256 | K103: 27304.526 | L103: 20639.867 | M103: 28768.4759 | N103: 0.04036280052 | O103: 28.461 | P103: 113.661 | Q103: 193.95 | R103: 86.068 | S103: 80.071 | T103: 123.46 | U103: 184.476 | V103: 288.8 | W103: 268.058 | X103: 191.64 | Y103: 155.8645 | Z103: 0.0003884546712 | AA103: -28612.6114 | AC103: =L103-INDEX($C103:$L103,1,aux!$BA$1) -> -1916.199 | AD103: -0.008268365908 | AE103: =+IF(INDEX($C103:$L103,1,aux!$BA$1)>0,(L103/INDEX($C103:$L103,1,aux!$BA$1))^(1/($L$3-INDEX($C$3:$L$3,1,aux!$BA$1)))-1,"n.d.") -> -0.009815899261 | AF103: =IF(INDEX($C103:$L103,1,aux!$BA$1)>0,(L103-INDEX($C103:$L103,1,aux!$BA$1))/INDEX($C103:$L103,1,aux!$BA$1),"n.d.") -> -0.08495271294 | AH103: =X103-INDEX($O103:$X103,1,aux!$BA$1) -> 163.179 | AI103: 0.0005261327733 | AJ103: =+IF(INDEX($O103:$X103,1,aux!$BA$1)>0,(X103/INDEX($O103:$X103,1,aux!$BA$1))^(1/($X$3-INDEX($O$3:$X$3,1,aux!$BA$1)))-1,"n.d.") -> 0.236022063 | AK103: =IF(INDEX($O103:$X103,1,aux!$BA$1)>0,(X103-INDEX($O103:$X103,1,aux!$BA$1))/INDEX($O103:$X103,1,aux!$BA$1),"n.d.") -> 5.733424686 | BO103: 289243.404 | CC103: =+IF(ISNA(MATCH('5.1'!A103,AUX_2d_pais!$G$2:$G$40000,0)),0,1) -> 1
A104: 0496 | B104: Guiana Francesa | C104: 0 | D104: 0 | E104: 0 | F104: 0 | G104: 0 | H104: 0 | I104: 0 | J104: 0 | K104: 0 | L104: 0 | M104: 0 | N104: 0 | O104: 0 | P104: 0 | Q104: 0 | R104: 0 | S104: 0 | T104: 0 | U104: 0 | V104: 0 | W104: 0 | X104: 0 | Y104: 0 | Z104: 0 | AA104: 0 | AC104: =L104-INDEX($C104:$L104,1,aux!$BA$1) -> 0 | AD104: 0 | AE104: =+IF(INDEX($C104:$L104,1,aux!$BA$1)>0,(L104/INDEX($C104:$L104,1,aux!$BA$1))^(1/($L$3-INDEX($C$3:$L$3,1,aux!$BA$1)))-1,"n.d.") -> n.d. | AF104: =IF(INDEX($C104:$L104,1,aux!$BA$1)>0,(L104-INDEX($C104:$L104,1,aux!$BA$1))/INDEX($C104:$L104,1,aux!$BA$1),"n.d.") -> n.d. | AH104: =X104-INDEX($O104:$X104,1,aux!$BA$1) -> 0 | AI104: 0 | AJ104: =+IF(INDEX($O104:$X104,1,aux!$BA$1)>0,(X104/INDEX($O104:$X104,1,aux!$BA$1))^(1/($X$3-INDEX($O$3:$X$3,1,aux!$BA$1)))-1,"n.d.") -> n.d. | AK104: =IF(INDEX($O104:$X104,1,aux!$BA$1)>0,(X104-INDEX($O104:$X104,1,aux!$BA$1))/INDEX($O104:$X104,1,aux!$BA$1),"n.d.") -> n.d. | AM104: 0 | BO104: 0 | CC104: =+IF(ISNA(MATCH('5.1'!A104,AUX_2d_pais!$G$2:$G$40000,0)),0,1) -> 0
A105: 0260 | B105: Guiné | C105: 0 | D105: 0 | E105: 0 | F105: 0 | G105: 0 | H105: 0 | I105: 0 | J105: 0 | K105: 0 | L105: 0 | M105: 0 | N105: 0 | O105: 0 | P105: 0 | Q105: 0 | R105: 0 | S105: 0 | T105: 0 | U105: 0 | V105: 0 | W105: 0 | X105: 0 | Y105: 0 | Z105: 0 | AA105: 0 | AC105: =L105-INDEX($C105:$L105,1,aux!$BA$1) -> 0 | AD105: 0 | AE105: =+IF(INDEX($C105:$L105,1,aux!$BA$1)>0,(L105/INDEX($C105:$L105,1,aux!$BA$1))^(1/($L$3-INDEX($C$3:$L$3,1,aux!$BA$1)))-1,"n.d.") -> n.d. | AF105: =IF(INDEX($C105:$L105,1,aux!$BA$1)>0,(L105-INDEX($C105:$L105,1,aux!$BA$1))/INDEX($C105:$L105,1,aux!$BA$1),"n.d.") -> n.d. | AH105: =X105-INDEX($O105:$X105,1,aux!$BA$1) -> 0 | AI105: 0 | AJ105: =+IF(INDEX($O105:$X105,1,aux!$BA$1)>0,(X105/INDEX($O105:$X105,1,aux!$BA$1))^(1/($X$3-INDEX($O$3:$X$3,1,aux!$BA$1)))-1,"n.d.") -> n.d. | AK105: =IF(INDEX($O105:$X105,1,aux!$BA$1)>0,(X105-INDEX($O105:$X105,1,aux!$BA$1))/INDEX($O105:$X105,1,aux!$BA$1),"n.d.") -> n.d. | AM105: 0 | CC105: =+IF(ISNA(MATCH('5.1'!A105,AUX_2d_pais!$G$2:$G$40000,0)),0,1) -> 0
A106: 0310 | B106: Guiné Equatorial | C106: 0 | D106: 0 | E106: 0 | F106: 0 | G106: 0 | H106: 0 | I106: 0 | J106: 0 | K106: 0 | L106: 0 | M106: 0 | N106: 0 | O106: 0 | P106: 0 | Q106: 0 | R106: 0 | S106: 0 | T106: 0 | U106: 0 | V106: 0 | W106: 0 | X106: 0 | Y106: 0 | Z106: 0 | AA106: 0 | AC106: =L106-INDEX($C106:$L106,1,aux!$BA$1) -> 0 | AD106: 0 | AE106: =+IF(INDEX($C106:$L106,1,aux!$BA$1)>0,(L106/INDEX($C106:$L106,1,aux!$BA$1))^(1/($L$3-INDEX($C$3:$L$3,1,aux!$BA$1)))-1,"n.d.") -> n.d. | AF106: =IF(INDEX($C106:$L106,1,aux!$BA$1)>0,(L106-INDEX($C106:$L106,1,aux!$BA$1))/INDEX($C106:$L106,1,aux!$BA$1),"n.d.") -> n.d. | AH106: =X106-INDEX($O106:$X106,1,aux!$BA$1) -> 0 | AI106: 0 | AJ106: =+IF(INDEX($O106:$X106,1,aux!$BA$1)>0,(X106/INDEX($O106:$X106,1,aux!$BA$1))^(1/($X$3-INDEX($O$3:$X$3,1,aux!$BA$1)))-1,"n.d.") -> n.d. | AK106: =IF(INDEX($O106:$X106,1,aux!$BA$1)>0,(X106-INDEX($O106:$X106,1,aux!$BA$1))/INDEX($O106:$X106,1,aux!$BA$1),"n.d.") -> n.d. | AM106: 0 | CC106: =+IF(ISNA(MATCH('5.1'!A106,AUX_2d_pais!$G$2:$G$40000,0)),0,1) -> 0
A107: 0257 | B107: Guiné-Bissau | C107: 0 | D107: 0 | E107: 0 | F107: 0 | G107: 0 | H107: 0 | I107: 0 | J107: 0 | K107: 0 | L107: 0 | M107: 0 | N107: 0 | O107: 0 | P107: 0 | Q107: 0 | R107: 0 | S107: 0 | T107: 0 | U107: 0 | V107: 0 | W107: 0 | X107: 0 | Y107: 0 | Z107: 0 | AA107: 0 | AC107: =L107-INDEX($C107:$L107,1,aux!$BA$1) -> 0 | AD107: 0 | AE107: =+IF(INDEX($C107:$L107,1,aux!$BA$1)>0,(L107/INDEX($C107:$L107,1,aux!$BA$1))^(1/($L$3-INDEX($C$3:$L$3,1,aux!$BA$1)))-1,"n.d.") -> n.d. | AF107: =IF(INDEX($C107:$L107,1,aux!$BA$1)>0,(L107-INDEX($C107:$L107,1,aux!$BA$1))/INDEX($C107:$L107,1,aux!$BA$1),"n.d.") -> n.d. | AH107: =X107-INDEX($O107:$X107,1,aux!$BA$1) -> 0 | AI107: 0 | AJ107: =+IF(INDEX($O107:$X107,1,aux!$BA$1)>0,(X107/INDEX($O107:$X107,1,aux!$BA$1))^(1/($X$3-INDEX($O$3:$X$3,1,aux!$BA$1)))-1,"n.d.") -> n.d. | AK107: =IF(INDEX($O107:$X107,1,aux!$BA$1)>0,(X107-INDEX($O107:$X107,1,aux!$BA$1))/INDEX($O107:$X107,1,aux!$BA$1),"n.d.") -> n.d. | AM107: 0 | CC107: =+IF(ISNA(MATCH('5.1'!A107,AUX_2d_pais!$G$2:$G$40000,0)),0,1) -> 0
A108: 0452 | B108: Haiti | C108: 0 | D108: 0 | E108: 0 | F108: 0 | G108: 0 | H108: 0 | I108: 0 | J108: 0 | K108: 0 | L108: 0 | M108: 0 | N108: 0 | O108: 0 | P108: 0 | Q108: 0 | R108: 0 | S108: 0 | T108: 0 | U108: 0 | V108: 0 | W108: 0 | X108: 0 | Y108: 0 | Z108: 0 | AA108: 0 | AC108: =L108-INDEX($C108:$L108,1,aux!$BA$1) -> 0 | AD108: 0 | AE108: =+IF(INDEX($C108:$L108,1,aux!$BA$1)>0,(L108/INDEX($C108:$L108,1,aux!$BA$1))^(1/($L$3-INDEX($C$3:$L$3,1,aux!$BA$1)))-1,"n.d.") -> n.d. | AF108: =IF(INDEX($C108:$L108,1,aux!$BA$1)>0,(L108-INDEX($C108:$L108,1,aux!$BA$1))/INDEX($C108:$L108,1,aux!$BA$1),"n.d.") -> n.d. | AH108: =X108-INDEX($O108:$X108,1,aux!$BA$1) -> 0 | AI108: 0 | AJ108: =+IF(INDEX($O108:$X108,1,aux!$BA$1)>0,(X108/INDEX($O108:$X108,1,aux!$BA$1))^(1/($X$3-INDEX($O$3:$X$3,1,aux!$BA$1)))-1,"n.d.") -> n.d. | AK108: =IF(INDEX($O108:$X108,1,aux!$BA$1)>0,(X108-INDEX($O108:$X108,1,aux!$BA$1))/INDEX($O108:$X108,1,aux!$BA$1),"n.d.") -> n.d. | AM108: 0 | CC108: =+IF(ISNA(MATCH('5.1'!A108,AUX_2d_pais!$G$2:$G$40000,0)),0,1) -> 0
A109: 0835 | B109: Heard, Ilha e McDonald, Ilhas | C109: 0 | D109: 0 | E109: 0 | F109: 0 | G109: 0 | H109: 0 | I109: 0 | J109: 0 | K109: 0 | L109: 0 | M109: 0 | N109: 0 | O109: 0 | P109: 0 | Q109: 0 | R109: 0 | S109: 0 | T109: 0 | U109: 0 | V109: 0 | W109: 0 | X109: 0 | Y109: 0 | Z109: 0 | AA109: 0 | AC109: =L109-INDEX($C109:$L109,1,aux!$BA$1) -> 0 | AD109: 0 | AE109: =+IF(INDEX($C109:$L109,1,aux!$BA$1)>0,(L109/INDEX($C109:$L109,1,aux!$BA$1))^(1/($L$3-INDEX($C$3:$L$3,1,aux!$BA$1)))-1,"n.d.") -> n.d. | AF109: =IF(INDEX($C109:$L109,1,aux!$BA$1)>0,(L109-INDEX($C109:$L109,1,aux!$BA$1))/INDEX($C109:$L109,1,aux!$BA$1),"n.d.") -> n.d. | AH109: =X109-INDEX($O109:$X109,1,aux!$BA$1) -> 0 | AI109: 0 | AJ109: =+IF(INDEX($O109:$X109,1,aux!$BA$1)>0,(X109/INDEX($O109:$X109,1,aux!$BA$1))^(1/($X$3-INDEX($O$3:$X$3,1,aux!$BA$1)))-1,"n.d.") -> n.d. | AK109: =IF(INDEX($O109:$X109,1,aux!$BA$1)>0,(X109-INDEX($O109:$X109,1,aux!$BA$1))/INDEX($O109:$X109,1,aux!$BA$1),"n.d.") -> n.d. | AM109: 0 | BO109: 0 | CC109: =+IF(ISNA(MATCH('5.1'!A109,AUX_2d_pais!$G$2:$G$40000,0)),0,1) -> 0
A110: 0424 | B110: Honduras | C110: 0 | D110: 0 | E110: 0 | F110: 0 | G110: 0 | H110: 0 | I110: 0 | J110: 0 | K110: 0 | L110: 0 | M110: 0 | N110: 0 | O110: 0 | P110: 0 | Q110: 0 | R110: 0 | S110: 0 | T110: 0 | U110: 0 | V110: 0 | W110: 0 | X110: 0 | Y110: 0 | Z110: 0 | AA110: 0 | AC110: =L110-INDEX($C110:$L110,1,aux!$BA$1) -> 0 | AD110: 0 | AE110: =+IF(INDEX($C110:$L110,1,aux!$BA$1)>0,(L110/INDEX($C110:$L110,1,aux!$BA$1))^(1/($L$3-INDEX($C$3:$L$3,1,aux!$BA$1)))-1,"n.d.") -> n.d. | AF110: =IF(INDEX($C110:$L110,1,aux!$BA$1)>0,(L110-INDEX($C110:$L110,1,aux!$BA$1))/INDEX($C110:$L110,1,aux!$BA$1),"n.d.") -> n.d. | AH110: =X110-INDEX($O110:$X110,1,aux!$BA$1) -> 0 | AI110: 0 | AJ110: =+IF(INDEX($O110:$X110,1,aux!$BA$1)>0,(X110/INDEX($O110:$X110,1,aux!$BA$1))^(1/($X$3-INDEX($O$3:$X$3,1,aux!$BA$1)))-1,"n.d.") -> n.d. | AK110: =IF(INDEX($O110:$X110,1,aux!$BA$1)>0,(X110-INDEX($O110:$X110,1,aux!$BA$1))/INDEX($O110:$X110,1,aux!$BA$1),"n.d.") -> n.d. | AM110: 0 | CC110: =+IF(ISNA(MATCH('5.1'!A110,AUX_2d_pais!$G$2:$G$40000,0)),0,1) -> 0
A111: 0740 | B111: HongKong | C111: 0 | D111: 0 | E111: 0 | F111: 0 | G111: 0 | H111: 0 | I111: 0 | J111: 0 | K111: 0 | L111: 0 | M111: 0 | N111: 0 | O111: 0 | P111: 0 | Q111: 0 | R111: 0 | S111: 0 | T111: 0 | U111: 0 | V111: 0 | W111: 0 | X111: 0 | Y111: 0 | Z111: 0 | AA111: 0 | AC111: =L111-INDEX($C111:$L111,1,aux!$BA$1) -> 0 | AD111: 0 | AE111: =+IF(INDEX($C111:$L111,1,aux!$BA$1)>0,(L111/INDEX($C111:$L111,1,aux!$BA$1))^(1/($L$3-INDEX($C$3:$L$3,1,aux!$BA$1)))-1,"n.d.") -> n.d. | AF111: =IF(INDEX($C111:$L111,1,aux!$BA$1)>0,(L111-INDEX($C111:$L111,1,aux!$BA$1))/INDEX($C111:$L111,1,aux!$BA$1),"n.d.") -> n.d. | AH111: =X111-INDEX($O111:$X111,1,aux!$BA$1) -> 0 | AI111: 0 | AJ111: =+IF(INDEX($O111:$X111,1,aux!$BA$1)>0,(X111/INDEX($O111:$X111,1,aux!$BA$1))^(1/($X$3-INDEX($O$3:$X$3,1,aux!$BA$1)))-1,"n.d.") -> n.d. | AK111: =IF(INDEX($O111:$X111,1,aux!$BA$1)>0,(X111-INDEX($O111:$X111,1,aux!$BA$1))/INDEX($O111:$X111,1,aux!$BA$1),"n.d.") -> n.d. | AM111: 0 | CC111: =+IF(ISNA(MATCH('5.1'!A111,AUX_2d_pais!$G$2:$G$40000,0)),0,1) -> 0
A112: 0064 | B112: Hungria | C112: 0 | D112: 0 | E112: 0 | F112: 0 | G112: 0 | H112: 0 | I112: 0 | J112: 0 | K112: 0 | L112: 0 | M112: 0 | N112: 0 | O112: 0 | P112: 0 | Q112: 0 | R112: 0 | S112: 0 | T112: 0 | U112: 0 | V112: 0 | W112: 0 | X112: 0 | Y112: 0 | Z112: 0 | AA112: 0 | AC112: =L112-INDEX($C112:$L112,1,aux!$BA$1) -> 0 | AD112: 0 | AE112: =+IF(INDEX($C112:$L112,1,aux!$BA$1)>0,(L112/INDEX($C112:$L112,1,aux!$BA$1))^(1/($L$3-INDEX($C$3:$L$3,1,aux!$BA$1)))-1,"n.d.") -> n.d. | AF112: =IF(INDEX($C112:$L112,1,aux!$BA$1)>0,(L112-INDEX($C112:$L112,1,aux!$BA$1))/INDEX($C112:$L112,1,aux!$BA$1),"n.d.") -> n.d. | AH112: =X112-INDEX($O112:$X112,1,aux!$BA$1) -> 0 | AI112: 0 | AJ112: =+IF(INDEX($O112:$X112,1,aux!$BA$1)>0,(X112/INDEX($O112:$X112,1,aux!$BA$1))^(1/($X$3-INDEX($O$3:$X$3,1,aux!$BA$1)))-1,"n.d.") -> n.d. | AK112: =IF(INDEX($O112:$X112,1,aux!$BA$1)>0,(X112-INDEX($O112:$X112,1,aux!$BA$1))/INDEX($O112:$X112,1,aux!$BA$1),"n.d.") -> n.d. | AM112: 0 | CC112: =+IF(ISNA(MATCH('5.1'!A112,AUX_2d_pais!$G$2:$G$40000,0)),0,1) -> 0
A113: 0653 | B113: Iémen | C113: 0 | D113: 0 | E113: 0 | F113: 0 | G113: 0 | H113: 0 | I113: 0 | J113: 0 | K113: 0 | L113: 0 | M113: 0 | N113: 0 | O113: 0 | P113: 0 | Q113: 0 | R113: 0 | S113: 0 | T113: 0 | U113: 0 | V113: 0 | W113: 0 | X113: 0 | Y113: 0 | Z113: 0 | AA113: 0 | AC113: =L113-INDEX($C113:$L113,1,aux!$BA$1) -> 0 | AD113: 0 | AE113: =+IF(INDEX($C113:$L113,1,aux!$BA$1)>0,(L113/INDEX($C113:$L113,1,aux!$BA$1))^(1/($L$3-INDEX($C$3:$L$3,1,aux!$BA$1)))-1,"n.d.") -> n.d. | AF113: =IF(INDEX($C113:$L113,1,aux!$BA$1)>0,(L113-INDEX($C113:$L113,1,aux!$BA$1))/INDEX($C113:$L113,1,aux!$BA$1),"n.d.") -> n.d. | AH113: =X113-INDEX($O113:$X113,1,aux!$BA$1) -> 0 | AI113: 0 | AJ113: =+IF(INDEX($O113:$X113,1,aux!$BA$1)>0,(X113/INDEX($O113:$X113,1,aux!$BA$1))^(1/($X$3-INDEX($O$3:$X$3,1,aux!$BA$1)))-1,"n.d.") -> n.d. | AK113: =IF(INDEX($O113:$X113,1,aux!$BA$1)>0,(X113-INDEX($O113:$X113,1,aux!$BA$1))/INDEX($O113:$X113,1,aux!$BA$1),"n.d.") -> n.d. | AM113: 0 | BO113: 0 | CC113: =+IF(ISNA(MATCH('5.1'!A113,AUX_2d_pais!$G$2:$G$40000,0)),0,1) -> 0
A114: 0664 | B114: Índia | C114: 0 | D114: 0 | E114: 0 | F114: 0 | G114: 0 | H114: 0 | I114: 0 | J114: 0 | K114: 0 | L114: 0 | M114: 0 | N114: 0 | O114: 0 | P114: 0 | Q114: 0 | R114: 0 | S114: 0 | T114: 0 | U114: 0 | V114: 0 | W114: 0 | X114: 0 | Y114: 0 | Z114: 0 | AA114: 0 | AC114: =L114-INDEX($C114:$L114,1,aux!$BA$1) -> 0 | AD114: 0 | AE114: =+IF(INDEX($C114:$L114,1,aux!$BA$1)>0,(L114/INDEX($C114:$L114,1,aux!$BA$1))^(1/($L$3-INDEX($C$3:$L$3,1,aux!$BA$1)))-1,"n.d.") -> n.d. | AF114: =IF(INDEX($C114:$L114,1,aux!$BA$1)>0,(L114-INDEX($C114:$L114,1,aux!$BA$1))/INDEX($C114:$L114,1,aux!$BA$1),"n.d.") -> n.d. | AH114: =X114-INDEX($O114:$X114,1,aux!$BA$1) -> 0 | AI114: 0 | AJ114: =+IF(INDEX($O114:$X114,1,aux!$BA$1)>0,(X114/INDEX($O114:$X114,1,aux!$BA$1))^(1/($X$3-INDEX($O$3:$X$3,1,aux!$BA$1)))-1,"n.d.") -> n.d. | AK114: =IF(INDEX($O114:$X114,1,aux!$BA$1)>0,(X114-INDEX($O114:$X114,1,aux!$BA$1))/INDEX($O114:$X114,1,aux!$BA$1),"n.d.") -> n.d. | AM114: 0 | CC114: =+IF(ISNA(MATCH('5.1'!A114,AUX_2d_pais!$G$2:$G$40000,0)),0,1) -> 0
A115: 0700 | B115: Indonésia | C115: 0 | D115: 0 | E115: 0 | F115: 0 | G115: 0 | H115: 0 | I115: 0 | J115: 0 | K115: 0 | L115: 0 | M115: 0 | N115: 0 | O115: 0 | P115: 0 | Q115: 0 | R115: 0 | S115: 0 | T115: 0 | U115: 0 | V115: 0 | W115: 0 | X115: 0 | Y115: 0 | Z115: 0 | AA115: 0 | AC115: =L115-INDEX($C115:$L115,1,aux!$BA$1) -> 0 | AD115: 0 | AE115: =+IF(INDEX($C115:$L115,1,aux!$BA$1)>0,(L115/INDEX($C115:$L115,1,aux!$BA$1))^(1/($L$3-INDEX($C$3:$L$3,1,aux!$BA$1)))-1,"n.d.") -> n.d. | AF115: =IF(INDEX($C115:$L115,1,aux!$BA$1)>0,(L115-INDEX($C115:$L115,1,aux!$BA$1))/INDEX($C115:$L115,1,aux!$BA$1),"n.d.") -> n.d. | AH115: =X115-INDEX($O115:$X115,1,aux!$BA$1) -> 0 | AI115: 0 | AJ115: =+IF(INDEX($O115:$X115,1,aux!$BA$1)>0,(X115/INDEX($O115:$X115,1,aux!$BA$1))^(1/($X$3-INDEX($O$3:$X$3,1,aux!$BA$1)))-1,"n.d.") -> n.d. | AK115: =IF(INDEX($O115:$X115,1,aux!$BA$1)>0,(X115-INDEX($O115:$X115,1,aux!$BA$1))/INDEX($O115:$X115,1,aux!$BA$1),"n.d.") -> n.d. | AM115: 0 | CC115: =+IF(ISNA(MATCH('5.1'!A115,AUX_2d_pais!$G$2:$G$40000,0)),0,1) -> 0
A116: 0616 | B116: Irão, República Islâmica do | C116: 0 | D116: 0 | E116: 0 | F116: 0 | G116: 0 | H116: 0 | I116: 0 | J116: 0 | K116: 0 | L116: 0 | M116: 0 | N116: 0 | O116: 0 | P116: 0 | Q116: 0 | R116: 0 | S116: 0 | T116: 0 | U116: 0 | V116: 0 | W116: 0 | X116: 0 | Y116: 0 | Z116: 0 | AA116: 0 | AC116: =L116-INDEX($C116:$L116,1,aux!$BA$1) -> 0 | AD116: 0 | AE116: =+IF(INDEX($C116:$L116,1,aux!$BA$1)>0,(L116/INDEX($C116:$L116,1,aux!$BA$1))^(1/($L$3-INDEX($C$3:$L$3,1,aux!$BA$1)))-1,"n.d.") -> n.d. | AF116: =IF(INDEX($C116:$L116,1,aux!$BA$1)>0,(L116-INDEX($C116:$L116,1,aux!$BA$1))/INDEX($C116:$L116,1,aux!$BA$1),"n.d.") -> n.d. | AH116: =X116-INDEX($O116:$X116,1,aux!$BA$1) -> 0 | AI116: 0 | AJ116: =+IF(INDEX($O116:$X116,1,aux!$BA$1)>0,(X116/INDEX($O116:$X116,1,aux!$BA$1))^(1/($X$3-INDEX($O$3:$X$3,1,aux!$BA$1)))-1,"n.d.") -> n.d. | AK116: =IF(INDEX($O116:$X116,1,aux!$BA$1)>0,(X116-INDEX($O116:$X116,1,aux!$BA$1))/INDEX($O116:$X116,1,aux!$BA$1),"n.d.") -> n.d. | AM116: 0 | CC116: =+IF(ISNA(MATCH('5.1'!A116,AUX_2d_pais!$G$2:$G$40000,0)),0,1) -> 0
A117: 0612 | B117: Iraque | C117: 0 | D117: 0 | E117: 0 | F117: 0 | G117: 0 | H117: 0 | I117: 0 | J117: 0 | K117: 0 | L117: 0 | M117: 0 | N117: 0 | O117: 0 | P117: 0 | Q117: 0 | R117: 0 | S117: 0 | T117: 0 | U117: 0 | V117: 0 | W117: 0 | X117: 0 | Y117: 0 | Z117: 0 | AA117: 0 | AC117: =L117-INDEX($C117:$L117,1,aux!$BA$1) -> 0 | AD117: 0 | AE117: =+IF(INDEX($C117:$L117,1,aux!$BA$1)>0,(L117/INDEX($C117:$L117,1,aux!$BA$1))^(1/($L$3-INDEX($C$3:$L$3,1,aux!$BA$1)))-1,"n.d.") -> n.d. | AF117: =IF(INDEX($C117:$L117,1,aux!$BA$1)>0,(L117-INDEX($C117:$L117,1,aux!$BA$1))/INDEX($C117:$L117,1,aux!$BA$1),"n.d.") -> n.d. | AH117: =X117-INDEX($O117:$X117,1,aux!$BA$1) -> 0 | AI117: 0 | AJ117: =+IF(INDEX($O117:$X117,1,aux!$BA$1)>0,(X117/INDEX($O117:$X117,1,aux!$BA$1))^(1/($X$3-INDEX($O$3:$X$3,1,aux!$BA$1)))-1,"n.d.") -> n.d. | AK117: =IF(INDEX($O117:$X117,1,aux!$BA$1)>0,(X117-INDEX($O117:$X117,1,aux!$BA$1))/INDEX($O117:$X117,1,aux!$BA$1),"n.d.") -> n.d. | AM117: 0 | CC117: =+IF(ISNA(MATCH('5.1'!A117,AUX_2d_pais!$G$2:$G$40000,0)),0,1) -> 0
A118: 0007 | B118: Irlanda | C118: 0 | D118: 0 | E118: 0 | F118: 0 | G118: 0 | H118: 0 | I118: 0 | J118: 0 | K118: 0 | L118: 0 | M118: 0 | N118: 0 | O118: 0 | P118: 0 | Q118: 0 | R118: 0 | S118: 0 | T118: 0 | U118: 0 | V118: 0 | W118: 0 | X118: 0 | Y118: 0 | Z118: 0 | AA118: 0 | AC118: =L118-INDEX($C118:$L118,1,aux!$BA$1) -> 0 | AD118: 0 | AE118: =+IF(INDEX($C118:$L118,1,aux!$BA$1)>0,(L118/INDEX($C118:$L118,1,aux!$BA$1))^(1/($L$3-INDEX($C$3:$L$3,1,aux!$BA$1)))-1,"n.d.") -> n.d. | AF118: =IF(INDEX($C118:$L118,1,aux!$BA$1)>0,(L118-INDEX($C118:$L118,1,aux!$BA$1))/INDEX($C118:$L118,1,aux!$BA$1),"n.d.") -> n.d. | AH118: =X118-INDEX($O118:$X118,1,aux!$BA$1) -> 0 | AI118: 0 | AJ118: =+IF(INDEX($O118:$X118,1,aux!$BA$1)>0,(X118/INDEX($O118:$X118,1,aux!$BA$1))^(1/($X$3-INDEX($O$3:$X$3,1,aux!$BA$1)))-1,"n.d.") -> n.d. | AK118: =IF(INDEX($O118:$X118,1,aux!$BA$1)>0,(X118-INDEX($O118:$X118,1,aux!$BA$1))/INDEX($O118:$X118,1,aux!$BA$1),"n.d.") -> n.d. | AM118: 0 | CC118: =+IF(ISNA(MATCH('5.1'!A118,AUX_2d_pais!$G$2:$G$40000,0)),0,1) -> 0
A119: 0024 | B119: Islândia | C119: 0 | D119: 0 | E119: 0 | F119: 0 | G119: 0 | H119: 0 | I119: 0 | J119: 0 | K119: 0 | L119: 0 | M119: 0 | N119: 0 | O119: 0 | P119: 0 | Q119: 0 | R119: 0 | S119: 0 | T119: 0 | U119: 0 | V119: 0 | W119: 0 | X119: 0 | Y119: 0 | Z119: 0 | AA119: 0 | AC119: =L119-INDEX($C119:$L119,1,aux!$BA$1) -> 0 | AD119: 0 | AE119: =+IF(INDEX($C119:$L119,1,aux!$BA$1)>0,(L119/INDEX($C119:$L119,1,aux!$BA$1))^(1/($L$3-INDEX($C$3:$L$3,1,aux!$BA$1)))-1,"n.d.") -> n.d. | AF119: =IF(INDEX($C119:$L119,1,aux!$BA$1)>0,(L119-INDEX($C119:$L119,1,aux!$BA$1))/INDEX($C119:$L119,1,aux!$BA$1),"n.d.") -> n.d. | AH119: =X119-INDEX($O119:$X119,1,aux!$BA$1) -> 0 | AI119: 0 | AJ119: =+IF(INDEX($O119:$X119,1,aux!$BA$1)>0,(X119/INDEX($O119:$X119,1,aux!$BA$1))^(1/($X$3-INDEX($O$3:$X$3,1,aux!$BA$1)))-1,"n.d.") -> n.d. | AK119: =IF(INDEX($O119:$X119,1,aux!$BA$1)>0,(X119-INDEX($O119:$X119,1,aux!$BA$1))/INDEX($O119:$X119,1,aux!$BA$1),"n.d.") -> n.d. | AM119: 0 | CC119: =+IF(ISNA(MATCH('5.1'!A119,AUX_2d_pais!$G$2:$G$40000,0)),0,1) -> 0
A120: 0624 | B120: Israel | C120: 0 | D120: 0 | E120: 0 | F120: 0 | G120: 0 | H120: 0 | I120: 0 | J120: 0 | K120: 0 | L120: 0 | M120: 0 | N120: 0 | O120: 0 | P120: 0 | Q120: 0 | R120: 0 | S120: 0 | T120: 0 | U120: 0 | V120: 0 | W120: 0 | X120: 0 | Y120: 0 | Z120: 0 | AA120: 0 | AC120: =L120-INDEX($C120:$L120,1,aux!$BA$1) -> 0 | AD120: 0 | AE120: =+IF(INDEX($C120:$L120,1,aux!$BA$1)>0,(L120/INDEX($C120:$L120,1,aux!$BA$1))^(1/($L$3-INDEX($C$3:$L$3,1,aux!$BA$1)))-1,"n.d.") -> n.d. | AF120: =IF(INDEX($C120:$L120,1,aux!$BA$1)>0,(L120-INDEX($C120:$L120,1,aux!$BA$1))/INDEX($C120:$L120,1,aux!$BA$1),"n.d.") -> n.d. | AH120: =X120-INDEX($O120:$X120,1,aux!$BA$1) -> 0 | AI120: 0 | AJ120: =+IF(INDEX($O120:$X120,1,aux!$BA$1)>0,(X120/INDEX($O120:$X120,1,aux!$BA$1))^(1/($X$3-INDEX($O$3:$X$3,1,aux!$BA$1)))-1,"n.d.") -> n.d. | AK120: =IF(INDEX($O120:$X120,1,aux!$BA$1)>0,(X120-INDEX($O120:$X120,1,aux!$BA$1))/INDEX($O120:$X120,1,aux!$BA$1),"n.d.") -> n.d. | AM120: 0 | CC120: =+IF(ISNA(MATCH('5.1'!A120,AUX_2d_pais!$G$2:$G$40000,0)),0,1) -> 0
A121: 0005 | B121: Itália | C121: 0 | D121: 0 | E121: 0 | F121: 0 | G121: 0 | H121: 0 | I121: 0 | J121: 0 | K121: 0 | L121: 0 | M121: 0 | N121: 0 | O121: 0 | P121: 0 | Q121: 0 | R121: 0 | S121: 0 | T121: 0 | U121: 0 | V121: 0 | W121: 0 | X121: 0 | Y121: 0 | Z121: 0 | AA121: 0 | AC121: =L121-INDEX($C121:$L121,1,aux!$BA$1) -> 0 | AD121: 0 | AE121: =+IF(INDEX($C121:$L121,1,aux!$BA$1)>0,(L121/INDEX($C121:$L121,1,aux!$BA$1))^(1/($L$3-INDEX($C$3:$L$3,1,aux!$BA$1)))-1,"n.d.") -> n.d. | AF121: =IF(INDEX($C121:$L121,1,aux!$BA$1)>0,(L121-INDEX($C121:$L121,1,aux!$BA$1))/INDEX($C121:$L121,1,aux!$BA$1),"n.d.") -> n.d. | AH121: =X121-INDEX($O121:$X121,1,aux!$BA$1) -> 0 | AI121: 0 | AJ121: =+IF(INDEX($O121:$X121,1,aux!$BA$1)>0,(X121/INDEX($O121:$X121,1,aux!$BA$1))^(1/($X$3-INDEX($O$3:$X$3,1,aux!$BA$1)))-1,"n.d.") -> n.d. | AK121: =IF(INDEX($O121:$X121,1,aux!$BA$1)>0,(X121-INDEX($O121:$X121,1,aux!$BA$1))/INDEX($O121:$X121,1,aux!$BA$1),"n.d.") -> n.d. | AM121: 0 | CC121: =+IF(ISNA(MATCH('5.1'!A121,AUX_2d_pais!$G$2:$G$40000,0)),0,1) -> 0
A122: 0464 | B122: Jamaica | C122: 0 | D122: 0 | E122: 0 | F122: 0 | G122: 0 | H122: 0 | I122: 0 | J122: 0 | K122: 0 | L122: 0 | M122: 0 | N122: 0 | O122: 0 | P122: 0 | Q122: 0 | R122: 0 | S122: 0 | T122: 0 | U122: 0 | V122: 0 | W122: 0 | X122: 0 | Y122: 0 | Z122: 0 | AA122: 0 | AC122: =L122-INDEX($C122:$L122,1,aux!$BA$1) -> 0 | AD122: 0 | AE122: =+IF(INDEX($C122:$L122,1,aux!$BA$1)>0,(L122/INDEX($C122:$L122,1,aux!$BA$1))^(1/($L$3-INDEX($C$3:$L$3,1,aux!$BA$1)))-1,"n.d.") -> n.d. | AF122: =IF(INDEX($C122:$L122,1,aux!$BA$1)>0,(L122-INDEX($C122:$L122,1,aux!$BA$1))/INDEX($C122:$L122,1,aux!$BA$1),"n.d.") -> n.d. | AH122: =X122-INDEX($O122:$X122,1,aux!$BA$1) -> 0 | AI122: 0 | AJ122: =+IF(INDEX($O122:$X122,1,aux!$BA$1)>0,(X122/INDEX($O122:$X122,1,aux!$BA$1))^(1/($X$3-INDEX($O$3:$X$3,1,aux!$BA$1)))-1,"n.d.") -> n.d. | AK122: =IF(INDEX($O122:$X122,1,aux!$BA$1)>0,(X122-INDEX($O122:$X122,1,aux!$BA$1))/INDEX($O122:$X122,1,aux!$BA$1),"n.d.") -> n.d. | AM122: 0 | CC122: =+IF(ISNA(MATCH('5.1'!A122,AUX_2d_pais!$G$2:$G$40000,0)),0,1) -> 0
A123: 0732 | B123: Japão | C123: 0 | D123: 0 | E123: 0 | F123: 0 | G123: 0 | H123: 0 | I123: 0 | J123: 0 | K123: 0 | L123: 0 | M123: 0 | N123: 0 | O123: 0 | P123: 0 | Q123: 0 | R123: 0 | S123: 0 | T123: 0 | U123: 0 | V123: 0 | W123: 0 | X123: 0 | Y123: 0 | Z123: 0 | AA123: 0 | AC123: =L123-INDEX($C123:$L123,1,aux!$BA$1) -> 0 | AD123: 0 | AE123: =+IF(INDEX($C123:$L123,1,aux!$BA$1)>0,(L123/INDEX($C123:$L123,1,aux!$BA$1))^(1/($L$3-INDEX($C$3:$L$3,1,aux!$BA$1)))-1,"n.d.") -> n.d. | AF123: =IF(INDEX($C123:$L123,1,aux!$BA$1)>0,(L123-INDEX($C123:$L123,1,aux!$BA$1))/INDEX($C123:$L123,1,aux!$BA$1),"n.d.") -> n.d. | AH123: =X123-INDEX($O123:$X123,1,aux!$BA$1) -> 0 | AI123: 0 | AJ123: =+IF(INDEX($O123:$X123,1,aux!$BA$1)>0,(X123/INDEX($O123:$X123,1,aux!$BA$1))^(1/($X$3-INDEX($O$3:$X$3,1,aux!$BA$1)))-1,"n.d.") -> n.d. | AK123: =IF(INDEX($O123:$X123,1,aux!$BA$1)>0,(X123-INDEX($O123:$X123,1,aux!$BA$1))/INDEX($O123:$X123,1,aux!$BA$1),"n.d.") -> n.d. | AM123: 0 | CC123: =+IF(ISNA(MATCH('5.1'!A123,AUX_2d_pais!$G$2:$G$40000,0)),0,1) -> 0
A124: 0338 | B124: Jibuti | C124: 0 | D124: 0 | E124: 0 | F124: 0 | G124: 0 | H124: 0 | I124: 0 | J124: 0 | K124: 0 | L124: 0 | M124: 0 | N124: 0 | O124: 0 | P124: 0 | Q124: 0 | R124: 0 | S124: 0 | T124: 0 | U124: 0 | V124: 0 | W124: 0 | X124: 0 | Y124: 0 | Z124: 0 | AA124: 0 | AC124: =L124-INDEX($C124:$L124,1,aux!$BA$1) -> 0 | AD124: 0 | AE124: =+IF(INDEX($C124:$L124,1,aux!$BA$1)>0,(L124/INDEX($C124:$L124,1,aux!$BA$1))^(1/($L$3-INDEX($C$3:$L$3,1,aux!$BA$1)))-1,"n.d.") -> n.d. | AF124: =IF(INDEX($C124:$L124,1,aux!$BA$1)>0,(L124-INDEX($C124:$L124,1,aux!$BA$1))/INDEX($C124:$L124,1,aux!$BA$1),"n.d.") -> n.d. | AH124: =X124-INDEX($O124:$X124,1,aux!$BA$1) -> 0 | AI124: 0 | AJ124: =+IF(INDEX($O124:$X124,1,aux!$BA$1)>0,(X124/INDEX($O124:$X124,1,aux!$BA$1))^(1/($X$3-INDEX($O$3:$X$3,1,aux!$BA$1)))-1,"n.d.") -> n.d. | AK124: =IF(INDEX($O124:$X124,1,aux!$BA$1)>0,(X124-INDEX($O124:$X124,1,aux!$BA$1))/INDEX($O124:$X124,1,aux!$BA$1),"n.d.") -> n.d. | AM124: 0 | BO124: 0 | CC124: =+IF(ISNA(MATCH('5.1'!A124,AUX_2d_pais!$G$2:$G$40000,0)),0,1) -> 0
A125: 0628 | B125: Jordânia | C125: 0 | D125: 0 | E125: 0 | F125: 0 | G125: 0 | H125: 0 | I125: 0 | J125: 0 | K125: 0 | L125: 0 | M125: 0 | N125: 0 | O125: 0 | P125: 0 | Q125: 0 | R125: 0 | S125: 0 | T125: 0 | U125: 0 | V125: 0 | W125: 0 | X125: 0 | Y125: 0 | Z125: 0 | AA125: 0 | AC125: =L125-INDEX($C125:$L125,1,aux!$BA$1) -> 0 | AD125: 0 | AE125: =+IF(INDEX($C125:$L125,1,aux!$BA$1)>0,(L125/INDEX($C125:$L125,1,aux!$BA$1))^(1/($L$3-INDEX($C$3:$L$3,1,aux!$BA$1)))-1,"n.d.") -> n.d. | AF125: =IF(INDEX($C125:$L125,1,aux!$BA$1)>0,(L125-INDEX($C125:$L125,1,aux!$BA$1))/INDEX($C125:$L125,1,aux!$BA$1),"n.d.") -> n.d. | AH125: =X125-INDEX($O125:$X125,1,aux!$BA$1) -> 0 | AI125: 0 | AJ125: =+IF(INDEX($O125:$X125,1,aux!$BA$1)>0,(X125/INDEX($O125:$X125,1,aux!$BA$1))^(1/($X$3-INDEX($O$3:$X$3,1,aux!$BA$1)))-1,"n.d.") -> n.d. | AK125: =IF(INDEX($O125:$X125,1,aux!$BA$1)>0,(X125-INDEX($O125:$X125,1,aux!$BA$1))/INDEX($O125:$X125,1,aux!$BA$1),"n.d.") -> n.d. | AM125: 0 | CC125: =+IF(ISNA(MATCH('5.1'!A125,AUX_2d_pais!$G$2:$G$40000,0)),0,1) -> 0
A126: 0812 | B126: Kiribati | C126: 0 | D126: 0 | E126: 0 | F126: 0 | G126: 0 | H126: 0 | I126: 0 | J126: 0 | K126: 0 | L126: 0 | M126: 0 | N126: 0 | O126: 0 | P126: 0 | Q126: 0 | R126: 0 | S126: 0 | T126: 0 | U126: 0 | V126: 0 | W126: 0 | X126: 0 | Y126: 0 | Z126: 0 | AA126: 0 | AC126: =L126-INDEX($C126:$L126,1,aux!$BA$1) -> 0 | AD126: 0 | AE126: =+IF(INDEX($C126:$L126,1,aux!$BA$1)>0,(L126/INDEX($C126:$L126,1,aux!$BA$1))^(1/($L$3-INDEX($C$3:$L$3,1,aux!$BA$1)))-1,"n.d.") -> n.d. | AF126: =IF(INDEX($C126:$L126,1,aux!$BA$1)>0,(L126-INDEX($C126:$L126,1,aux!$BA$1))/INDEX($C126:$L126,1,aux!$BA$1),"n.d.") -> n.d. | AH126: =X126-INDEX($O126:$X126,1,aux!$BA$1) -> 0 | AI126: 0 | AJ126: =+IF(INDEX($O126:$X126,1,aux!$BA$1)>0,(X126/INDEX($O126:$X126,1,aux!$BA$1))^(1/($X$3-INDEX($O$3:$X$3,1,aux!$BA$1)))-1,"n.d.") -> n.d. | AK126: =IF(INDEX($O126:$X126,1,aux!$BA$1)>0,(X126-INDEX($O126:$X126,1,aux!$BA$1))/INDEX($O126:$X126,1,aux!$BA$1),"n.d.") -> n.d. | AM126: 0 | BO126: 0 | CC126: =+IF(ISNA(MATCH('5.1'!A126,AUX_2d_pais!$G$2:$G$40000,0)),0,1) -> 0
A127: 0095 | B127: Kosovo | C127: 0 | D127: 0 | E127: 0 | F127: 0 | G127: 0 | H127: 0 | I127: 0 | J127: 0 | K127: 0 | L127: 0 | M127: 0 | N127: 0 | O127: 0 | P127: 0 | Q127: 0 | R127: 0 | S127: 0 | T127: 0 | U127: 0 | V127: 0 | W127: 0 | X127: 0 | Y127: 0 | Z127: 0 | AA127: 0 | AC127: =L127-INDEX($C127:$L127,1,aux!$BA$1) -> 0 | AD127: 0 | AE127: =+IF(INDEX($C127:$L127,1,aux!$BA$1)>0,(L127/INDEX($C127:$L127,1,aux!$BA$1))^(1/($L$3-INDEX($C$3:$L$3,1,aux!$BA$1)))-1,"n.d.") -> n.d. | AF127: =IF(INDEX($C127:$L127,1,aux!$BA$1)>0,(L127-INDEX($C127:$L127,1,aux!$BA$1))/INDEX($C127:$L127,1,aux!$BA$1),"n.d.") -> n.d. | AH127: =X127-INDEX($O127:$X127,1,aux!$BA$1) -> 0 | AI127: 0 | AJ127: =+IF(INDEX($O127:$X127,1,aux!$BA$1)>0,(X127/INDEX($O127:$X127,1,aux!$BA$1))^(1/($X$3-INDEX($O$3:$X$3,1,aux!$BA$1)))-1,"n.d.") -> n.d. | AK127: =IF(INDEX($O127:$X127,1,aux!$BA$1)>0,(X127-INDEX($O127:$X127,1,aux!$BA$1))/INDEX($O127:$X127,1,aux!$BA$1),"n.d.") -> n.d. | AM127: 0 | BO127: 0 | CC127: =+IF(ISNA(MATCH('5.1'!A127,AUX_2d_pais!$G$2:$G$40000,0)),0,1) -> 0
A128: 0636 | B128: Kuwait | C128: 0 | D128: 0 | E128: 0 | F128: 0 | G128: 0 | H128: 0 | I128: 0 | J128: 0 | K128: 0 | L128: 0 | M128: 0 | N128: 0 | O128: 0 | P128: 0 | Q128: 0 | R128: 0 | S128: 0 | T128: 0 | U128: 0 | V128: 0 | W128: 0 | X128: 0 | Y128: 0 | Z128: 0 | AA128: 0 | AC128: =L128-INDEX($C128:$L128,1,aux!$BA$1) -> 0 | AD128: 0 | AE128: =+IF(INDEX($C128:$L128,1,aux!$BA$1)>0,(L128/INDEX($C128:$L128,1,aux!$BA$1))^(1/($L$3-INDEX($C$3:$L$3,1,aux!$BA$1)))-1,"n.d.") -> n.d. | AF128: =IF(INDEX($C128:$L128,1,aux!$BA$1)>0,(L128-INDEX($C128:$L128,1,aux!$BA$1))/INDEX($C128:$L128,1,aux!$BA$1),"n.d.") -> n.d. | AH128: =X128-INDEX($O128:$X128,1,aux!$BA$1) -> 0 | AI128: 0 | AJ128: =+IF(INDEX($O128:$X128,1,aux!$BA$1)>0,(X128/INDEX($O128:$X128,1,aux!$BA$1))^(1/($X$3-INDEX($O$3:$X$3,1,aux!$BA$1)))-1,"n.d.") -> n.d. | AK128: =IF(INDEX($O128:$X128,1,aux!$BA$1)>0,(X128-INDEX($O128:$X128,1,aux!$BA$1))/INDEX($O128:$X128,1,aux!$BA$1),"n.d.") -> n.d. | AM128: 0 | CC128: =+IF(ISNA(MATCH('5.1'!A128,AUX_2d_pais!$G$2:$G$40000,0)),0,1) -> 0
A129: 0684 | B129: Laos, República Democrática Popular do | C129: 0 | D129: 0 | E129: 0 | F129: 0 | G129: 0 | H129: 0 | I129: 0 | J129: 0 | K129: 0 | L129: 0 | M129: 0 | N129: 0 | O129: 0 | P129: 0 | Q129: 0 | R129: 0 | S129: 0 | T129: 0 | U129: 0 | V129: 0 | W129: 0 | X129: 0 | Y129: 0 | Z129: 0 | AA129: 0 | AC129: =L129-INDEX($C129:$L129,1,aux!$BA$1) -> 0 | AD129: 0 | AE129: =+IF(INDEX($C129:$L129,1,aux!$BA$1)>0,(L129/INDEX($C129:$L129,1,aux!$BA$1))^(1/($L$3-INDEX($C$3:$L$3,1,aux!$BA$1)))-1,"n.d.") -> n.d. | AF129: =IF(INDEX($C129:$L129,1,aux!$BA$1)>0,(L129-INDEX($C129:$L129,1,aux!$BA$1))/INDEX($C129:$L129,1,aux!$BA$1),"n.d.") -> n.d. | AH129: =X129-INDEX($O129:$X129,1,aux!$BA$1) -> 0 | AI129: 0 | AJ129: =+IF(INDEX($O129:$X129,1,aux!$BA$1)>0,(X129/INDEX($O129:$X129,1,aux!$BA$1))^(1/($X$3-INDEX($O$3:$X$3,1,aux!$BA$1)))-1,"n.d.") -> n.d. | AK129: =IF(INDEX($O129:$X129,1,aux!$BA$1)>0,(X129-INDEX($O129:$X129,1,aux!$BA$1))/INDEX($O129:$X129,1,aux!$BA$1),"n.d.") -> n.d. | AM129: 0 | BO129: 0 | CC129: =+IF(ISNA(MATCH('5.1'!A129,AUX_2d_pais!$G$2:$G$40000,0)),0,1) -> 0
A130: 0395 | B130: Lesoto | C130: 0 | D130: 0 | E130: 0 | F130: 0 | G130: 0 | H130: 0 | I130: 0 | J130: 0 | K130: 0 | L130: 0 | M130: 0 | N130: 0 | O130: 0 | P130: 0 | Q130: 0 | R130: 0 | S130: 0 | T130: 0 | U130: 0 | V130: 0 | W130: 0 | X130: 0 | Y130: 0 | Z130: 0 | AA130: 0 | AC130: =L130-INDEX($C130:$L130,1,aux!$BA$1) -> 0 | AD130: 0 | AE130: =+IF(INDEX($C130:$L130,1,aux!$BA$1)>0,(L130/INDEX($C130:$L130,1,aux!$BA$1))^(1/($L$3-INDEX($C$3:$L$3,1,aux!$BA$1)))-1,"n.d.") -> n.d. | AF130: =IF(INDEX($C130:$L130,1,aux!$BA$1)>0,(L130-INDEX($C130:$L130,1,aux!$BA$1))/INDEX($C130:$L130,1,aux!$BA$1),"n.d.") -> n.d. | AH130: =X130-INDEX($O130:$X130,1,aux!$BA$1) -> 0 | AI130: 0 | AJ130: =+IF(INDEX($O130:$X130,1,aux!$BA$1)>0,(X130/INDEX($O130:$X130,1,aux!$BA$1))^(1/($X$3-INDEX($O$3:$X$3,1,aux!$BA$1)))-1,"n.d.") -> n.d. | AK130: =IF(INDEX($O130:$X130,1,aux!$BA$1)>0,(X130-INDEX($O130:$X130,1,aux!$BA$1))/INDEX($O130:$X130,1,aux!$BA$1),"n.d.") -> n.d. | AM130: 0 | BO130: 0 | CC130: =+IF(ISNA(MATCH('5.1'!A130,AUX_2d_pais!$G$2:$G$40000,0)),0,1) -> 0
A131: 0054 | B131: Letónia | C131: 0 | D131: 0 | E131: 0 | F131: 0 | G131: 0 | H131: 0 | I131: 0 | J131: 0 | K131: 0 | L131: 0 | M131: 0 | N131: 0 | O131: 0 | P131: 0 | Q131: 0 | R131: 0 | S131: 0 | T131: 0 | U131: 0 | V131: 0 | W131: 0 | X131: 0 | Y131: 0 | Z131: 0 | AA131: 0 | AC131: =L131-INDEX($C131:$L131,1,aux!$BA$1) -> 0 | AD131: 0 | AE131: =+IF(INDEX($C131:$L131,1,aux!$BA$1)>0,(L131/INDEX($C131:$L131,1,aux!$BA$1))^(1/($L$3-INDEX($C$3:$L$3,1,aux!$BA$1)))-1,"n.d.") -> n.d. | AF131: =IF(INDEX($C131:$L131,1,aux!$BA$1)>0,(L131-INDEX($C131:$L131,1,aux!$BA$1))/INDEX($C131:$L131,1,aux!$BA$1),"n.d.") -> n.d. | AH131: =X131-INDEX($O131:$X131,1,aux!$BA$1) -> 0 | AI131: 0 | AJ131: =+IF(INDEX($O131:$X131,1,aux!$BA$1)>0,(X131/INDEX($O131:$X131,1,aux!$BA$1))^(1/($X$3-INDEX($O$3:$X$3,1,aux!$BA$1)))-1,"n.d.") -> n.d. | AK131: =IF(INDEX($O131:$X131,1,aux!$BA$1)>0,(X131-INDEX($O131:$X131,1,aux!$BA$1))/INDEX($O131:$X131,1,aux!$BA$1),"n.d.") -> n.d. | AM131: 0 | CC131: =+IF(ISNA(MATCH('5.1'!A131,AUX_2d_pais!$G$2:$G$40000,0)),0,1) -> 0
A132: 0604 | B132: Líbano | C132: 0 | D132: 0 | E132: 0 | F132: 0 | G132: 0 | H132: 0 | I132: 0 | J132: 0 | K132: 0 | L132: 0 | M132: 0 | N132: 0 | O132: 0 | P132: 0 | Q132: 0 | R132: 0 | S132: 0 | T132: 0 | U132: 0 | V132: 0 | W132: 0 | X132: 0 | Y132: 0 | Z132: 0 | AA132: 0 | AC132: =L132-INDEX($C132:$L132,1,aux!$BA$1) -> 0 | AD132: 0 | AE132: =+IF(INDEX($C132:$L132,1,aux!$BA$1)>0,(L132/INDEX($C132:$L132,1,aux!$BA$1))^(1/($L$3-INDEX($C$3:$L$3,1,aux!$BA$1)))-1,"n.d.") -> n.d. | AF132: =IF(INDEX($C132:$L132,1,aux!$BA$1)>0,(L132-INDEX($C132:$L132,1,aux!$BA$1))/INDEX($C132:$L132,1,aux!$BA$1),"n.d.") -> n.d. | AH132: =X132-INDEX($O132:$X132,1,aux!$BA$1) -> 0 | AI132: 0 | AJ132: =+IF(INDEX($O132:$X132,1,aux!$BA$1)>0,(X132/INDEX($O132:$X132,1,aux!$BA$1))^(1/($X$3-INDEX($O$3:$X$3,1,aux!$BA$1)))-1,"n.d.") -> n.d. | AK132: =IF(INDEX($O132:$X132,1,aux!$BA$1)>0,(X132-INDEX($O132:$X132,1,aux!$BA$1))/INDEX($O132:$X132,1,aux!$BA$1),"n.d.") -> n.d. | AM132: =SUM(A132:AA132) -> 0 | CC132: =+IF(ISNA(MATCH('5.1'!A132,AUX_2d_pais!$G$2:$G$40000,0)),0,1) -> 0
A133: 0268 | B133: Libéria | C133: 0 | D133: 0 | E133: 0 | F133: 0 | G133: 0 | H133: 0 | I133: 0 | J133: 0 | K133: 0 | L133: 0 | M133: 0 | N133: 0 | O133: 0 | P133: 0 | Q133: 0 | R133: 0 | S133: 0 | T133: 0 | U133: 0 | V133: 0 | W133: 0 | X133: 0 | Y133: 0 | Z133: 0 | AA133: 0 | AC133: =L133-INDEX($C133:$L133,1,aux!$BA$1) -> 0 | AD133: 0 | AE133: =+IF(INDEX($C133:$L133,1,aux!$BA$1)>0,(L133/INDEX($C133:$L133,1,aux!$BA$1))^(1/($L$3-INDEX($C$3:$L$3,1,aux!$BA$1)))-1,"n.d.") -> n.d. | AF133: =IF(INDEX($C133:$L133,1,aux!$BA$1)>0,(L133-INDEX($C133:$L133,1,aux!$BA$1))/INDEX($C133:$L133,1,aux!$BA$1),"n.d.") -> n.d. | AH133: =X133-INDEX($O133:$X133,1,aux!$BA$1) -> 0 | AI133: 0 | AJ133: =+IF(INDEX($O133:$X133,1,aux!$BA$1)>0,(X133/INDEX($O133:$X133,1,aux!$BA$1))^(1/($X$3-INDEX($O$3:$X$3,1,aux!$BA$1)))-1,"n.d.") -> n.d. | AK133: =IF(INDEX($O133:$X133,1,aux!$BA$1)>0,(X133-INDEX($O133:$X133,1,aux!$BA$1))/INDEX($O133:$X133,1,aux!$BA$1),"n.d.") -> n.d. | AM133: 0 | CC133: =+IF(ISNA(MATCH('5.1'!A133,AUX_2d_pais!$G$2:$G$40000,0)),0,1) -> 0
A134: 0216 | B134: Líbia, Jamahira Árabe da | C134: 0 | D134: 0 | E134: 0 | F134: 0 | G134: 0 | H134: 0 | I134: 0 | J134: 0 | K134: 0 | L134: 0 | M134: 0 | N134: 0 | O134: 0 | P134: 0 | Q134: 0 | R134: 0 | S134: 0 | T134: 0 | U134: 0 | V134: 0 | W134: 0 | X134: 0 | Y134: 0 | Z134: 0 | AA134: 0 | AC134: =L134-INDEX($C134:$L134,1,aux!$BA$1) -> 0 | AD134: 0 | AE134: =+IF(INDEX($C134:$L134,1,aux!$BA$1)>0,(L134/INDEX($C134:$L134,1,aux!$BA$1))^(1/($L$3-INDEX($C$3:$L$3,1,aux!$BA$1)))-1,"n.d.") -> n.d. | AF134: =IF(INDEX($C134:$L134,1,aux!$BA$1)>0,(L134-INDEX($C134:$L134,1,aux!$BA$1))/INDEX($C134:$L134,1,aux!$BA$1),"n.d.") -> n.d. | AH134: =X134-INDEX($O134:$X134,1,aux!$BA$1) -> 0 | AI134: 0 | AJ134: =+IF(INDEX($O134:$X134,1,aux!$BA$1)>0,(X134/INDEX($O134:$X134,1,aux!$BA$1))^(1/($X$3-INDEX($O$3:$X$3,1,aux!$BA$1)))-1,"n.d.") -> n.d. | AK134: =IF(INDEX($O134:$X134,1,aux!$BA$1)>0,(X134-INDEX($O134:$X134,1,aux!$BA$1))/INDEX($O134:$X134,1,aux!$BA$1),"n.d.") -> n.d. | AM134: 0 | CC134: =+IF(ISNA(MATCH('5.1'!A134,AUX_2d_pais!$G$2:$G$40000,0)),0,1) -> 0
A135: 0037 | B135: Liechtenstein | C135: 0 | D135: 0 | E135: 0 | F135: 0 | G135: 0 | H135: 0 | I135: 0 | J135: 0 | K135: 0 | L135: 0 | M135: 0 | N135: 0 | O135: 0 | P135: 0 | Q135: 0 | R135: 0 | S135: 0 | T135: 0 | U135: 0 | V135: 0 | W135: 0 | X135: 0 | Y135: 0 | Z135: 0 | AA135: 0 | AC135: =L135-INDEX($C135:$L135,1,aux!$BA$1) -> 0 | AD135: 0 | AE135: =+IF(INDEX($C135:$L135,1,aux!$BA$1)>0,(L135/INDEX($C135:$L135,1,aux!$BA$1))^(1/($L$3-INDEX($C$3:$L$3,1,aux!$BA$1)))-1,"n.d.") -> n.d. | AF135: =IF(INDEX($C135:$L135,1,aux!$BA$1)>0,(L135-INDEX($C135:$L135,1,aux!$BA$1))/INDEX($C135:$L135,1,aux!$BA$1),"n.d.") -> n.d. | AH135: =X135-INDEX($O135:$X135,1,aux!$BA$1) -> 0 | AI135: 0 | AJ135: =+IF(INDEX($O135:$X135,1,aux!$BA$1)>0,(X135/INDEX($O135:$X135,1,aux!$BA$1))^(1/($X$3-INDEX($O$3:$X$3,1,aux!$BA$1)))-1,"n.d.") -> n.d. | AK135: =IF(INDEX($O135:$X135,1,aux!$BA$1)>0,(X135-INDEX($O135:$X135,1,aux!$BA$1))/INDEX($O135:$X135,1,aux!$BA$1),"n.d.") -> n.d. | AM135: 0 | CC135: =+IF(ISNA(MATCH('5.1'!A135,AUX_2d_pais!$G$2:$G$40000,0)),0,1) -> 0
A136: 0055 | B136: Lituânia | C136: 0 | D136: 0 | E136: 0 | F136: 0 | G136: 0 | H136: 0 | I136: 0 | J136: 0 | K136: 0 | L136: 0 | M136: 0 | N136: 0 | O136: 0 | P136: 0 | Q136: 0 | R136: 0 | S136: 0 | T136: 0 | U136: 0 | V136: 0 | W136: 0 | X136: 0 | Y136: 0 | Z136: 0 | AA136: 0 | AC136: =L136-INDEX($C136:$L136,1,aux!$BA$1) -> 0 | AD136: 0 | AE136: =+IF(INDEX($C136:$L136,1,aux!$BA$1)>0,(L136/INDEX($C136:$L136,1,aux!$BA$1))^(1/($L$3-INDEX($C$3:$L$3,1,aux!$BA$1)))-1,"n.d.") -> n.d. | AF136: =IF(INDEX($C136:$L136,1,aux!$BA$1)>0,(L136-INDEX($C136:$L136,1,aux!$BA$1))/INDEX($C136:$L136,1,aux!$BA$1),"n.d.") -> n.d. | AH136: =X136-INDEX($O136:$X136,1,aux!$BA$1) -> 0 | AI136: 0 | AJ136: =+IF(INDEX($O136:$X136,1,aux!$BA$1)>0,(X136/INDEX($O136:$X136,1,aux!$BA$1))^(1/($X$3-INDEX($O$3:$X$3,1,aux!$BA$1)))-1,"n.d.") -> n.d. | AK136: =IF(INDEX($O136:$X136,1,aux!$BA$1)>0,(X136-INDEX($O136:$X136,1,aux!$BA$1))/INDEX($O136:$X136,1,aux!$BA$1),"n.d.") -> n.d. | AM136: 0 | CC136: =+IF(ISNA(MATCH('5.1'!A136,AUX_2d_pais!$G$2:$G$40000,0)),0,1) -> 0
A137: 0018 | B137: Luxemburgo | C137: 0 | D137: 0 | E137: 0 | F137: 0 | G137: 0 | H137: 0 | I137: 0 | J137: 0 | K137: 0 | L137: 0 | M137: 0 | N137: 0 | O137: 0 | P137: 0 | Q137: 0 | R137: 0 | S137: 0 | T137: 0 | U137: 0 | V137: 0 | W137: 0 | X137: 0 | Y137: 0 | Z137: 0 | AA137: 0 | AC137: =L137-INDEX($C137:$L137,1,aux!$BA$1) -> 0 | AD137: 0 | AE137: =+IF(INDEX($C137:$L137,1,aux!$BA$1)>0,(L137/INDEX($C137:$L137,1,aux!$BA$1))^(1/($L$3-INDEX($C$3:$L$3,1,aux!$BA$1)))-1,"n.d.") -> n.d. | AF137: =IF(INDEX($C137:$L137,1,aux!$BA$1)>0,(L137-INDEX($C137:$L137,1,aux!$BA$1))/INDEX($C137:$L137,1,aux!$BA$1),"n.d.") -> n.d. | AH137: =X137-INDEX($O137:$X137,1,aux!$BA$1) -> 0 | AI137: 0 | AJ137: =+IF(INDEX($O137:$X137,1,aux!$BA$1)>0,(X137/INDEX($O137:$X137,1,aux!$BA$1))^(1/($X$3-INDEX($O$3:$X$3,1,aux!$BA$1)))-1,"n.d.") -> n.d. | AK137: =IF(INDEX($O137:$X137,1,aux!$BA$1)>0,(X137-INDEX($O137:$X137,1,aux!$BA$1))/INDEX($O137:$X137,1,aux!$BA$1),"n.d.") -> n.d. | AM137: 0 | CC137: =+IF(ISNA(MATCH('5.1'!A137,AUX_2d_pais!$G$2:$G$40000,0)),0,1) -> 0
A138: 0743 | B138: Macau | C138: 0 | D138: 0 | E138: 0 | F138: 0 | G138: 0 | H138: 0 | I138: 0 | J138: 0 | K138: 0 | L138: 0 | M138: 0 | N138: 0 | O138: 0 | P138: 0 | Q138: 0 | R138: 0 | S138: 0 | T138: 0 | U138: 0 | V138: 0 | W138: 0 | X138: 0 | Y138: 0 | Z138: 0 | AA138: 0 | AC138: =L138-INDEX($C138:$L138,1,aux!$BA$1) -> 0 | AD138: 0 | AE138: =+IF(INDEX($C138:$L138,1,aux!$BA$1)>0,(L138/INDEX($C138:$L138,1,aux!$BA$1))^(1/($L$3-INDEX($C$3:$L$3,1,aux!$BA$1)))-1,"n.d.") -> n.d. | AF138: =IF(INDEX($C138:$L138,1,aux!$BA$1)>0,(L138-INDEX($C138:$L138,1,aux!$BA$1))/INDEX($C138:$L138,1,aux!$BA$1),"n.d.") -> n.d. | AH138: =X138-INDEX($O138:$X138,1,aux!$BA$1) -> 0 | AI138: 0 | AJ138: =+IF(INDEX($O138:$X138,1,aux!$BA$1)>0,(X138/INDEX($O138:$X138,1,aux!$BA$1))^(1/($X$3-INDEX($O$3:$X$3,1,aux!$BA$1)))-1,"n.d.") -> n.d. | AK138: =IF(INDEX($O138:$X138,1,aux!$BA$1)>0,(X138-INDEX($O138:$X138,1,aux!$BA$1))/INDEX($O138:$X138,1,aux!$BA$1),"n.d.") -> n.d. | AM138: 0 | CC138: =+IF(ISNA(MATCH('5.1'!A138,AUX_2d_pais!$G$2:$G$40000,0)),0,1) -> 0
A139: 0096 | B139: Macedónia, Antiga República jugoslava da | C139: 0 | D139: 0 | E139: 0 | F139: 0 | G139: 0 | H139: 0 | I139: 0 | J139: 0 | K139: 0 | L139: 0 | M139: 0 | N139: 0 | O139: 0 | P139: 0 | Q139: 0 | R139: 0 | S139: 0 | T139: 0 | U139: 0 | V139: 0 | W139: 0 | X139: 0 | Y139: 0 | Z139: 0 | AA139: 0 | AC139: =L139-INDEX($C139:$L139,1,aux!$BA$1) -> 0 | AD139: 0 | AE139: =+IF(INDEX($C139:$L139,1,aux!$BA$1)>0,(L139/INDEX($C139:$L139,1,aux!$BA$1))^(1/($L$3-INDEX($C$3:$L$3,1,aux!$BA$1)))-1,"n.d.") -> n.d. | AF139: =IF(INDEX($C139:$L139,1,aux!$BA$1)>0,(L139-INDEX($C139:$L139,1,aux!$BA$1))/INDEX($C139:$L139,1,aux!$BA$1),"n.d.") -> n.d. | AH139: =X139-INDEX($O139:$X139,1,aux!$BA$1) -> 0 | AI139: 0 | AJ139: =+IF(INDEX($O139:$X139,1,aux!$BA$1)>0,(X139/INDEX($O139:$X139,1,aux!$BA$1))^(1/($X$3-INDEX($O$3:$X$3,1,aux!$BA$1)))-1,"n.d.") -> n.d. | AK139: =IF(INDEX($O139:$X139,1,aux!$BA$1)>0,(X139-INDEX($O139:$X139,1,aux!$BA$1))/INDEX($O139:$X139,1,aux!$BA$1),"n.d.") -> n.d. | AM139: 0 | CC139: =+IF(ISNA(MATCH('5.1'!A139,AUX_2d_pais!$G$2:$G$40000,0)),0,1) -> 0
A140: 0370 | B140: Madagáscar | C140: 0 | D140: 0 | E140: 0 | F140: 0 | G140: 0 | H140: 0 | I140: 0 | J140: 0 | K140: 0 | L140: 0 | M140: 0 | N140: 0 | O140: 0 | P140: 0 | Q140: 0 | R140: 0 | S140: 0 | T140: 0 | U140: 0 | V140: 0 | W140: 0 | X140: 0 | Y140: 0 | Z140: 0 | AA140: 0 | AC140: =L140-INDEX($C140:$L140,1,aux!$BA$1) -> 0 | AD140: 0 | AE140: =+IF(INDEX($C140:$L140,1,aux!$BA$1)>0,(L140/INDEX($C140:$L140,1,aux!$BA$1))^(1/($L$3-INDEX($C$3:$L$3,1,aux!$BA$1)))-1,"n.d.") -> n.d. | AF140: =IF(INDEX($C140:$L140,1,aux!$BA$1)>0,(L140-INDEX($C140:$L140,1,aux!$BA$1))/INDEX($C140:$L140,1,aux!$BA$1),"n.d.") -> n.d. | AH140: =X140-INDEX($O140:$X140,1,aux!$BA$1) -> 0 | AI140: 0 | AJ140: =+IF(INDEX($O140:$X140,1,aux!$BA$1)>0,(X140/INDEX($O140:$X140,1,aux!$BA$1))^(1/($X$3-INDEX($O$3:$X$3,1,aux!$BA$1)))-1,"n.d.") -> n.d. | AK140: =IF(INDEX($O140:$X140,1,aux!$BA$1)>0,(X140-INDEX($O140:$X140,1,aux!$BA$1))/INDEX($O140:$X140,1,aux!$BA$1),"n.d.") -> n.d. | AM140: 0 | CC140: =+IF(ISNA(MATCH('5.1'!A140,AUX_2d_pais!$G$2:$G$40000,0)),0,1) -> 0
A141: 0701 | B141: Malásia | C141: 0 | D141: 0 | E141: 0 | F141: 0 | G141: 0 | H141: 0 | I141: 0 | J141: 0 | K141: 0 | L141: 0 | M141: 0 | N141: 0 | O141: 0 | P141: 0 | Q141: 0 | R141: 0 | S141: 0 | T141: 0 | U141: 0 | V141: 0 | W141: 0 | X141: 0 | Y141: 0 | Z141: 0 | AA141: 0 | AC141: =L141-INDEX($C141:$L141,1,aux!$BA$1) -> 0 | AD141: 0 | AE141: =+IF(INDEX($C141:$L141,1,aux!$BA$1)>0,(L141/INDEX($C141:$L141,1,aux!$BA$1))^(1/($L$3-INDEX($C$3:$L$3,1,aux!$BA$1)))-1,"n.d.") -> n.d. | AF141: =IF(INDEX($C141:$L141,1,aux!$BA$1)>0,(L141-INDEX($C141:$L141,1,aux!$BA$1))/INDEX($C141:$L141,1,aux!$BA$1),"n.d.") -> n.d. | AH141: =X141-INDEX($O141:$X141,1,aux!$BA$1) -> 0 | AI141: 0 | AJ141: =+IF(INDEX($O141:$X141,1,aux!$BA$1)>0,(X141/INDEX($O141:$X141,1,aux!$BA$1))^(1/($X$3-INDEX($O$3:$X$3,1,aux!$BA$1)))-1,"n.d.") -> n.d. | AK141: =IF(INDEX($O141:$X141,1,aux!$BA$1)>0,(X141-INDEX($O141:$X141,1,aux!$BA$1))/INDEX($O141:$X141,1,aux!$BA$1),"n.d.") -> n.d. | AM141: 0 | CC141: =+IF(ISNA(MATCH('5.1'!A141,AUX_2d_pais!$G$2:$G$40000,0)),0,1) -> 0
A142: 0386 | B142: Malavi | C142: 0 | D142: 0 | E142: 0 | F142: 0 | G142: 0 | H142: 0 | I142: 0 | J142: 0 | K142: 0 | L142: 0 | M142: 0 | N142: 0 | O142: 0 | P142: 0 | Q142: 0 | R142: 0 | S142: 0 | T142: 0 | U142: 0 | V142: 0 | W142: 0 | X142: 0 | Y142: 0 | Z142: 0 | AA142: 0 | AC142: =L142-INDEX($C142:$L142,1,aux!$BA$1) -> 0 | AD142: 0 | AE142: =+IF(INDEX($C142:$L142,1,aux!$BA$1)>0,(L142/INDEX($C142:$L142,1,aux!$BA$1))^(1/($L$3-INDEX($C$3:$L$3,1,aux!$BA$1)))-1,"n.d.") -> n.d. | AF142: =IF(INDEX($C142:$L142,1,aux!$BA$1)>0,(L142-INDEX($C142:$L142,1,aux!$BA$1))/INDEX($C142:$L142,1,aux!$BA$1),"n.d.") -> n.d. | AH142: =X142-INDEX($O142:$X142,1,aux!$BA$1) -> 0 | AI142: 0 | AJ142: =+IF(INDEX($O142:$X142,1,aux!$BA$1)>0,(X142/INDEX($O142:$X142,1,aux!$BA$1))^(1/($X$3-INDEX($O$3:$X$3,1,aux!$BA$1)))-1,"n.d.") -> n.d. | AK142: =IF(INDEX($O142:$X142,1,aux!$BA$1)>0,(X142-INDEX($O142:$X142,1,aux!$BA$1))/INDEX($O142:$X142,1,aux!$BA$1),"n.d.") -> n.d. | AM142: 0 | CC142: =+IF(ISNA(MATCH('5.1'!A142,AUX_2d_pais!$G$2:$G$40000,0)),0,1) -> 0
A143: 0667 | B143: Maldivas | C143: 0 | D143: 0 | E143: 0 | F143: 0 | G143: 0 | H143: 0 | I143: 0 | J143: 0 | K143: 0 | L143: 0 | M143: 0 | N143: 0 | O143: 0 | P143: 0 | Q143: 0 | R143: 0 | S143: 0 | T143: 0 | U143: 0 | V143: 0 | W143: 0 | X143: 0 | Y143: 0 | Z143: 0 | AA143: 0 | AC143: =L143-INDEX($C143:$L143,1,aux!$BA$1) -> 0 | AD143: 0 | AE143: =+IF(INDEX($C143:$L143,1,aux!$BA$1)>0,(L143/INDEX($C143:$L143,1,aux!$BA$1))^(1/($L$3-INDEX($C$3:$L$3,1,aux!$BA$1)))-1,"n.d.") -> n.d. | AF143: =IF(INDEX($C143:$L143,1,aux!$BA$1)>0,(L143-INDEX($C143:$L143,1,aux!$BA$1))/INDEX($C143:$L143,1,aux!$BA$1),"n.d.") -> n.d. | AH143: =X143-INDEX($O143:$X143,1,aux!$BA$1) -> 0 | AI143: 0 | AJ143: =+IF(INDEX($O143:$X143,1,aux!$BA$1)>0,(X143/INDEX($O143:$X143,1,aux!$BA$1))^(1/($X$3-INDEX($O$3:$X$3,1,aux!$BA$1)))-1,"n.d.") -> n.d. | AK143: =IF(INDEX($O143:$X143,1,aux!$BA$1)>0,(X143-INDEX($O143:$X143,1,aux!$BA$1))/INDEX($O143:$X143,1,aux!$BA$1),"n.d.") -> n.d. | AM143: 0 | CC143: =+IF(ISNA(MATCH('5.1'!A143,AUX_2d_pais!$G$2:$G$40000,0)),0,1) -> 0
A144: 0232 | B144: Mali | C144: 0 | D144: 0 | E144: 0 | F144: 0 | G144: 0 | H144: 0 | I144: 0 | J144: 0 | K144: 0 | L144: 0 | M144: 0 | N144: 0 | O144: 0 | P144: 0 | Q144: 0 | R144: 0 | S144: 0 | T144: 0 | U144: 0 | V144: 0 | W144: 0 | X144: 0 | Y144: 0 | Z144: 0 | AA144: 0 | AC144: =L144-INDEX($C144:$L144,1,aux!$BA$1) -> 0 | AD144: 0 | AE144: =+IF(INDEX($C144:$L144,1,aux!$BA$1)>0,(L144/INDEX($C144:$L144,1,aux!$BA$1))^(1/($L$3-INDEX($C$3:$L$3,1,aux!$BA$1)))-1,"n.d.") -> n.d. | AF144: =IF(INDEX($C144:$L144,1,aux!$BA$1)>0,(L144-INDEX($C144:$L144,1,aux!$BA$1))/INDEX($C144:$L144,1,aux!$BA$1),"n.d.") -> n.d. | AH144: =X144-INDEX($O144:$X144,1,aux!$BA$1) -> 0 | AI144: 0 | AJ144: =+IF(INDEX($O144:$X144,1,aux!$BA$1)>0,(X144/INDEX($O144:$X144,1,aux!$BA$1))^(1/($X$3-INDEX($O$3:$X$3,1,aux!$BA$1)))-1,"n.d.") -> n.d. | AK144: =IF(INDEX($O144:$X144,1,aux!$BA$1)>0,(X144-INDEX($O144:$X144,1,aux!$BA$1))/INDEX($O144:$X144,1,aux!$BA$1),"n.d.") -> n.d. | AM144: 0 | CC144: =+IF(ISNA(MATCH('5.1'!A144,AUX_2d_pais!$G$2:$G$40000,0)),0,1) -> 0
A145: 0046 | B145: Malta | C145: 0 | D145: 0 | E145: 0 | F145: 0 | G145: 0 | H145: 0 | I145: 0 | J145: 0 | K145: 0 | L145: 0 | M145: 0 | N145: 0 | O145: 0 | P145: 0 | Q145: 0 | R145: 0 | S145: 0 | T145: 0 | U145: 0 | V145: 0 | W145: 0 | X145: 0 | Y145: 0 | Z145: 0 | AA145: 0 | AC145: =L145-INDEX($C145:$L145,1,aux!$BA$1) -> 0 | AD145: 0 | AE145: =+IF(INDEX($C145:$L145,1,aux!$BA$1)>0,(L145/INDEX($C145:$L145,1,aux!$BA$1))^(1/($L$3-INDEX($C$3:$L$3,1,aux!$BA$1)))-1,"n.d.") -> n.d. | AF145: =IF(INDEX($C145:$L145,1,aux!$BA$1)>0,(L145-INDEX($C145:$L145,1,aux!$BA$1))/INDEX($C145:$L145,1,aux!$BA$1),"n.d.") -> n.d. | AH145: =X145-INDEX($O145:$X145,1,aux!$BA$1) -> 0 | AI145: 0 | AJ145: =+IF(INDEX($O145:$X145,1,aux!$BA$1)>0,(X145/INDEX($O145:$X145,1,aux!$BA$1))^(1/($X$3-INDEX($O$3:$X$3,1,aux!$BA$1)))-1,"n.d.") -> n.d. | AK145: =IF(INDEX($O145:$X145,1,aux!$BA$1)>0,(X145-INDEX($O145:$X145,1,aux!$BA$1))/INDEX($O145:$X145,1,aux!$BA$1),"n.d.") -> n.d. | AM145: 0 | CC145: =+IF(ISNA(MATCH('5.1'!A145,AUX_2d_pais!$G$2:$G$40000,0)),0,1) -> 0
A146: 0820 | B146: Marianas do Norte, Ilhas | C146: 0 | D146: 0 | E146: 0 | F146: 0 | G146: 0 | H146: 0 | I146: 0 | J146: 0 | K146: 0 | L146: 0 | M146: 0 | N146: 0 | O146: 0 | P146: 0 | Q146: 0 | R146: 0 | S146: 0 | T146: 0 | U146: 0 | V146: 0 | W146: 0 | X146: 0 | Y146: 0 | Z146: 0 | AA146: 0 | AC146: =L146-INDEX($C146:$L146,1,aux!$BA$1) -> 0 | AD146: 0 | AE146: =+IF(INDEX($C146:$L146,1,aux!$BA$1)>0,(L146/INDEX($C146:$L146,1,aux!$BA$1))^(1/($L$3-INDEX($C$3:$L$3,1,aux!$BA$1)))-1,"n.d.") -> n.d. | AF146: =IF(INDEX($C146:$L146,1,aux!$BA$1)>0,(L146-INDEX($C146:$L146,1,aux!$BA$1))/INDEX($C146:$L146,1,aux!$BA$1),"n.d.") -> n.d. | AH146: =X146-INDEX($O146:$X146,1,aux!$BA$1) -> 0 | AI146: 0 | AJ146: =+IF(INDEX($O146:$X146,1,aux!$BA$1)>0,(X146/INDEX($O146:$X146,1,aux!$BA$1))^(1/($X$3-INDEX($O$3:$X$3,1,aux!$BA$1)))-1,"n.d.") -> n.d. | AK146: =IF(INDEX($O146:$X146,1,aux!$BA$1)>0,(X146-INDEX($O146:$X146,1,aux!$BA$1))/INDEX($O146:$X146,1,aux!$BA$1),"n.d.") -> n.d. | AM146: 0 | BO146: =SUM(C146:L146,O146:X146) -> 0 | CC146: =+IF(ISNA(MATCH('5.1'!A146,AUX_2d_pais!$G$2:$G$40000,0)),0,1) -> 0
A147: 0204 | B147: Marrocos | C147: 0 | D147: 0 | E147: 0 | F147: 0 | G147: 0 | H147: 0 | I147: 0 | J147: 0 | K147: 0 | L147: 0 | M147: 0 | N147: 0 | O147: 0 | P147: 0 | Q147: 0 | R147: 0 | S147: 0 | T147: 0 | U147: 0 | V147: 0 | W147: 0 | X147: 0 | Y147: 0 | Z147: 0 | AA147: 0 | AC147: =L147-INDEX($C147:$L147,1,aux!$BA$1) -> 0 | AD147: 0 | AE147: =+IF(INDEX($C147:$L147,1,aux!$BA$1)>0,(L147/INDEX($C147:$L147,1,aux!$BA$1))^(1/($L$3-INDEX($C$3:$L$3,1,aux!$BA$1)))-1,"n.d.") -> n.d. | AF147: =IF(INDEX($C147:$L147,1,aux!$BA$1)>0,(L147-INDEX($C147:$L147,1,aux!$BA$1))/INDEX($C147:$L147,1,aux!$BA$1),"n.d.") -> n.d. | AH147: =X147-INDEX($O147:$X147,1,aux!$BA$1) -> 0 | AI147: 0 | AJ147: =+IF(INDEX($O147:$X147,1,aux!$BA$1)>0,(X147/INDEX($O147:$X147,1,aux!$BA$1))^(1/($X$3-INDEX($O$3:$X$3,1,aux!$BA$1)))-1,"n.d.") -> n.d. | AK147: =IF(INDEX($O147:$X147,1,aux!$BA$1)>0,(X147-INDEX($O147:$X147,1,aux!$BA$1))/INDEX($O147:$X147,1,aux!$BA$1),"n.d.") -> n.d. | AM147: 0 | CC147: =+IF(ISNA(MATCH('5.1'!A147,AUX_2d_pais!$G$2:$G$40000,0)),0,1) -> 0
A148: 0824 | B148: Marshall, Ilhas | C148: 0 | D148: 0 | E148: 0 | F148: 0 | G148: 0 | H148: 0 | I148: 0 | J148: 0 | K148: 0 | L148: 0 | M148: 0 | N148: 0 | O148: 0 | P148: 0 | Q148: 0 | R148: 0 | S148: 0 | T148: 0 | U148: 0 | V148: 0 | W148: 0 | X148: 0 | Y148: 0 | Z148: 0 | AA148: 0 | AC148: =L148-INDEX($C148:$L148,1,aux!$BA$1) -> 0 | AD148: 0 | AE148: =+IF(INDEX($C148:$L148,1,aux!$BA$1)>0,(L148/INDEX($C148:$L148,1,aux!$BA$1))^(1/($L$3-INDEX($C$3:$L$3,1,aux!$BA$1)))-1,"n.d.") -> n.d. | AF148: =IF(INDEX($C148:$L148,1,aux!$BA$1)>0,(L148-INDEX($C148:$L148,1,aux!$BA$1))/INDEX($C148:$L148,1,aux!$BA$1),"n.d.") -> n.d. | AH148: =X148-INDEX($O148:$X148,1,aux!$BA$1) -> 0 | AI148: 0 | AJ148: =+IF(INDEX($O148:$X148,1,aux!$BA$1)>0,(X148/INDEX($O148:$X148,1,aux!$BA$1))^(1/($X$3-INDEX($O$3:$X$3,1,aux!$BA$1)))-1,"n.d.") -> n.d. | AK148: =IF(INDEX($O148:$X148,1,aux!$BA$1)>0,(X148-INDEX($O148:$X148,1,aux!$BA$1))/INDEX($O148:$X148,1,aux!$BA$1),"n.d.") -> n.d. | AM148: 0 | CC148: =+IF(ISNA(MATCH('5.1'!A148,AUX_2d_pais!$G$2:$G$40000,0)),0,1) -> 0
A149: 0462 | B149: Martinica | C149: 0 | D149: 0 | E149: 0 | F149: 0 | G149: 0 | H149: 0 | I149: 0 | J149: 0 | K149: 0 | L149: 0 | M149: 0 | N149: 0 | O149: 0 | P149: 0 | Q149: 0 | R149: 0 | S149: 0 | T149: 0 | U149: 0 | V149: 0 | W149: 0 | X149: 0 | Y149: 0 | Z149: 0 | AA149: 0 | AC149: =L149-INDEX($C149:$L149,1,aux!$BA$1) -> 0 | AD149: 0 | AE149: =+IF(INDEX($C149:$L149,1,aux!$BA$1)>0,(L149/INDEX($C149:$L149,1,aux!$BA$1))^(1/($L$3-INDEX($C$3:$L$3,1,aux!$BA$1)))-1,"n.d.") -> n.d. | AF149: =IF(INDEX($C149:$L149,1,aux!$BA$1)>0,(L149-INDEX($C149:$L149,1,aux!$BA$1))/INDEX($C149:$L149,1,aux!$BA$1),"n.d.") -> n.d. | AH149: =X149-INDEX($O149:$X149,1,aux!$BA$1) -> 0 | AI149: 0 | AJ149: =+IF(INDEX($O149:$X149,1,aux!$BA$1)>0,(X149/INDEX($O149:$X149,1,aux!$BA$1))^(1/($X$3-INDEX($O$3:$X$3,1,aux!$BA$1)))-1,"n.d.") -> n.d. | AK149: =IF(INDEX($O149:$X149,1,aux!$BA$1)>0,(X149-INDEX($O149:$X149,1,aux!$BA$1))/INDEX($O149:$X149,1,aux!$BA$1),"n.d.") -> n.d. | AM149: 0 | BO149: 0 | CC149: =+IF(ISNA(MATCH('5.1'!A149,AUX_2d_pais!$G$2:$G$40000,0)),0,1) -> 0
A150: 0373 | B150: Maurícias | C150: 0 | D150: 0 | E150: 0 | F150: 0 | G150: 0 | H150: 0 | I150: 0 | J150: 0 | K150: 0 | L150: 0 | M150: 0 | N150: 0 | O150: 0 | P150: 0 | Q150: 0 | R150: 0 | S150: 0 | T150: 0 | U150: 0 | V150: 0 | W150: 0 | X150: 0 | Y150: 0 | Z150: 0 | AA150: 0 | AC150: =L150-INDEX($C150:$L150,1,aux!$BA$1) -> 0 | AD150: 0 | AE150: =+IF(INDEX($C150:$L150,1,aux!$BA$1)>0,(L150/INDEX($C150:$L150,1,aux!$BA$1))^(1/($L$3-INDEX($C$3:$L$3,1,aux!$BA$1)))-1,"n.d.") -> n.d. | AF150: =IF(INDEX($C150:$L150,1,aux!$BA$1)>0,(L150-INDEX($C150:$L150,1,aux!$BA$1))/INDEX($C150:$L150,1,aux!$BA$1),"n.d.") -> n.d. | AH150: =X150-INDEX($O150:$X150,1,aux!$BA$1) -> 0 | AI150: 0 | AJ150: =+IF(INDEX($O150:$X150,1,aux!$BA$1)>0,(X150/INDEX($O150:$X150,1,aux!$BA$1))^(1/($X$3-INDEX($O$3:$X$3,1,aux!$BA$1)))-1,"n.d.") -> n.d. | AK150: =IF(INDEX($O150:$X150,1,aux!$BA$1)>0,(X150-INDEX($O150:$X150,1,aux!$BA$1))/INDEX($O150:$X150,1,aux!$BA$1),"n.d.") -> n.d. | AM150: 0 | CC150: =+IF(ISNA(MATCH('5.1'!A150,AUX_2d_pais!$G$2:$G$40000,0)),0,1) -> 0
A151: 0228 | B151: Mauritânia | C151: 0 | D151: 0 | E151: 0 | F151: 0 | G151: 0 | H151: 0 | I151: 0 | J151: 0 | K151: 0 | L151: 0 | M151: 0 | N151: 0 | O151: 0 | P151: 0 | Q151: 0 | R151: 0 | S151: 0 | T151: 0 | U151: 0 | V151: 0 | W151: 0 | X151: 0 | Y151: 0 | Z151: 0 | AA151: 0 | AC151: =L151-INDEX($C151:$L151,1,aux!$BA$1) -> 0 | AD151: 0 | AE151: =+IF(INDEX($C151:$L151,1,aux!$BA$1)>0,(L151/INDEX($C151:$L151,1,aux!$BA$1))^(1/($L$3-INDEX($C$3:$L$3,1,aux!$BA$1)))-1,"n.d.") -> n.d. | AF151: =IF(INDEX($C151:$L151,1,aux!$BA$1)>0,(L151-INDEX($C151:$L151,1,aux!$BA$1))/INDEX($C151:$L151,1,aux!$BA$1),"n.d.") -> n.d. | AH151: =X151-INDEX($O151:$X151,1,aux!$BA$1) -> 0 | AI151: 0 | AJ151: =+IF(INDEX($O151:$X151,1,aux!$BA$1)>0,(X151/INDEX($O151:$X151,1,aux!$BA$1))^(1/($X$3-INDEX($O$3:$X$3,1,aux!$BA$1)))-1,"n.d.") -> n.d. | AK151: =IF(INDEX($O151:$X151,1,aux!$BA$1)>0,(X151-INDEX($O151:$X151,1,aux!$BA$1))/INDEX($O151:$X151,1,aux!$BA$1),"n.d.") -> n.d. | AM151: 0 | CC151: =+IF(ISNA(MATCH('5.1'!A151,AUX_2d_pais!$G$2:$G$40000,0)),0,1) -> 0
A152: 0377 | B152: Mayotte | C152: 0 | D152: 0 | E152: 0 | F152: 0 | G152: 0 | H152: 0 | I152: 0 | J152: 0 | K152: 0 | L152: 0 | M152: 0 | N152: 0 | O152: 0 | P152: 0 | Q152: 0 | R152: 0 | S152: 0 | T152: 0 | U152: 0 | V152: 0 | W152: 0 | X152: 0 | Y152: 0 | Z152: 0 | AA152: 0 | AC152: =L152-INDEX($C152:$L152,1,aux!$BA$1) -> 0 | AD152: 0 | AE152: =+IF(INDEX($C152:$L152,1,aux!$BA$1)>0,(L152/INDEX($C152:$L152,1,aux!$BA$1))^(1/($L$3-INDEX($C$3:$L$3,1,aux!$BA$1)))-1,"n.d.") -> n.d. | AF152: =IF(INDEX($C152:$L152,1,aux!$BA$1)>0,(L152-INDEX($C152:$L152,1,aux!$BA$1))/INDEX($C152:$L152,1,aux!$BA$1),"n.d.") -> n.d. | AH152: =X152-INDEX($O152:$X152,1,aux!$BA$1) -> 0 | AI152: 0 | AJ152: =+IF(INDEX($O152:$X152,1,aux!$BA$1)>0,(X152/INDEX($O152:$X152,1,aux!$BA$1))^(1/($X$3-INDEX($O$3:$X$3,1,aux!$BA$1)))-1,"n.d.") -> n.d. | AK152: =IF(INDEX($O152:$X152,1,aux!$BA$1)>0,(X152-INDEX($O152:$X152,1,aux!$BA$1))/INDEX($O152:$X152,1,aux!$BA$1),"n.d.") -> n.d. | AM152: 0 | BO152: 0 | CC152: =+IF(ISNA(MATCH('5.1'!A152,AUX_2d_pais!$G$2:$G$40000,0)),0,1) -> 0
A153: 0023 | B153: Melilha | C153: 0 | D153: 0 | E153: 0 | F153: 0 | G153: 0 | H153: 0 | I153: 0 | J153: 0 | K153: 0 | L153: 0 | M153: 0 | N153: 0 | O153: 0 | P153: 0 | Q153: 0 | R153: 0 | S153: 0 | T153: 0 | U153: 0 | V153: 0 | W153: 0 | X153: 0 | Y153: 0 | Z153: 0 | AA153: 0 | AC153: =L153-INDEX($C153:$L153,1,aux!$BA$1) -> 0 | AD153: 0 | AE153: =+IF(INDEX($C153:$L153,1,aux!$BA$1)>0,(L153/INDEX($C153:$L153,1,aux!$BA$1))^(1/($L$3-INDEX($C$3:$L$3,1,aux!$BA$1)))-1,"n.d.") -> n.d. | AF153: =IF(INDEX($C153:$L153,1,aux!$BA$1)>0,(L153-INDEX($C153:$L153,1,aux!$BA$1))/INDEX($C153:$L153,1,aux!$BA$1),"n.d.") -> n.d. | AH153: =X153-INDEX($O153:$X153,1,aux!$BA$1) -> 0 | AI153: 0 | AJ153: =+IF(INDEX($O153:$X153,1,aux!$BA$1)>0,(X153/INDEX($O153:$X153,1,aux!$BA$1))^(1/($X$3-INDEX($O$3:$X$3,1,aux!$BA$1)))-1,"n.d.") -> n.d. | AK153: =IF(INDEX($O153:$X153,1,aux!$BA$1)>0,(X153-INDEX($O153:$X153,1,aux!$BA$1))/INDEX($O153:$X153,1,aux!$BA$1),"n.d.") -> n.d. | AM153: 0 | CC153: =+IF(ISNA(MATCH('5.1'!A153,AUX_2d_pais!$G$2:$G$40000,0)),0,1) -> 0
A154: 0832 | B154: Menores distantes dos Estados Unidos, lhas | C154: 0 | D154: 0 | E154: 0 | F154: 0 | G154: 0 | H154: 0 | I154: 0 | J154: 0 | K154: 0 | L154: 0 | M154: 0 | N154: 0 | O154: 0 | P154: 0 | Q154: 0 | R154: 0 | S154: 0 | T154: 0 | U154: 0 | V154: 0 | W154: 0 | X154: 0 | Y154: 0 | Z154: 0 | AA154: 0 | AC154: =L154-INDEX($C154:$L154,1,aux!$BA$1) -> 0 | AD154: 0 | AE154: =+IF(INDEX($C154:$L154,1,aux!$BA$1)>0,(L154/INDEX($C154:$L154,1,aux!$BA$1))^(1/($L$3-INDEX($C$3:$L$3,1,aux!$BA$1)))-1,"n.d.") -> n.d. | AF154: =IF(INDEX($C154:$L154,1,aux!$BA$1)>0,(L154-INDEX($C154:$L154,1,aux!$BA$1))/INDEX($C154:$L154,1,aux!$BA$1),"n.d.") -> n.d. | AH154: =X154-INDEX($O154:$X154,1,aux!$BA$1) -> 0 | AI154: 0 | AJ154: =+IF(INDEX($O154:$X154,1,aux!$BA$1)>0,(X154/INDEX($O154:$X154,1,aux!$BA$1))^(1/($X$3-INDEX($O$3:$X$3,1,aux!$BA$1)))-1,"n.d.") -> n.d. | AK154: =IF(INDEX($O154:$X154,1,aux!$BA$1)>0,(X154-INDEX($O154:$X154,1,aux!$BA$1))/INDEX($O154:$X154,1,aux!$BA$1),"n.d.") -> n.d. | AM154: 0 | BO154: 0 | CC154: =+IF(ISNA(MATCH('5.1'!A154,AUX_2d_pais!$G$2:$G$40000,0)),0,1) -> 0
A155: 0412 | B155: México | C155: 0 | D155: 0 | E155: 0 | F155: 0 | G155: 0 | H155: 0 | I155: 0 | J155: 0 | K155: 0 | L155: 0 | M155: 0 | N155: 0 | O155: 0 | P155: 0 | Q155: 0 | R155: 0 | S155: 0 | T155: 0 | U155: 0 | V155: 0 | W155: 0 | X155: 0 | Y155: 0 | Z155: 0 | AA155: 0 | AC155: =L155-INDEX($C155:$L155,1,aux!$BA$1) -> 0 | AD155: 0 | AE155: =+IF(INDEX($C155:$L155,1,aux!$BA$1)>0,(L155/INDEX($C155:$L155,1,aux!$BA$1))^(1/($L$3-INDEX($C$3:$L$3,1,aux!$BA$1)))-1,"n.d.") -> n.d. | AF155: =IF(INDEX($C155:$L155,1,aux!$BA$1)>0,(L155-INDEX($C155:$L155,1,aux!$BA$1))/INDEX($C155:$L155,1,aux!$BA$1),"n.d.") -> n.d. | AH155: =X155-INDEX($O155:$X155,1,aux!$BA$1) -> 0 | AI155: 0 | AJ155: =+IF(INDEX($O155:$X155,1,aux!$BA$1)>0,(X155/INDEX($O155:$X155,1,aux!$BA$1))^(1/($X$3-INDEX($O$3:$X$3,1,aux!$BA$1)))-1,"n.d.") -> n.d. | AK155: =IF(INDEX($O155:$X155,1,aux!$BA$1)>0,(X155-INDEX($O155:$X155,1,aux!$BA$1))/INDEX($O155:$X155,1,aux!$BA$1),"n.d.") -> n.d. | AM155: 0 | CC155: =+IF(ISNA(MATCH('5.1'!A155,AUX_2d_pais!$G$2:$G$40000,0)),0,1) -> 0
A156: 0823 | B156: Micronésia, Estados Federados da | C156: 0 | D156: 0 | E156: 0 | F156: 0 | G156: 0 | H156: 0 | I156: 0 | J156: 0 | K156: 0 | L156: 0 | M156: 0 | N156: 0 | O156: 0 | P156: 0 | Q156: 0 | R156: 0 | S156: 0 | T156: 0 | U156: 0 | V156: 0 | W156: 0 | X156: 0 | Y156: 0 | Z156: 0 | AA156: 0 | AC156: =L156-INDEX($C156:$L156,1,aux!$BA$1) -> 0 | AD156: 0 | AE156: =+IF(INDEX($C156:$L156,1,aux!$BA$1)>0,(L156/INDEX($C156:$L156,1,aux!$BA$1))^(1/($L$3-INDEX($C$3:$L$3,1,aux!$BA$1)))-1,"n.d.") -> n.d. | AF156: =IF(INDEX($C156:$L156,1,aux!$BA$1)>0,(L156-INDEX($C156:$L156,1,aux!$BA$1))/INDEX($C156:$L156,1,aux!$BA$1),"n.d.") -> n.d. | AH156: =X156-INDEX($O156:$X156,1,aux!$BA$1) -> 0 | AI156: 0 | AJ156: =+IF(INDEX($O156:$X156,1,aux!$BA$1)>0,(X156/INDEX($O156:$X156,1,aux!$BA$1))^(1/($X$3-INDEX($O$3:$X$3,1,aux!$BA$1)))-1,"n.d.") -> n.d. | AK156: =IF(INDEX($O156:$X156,1,aux!$BA$1)>0,(X156-INDEX($O156:$X156,1,aux!$BA$1))/INDEX($O156:$X156,1,aux!$BA$1),"n.d.") -> n.d. | AM156: 0 | BO156: 0 | CC156: =+IF(ISNA(MATCH('5.1'!A156,AUX_2d_pais!$G$2:$G$40000,0)),0,1) -> 0
A157: 0366 | B157: Moçambique | C157: 0 | D157: 0 | E157: 0 | F157: 0 | G157: 0 | H157: 0 | I157: 0 | J157: 0 | K157: 0 | L157: 0 | M157: 0 | N157: 0 | O157: 0 | P157: 0 | Q157: 0 | R157: 0 | S157: 0 | T157: 0 | U157: 0 | V157: 0 | W157: 0 | X157: 0 | Y157: 0 | Z157: 0 | AA157: 0 | AC157: =L157-INDEX($C157:$L157,1,aux!$BA$1) -> 0 | AD157: 0 | AE157: =+IF(INDEX($C157:$L157,1,aux!$BA$1)>0,(L157/INDEX($C157:$L157,1,aux!$BA$1))^(1/($L$3-INDEX($C$3:$L$3,1,aux!$BA$1)))-1,"n.d.") -> n.d. | AF157: =IF(INDEX($C157:$L157,1,aux!$BA$1)>0,(L157-INDEX($C157:$L157,1,aux!$BA$1))/INDEX($C157:$L157,1,aux!$BA$1),"n.d.") -> n.d. | AH157: =X157-INDEX($O157:$X157,1,aux!$BA$1) -> 0 | AI157: 0 | AJ157: =+IF(INDEX($O157:$X157,1,aux!$BA$1)>0,(X157/INDEX($O157:$X157,1,aux!$BA$1))^(1/($X$3-INDEX($O$3:$X$3,1,aux!$BA$1)))-1,"n.d.") -> n.d. | AK157: =IF(INDEX($O157:$X157,1,aux!$BA$1)>0,(X157-INDEX($O157:$X157,1,aux!$BA$1))/INDEX($O157:$X157,1,aux!$BA$1),"n.d.") -> n.d. | AM157: 0 | CC157: =+IF(ISNA(MATCH('5.1'!A157,AUX_2d_pais!$G$2:$G$40000,0)),0,1) -> 0
A158: 0074 | B158: Moldava, República de | C158: 0 | D158: 0 | E158: 0 | F158: 0 | G158: 0 | H158: 0 | I158: 0 | J158: 0 | K158: 0 | L158: 0 | M158: 0 | N158: 0 | O158: 0 | P158: 0 | Q158: 0 | R158: 0 | S158: 0 | T158: 0 | U158: 0 | V158: 0 | W158: 0 | X158: 0 | Y158: 0 | Z158: 0 | AA158: 0 | AC158: =L158-INDEX($C158:$L158,1,aux!$BA$1) -> 0 | AD158: 0 | AE158: =+IF(INDEX($C158:$L158,1,aux!$BA$1)>0,(L158/INDEX($C158:$L158,1,aux!$BA$1))^(1/($L$3-INDEX($C$3:$L$3,1,aux!$BA$1)))-1,"n.d.") -> n.d. | AF158: =IF(INDEX($C158:$L158,1,aux!$BA$1)>0,(L158-INDEX($C158:$L158,1,aux!$BA$1))/INDEX($C158:$L158,1,aux!$BA$1),"n.d.") -> n.d. | AH158: =X158-INDEX($O158:$X158,1,aux!$BA$1) -> 0 | AI158: 0 | AJ158: =+IF(INDEX($O158:$X158,1,aux!$BA$1)>0,(X158/INDEX($O158:$X158,1,aux!$BA$1))^(1/($X$3-INDEX($O$3:$X$3,1,aux!$BA$1)))-1,"n.d.") -> n.d. | AK158: =IF(INDEX($O158:$X158,1,aux!$BA$1)>0,(X158-INDEX($O158:$X158,1,aux!$BA$1))/INDEX($O158:$X158,1,aux!$BA$1),"n.d.") -> n.d. | AM158: 0 | CC158: =+IF(ISNA(MATCH('5.1'!A158,AUX_2d_pais!$G$2:$G$40000,0)),0,1) -> 0
A159: 0716 | B159: Mongólia | C159: 0 | D159: 0 | E159: 0 | F159: 0 | G159: 0 | H159: 0 | I159: 0 | J159: 0 | K159: 0 | L159: 0 | M159: 0 | N159: 0 | O159: 0 | P159: 0 | Q159: 0 | R159: 0 | S159: 0 | T159: 0 | U159: 0 | V159: 0 | W159: 0 | X159: 0 | Y159: 0 | Z159: 0 | AA159: 0 | AC159: =L159-INDEX($C159:$L159,1,aux!$BA$1) -> 0 | AD159: 0 | AE159: =+IF(INDEX($C159:$L159,1,aux!$BA$1)>0,(L159/INDEX($C159:$L159,1,aux!$BA$1))^(1/($L$3-INDEX($C$3:$L$3,1,aux!$BA$1)))-1,"n.d.") -> n.d. | AF159: =IF(INDEX($C159:$L159,1,aux!$BA$1)>0,(L159-INDEX($C159:$L159,1,aux!$BA$1))/INDEX($C159:$L159,1,aux!$BA$1),"n.d.") -> n.d. | AH159: =X159-INDEX($O159:$X159,1,aux!$BA$1) -> 0 | AI159: 0 | AJ159: =+IF(INDEX($O159:$X159,1,aux!$BA$1)>0,(X159/INDEX($O159:$X159,1,aux!$BA$1))^(1/($X$3-INDEX($O$3:$X$3,1,aux!$BA$1)))-1,"n.d.") -> n.d. | AK159: =IF(INDEX($O159:$X159,1,aux!$BA$1)>0,(X159-INDEX($O159:$X159,1,aux!$BA$1))/INDEX($O159:$X159,1,aux!$BA$1),"n.d.") -> n.d. | AM159: 0 | BO159: 0 | CC159: =+IF(ISNA(MATCH('5.1'!A159,AUX_2d_pais!$G$2:$G$40000,0)),0,1) -> 0
A160: 0470 | B160: Monserrate | C160: 0 | D160: 0 | E160: 0 | F160: 0 | G160: 0 | H160: 0 | I160: 0 | J160: 0 | K160: 0 | L160: 0 | M160: 0 | N160: 0 | O160: 0 | P160: 0 | Q160: 0 | R160: 0 | S160: 0 | T160: 0 | U160: 0 | V160: 0 | W160: 0 | X160: 0 | Y160: 0 | Z160: 0 | AA160: 0 | AC160: =L160-INDEX($C160:$L160,1,aux!$BA$1) -> 0 | AD160: 0 | AE160: =+IF(INDEX($C160:$L160,1,aux!$BA$1)>0,(L160/INDEX($C160:$L160,1,aux!$BA$1))^(1/($L$3-INDEX($C$3:$L$3,1,aux!$BA$1)))-1,"n.d.") -> n.d. | AF160: =IF(INDEX($C160:$L160,1,aux!$BA$1)>0,(L160-INDEX($C160:$L160,1,aux!$BA$1))/INDEX($C160:$L160,1,aux!$BA$1),"n.d.") -> n.d. | AH160: =X160-INDEX($O160:$X160,1,aux!$BA$1) -> 0 | AI160: 0 | AJ160: =+IF(INDEX($O160:$X160,1,aux!$BA$1)>0,(X160/INDEX($O160:$X160,1,aux!$BA$1))^(1/($X$3-INDEX($O$3:$X$3,1,aux!$BA$1)))-1,"n.d.") -> n.d. | AK160: =IF(INDEX($O160:$X160,1,aux!$BA$1)>0,(X160-INDEX($O160:$X160,1,aux!$BA$1))/INDEX($O160:$X160,1,aux!$BA$1),"n.d.") -> n.d. | AM160: 0 | BO160: 0 | CC160: =+IF(ISNA(MATCH('5.1'!A160,AUX_2d_pais!$G$2:$G$40000,0)),0,1) -> 0
A161: 0097 | B161: Montenegro | C161: 0 | D161: 0 | E161: 0 | F161: 0 | G161: 0 | H161: 0 | I161: 0 | J161: 0 | K161: 0 | L161: 0 | M161: 0 | N161: 0 | O161: 0 | P161: 0 | Q161: 0 | R161: 0 | S161: 0 | T161: 0 | U161: 0 | V161: 0 | W161: 0 | X161: 0 | Y161: 0 | Z161: 0 | AA161: 0 | AC161: =L161-INDEX($C161:$L161,1,aux!$BA$1) -> 0 | AD161: 0 | AE161: =+IF(INDEX($C161:$L161,1,aux!$BA$1)>0,(L161/INDEX($C161:$L161,1,aux!$BA$1))^(1/($L$3-INDEX($C$3:$L$3,1,aux!$BA$1)))-1,"n.d.") -> n.d. | AF161: =IF(INDEX($C161:$L161,1,aux!$BA$1)>0,(L161-INDEX($C161:$L161,1,aux!$BA$1))/INDEX($C161:$L161,1,aux!$BA$1),"n.d.") -> n.d. | AH161: =X161-INDEX($O161:$X161,1,aux!$BA$1) -> 0 | AI161: 0 | AJ161: =+IF(INDEX($O161:$X161,1,aux!$BA$1)>0,(X161/INDEX($O161:$X161,1,aux!$BA$1))^(1/($X$3-INDEX($O$3:$X$3,1,aux!$BA$1)))-1,"n.d.") -> n.d. | AK161: =IF(INDEX($O161:$X161,1,aux!$BA$1)>0,(X161-INDEX($O161:$X161,1,aux!$BA$1))/INDEX($O161:$X161,1,aux!$BA$1),"n.d.") -> n.d. | AM161: 0 | BO161: 0 | CC161: =+IF(ISNA(MATCH('5.1'!A161,AUX_2d_pais!$G$2:$G$40000,0)),0,1) -> 0
A162: 0676 | B162: Myanmar | C162: 0 | D162: 0 | E162: 0 | F162: 0 | G162: 0 | H162: 0 | I162: 0 | J162: 0 | K162: 0 | L162: 0 | M162: 0 | N162: 0 | O162: 0 | P162: 0 | Q162: 0 | R162: 0 | S162: 0 | T162: 0 | U162: 0 | V162: 0 | W162: 0 | X162: 0 | Y162: 0 | Z162: 0 | AA162: 0 | AC162: =L162-INDEX($C162:$L162,1,aux!$BA$1) -> 0 | AD162: 0 | AE162: =+IF(INDEX($C162:$L162,1,aux!$BA$1)>0,(L162/INDEX($C162:$L162,1,aux!$BA$1))^(1/($L$3-INDEX($C$3:$L$3,1,aux!$BA$1)))-1,"n.d.") -> n.d. | AF162: =IF(INDEX($C162:$L162,1,aux!$BA$1)>0,(L162-INDEX($C162:$L162,1,aux!$BA$1))/INDEX($C162:$L162,1,aux!$BA$1),"n.d.") -> n.d. | AH162: =X162-INDEX($O162:$X162,1,aux!$BA$1) -> 0 | AI162: 0 | AJ162: =+IF(INDEX($O162:$X162,1,aux!$BA$1)>0,(X162/INDEX($O162:$X162,1,aux!$BA$1))^(1/($X$3-INDEX($O$3:$X$3,1,aux!$BA$1)))-1,"n.d.") -> n.d. | AK162: =IF(INDEX($O162:$X162,1,aux!$BA$1)>0,(X162-INDEX($O162:$X162,1,aux!$BA$1))/INDEX($O162:$X162,1,aux!$BA$1),"n.d.") -> n.d. | AM162: 0 | CC162: =+IF(ISNA(MATCH('5.1'!A162,AUX_2d_pais!$G$2:$G$40000,0)),0,1) -> 0
A163: 0389 | B163: Namíbia | C163: 0 | D163: 0 | E163: 0 | F163: 0 | G163: 0 | H163: 0 | I163: 0 | J163: 0 | K163: 0 | L163: 0 | M163: 0 | N163: 0 | O163: 0 | P163: 0 | Q163: 0 | R163: 0 | S163: 0 | T163: 0 | U163: 0 | V163: 0 | W163: 0 | X163: 0 | Y163: 0 | Z163: 0 | AA163: 0 | AC163: =L163-INDEX($C163:$L163,1,aux!$BA$1) -> 0 | AD163: 0 | AE163: =+IF(INDEX($C163:$L163,1,aux!$BA$1)>0,(L163/INDEX($C163:$L163,1,aux!$BA$1))^(1/($L$3-INDEX($C$3:$L$3,1,aux!$BA$1)))-1,"n.d.") -> n.d. | AF163: =IF(INDEX($C163:$L163,1,aux!$BA$1)>0,(L163-INDEX($C163:$L163,1,aux!$BA$1))/INDEX($C163:$L163,1,aux!$BA$1),"n.d.") -> n.d. | AH163: =X163-INDEX($O163:$X163,1,aux!$BA$1) -> 0 | AI163: 0 | AJ163: =+IF(INDEX($O163:$X163,1,aux!$BA$1)>0,(X163/INDEX($O163:$X163,1,aux!$BA$1))^(1/($X$3-INDEX($O$3:$X$3,1,aux!$BA$1)))-1,"n.d.") -> n.d. | AK163: =IF(INDEX($O163:$X163,1,aux!$BA$1)>0,(X163-INDEX($O163:$X163,1,aux!$BA$1))/INDEX($O163:$X163,1,aux!$BA$1),"n.d.") -> n.d. | AM163: 0 | CC163: =+IF(ISNA(MATCH('5.1'!A163,AUX_2d_pais!$G$2:$G$40000,0)),0,1) -> 0
A164: 0803 | B164: Nauru | C164: 0 | D164: 0 | E164: 0 | F164: 0 | G164: 0 | H164: 0 | I164: 0 | J164: 0 | K164: 0 | L164: 0 | M164: 0 | N164: 0 | O164: 0 | P164: 0 | Q164: 0 | R164: 0 | S164: 0 | T164: 0 | U164: 0 | V164: 0 | W164: 0 | X164: 0 | Y164: 0 | Z164: 0 | AA164: 0 | AC164: =L164-INDEX($C164:$L164,1,aux!$BA$1) -> 0 | AD164: 0 | AE164: =+IF(INDEX($C164:$L164,1,aux!$BA$1)>0,(L164/INDEX($C164:$L164,1,aux!$BA$1))^(1/($L$3-INDEX($C$3:$L$3,1,aux!$BA$1)))-1,"n.d.") -> n.d. | AF164: =IF(INDEX($C164:$L164,1,aux!$BA$1)>0,(L164-INDEX($C164:$L164,1,aux!$BA$1))/INDEX($C164:$L164,1,aux!$BA$1),"n.d.") -> n.d. | AH164: =X164-INDEX($O164:$X164,1,aux!$BA$1) -> 0 | AI164: 0 | AJ164: =+IF(INDEX($O164:$X164,1,aux!$BA$1)>0,(X164/INDEX($O164:$X164,1,aux!$BA$1))^(1/($X$3-INDEX($O$3:$X$3,1,aux!$BA$1)))-1,"n.d.") -> n.d. | AK164: =IF(INDEX($O164:$X164,1,aux!$BA$1)>0,(X164-INDEX($O164:$X164,1,aux!$BA$1))/INDEX($O164:$X164,1,aux!$BA$1),"n.d.") -> n.d. | AM164: 0 | BO164: 0 | CC164: =+IF(ISNA(MATCH('5.1'!A164,AUX_2d_pais!$G$2:$G$40000,0)),0,1) -> 0
A165: 0672 | B165: Nepal | C165: 0 | D165: 0 | E165: 0 | F165: 0 | G165: 0 | H165: 0 | I165: 0 | J165: 0 | K165: 0 | L165: 0 | M165: 0 | N165: 0 | O165: 0 | P165: 0 | Q165: 0 | R165: 0 | S165: 0 | T165: 0 | U165: 0 | V165: 0 | W165: 0 | X165: 0 | Y165: 0 | Z165: 0 | AA165: 0 | AC165: =L165-INDEX($C165:$L165,1,aux!$BA$1) -> 0 | AD165: =AC165/$AC$252 -> 0 | AE165: =+IF(INDEX($C165:$L165,1,aux!$BA$1)>0,(L165/INDEX($C165:$L165,1,aux!$BA$1))^(1/($L$3-INDEX($C$3:$L$3,1,aux!$BA$1)))-1,"n.d.") -> n.d. | AF165: =IF(INDEX($C165:$L165,1,aux!$BA$1)>0,(L165-INDEX($C165:$L165,1,aux!$BA$1))/INDEX($C165:$L165,1,aux!$BA$1),"n.d.") -> n.d. | AH165: =X165-INDEX($O165:$X165,1,aux!$BA$1) -> 0 | AI165: =AH165/$AH$252 -> 0 | AJ165: =+IF(INDEX($O165:$X165,1,aux!$BA$1)>0,(X165/INDEX($O165:$X165,1,aux!$BA$1))^(1/($X$3-INDEX($O$3:$X$3,1,aux!$BA$1)))-1,"n.d.") -> n.d. | AK165: =IF(INDEX($O165:$X165,1,aux!$BA$1)>0,(X165-INDEX($O165:$X165,1,aux!$BA$1))/INDEX($O165:$X165,1,aux!$BA$1),"n.d.") -> n.d. | AM165: 0 | BO165: 0 | CC165: =+IF(ISNA(MATCH('5.1'!A165,AUX_2d_pais!$G$2:$G$40000,0)),0,1) -> 0
A166: 0432 | B166: Nicarágua | C166: 0 | D166: 0 | E166: 0 | F166: 0 | G166: 0 | H166: 0 | I166: 0 | J166: 0 | K166: 0 | L166: 0 | M166: 0 | N166: 0 | O166: 0 | P166: 0 | Q166: 0 | R166: 0 | S166: 0 | T166: 0 | U166: 0 | V166: 0 | W166: 0 | X166: 0 | Y166: 0 | Z166: 0 | AA166: 0 | AC166: =L166-INDEX($C166:$L166,1,aux!$BA$1) -> 0 | AD166: 0 | AE166: =+IF(INDEX($C166:$L166,1,aux!$BA$1)>0,(L166/INDEX($C166:$L166,1,aux!$BA$1))^(1/($L$3-INDEX($C$3:$L$3,1,aux!$BA$1)))-1,"n.d.") -> n.d. | AF166: =IF(INDEX($C166:$L166,1,aux!$BA$1)>0,(L166-INDEX($C166:$L166,1,aux!$BA$1))/INDEX($C166:$L166,1,aux!$BA$1),"n.d.") -> n.d. | AH166: =X166-INDEX($O166:$X166,1,aux!$BA$1) -> 0 | AI166: 0 | AJ166: =+IF(INDEX($O166:$X166,1,aux!$BA$1)>0,(X166/INDEX($O166:$X166,1,aux!$BA$1))^(1/($X$3-INDEX($O$3:$X$3,1,aux!$BA$1)))-1,"n.d.") -> n.d. | AK166: =IF(INDEX($O166:$X166,1,aux!$BA$1)>0,(X166-INDEX($O166:$X166,1,aux!$BA$1))/INDEX($O166:$X166,1,aux!$BA$1),"n.d.") -> n.d. | AM166: 0 | CC166: =+IF(ISNA(MATCH('5.1'!A166,AUX_2d_pais!$G$2:$G$40000,0)),0,1) -> 0
A167: 0240 | B167: Niger | C167: 0 | D167: 0 | E167: 0 | F167: 0 | G167: 0 | H167: 0 | I167: 0 | J167: 0 | K167: 0 | L167: 0 | M167: 0 | N167: 0 | O167: 0 | P167: 0 | Q167: 0 | R167: 0 | S167: 0 | T167: 0 | U167: 0 | V167: 0 | W167: 0 | X167: 0 | Y167: 0 | Z167: 0 | AA167: 0 | AC167: =L167-INDEX($C167:$L167,1,aux!$BA$1) -> 0 | AD167: 0 | AE167: =+IF(INDEX($C167:$L167,1,aux!$BA$1)>0,(L167/INDEX($C167:$L167,1,aux!$BA$1))^(1/($L$3-INDEX($C$3:$L$3,1,aux!$BA$1)))-1,"n.d.") -> n.d. | AF167: =IF(INDEX($C167:$L167,1,aux!$BA$1)>0,(L167-INDEX($C167:$L167,1,aux!$BA$1))/INDEX($C167:$L167,1,aux!$BA$1),"n.d.") -> n.d. | AH167: =X167-INDEX($O167:$X167,1,aux!$BA$1) -> 0 | AI167: 0 | AJ167: =+IF(INDEX($O167:$X167,1,aux!$BA$1)>0,(X167/INDEX($O167:$X167,1,aux!$BA$1))^(1/($X$3-INDEX($O$3:$X$3,1,aux!$BA$1)))-1,"n.d.") -> n.d. | AK167: =IF(INDEX($O167:$X167,1,aux!$BA$1)>0,(X167-INDEX($O167:$X167,1,aux!$BA$1))/INDEX($O167:$X167,1,aux!$BA$1),"n.d.") -> n.d. | AM167: 0 | CC167: =+IF(ISNA(MATCH('5.1'!A167,AUX_2d_pais!$G$2:$G$40000,0)),0,1) -> 0
A168: 0288 | B168: Nigéria | C168: 0 | D168: 0 | E168: 0 | F168: 0 | G168: 0 | H168: 0 | I168: 0 | J168: 0 | K168: 0 | L168: 0 | M168: 0 | N168: 0 | O168: 0 | P168: 0 | Q168: 0 | R168: 0 | S168: 0 | T168: 0 | U168: 0 | V168: 0 | W168: 0 | X168: 0 | Y168: 0 | Z168: 0 | AA168: 0 | AC168: =L168-INDEX($C168:$L168,1,aux!$BA$1) -> 0 | AD168: 0 | AE168: =+IF(INDEX($C168:$L168,1,aux!$BA$1)>0,(L168/INDEX($C168:$L168,1,aux!$BA$1))^(1/($L$3-INDEX($C$3:$L$3,1,aux!$BA$1)))-1,"n.d.") -> n.d. | AF168: =IF(INDEX($C168:$L168,1,aux!$BA$1)>0,(L168-INDEX($C168:$L168,1,aux!$BA$1))/INDEX($C168:$L168,1,aux!$BA$1),"n.d.") -> n.d. | AH168: =X168-INDEX($O168:$X168,1,aux!$BA$1) -> 0 | AI168: 0 | AJ168: =+IF(INDEX($O168:$X168,1,aux!$BA$1)>0,(X168/INDEX($O168:$X168,1,aux!$BA$1))^(1/($X$3-INDEX($O$3:$X$3,1,aux!$BA$1)))-1,"n.d.") -> n.d. | AK168: =IF(INDEX($O168:$X168,1,aux!$BA$1)>0,(X168-INDEX($O168:$X168,1,aux!$BA$1))/INDEX($O168:$X168,1,aux!$BA$1),"n.d.") -> n.d. | AM168: 0 | CC168: =+IF(ISNA(MATCH('5.1'!A168,AUX_2d_pais!$G$2:$G$40000,0)),0,1) -> 0
A169: 0838 | B169: Niue | C169: 0 | D169: 0 | E169: 0 | F169: 0 | G169: 0 | H169: 0 | I169: 0 | J169: 0 | K169: 0 | L169: 0 | M169: 0 | N169: 0 | O169: 0 | P169: 0 | Q169: 0 | R169: 0 | S169: 0 | T169: 0 | U169: 0 | V169: 0 | W169: 0 | X169: 0 | Y169: 0 | Z169: 0 | AA169: 0 | AC169: =L169-INDEX($C169:$L169,1,aux!$BA$1) -> 0 | AD169: 0 | AE169: =+IF(INDEX($C169:$L169,1,aux!$BA$1)>0,(L169/INDEX($C169:$L169,1,aux!$BA$1))^(1/($L$3-INDEX($C$3:$L$3,1,aux!$BA$1)))-1,"n.d.") -> n.d. | AF169: =IF(INDEX($C169:$L169,1,aux!$BA$1)>0,(L169-INDEX($C169:$L169,1,aux!$BA$1))/INDEX($C169:$L169,1,aux!$BA$1),"n.d.") -> n.d. | AH169: =X169-INDEX($O169:$X169,1,aux!$BA$1) -> 0 | AI169: 0 | AJ169: =+IF(INDEX($O169:$X169,1,aux!$BA$1)>0,(X169/INDEX($O169:$X169,1,aux!$BA$1))^(1/($X$3-INDEX($O$3:$X$3,1,aux!$BA$1)))-1,"n.d.") -> n.d. | AK169: =IF(INDEX($O169:$X169,1,aux!$BA$1)>0,(X169-INDEX($O169:$X169,1,aux!$BA$1))/INDEX($O169:$X169,1,aux!$BA$1),"n.d.") -> n.d. | AM169: 0 | BO169: 0 | CC169: =+IF(ISNA(MATCH('5.1'!A169,AUX_2d_pais!$G$2:$G$40000,0)),0,1) -> 0
A170: 0836 | B170: Norfolk, Ilha | C170: 0 | D170: 0 | E170: 0 | F170: 0 | G170: 0 | H170: 0 | I170: 0 | J170: 0 | K170: 0 | L170: 0 | M170: 0 | N170: 0 | O170: 0 | P170: 0 | Q170: 0 | R170: 0 | S170: 0 | T170: 0 | U170: 0 | V170: 0 | W170: 0 | X170: 0 | Y170: 0 | Z170: 0 | AA170: 0 | AC170: =L170-INDEX($C170:$L170,1,aux!$BA$1) -> 0 | AD170: 0 | AE170: =+IF(INDEX($C170:$L170,1,aux!$BA$1)>0,(L170/INDEX($C170:$L170,1,aux!$BA$1))^(1/($L$3-INDEX($C$3:$L$3,1,aux!$BA$1)))-1,"n.d.") -> n.d. | AF170: =IF(INDEX($C170:$L170,1,aux!$BA$1)>0,(L170-INDEX($C170:$L170,1,aux!$BA$1))/INDEX($C170:$L170,1,aux!$BA$1),"n.d.") -> n.d. | AH170: =X170-INDEX($O170:$X170,1,aux!$BA$1) -> 0 | AI170: 0 | AJ170: =+IF(INDEX($O170:$X170,1,aux!$BA$1)>0,(X170/INDEX($O170:$X170,1,aux!$BA$1))^(1/($X$3-INDEX($O$3:$X$3,1,aux!$BA$1)))-1,"n.d.") -> n.d. | AK170: =IF(INDEX($O170:$X170,1,aux!$BA$1)>0,(X170-INDEX($O170:$X170,1,aux!$BA$1))/INDEX($O170:$X170,1,aux!$BA$1),"n.d.") -> n.d. | AM170: 0 | BO170: 0 | CC170: =+IF(ISNA(MATCH('5.1'!A170,AUX_2d_pais!$G$2:$G$40000,0)),0,1) -> 0
A171: 0028 | B171: Noruega | C171: 0 | D171: 0 | E171: 0 | F171: 0 | G171: 0 | H171: 0 | I171: 0 | J171: 0 | K171: 0 | L171: 0 | M171: 0 | N171: 0 | O171: 0 | P171: 0 | Q171: 0 | R171: 0 | S171: 0 | T171: 0 | U171: 0 | V171: 0 | W171: 0 | X171: 0 | Y171: 0 | Z171: 0 | AA171: 0 | AC171: =L171-INDEX($C171:$L171,1,aux!$BA$1) -> 0 | AD171: 0 | AE171: =+IF(INDEX($C171:$L171,1,aux!$BA$1)>0,(L171/INDEX($C171:$L171,1,aux!$BA$1))^(1/($L$3-INDEX($C$3:$L$3,1,aux!$BA$1)))-1,"n.d.") -> n.d. | AF171: =IF(INDEX($C171:$L171,1,aux!$BA$1)>0,(L171-INDEX($C171:$L171,1,aux!$BA$1))/INDEX($C171:$L171,1,aux!$BA$1),"n.d.") -> n.d. | AH171: =X171-INDEX($O171:$X171,1,aux!$BA$1) -> 0 | AI171: 0 | AJ171: =+IF(INDEX($O171:$X171,1,aux!$BA$1)>0,(X171/INDEX($O171:$X171,1,aux!$BA$1))^(1/($X$3-INDEX($O$3:$X$3,1,aux!$BA$1)))-1,"n.d.") -> n.d. | AK171: =IF(INDEX($O171:$X171,1,aux!$BA$1)>0,(X171-INDEX($O171:$X171,1,aux!$BA$1))/INDEX($O171:$X171,1,aux!$BA$1),"n.d.") -> n.d. | AM171: 0 | CC171: =+IF(ISNA(MATCH('5.1'!A171,AUX_2d_pais!$G$2:$G$40000,0)),0,1) -> 0
A172: 0809 | B172: Nova Caledónia | C172: 0 | D172: 0 | E172: 0 | F172: 0 | G172: 0 | H172: 0 | I172: 0 | J172: 0 | K172: 0 | L172: 0 | M172: 0 | N172: 0 | O172: 0 | P172: 0 | Q172: 0 | R172: 0 | S172: 0 | T172: 0 | U172: 0 | V172: 0 | W172: 0 | X172: 0 | Y172: 0 | Z172: 0 | AA172: 0 | AC172: =L172-INDEX($C172:$L172,1,aux!$BA$1) -> 0 | AD172: 0 | AE172: =+IF(INDEX($C172:$L172,1,aux!$BA$1)>0,(L172/INDEX($C172:$L172,1,aux!$BA$1))^(1/($L$3-INDEX($C$3:$L$3,1,aux!$BA$1)))-1,"n.d.") -> n.d. | AF172: =IF(INDEX($C172:$L172,1,aux!$BA$1)>0,(L172-INDEX($C172:$L172,1,aux!$BA$1))/INDEX($C172:$L172,1,aux!$BA$1),"n.d.") -> n.d. | AH172: =X172-INDEX($O172:$X172,1,aux!$BA$1) -> 0 | AI172: 0 | AJ172: =+IF(INDEX($O172:$X172,1,aux!$BA$1)>0,(X172/INDEX($O172:$X172,1,aux!$BA$1))^(1/($X$3-INDEX($O$3:$X$3,1,aux!$BA$1)))-1,"n.d.") -> n.d. | AK172: =IF(INDEX($O172:$X172,1,aux!$BA$1)>0,(X172-INDEX($O172:$X172,1,aux!$BA$1))/INDEX($O172:$X172,1,aux!$BA$1),"n.d.") -> n.d. | AM172: 0 | CC172: =+IF(ISNA(MATCH('5.1'!A172,AUX_2d_pais!$G$2:$G$40000,0)),0,1) -> 0
A173: 0804 | B173: Nova Zelânda | C173: 0 | D173: 0 | E173: 0 | F173: 0 | G173: 0 | H173: 0 | I173: 0 | J173: 0 | K173: 0 | L173: 0 | M173: 0 | N173: 0 | O173: 0 | P173: 0 | Q173: 0 | R173: 0 | S173: 0 | T173: 0 | U173: 0 | V173: 0 | W173: 0 | X173: 0 | Y173: 0 | Z173: 0 | AA173: 0 | AC173: =L173-INDEX($C173:$L173,1,aux!$BA$1) -> 0 | AD173: 0 | AE173: =+IF(INDEX($C173:$L173,1,aux!$BA$1)>0,(L173/INDEX($C173:$L173,1,aux!$BA$1))^(1/($L$3-INDEX($C$3:$L$3,1,aux!$BA$1)))-1,"n.d.") -> n.d. | AF173: =IF(INDEX($C173:$L173,1,aux!$BA$1)>0,(L173-INDEX($C173:$L173,1,aux!$BA$1))/INDEX($C173:$L173,1,aux!$BA$1),"n.d.") -> n.d. | AH173: =X173-INDEX($O173:$X173,1,aux!$BA$1) -> 0 | AI173: 0 | AJ173: =+IF(INDEX($O173:$X173,1,aux!$BA$1)>0,(X173/INDEX($O173:$X173,1,aux!$BA$1))^(1/($X$3-INDEX($O$3:$X$3,1,aux!$BA$1)))-1,"n.d.") -> n.d. | AK173: =IF(INDEX($O173:$X173,1,aux!$BA$1)>0,(X173-INDEX($O173:$X173,1,aux!$BA$1))/INDEX($O173:$X173,1,aux!$BA$1),"n.d.") -> n.d. | AM173: 0 | CC173: =+IF(ISNA(MATCH('5.1'!A173,AUX_2d_pais!$G$2:$G$40000,0)),0,1) -> 0
A174: 0357 | B174: Oceano Indico, Território Britânico do | C174: 0 | D174: 0 | E174: 0 | F174: 0 | G174: 0 | H174: 0 | I174: 0 | J174: 0 | K174: 0 | L174: 0 | M174: 0 | N174: 0 | O174: 0 | P174: 0 | Q174: 0 | R174: 0 | S174: 0 | T174: 0 | U174: 0 | V174: 0 | W174: 0 | X174: 0 | Y174: 0 | Z174: 0 | AA174: 0 | AC174: =L174-INDEX($C174:$L174,1,aux!$BA$1) -> 0 | AD174: 0 | AE174: =+IF(INDEX($C174:$L174,1,aux!$BA$1)>0,(L174/INDEX($C174:$L174,1,aux!$BA$1))^(1/($L$3-INDEX($C$3:$L$3,1,aux!$BA$1)))-1,"n.d.") -> n.d. | AF174: =IF(INDEX($C174:$L174,1,aux!$BA$1)>0,(L174-INDEX($C174:$L174,1,aux!$BA$1))/INDEX($C174:$L174,1,aux!$BA$1),"n.d.") -> n.d. | AH174: =X174-INDEX($O174:$X174,1,aux!$BA$1) -> 0 | AI174: 0 | AJ174: =+IF(INDEX($O174:$X174,1,aux!$BA$1)>0,(X174/INDEX($O174:$X174,1,aux!$BA$1))^(1/($X$3-INDEX($O$3:$X$3,1,aux!$BA$1)))-1,"n.d.") -> n.d. | AK174: =IF(INDEX($O174:$X174,1,aux!$BA$1)>0,(X174-INDEX($O174:$X174,1,aux!$BA$1))/INDEX($O174:$X174,1,aux!$BA$1),"n.d.") -> n.d. | AM174: 0 | BO174: 0 | CC174: =+IF(ISNA(MATCH('5.1'!A174,AUX_2d_pais!$G$2:$G$40000,0)),0,1) -> 0
A175: 0649 | B175: Omã | C175: 0 | D175: 0 | E175: 0 | F175: 0 | G175: 0 | H175: 0 | I175: 0 | J175: 0 | K175: 0 | L175: 0 | M175: 0 | N175: 0 | O175: 0 | P175: 0 | Q175: 0 | R175: 0 | S175: 0 | T175: 0 | U175: 0 | V175: 0 | W175: 0 | X175: 0 | Y175: 0 | Z175: 0 | AA175: 0 | AC175: =L175-INDEX($C175:$L175,1,aux!$BA$1) -> 0 | AD175: 0 | AE175: =+IF(INDEX($C175:$L175,1,aux!$BA$1)>0,(L175/INDEX($C175:$L175,1,aux!$BA$1))^(1/($L$3-INDEX($C$3:$L$3,1,aux!$BA$1)))-1,"n.d.") -> n.d. | AF175: =IF(INDEX($C175:$L175,1,aux!$BA$1)>0,(L175-INDEX($C175:$L175,1,aux!$BA$1))/INDEX($C175:$L175,1,aux!$BA$1),"n.d.") -> n.d. | AH175: =X175-INDEX($O175:$X175,1,aux!$BA$1) -> 0 | AI175: 0 | AJ175: =+IF(INDEX($O175:$X175,1,aux!$BA$1)>0,(X175/INDEX($O175:$X175,1,aux!$BA$1))^(1/($X$3-INDEX($O$3:$X$3,1,aux!$BA$1)))-1,"n.d.") -> n.d. | AK175: =IF(INDEX($O175:$X175,1,aux!$BA$1)>0,(X175-INDEX($O175:$X175,1,aux!$BA$1))/INDEX($O175:$X175,1,aux!$BA$1),"n.d.") -> n.d. | AM175: 0 | CC175: =+IF(ISNA(MATCH('5.1'!A175,AUX_2d_pais!$G$2:$G$40000,0)),0,1) -> 0
A176: 0003 | B176: Países Baixos | C176: 0 | D176: 0 | E176: 0 | F176: 0 | G176: 0 | H176: 0 | I176: 0 | J176: 0 | K176: 0 | L176: 0 | M176: 0 | N176: 0 | O176: 0 | P176: 0 | Q176: 0 | R176: 0 | S176: 0 | T176: 0 | U176: 0 | V176: 0 | W176: 0 | X176: 0 | Y176: 0 | Z176: 0 | AA176: 0 | AC176: =L176-INDEX($C176:$L176,1,aux!$BA$1) -> 0 | AD176: 0 | AE176: =+IF(INDEX($C176:$L176,1,aux!$BA$1)>0,(L176/INDEX($C176:$L176,1,aux!$BA$1))^(1/($L$3-INDEX($C$3:$L$3,1,aux!$BA$1)))-1,"n.d.") -> n.d. | AF176: =IF(INDEX($C176:$L176,1,aux!$BA$1)>0,(L176-INDEX($C176:$L176,1,aux!$BA$1))/INDEX($C176:$L176,1,aux!$BA$1),"n.d.") -> n.d. | AH176: =X176-INDEX($O176:$X176,1,aux!$BA$1) -> 0 | AI176: 0 | AJ176: =+IF(INDEX($O176:$X176,1,aux!$BA$1)>0,(X176/INDEX($O176:$X176,1,aux!$BA$1))^(1/($X$3-INDEX($O$3:$X$3,1,aux!$BA$1)))-1,"n.d.") -> n.d. | AK176: =IF(INDEX($O176:$X176,1,aux!$BA$1)>0,(X176-INDEX($O176:$X176,1,aux!$BA$1))/INDEX($O176:$X176,1,aux!$BA$1),"n.d.") -> n.d. | AM176: 0 | CC176: =+IF(ISNA(MATCH('5.1'!A176,AUX_2d_pais!$G$2:$G$40000,0)),0,1) -> 0
A177: 0825 | B177: Palau | C177: 0 | D177: 0 | E177: 0 | F177: 0 | G177: 0 | H177: 0 | I177: 0 | J177: 0 | K177: 0 | L177: 0 | M177: 0 | N177: 0 | O177: 0 | P177: 0 | Q177: 0 | R177: 0 | S177: 0 | T177: 0 | U177: 0 | V177: 0 | W177: 0 | X177: 0 | Y177: 0 | Z177: 0 | AA177: 0 | AC177: =L177-INDEX($C177:$L177,1,aux!$BA$1) -> 0 | AD177: 0 | AE177: =+IF(INDEX($C177:$L177,1,aux!$BA$1)>0,(L177/INDEX($C177:$L177,1,aux!$BA$1))^(1/($L$3-INDEX($C$3:$L$3,1,aux!$BA$1)))-1,"n.d.") -> n.d. | AF177: =IF(INDEX($C177:$L177,1,aux!$BA$1)>0,(L177-INDEX($C177:$L177,1,aux!$BA$1))/INDEX($C177:$L177,1,aux!$BA$1),"n.d.") -> n.d. | AH177: =X177-INDEX($O177:$X177,1,aux!$BA$1) -> 0 | AI177: 0 | AJ177: =+IF(INDEX($O177:$X177,1,aux!$BA$1)>0,(X177/INDEX($O177:$X177,1,aux!$BA$1))^(1/($X$3-INDEX($O$3:$X$3,1,aux!$BA$1)))-1,"n.d.") -> n.d. | AK177: =IF(INDEX($O177:$X177,1,aux!$BA$1)>0,(X177-INDEX($O177:$X177,1,aux!$BA$1))/INDEX($O177:$X177,1,aux!$BA$1),"n.d.") -> n.d. | AM177: 0 | BO177: 0 | CC177: =+IF(ISNA(MATCH('5.1'!A177,AUX_2d_pais!$G$2:$G$40000,0)),0,1) -> 0
A178: 0442 | B178: Panamá | C178: 0 | D178: 0 | E178: 0 | F178: 0 | G178: 0 | H178: 0 | I178: 0 | J178: 0 | K178: 0 | L178: 0 | M178: 0 | N178: 0 | O178: 0 | P178: 0 | Q178: 0 | R178: 0 | S178: 0 | T178: 0 | U178: 0 | V178: 0 | W178: 0 | X178: 0 | Y178: 0 | Z178: 0 | AA178: 0 | AC178: =L178-INDEX($C178:$L178,1,aux!$BA$1) -> 0 | AD178: 0 | AE178: =+IF(INDEX($C178:$L178,1,aux!$BA$1)>0,(L178/INDEX($C178:$L178,1,aux!$BA$1))^(1/($L$3-INDEX($C$3:$L$3,1,aux!$BA$1)))-1,"n.d.") -> n.d. | AF178: =IF(INDEX($C178:$L178,1,aux!$BA$1)>0,(L178-INDEX($C178:$L178,1,aux!$BA$1))/INDEX($C178:$L178,1,aux!$BA$1),"n.d.") -> n.d. | AH178: =X178-INDEX($O178:$X178,1,aux!$BA$1) -> 0 | AI178: 0 | AJ178: =+IF(INDEX($O178:$X178,1,aux!$BA$1)>0,(X178/INDEX($O178:$X178,1,aux!$BA$1))^(1/($X$3-INDEX($O$3:$X$3,1,aux!$BA$1)))-1,"n.d.") -> n.d. | AK178: =IF(INDEX($O178:$X178,1,aux!$BA$1)>0,(X178-INDEX($O178:$X178,1,aux!$BA$1))/INDEX($O178:$X178,1,aux!$BA$1),"n.d.") -> n.d. | AM178: 0 | CC178: =+IF(ISNA(MATCH('5.1'!A178,AUX_2d_pais!$G$2:$G$40000,0)),0,1) -> 0
A179: 0801 | B179: Papuásia-Nova Guiné | C179: 0 | D179: 0 | E179: 0 | F179: 0 | G179: 0 | H179: 0 | I179: 0 | J179: 0 | K179: 0 | L179: 0 | M179: 0 | N179: 0 | O179: 0 | P179: 0 | Q179: 0 | R179: 0 | S179: 0 | T179: 0 | U179: 0 | V179: 0 | W179: 0 | X179: 0 | Y179: 0 | Z179: 0 | AA179: 0 | AC179: =L179-INDEX($C179:$L179,1,aux!$BA$1) -> 0 | AD179: 0 | AE179: =+IF(INDEX($C179:$L179,1,aux!$BA$1)>0,(L179/INDEX($C179:$L179,1,aux!$BA$1))^(1/($L$3-INDEX($C$3:$L$3,1,aux!$BA$1)))-1,"n.d.") -> n.d. | AF179: =IF(INDEX($C179:$L179,1,aux!$BA$1)>0,(L179-INDEX($C179:$L179,1,aux!$BA$1))/INDEX($C179:$L179,1,aux!$BA$1),"n.d.") -> n.d. | AH179: =X179-INDEX($O179:$X179,1,aux!$BA$1) -> 0 | AI179: 0 | AJ179: =+IF(INDEX($O179:$X179,1,aux!$BA$1)>0,(X179/INDEX($O179:$X179,1,aux!$BA$1))^(1/($X$3-INDEX($O$3:$X$3,1,aux!$BA$1)))-1,"n.d.") -> n.d. | AK179: =IF(INDEX($O179:$X179,1,aux!$BA$1)>0,(X179-INDEX($O179:$X179,1,aux!$BA$1))/INDEX($O179:$X179,1,aux!$BA$1),"n.d.") -> n.d. | AM179: 0 | BO179: 0 | CC179: =+IF(ISNA(MATCH('5.1'!A179,AUX_2d_pais!$G$2:$G$40000,0)),0,1) -> 0
A180: 0662 | B180: Paquistão | C180: 0 | D180: 0 | E180: 0 | F180: 0 | G180: 0 | H180: 0 | I180: 0 | J180: 0 | K180: 0 | L180: 0 | M180: 0 | N180: 0 | O180: 0 | P180: 0 | Q180: 0 | R180: 0 | S180: 0 | T180: 0 | U180: 0 | V180: 0 | W180: 0 | X180: 0 | Y180: 0 | Z180: 0 | AA180: 0 | AC180: =L180-INDEX($C180:$L180,1,aux!$BA$1) -> 0 | AD180: 0 | AE180: =+IF(INDEX($C180:$L180,1,aux!$BA$1)>0,(L180/INDEX($C180:$L180,1,aux!$BA$1))^(1/($L$3-INDEX($C$3:$L$3,1,aux!$BA$1)))-1,"n.d.") -> n.d. | AF180: =IF(INDEX($C180:$L180,1,aux!$BA$1)>0,(L180-INDEX($C180:$L180,1,aux!$BA$1))/INDEX($C180:$L180,1,aux!$BA$1),"n.d.") -> n.d. | AH180: =X180-INDEX($O180:$X180,1,aux!$BA$1) -> 0 | AI180: 0 | AJ180: =+IF(INDEX($O180:$X180,1,aux!$BA$1)>0,(X180/INDEX($O180:$X180,1,aux!$BA$1))^(1/($X$3-INDEX($O$3:$X$3,1,aux!$BA$1)))-1,"n.d.") -> n.d. | AK180: =IF(INDEX($O180:$X180,1,aux!$BA$1)>0,(X180-INDEX($O180:$X180,1,aux!$BA$1))/INDEX($O180:$X180,1,aux!$BA$1),"n.d.") -> n.d. | AM180: 0 | CC180: =+IF(ISNA(MATCH('5.1'!A180,AUX_2d_pais!$G$2:$G$40000,0)),0,1) -> 0
A181: 0520 | B181: Paraguai | C181: 870.345 | D181: 44850.751 | E181: 66708.447 | F181: 37962.718 | G181: 44088.396 | H181: 20076.898 | I181: 64524.503 | J181: 87735.108 | K181: 84654.428 | L181: 50712.335 | M181: 50218.3929 | N181: 0.07045750293 | O181: 68.691 | P181: 333.628 | Q181: 799.231 | R181: 1480.37 | S181: 963.759 | T181: 522.264 | U181: 1063.324 | V181: 915.949 | W181: 2740.878 | X181: 2432.333 | Y181: 1132.0427 | Z181: 0.002821343377 | AA181: -49086.3502 | AC181: =L181-INDEX($C181:$L181,1,aux!$BA$1) -> 49841.99 | AD181: 0.2150673343 | AE181: =+IF(INDEX($C181:$L181,1,aux!$BA$1)>0,(L181/INDEX($C181:$L181,1,aux!$BA$1))^(1/($L$3-INDEX($C$3:$L$3,1,aux!$BA$1)))-1,"n.d.") -> 0.5709342874 | AF181: =IF(INDEX($C181:$L181,1,aux!$BA$1)>0,(L181-INDEX($C181:$L181,1,aux!$BA$1))/INDEX($C181:$L181,1,aux!$BA$1),"n.d.") -> 57.26693438 | AH181: =X181-INDEX($O181:$X181,1,aux!$BA$1) -> 2363.642 | AI181: 0.007621014471 | AJ181: =+IF(INDEX($O181:$X181,1,aux!$BA$1)>0,(X181/INDEX($O181:$X181,1,aux!$BA$1))^(1/($X$3-INDEX($O$3:$X$3,1,aux!$BA$1)))-1,"n.d.") -> 0.4863627034 | AK181: =IF(INDEX($O181:$X181,1,aux!$BA$1)>0,(X181-INDEX($O181:$X181,1,aux!$BA$1))/INDEX($O181:$X181,1,aux!$BA$1),"n.d.") -> 34.40977712 | CC181: =+IF(ISNA(MATCH('5.1'!A181,AUX_2d_pais!$G$2:$G$40000,0)),0,1) -> 1
A182: 0504 | B182: Peru | C182: 8083.762 | D182: 9530.54 | E182: 11527.592 | F182: 10153.498 | G182: 8402.901 | H182: 9335.693 | I182: 11061.724 | J182: 9549.779 | K182: 17220.588 | L182: 15295.405 | M182: 11016.1482 | N182: 0.01545589672 | O182: 612.268 | P182: 1386.458 | Q182: 4400.305 | R182: 7263.551 | S182: 7170.311 | T182: 9005.727 | U182: 15605.009 | V182: 12206.436 | W182: 6620.74 | X182: 8081.444 | Y182: 7235.2249 | Z182: 0.0180320529 | AA182: -3780.9233 | AC182: =L182-INDEX($C182:$L182,1,aux!$BA$1) -> 7211.643 | AD182: 0.03111811619 | AE182: =+IF(INDEX($C182:$L182,1,aux!$BA$1)>0,(L182/INDEX($C182:$L182,1,aux!$BA$1))^(1/($L$3-INDEX($C$3:$L$3,1,aux!$BA$1)))-1,"n.d.") -> 0.0734255796 | AF182: =IF(INDEX($C182:$L182,1,aux!$BA$1)>0,(L182-INDEX($C182:$L182,1,aux!$BA$1))/INDEX($C182:$L182,1,aux!$BA$1),"n.d.") -> 0.8921147109 | AH182: =X182-INDEX($O182:$X182,1,aux!$BA$1) -> 7469.176 | AI182: 0.02408262266 | AJ182: =+IF(INDEX($O182:$X182,1,aux!$BA$1)>0,(X182/INDEX($O182:$X182,1,aux!$BA$1))^(1/($X$3-INDEX($O$3:$X$3,1,aux!$BA$1)))-1,"n.d.") -> 0.3320031974 | AK182: =IF(INDEX($O182:$X182,1,aux!$BA$1)>0,(X182-INDEX($O182:$X182,1,aux!$BA$1))/INDEX($O182:$X182,1,aux!$BA$1),"n.d.") -> 12.19919382 | CC182: =+IF(ISNA(MATCH('5.1'!A182,AUX_2d_pais!$G$2:$G$40000,0)),0,1) -> 1
A183: 0813 | B183: Pitcairn | C183: 0 | D183: 0 | E183: 0 | F183: 0 | G183: 0 | H183: 0 | I183: 0 | J183: 0 | K183: 0 | L183: 0 | M183: 0 | N183: 0 | O183: 0 | P183: 0 | Q183: 0 | R183: 0 | S183: 0 | T183: 0 | U183: 0 | V183: 0 | W183: 0 | X183: 0 | Y183: 0 | Z183: 0 | AA183: 0 | AC183: =L183-INDEX($C183:$L183,1,aux!$BA$1) -> 0 | AD183: 0 | AE183: =+IF(INDEX($C183:$L183,1,aux!$BA$1)>0,(L183/INDEX($C183:$L183,1,aux!$BA$1))^(1/($L$3-INDEX($C$3:$L$3,1,aux!$BA$1)))-1,"n.d.") -> n.d. | AF183: =IF(INDEX($C183:$L183,1,aux!$BA$1)>0,(L183-INDEX($C183:$L183,1,aux!$BA$1))/INDEX($C183:$L183,1,aux!$BA$1),"n.d.") -> n.d. | AH183: =X183-INDEX($O183:$X183,1,aux!$BA$1) -> 0 | AI183: 0 | AJ183: =+IF(INDEX($O183:$X183,1,aux!$BA$1)>0,(X183/INDEX($O183:$X183,1,aux!$BA$1))^(1/($X$3-INDEX($O$3:$X$3,1,aux!$BA$1)))-1,"n.d.") -> n.d. | AK183: =IF(INDEX($O183:$X183,1,aux!$BA$1)>0,(X183-INDEX($O183:$X183,1,aux!$BA$1))/INDEX($O183:$X183,1,aux!$BA$1),"n.d.") -> n.d. | AM183: 0 | BO183: 0 | CC183: =+IF(ISNA(MATCH('5.1'!A183,AUX_2d_pais!$G$2:$G$40000,0)),0,1) -> 0
A184: 0822 | B184: Polinésia Francesa | C184: 0 | D184: 0 | E184: 0 | F184: 0 | G184: 0 | H184: 0 | I184: 0 | J184: 0 | K184: 0 | L184: 0 | M184: 0 | N184: 0 | O184: 0 | P184: 0 | Q184: 0 | R184: 0 | S184: 0 | T184: 0 | U184: 0 | V184: 0 | W184: 0 | X184: 0 | Y184: 0 | Z184: 0 | AA184: 0 | AC184: =L184-INDEX($C184:$L184,1,aux!$BA$1) -> 0 | AD184: 0 | AE184: =+IF(INDEX($C184:$L184,1,aux!$BA$1)>0,(L184/INDEX($C184:$L184,1,aux!$BA$1))^(1/($L$3-INDEX($C$3:$L$3,1,aux!$BA$1)))-1,"n.d.") -> n.d. | AF184: =IF(INDEX($C184:$L184,1,aux!$BA$1)>0,(L184-INDEX($C184:$L184,1,aux!$BA$1))/INDEX($C184:$L184,1,aux!$BA$1),"n.d.") -> n.d. | AH184: =X184-INDEX($O184:$X184,1,aux!$BA$1) -> 0 | AI184: 0 | AJ184: =+IF(INDEX($O184:$X184,1,aux!$BA$1)>0,(X184/INDEX($O184:$X184,1,aux!$BA$1))^(1/($X$3-INDEX($O$3:$X$3,1,aux!$BA$1)))-1,"n.d.") -> n.d. | AK184: =IF(INDEX($O184:$X184,1,aux!$BA$1)>0,(X184-INDEX($O184:$X184,1,aux!$BA$1))/INDEX($O184:$X184,1,aux!$BA$1),"n.d.") -> n.d. | AM184: 0 | CC184: =+IF(ISNA(MATCH('5.1'!A184,AUX_2d_pais!$G$2:$G$40000,0)),0,1) -> 0
A185: 0060 | B185: Polónia | C185: 0 | D185: 0 | E185: 0 | F185: 0 | G185: 0 | H185: 0 | I185: 0 | J185: 0 | K185: 0 | L185: 0 | M185: 0 | N185: 0 | O185: 0 | P185: 0 | Q185: 0 | R185: 0 | S185: 0 | T185: 0 | U185: 0 | V185: 0 | W185: 0 | X185: 0 | Y185: 0 | Z185: 0 | AA185: 0 | AC185: =L185-INDEX($C185:$L185,1,aux!$BA$1) -> 0 | AD185: 0 | AE185: =+IF(INDEX($C185:$L185,1,aux!$BA$1)>0,(L185/INDEX($C185:$L185,1,aux!$BA$1))^(1/($L$3-INDEX($C$3:$L$3,1,aux!$BA$1)))-1,"n.d.") -> n.d. | AF185: =IF(INDEX($C185:$L185,1,aux!$BA$1)>0,(L185-INDEX($C185:$L185,1,aux!$BA$1))/INDEX($C185:$L185,1,aux!$BA$1),"n.d.") -> n.d. | AH185: =X185-INDEX($O185:$X185,1,aux!$BA$1) -> 0 | AI185: 0 | AJ185: =+IF(INDEX($O185:$X185,1,aux!$BA$1)>0,(X185/INDEX($O185:$X185,1,aux!$BA$1))^(1/($X$3-INDEX($O$3:$X$3,1,aux!$BA$1)))-1,"n.d.") -> n.d. | AK185: =IF(INDEX($O185:$X185,1,aux!$BA$1)>0,(X185-INDEX($O185:$X185,1,aux!$BA$1))/INDEX($O185:$X185,1,aux!$BA$1),"n.d.") -> n.d. | AM185: 0 | CC185: =+IF(ISNA(MATCH('5.1'!A185,AUX_2d_pais!$G$2:$G$40000,0)),0,1) -> 0
A186: 0346 | B186: Quénia | C186: 0 | D186: 0 | E186: 0 | F186: 0 | G186: 0 | H186: 0 | I186: 0 | J186: 0 | K186: 0 | L186: 0 | M186: 0 | N186: 0 | O186: 0 | P186: 0 | Q186: 0 | R186: 0 | S186: 0 | T186: 0 | U186: 0 | V186: 0 | W186: 0 | X186: 0 | Y186: 0 | Z186: 0 | AA186: 0 | AC186: =L186-INDEX($C186:$L186,1,aux!$BA$1) -> 0 | AD186: 0 | AE186: =+IF(INDEX($C186:$L186,1,aux!$BA$1)>0,(L186/INDEX($C186:$L186,1,aux!$BA$1))^(1/($L$3-INDEX($C$3:$L$3,1,aux!$BA$1)))-1,"n.d.") -> n.d. | AF186: =IF(INDEX($C186:$L186,1,aux!$BA$1)>0,(L186-INDEX($C186:$L186,1,aux!$BA$1))/INDEX($C186:$L186,1,aux!$BA$1),"n.d.") -> n.d. | AH186: =X186-INDEX($O186:$X186,1,aux!$BA$1) -> 0 | AI186: 0 | AJ186: =+IF(INDEX($O186:$X186,1,aux!$BA$1)>0,(X186/INDEX($O186:$X186,1,aux!$BA$1))^(1/($X$3-INDEX($O$3:$X$3,1,aux!$BA$1)))-1,"n.d.") -> n.d. | AK186: =IF(INDEX($O186:$X186,1,aux!$BA$1)>0,(X186-INDEX($O186:$X186,1,aux!$BA$1))/INDEX($O186:$X186,1,aux!$BA$1),"n.d.") -> n.d. | AM186: 0 | CC186: =+IF(ISNA(MATCH('5.1'!A186,AUX_2d_pais!$G$2:$G$40000,0)),0,1) -> 0
A187: 0083 | B187: Quirguizistão | C187: 0 | D187: 0 | E187: 0 | F187: 0 | G187: 0 | H187: 0 | I187: 0 | J187: 0 | K187: 0 | L187: 0 | M187: 0 | N187: 0 | O187: 0 | P187: 0 | Q187: 0 | R187: 0 | S187: 0 | T187: 0 | U187: 0 | V187: 0 | W187: 0 | X187: 0 | Y187: 0 | Z187: 0 | AA187: 0 | AC187: =L187-INDEX($C187:$L187,1,aux!$BA$1) -> 0 | AD187: 0 | AE187: =+IF(INDEX($C187:$L187,1,aux!$BA$1)>0,(L187/INDEX($C187:$L187,1,aux!$BA$1))^(1/($L$3-INDEX($C$3:$L$3,1,aux!$BA$1)))-1,"n.d.") -> n.d. | AF187: =IF(INDEX($C187:$L187,1,aux!$BA$1)>0,(L187-INDEX($C187:$L187,1,aux!$BA$1))/INDEX($C187:$L187,1,aux!$BA$1),"n.d.") -> n.d. | AH187: =X187-INDEX($O187:$X187,1,aux!$BA$1) -> 0 | AI187: 0 | AJ187: =+IF(INDEX($O187:$X187,1,aux!$BA$1)>0,(X187/INDEX($O187:$X187,1,aux!$BA$1))^(1/($X$3-INDEX($O$3:$X$3,1,aux!$BA$1)))-1,"n.d.") -> n.d. | AK187: =IF(INDEX($O187:$X187,1,aux!$BA$1)>0,(X187-INDEX($O187:$X187,1,aux!$BA$1))/INDEX($O187:$X187,1,aux!$BA$1),"n.d.") -> n.d. | AM187: 0 | CC187: =+IF(ISNA(MATCH('5.1'!A187,AUX_2d_pais!$G$2:$G$40000,0)),0,1) -> 0
A188: 0890 | B188: Região Polar | C188: 0 | D188: 0 | E188: 0 | F188: 0 | G188: 0 | H188: 0 | I188: 0 | J188: 0 | K188: 0 | L188: 0 | M188: 0 | N188: 0 | O188: 0 | P188: 0 | Q188: 0 | R188: 0 | S188: 0 | T188: 0 | U188: 0 | V188: 0 | W188: 0 | X188: 0 | Y188: 0 | Z188: 0 | AA188: 0 | AC188: =L188-INDEX($C188:$L188,1,aux!$BA$1) -> 0 | AD188: 0 | AE188: =+IF(INDEX($C188:$L188,1,aux!$BA$1)>0,(L188/INDEX($C188:$L188,1,aux!$BA$1))^(1/($L$3-INDEX($C$3:$L$3,1,aux!$BA$1)))-1,"n.d.") -> n.d. | AF188: =IF(INDEX($C188:$L188,1,aux!$BA$1)>0,(L188-INDEX($C188:$L188,1,aux!$BA$1))/INDEX($C188:$L188,1,aux!$BA$1),"n.d.") -> n.d. | AH188: =X188-INDEX($O188:$X188,1,aux!$BA$1) -> 0 | AI188: 0 | AJ188: =+IF(INDEX($O188:$X188,1,aux!$BA$1)>0,(X188/INDEX($O188:$X188,1,aux!$BA$1))^(1/($X$3-INDEX($O$3:$X$3,1,aux!$BA$1)))-1,"n.d.") -> n.d. | AK188: =IF(INDEX($O188:$X188,1,aux!$BA$1)>0,(X188-INDEX($O188:$X188,1,aux!$BA$1))/INDEX($O188:$X188,1,aux!$BA$1),"n.d.") -> n.d. | AM188: 0 | BO188: 0 | CC188: =+IF(ISNA(MATCH('5.1'!A188,AUX_2d_pais!$G$2:$G$40000,0)),0,1) -> 0
A189: 0006 | B189: Reino Unido | C189: 0 | D189: 0 | E189: 0 | F189: 0 | G189: 0 | H189: 0 | I189: 0 | J189: 0 | K189: 0 | L189: 0 | M189: 0 | N189: 0 | O189: 0 | P189: 0 | Q189: 0 | R189: 0 | S189: 0 | T189: 0 | U189: 0 | V189: 0 | W189: 0 | X189: 0 | Y189: 0 | Z189: 0 | AA189: 0 | AC189: =L189-INDEX($C189:$L189,1,aux!$BA$1) -> 0 | AD189: 0 | AE189: =+IF(INDEX($C189:$L189,1,aux!$BA$1)>0,(L189/INDEX($C189:$L189,1,aux!$BA$1))^(1/($L$3-INDEX($C$3:$L$3,1,aux!$BA$1)))-1,"n.d.") -> n.d. | AF189: =IF(INDEX($C189:$L189,1,aux!$BA$1)>0,(L189-INDEX($C189:$L189,1,aux!$BA$1))/INDEX($C189:$L189,1,aux!$BA$1),"n.d.") -> n.d. | AH189: =X189-INDEX($O189:$X189,1,aux!$BA$1) -> 0 | AI189: 0 | AJ189: =+IF(INDEX($O189:$X189,1,aux!$BA$1)>0,(X189/INDEX($O189:$X189,1,aux!$BA$1))^(1/($X$3-INDEX($O$3:$X$3,1,aux!$BA$1)))-1,"n.d.") -> n.d. | AK189: =IF(INDEX($O189:$X189,1,aux!$BA$1)>0,(X189-INDEX($O189:$X189,1,aux!$BA$1))/INDEX($O189:$X189,1,aux!$BA$1),"n.d.") -> n.d. | AM189: 0 | CC189: =+IF(ISNA(MATCH('5.1'!A189,AUX_2d_pais!$G$2:$G$40000,0)),0,1) -> 0
A190: 0372 | B190: Reunião, Ilha da | C190: 0 | D190: 0 | E190: 0 | F190: 0 | G190: 0 | H190: 0 | I190: 0 | J190: 0 | K190: 0 | L190: 0 | M190: 0 | N190: 0 | O190: 0 | P190: 0 | Q190: 0 | R190: 0 | S190: 0 | T190: 0 | U190: 0 | V190: 0 | W190: 0 | X190: 0 | Y190: 0 | Z190: 0 | AA190: 0 | AC190: =L190-INDEX($C190:$L190,1,aux!$BA$1) -> 0 | AD190: 0 | AE190: =+IF(INDEX($C190:$L190,1,aux!$BA$1)>0,(L190/INDEX($C190:$L190,1,aux!$BA$1))^(1/($L$3-INDEX($C$3:$L$3,1,aux!$BA$1)))-1,"n.d.") -> n.d. | AF190: =IF(INDEX($C190:$L190,1,aux!$BA$1)>0,(L190-INDEX($C190:$L190,1,aux!$BA$1))/INDEX($C190:$L190,1,aux!$BA$1),"n.d.") -> n.d. | AH190: =X190-INDEX($O190:$X190,1,aux!$BA$1) -> 0 | AI190: 0 | AJ190: =+IF(INDEX($O190:$X190,1,aux!$BA$1)>0,(X190/INDEX($O190:$X190,1,aux!$BA$1))^(1/($X$3-INDEX($O$3:$X$3,1,aux!$BA$1)))-1,"n.d.") -> n.d. | AK190: =IF(INDEX($O190:$X190,1,aux!$BA$1)>0,(X190-INDEX($O190:$X190,1,aux!$BA$1))/INDEX($O190:$X190,1,aux!$BA$1),"n.d.") -> n.d. | AM190: 0 | BO190: 0 | CC190: =+IF(ISNA(MATCH('5.1'!A190,AUX_2d_pais!$G$2:$G$40000,0)),0,1) -> 0
A191: 0066 | B191: Roménia | C191: 0 | D191: 0 | E191: 0 | F191: 0 | G191: 0 | H191: 0 | I191: 0 | J191: 0 | K191: 0 | L191: 0 | M191: 0 | N191: 0 | O191: 0 | P191: 0 | Q191: 0 | R191: 0 | S191: 0 | T191: 0 | U191: 0 | V191: 0 | W191: 0 | X191: 0 | Y191: 0 | Z191: 0 | AA191: 0 | AC191: =L191-INDEX($C191:$L191,1,aux!$BA$1) -> 0 | AD191: 0 | AE191: =+IF(INDEX($C191:$L191,1,aux!$BA$1)>0,(L191/INDEX($C191:$L191,1,aux!$BA$1))^(1/($L$3-INDEX($C$3:$L$3,1,aux!$BA$1)))-1,"n.d.") -> n.d. | AF191: =IF(INDEX($C191:$L191,1,aux!$BA$1)>0,(L191-INDEX($C191:$L191,1,aux!$BA$1))/INDEX($C191:$L191,1,aux!$BA$1),"n.d.") -> n.d. | AH191: =X191-INDEX($O191:$X191,1,aux!$BA$1) -> 0 | AI191: 0 | AJ191: =+IF(INDEX($O191:$X191,1,aux!$BA$1)>0,(X191/INDEX($O191:$X191,1,aux!$BA$1))^(1/($X$3-INDEX($O$3:$X$3,1,aux!$BA$1)))-1,"n.d.") -> n.d. | AK191: =IF(INDEX($O191:$X191,1,aux!$BA$1)>0,(X191-INDEX($O191:$X191,1,aux!$BA$1))/INDEX($O191:$X191,1,aux!$BA$1),"n.d.") -> n.d. | AM191: 0 | CC191: =+IF(ISNA(MATCH('5.1'!A191,AUX_2d_pais!$G$2:$G$40000,0)),0,1) -> 0
A192: 0324 | B192: Ruanda | C192: 0 | D192: 0 | E192: 0 | F192: 0 | G192: 0 | H192: 0 | I192: 0 | J192: 0 | K192: 0 | L192: 0 | M192: 0 | N192: 0 | O192: 0 | P192: 0 | Q192: 0 | R192: 0 | S192: 0 | T192: 0 | U192: 0 | V192: 0 | W192: 0 | X192: 0 | Y192: 0 | Z192: 0 | AA192: 0 | AC192: =L192-INDEX($C192:$L192,1,aux!$BA$1) -> 0 | AD192: 0 | AE192: =+IF(INDEX($C192:$L192,1,aux!$BA$1)>0,(L192/INDEX($C192:$L192,1,aux!$BA$1))^(1/($L$3-INDEX($C$3:$L$3,1,aux!$BA$1)))-1,"n.d.") -> n.d. | AF192: =IF(INDEX($C192:$L192,1,aux!$BA$1)>0,(L192-INDEX($C192:$L192,1,aux!$BA$1))/INDEX($C192:$L192,1,aux!$BA$1),"n.d.") -> n.d. | AH192: =X192-INDEX($O192:$X192,1,aux!$BA$1) -> 0 | AI192: 0 | AJ192: =+IF(INDEX($O192:$X192,1,aux!$BA$1)>0,(X192/INDEX($O192:$X192,1,aux!$BA$1))^(1/($X$3-INDEX($O$3:$X$3,1,aux!$BA$1)))-1,"n.d.") -> n.d. | AK192: =IF(INDEX($O192:$X192,1,aux!$BA$1)>0,(X192-INDEX($O192:$X192,1,aux!$BA$1))/INDEX($O192:$X192,1,aux!$BA$1),"n.d.") -> n.d. | AM192: 0 | BO192: 0 | CC192: =+IF(ISNA(MATCH('5.1'!A192,AUX_2d_pais!$G$2:$G$40000,0)),0,1) -> 0
A193: 0075 | B193: Rússia, Federação da | C193: 0 | D193: 0 | E193: 0 | F193: 0 | G193: 0 | H193: 0 | I193: 0 | J193: 0 | K193: 0 | L193: 0 | M193: 0 | N193: 0 | O193: 0 | P193: 0 | Q193: 0 | R193: 0 | S193: 0 | T193: 0 | U193: 0 | V193: 0 | W193: 0 | X193: 0 | Y193: 0 | Z193: 0 | AA193: 0 | AC193: =L193-INDEX($C193:$L193,1,aux!$BA$1) -> 0 | AD193: 0 | AE193: =+IF(INDEX($C193:$L193,1,aux!$BA$1)>0,(L193/INDEX($C193:$L193,1,aux!$BA$1))^(1/($L$3-INDEX($C$3:$L$3,1,aux!$BA$1)))-1,"n.d.") -> n.d. | AF193: =IF(INDEX($C193:$L193,1,aux!$BA$1)>0,(L193-INDEX($C193:$L193,1,aux!$BA$1))/INDEX($C193:$L193,1,aux!$BA$1),"n.d.") -> n.d. | AH193: =X193-INDEX($O193:$X193,1,aux!$BA$1) -> 0 | AI193: 0 | AJ193: =+IF(INDEX($O193:$X193,1,aux!$BA$1)>0,(X193/INDEX($O193:$X193,1,aux!$BA$1))^(1/($X$3-INDEX($O$3:$X$3,1,aux!$BA$1)))-1,"n.d.") -> n.d. | AK193: =IF(INDEX($O193:$X193,1,aux!$BA$1)>0,(X193-INDEX($O193:$X193,1,aux!$BA$1))/INDEX($O193:$X193,1,aux!$BA$1),"n.d.") -> n.d. | AM193: 0 | CC193: =+IF(ISNA(MATCH('5.1'!A193,AUX_2d_pais!$G$2:$G$40000,0)),0,1) -> 0
A194: 0806 | B194: Salomão, Ilhas | C194: 0 | D194: 0 | E194: 0 | F194: 0 | G194: 0 | H194: 0 | I194: 0 | J194: 0 | K194: 0 | L194: 0 | M194: 0 | N194: 0 | O194: 0 | P194: 0 | Q194: 0 | R194: 0 | S194: 0 | T194: 0 | U194: 0 | V194: 0 | W194: 0 | X194: 0 | Y194: 0 | Z194: 0 | AA194: 0 | AC194: =L194-INDEX($C194:$L194,1,aux!$BA$1) -> 0 | AD194: 0 | AE194: =+IF(INDEX($C194:$L194,1,aux!$BA$1)>0,(L194/INDEX($C194:$L194,1,aux!$BA$1))^(1/($L$3-INDEX($C$3:$L$3,1,aux!$BA$1)))-1,"n.d.") -> n.d. | AF194: =IF(INDEX($C194:$L194,1,aux!$BA$1)>0,(L194-INDEX($C194:$L194,1,aux!$BA$1))/INDEX($C194:$L194,1,aux!$BA$1),"n.d.") -> n.d. | AH194: =X194-INDEX($O194:$X194,1,aux!$BA$1) -> 0 | AI194: 0 | AJ194: =+IF(INDEX($O194:$X194,1,aux!$BA$1)>0,(X194/INDEX($O194:$X194,1,aux!$BA$1))^(1/($X$3-INDEX($O$3:$X$3,1,aux!$BA$1)))-1,"n.d.") -> n.d. | AK194: =IF(INDEX($O194:$X194,1,aux!$BA$1)>0,(X194-INDEX($O194:$X194,1,aux!$BA$1))/INDEX($O194:$X194,1,aux!$BA$1),"n.d.") -> n.d. | AM194: 0 | BO194: 0 | CC194: =+IF(ISNA(MATCH('5.1'!A194,AUX_2d_pais!$G$2:$G$40000,0)),0,1) -> 0
A195: 0819 | B195: Samoa | C195: 0 | D195: 0 | E195: 0 | F195: 0 | G195: 0 | H195: 0 | I195: 0 | J195: 0 | K195: 0 | L195: 0 | M195: 0 | N195: 0 | O195: 0 | P195: 0 | Q195: 0 | R195: 0 | S195: 0 | T195: 0 | U195: 0 | V195: 0 | W195: 0 | X195: 0 | Y195: 0 | Z195: 0 | AA195: 0 | AC195: =L195-INDEX($C195:$L195,1,aux!$BA$1) -> 0 | AD195: 0 | AE195: =+IF(INDEX($C195:$L195,1,aux!$BA$1)>0,(L195/INDEX($C195:$L195,1,aux!$BA$1))^(1/($L$3-INDEX($C$3:$L$3,1,aux!$BA$1)))-1,"n.d.") -> n.d. | AF195: =IF(INDEX($C195:$L195,1,aux!$BA$1)>0,(L195-INDEX($C195:$L195,1,aux!$BA$1))/INDEX($C195:$L195,1,aux!$BA$1),"n.d.") -> n.d. | AH195: =X195-INDEX($O195:$X195,1,aux!$BA$1) -> 0 | AI195: 0 | AJ195: =+IF(INDEX($O195:$X195,1,aux!$BA$1)>0,(X195/INDEX($O195:$X195,1,aux!$BA$1))^(1/($X$3-INDEX($O$3:$X$3,1,aux!$BA$1)))-1,"n.d.") -> n.d. | AK195: =IF(INDEX($O195:$X195,1,aux!$BA$1)>0,(X195-INDEX($O195:$X195,1,aux!$BA$1))/INDEX($O195:$X195,1,aux!$BA$1),"n.d.") -> n.d. | AM195: 0 | BO195: 0 | CC195: =+IF(ISNA(MATCH('5.1'!A195,AUX_2d_pais!$G$2:$G$40000,0)),0,1) -> 0
A196: 0830 | B196: Samoa Americana | C196: 0 | D196: 0 | E196: 0 | F196: 0 | G196: 0 | H196: 0 | I196: 0 | J196: 0 | K196: 0 | L196: 0 | M196: 0 | N196: 0 | O196: 0 | P196: 0 | Q196: 0 | R196: 0 | S196: 0 | T196: 0 | U196: 0 | V196: 0 | W196: 0 | X196: 0 | Y196: 0 | Z196: 0 | AA196: 0 | AC196: =L196-INDEX($C196:$L196,1,aux!$BA$1) -> 0 | AD196: 0 | AE196: =+IF(INDEX($C196:$L196,1,aux!$BA$1)>0,(L196/INDEX($C196:$L196,1,aux!$BA$1))^(1/($L$3-INDEX($C$3:$L$3,1,aux!$BA$1)))-1,"n.d.") -> n.d. | AF196: =IF(INDEX($C196:$L196,1,aux!$BA$1)>0,(L196-INDEX($C196:$L196,1,aux!$BA$1))/INDEX($C196:$L196,1,aux!$BA$1),"n.d.") -> n.d. | AH196: =X196-INDEX($O196:$X196,1,aux!$BA$1) -> 0 | AI196: 0 | AJ196: =+IF(INDEX($O196:$X196,1,aux!$BA$1)>0,(X196/INDEX($O196:$X196,1,aux!$BA$1))^(1/($X$3-INDEX($O$3:$X$3,1,aux!$BA$1)))-1,"n.d.") -> n.d. | AK196: =IF(INDEX($O196:$X196,1,aux!$BA$1)>0,(X196-INDEX($O196:$X196,1,aux!$BA$1))/INDEX($O196:$X196,1,aux!$BA$1),"n.d.") -> n.d. | AM196: =SUM(A196:AA196) -> 0 | BO196: =SUM(C196:L196,O196:X196) -> 0 | CC196: =+IF(ISNA(MATCH('5.1'!A196,AUX_2d_pais!$G$2:$G$40000,0)),0,1) -> 0
A197: 0329 | B197: Santa Helena | C197: 0 | D197: 0 | E197: 0 | F197: 0 | G197: 0 | H197: 0 | I197: 0 | J197: 0 | K197: 0 | L197: 0 | M197: 0 | N197: 0 | O197: 0 | P197: 0 | Q197: 0 | R197: 0 | S197: 0 | T197: 0 | U197: 0 | V197: 0 | W197: 0 | X197: 0 | Y197: 0 | Z197: 0 | AA197: 0 | AC197: =L197-INDEX($C197:$L197,1,aux!$BA$1) -> 0 | AD197: 0 | AE197: =+IF(INDEX($C197:$L197,1,aux!$BA$1)>0,(L197/INDEX($C197:$L197,1,aux!$BA$1))^(1/($L$3-INDEX($C$3:$L$3,1,aux!$BA$1)))-1,"n.d.") -> n.d. | AF197: =IF(INDEX($C197:$L197,1,aux!$BA$1)>0,(L197-INDEX($C197:$L197,1,aux!$BA$1))/INDEX($C197:$L197,1,aux!$BA$1),"n.d.") -> n.d. | AH197: =X197-INDEX($O197:$X197,1,aux!$BA$1) -> 0 | AI197: 0 | AJ197: =+IF(INDEX($O197:$X197,1,aux!$BA$1)>0,(X197/INDEX($O197:$X197,1,aux!$BA$1))^(1/($X$3-INDEX($O$3:$X$3,1,aux!$BA$1)))-1,"n.d.") -> n.d. | AK197: =IF(INDEX($O197:$X197,1,aux!$BA$1)>0,(X197-INDEX($O197:$X197,1,aux!$BA$1))/INDEX($O197:$X197,1,aux!$BA$1),"n.d.") -> n.d. | AM197: 0 | BO197: 0 | CC197: =+IF(ISNA(MATCH('5.1'!A197,AUX_2d_pais!$G$2:$G$40000,0)),0,1) -> 0
A198: 0465 | B198: Santa Lúcia | C198: 0 | D198: 0 | E198: 0 | F198: 0 | G198: 0 | H198: 0 | I198: 0 | J198: 0 | K198: 0 | L198: 0 | M198: 0 | N198: 0 | O198: 0 | P198: 0 | Q198: 0 | R198: 0 | S198: 0 | T198: 0 | U198: 0 | V198: 0 | W198: 0 | X198: 0 | Y198: 0 | Z198: 0 | AA198: 0 | AC198: =L198-INDEX($C198:$L198,1,aux!$BA$1) -> 0 | AD198: 0 | AE198: =+IF(INDEX($C198:$L198,1,aux!$BA$1)>0,(L198/INDEX($C198:$L198,1,aux!$BA$1))^(1/($L$3-INDEX($C$3:$L$3,1,aux!$BA$1)))-1,"n.d.") -> n.d. | AF198: =IF(INDEX($C198:$L198,1,aux!$BA$1)>0,(L198-INDEX($C198:$L198,1,aux!$BA$1))/INDEX($C198:$L198,1,aux!$BA$1),"n.d.") -> n.d. | AH198: =X198-INDEX($O198:$X198,1,aux!$BA$1) -> 0 | AI198: 0 | AJ198: =+IF(INDEX($O198:$X198,1,aux!$BA$1)>0,(X198/INDEX($O198:$X198,1,aux!$BA$1))^(1/($X$3-INDEX($O$3:$X$3,1,aux!$BA$1)))-1,"n.d.") -> n.d. | AK198: =IF(INDEX($O198:$X198,1,aux!$BA$1)>0,(X198-INDEX($O198:$X198,1,aux!$BA$1))/INDEX($O198:$X198,1,aux!$BA$1),"n.d.") -> n.d. | AM198: 0 | BO198: 0 | CC198: =+IF(ISNA(MATCH('5.1'!A198,AUX_2d_pais!$G$2:$G$40000,0)),0,1) -> 0
A199: 0045 | B199: Santa Sé (Cidade Estado do Vaticano) | C199: 0 | D199: 0 | E199: 0 | F199: 0 | G199: 0 | H199: 0 | I199: 0 | J199: 0 | K199: 0 | L199: 0 | M199: 0 | N199: 0 | O199: 0 | P199: 0 | Q199: 0 | R199: 0 | S199: 0 | T199: 0 | U199: 0 | V199: 0 | W199: 0 | X199: 0 | Y199: 0 | Z199: 0 | AA199: 0 | AC199: =L199-INDEX($C199:$L199,1,aux!$BA$1) -> 0 | AD199: 0 | AE199: =+IF(INDEX($C199:$L199,1,aux!$BA$1)>0,(L199/INDEX($C199:$L199,1,aux!$BA$1))^(1/($L$3-INDEX($C$3:$L$3,1,aux!$BA$1)))-1,"n.d.") -> n.d. | AF199: =IF(INDEX($C199:$L199,1,aux!$BA$1)>0,(L199-INDEX($C199:$L199,1,aux!$BA$1))/INDEX($C199:$L199,1,aux!$BA$1),"n.d.") -> n.d. | AH199: =X199-INDEX($O199:$X199,1,aux!$BA$1) -> 0 | AI199: 0 | AJ199: =+IF(INDEX($O199:$X199,1,aux!$BA$1)>0,(X199/INDEX($O199:$X199,1,aux!$BA$1))^(1/($X$3-INDEX($O$3:$X$3,1,aux!$BA$1)))-1,"n.d.") -> n.d. | AK199: =IF(INDEX($O199:$X199,1,aux!$BA$1)>0,(X199-INDEX($O199:$X199,1,aux!$BA$1))/INDEX($O199:$X199,1,aux!$BA$1),"n.d.") -> n.d. | AM199: 0 | BO199: 0 | CC199: =+IF(ISNA(MATCH('5.1'!A199,AUX_2d_pais!$G$2:$G$40000,0)),0,1) -> 0
A200: 0466 | B200: São Bartolomeu | C200: 0 | D200: 0 | E200: 0 | F200: 0 | G200: 0 | H200: 0 | I200: 0 | J200: 0 | K200: 0 | L200: 0 | M200: 0 | N200: 0 | O200: 0 | P200: 0 | Q200: 0 | R200: 0 | S200: 0 | T200: 0 | U200: 0 | V200: 0 | W200: 0 | X200: 0 | Y200: 0 | Z200: 0 | AA200: 0 | AC200: =L200-INDEX($C200:$L200,1,aux!$BA$1) -> 0 | AD200: 0 | AE200: =+IF(INDEX($C200:$L200,1,aux!$BA$1)>0,(L200/INDEX($C200:$L200,1,aux!$BA$1))^(1/($L$3-INDEX($C$3:$L$3,1,aux!$BA$1)))-1,"n.d.") -> n.d. | AF200: =IF(INDEX($C200:$L200,1,aux!$BA$1)>0,(L200-INDEX($C200:$L200,1,aux!$BA$1))/INDEX($C200:$L200,1,aux!$BA$1),"n.d.") -> n.d. | AH200: =X200-INDEX($O200:$X200,1,aux!$BA$1) -> 0 | AI200: 0 | AJ200: =+IF(INDEX($O200:$X200,1,aux!$BA$1)>0,(X200/INDEX($O200:$X200,1,aux!$BA$1))^(1/($X$3-INDEX($O$3:$X$3,1,aux!$BA$1)))-1,"n.d.") -> n.d. | AK200: =IF(INDEX($O200:$X200,1,aux!$BA$1)>0,(X200-INDEX($O200:$X200,1,aux!$BA$1))/INDEX($O200:$X200,1,aux!$BA$1),"n.d.") -> n.d. | AM200: 0 | CC200: =+IF(ISNA(MATCH('5.1'!A200,AUX_2d_pais!$G$2:$G$40000,0)),0,1) -> 0
... 54 more rows

Sheet 5.1_var
A1: ="Principais contributos por país para a variação das trocas comerciais PT-América do Sul_x000D_ no período " & INDEX('5.2'!P3:X3,1,aux!BA1) & "-2018 Agroalimentar, Mar & Florestas (valores em milhares de euros)" -> Principais contributos por país para a variação das trocas comerciais PT-América do Sul no período 2009-2018 Agroalimentar, Mar & Florestas (valores em milhares de euros)
E5: aumento das importações | J5: aumento das exportações
E17: redução das importações | J17: redução das exportações
A28: Fonte: GPP a partir de dados INE/Comércio Internacional (2017 provisórios; 2018 preliminares) | H28: ='3'!Y116 -> 2019-11-28T16:59:05.600
A29: Cód. NC | B29: Descritivo | C29: ="Variação das Importações " & INDEX('5.2'!C3:L3,1,aux!BA1) & "-"& '5.2'!L3&"" -> Variação das Importações 2009-2018 | F29: Cód. NC | G29: Descritivo | H29: ="Variação das Exportações " & INDEX('5.2'!P3:X3,1,aux!BA1) & "-"& '5.2'!Y3 &"" -> Variação das Exportações 2009-2018
C30: variação total em valor | D30: % do aumento/ redução total | H30: variação total em valor | I30: % do aumento/ redução total
A31: =IF(C31>0,aux!CY6,"") -> 0524 | B31: =IF(C31>0,aux!CZ6,"") -> Uruguai | C31: =IF(aux!DA6>0,aux!DA6,0) -> 106967.704 | D31: =IF(SUM($C$31:$C$41)<>0,C31/SUM($C$31:$C$41),0) -> 0.3891551862 | F31: =IF(H31>0,aux!DD6,"") -> 0508 | G31: =IF(H31>0,aux!DE6,"") -> Brasil | H31: =IF(aux!DF6>0,aux!DF6,0) -> 271847.423 | I31: =IF(SUM($H$31:$H$41)<>0,H31/SUM($H$31:$H$41),0) -> 0.8446698821
A32: =IF(C32>0,aux!CY7,"") -> 0508 | B32: =IF(C32>0,aux!CZ7,"") -> Brasil | C32: =IF(aux!DA7>0,aux!DA7,0) -> 70952.464 | D32: =IF(SUM($C$31:$C$41)<>0,C32/SUM($C$31:$C$41),0) -> 0.2581294943 | F32: =IF(H32>0,aux!DD7,"") -> 0512 | G32: =IF(H32>0,aux!DE7,"") -> Chile | H32: =IF(aux!DF7>0,aux!DF7,0) -> 26431.956 | I32: =IF(SUM($H$31:$H$41)<>0,H32/SUM($H$31:$H$41),0) -> 0.08212797058
A33: =IF(C33>0,aux!CY8,"") -> 0520 | B33: =IF(C33>0,aux!CZ8,"") -> Paraguai | C33: =IF(aux!DA8>0,aux!DA8,0) -> 49841.99 | D33: 0.1813282717 | F33: =IF(H33>0,aux!DD8,"") -> 0504 | G33: =IF(H33>0,aux!DE8,"") -> Peru | H33: =IF(aux!DF8>0,aux!DF8,0) -> 7469.176 | I33: 0.02320782718
A34: =IF(C34>0,aux!CY9,"") -> 0512 | B34: =IF(C34>0,aux!CZ9,"") -> Chile | C34: =IF(aux!DA9>0,aux!DA9,0) -> 22912.113 | D34: 0.08335569772 | F34: =IF(H34>0,aux!DD9,"") -> 0480 | G34: =IF(H34>0,aux!DE9,"") -> Colômbia | H34: =IF(aux!DF9>0,aux!DF9,0) -> 7128.034 | I34: 0.02214784886
A35: =IF(C35>0,aux!CY10,"") -> 0504 | B35: =IF(C35>0,aux!CZ10,"") -> Peru | C35: =IF(aux!DA10>0,aux!DA10,0) -> 7211.643 | D35: 0.02623640753 | F35: =IF(H35>0,aux!DD10,"") -> 0500 | G35: =IF(H35>0,aux!DE10,"") -> Equador | H35: =IF(aux!DF10>0,aux!DF10,0) -> 2868.503 | I35: 0.008912860251
A36: =IF(C36>0,aux!CY11,"") -> 0492 | B36: =IF(C36>0,aux!CZ11,"") -> Suriname | C36: =IF(aux!DA11>0,aux!DA11,0) -> 6812.792 | D36: 0.02478536268 | F36: =IF(H36>0,aux!DD11,"") -> 0520 | G36: =IF(H36>0,aux!DE11,"") -> Paraguai | H36: =IF(aux!DF11>0,aux!DF11,0) -> 2363.642 | I36: 0.007344182952
A37: =IF(C37>0,aux!CY12,"") -> 0500 | B37: =IF(C37>0,aux!CZ12,"") -> Equador | C37: =IF(aux!DA12>0,aux!DA12,0) -> 5292.688 | D37: 0.01925512942 | F37: =IF(H37>0,aux!DD12,"") -> 0524 | G37: =IF(H37>0,aux!DE12,"") -> Uruguai | H37: =IF(aux!DF12>0,aux!DF12,0) -> 1672.197 | I37: 0.005195761752
A38: =IF(C38>0,aux!CY13,"") -> 0480 | B38: =IF(C38>0,aux!CZ13,"") -> Colômbia | C38: =IF(aux!DA13>0,aux!DA13,0) -> 4672.899 | D38: 0.01700029834 | F38: =IF(H38>0,aux!DD13,"") -> 0516 | G38: =IF(H38>0,aux!DE13,"") -> Bolívia | H38: =IF(aux!DF13>0,aux!DF13,0) -> 1557.224 | I38: 0.00483852375
A39: =IF(C39>0,aux!CY14,"") -> 0516 | B39: =IF(C39>0,aux!CZ14,"") -> Bolívia | C39: =IF(aux!DA14>0,aux!DA14,0) -> 207.295 | D39: 0.0007541521534 | F39: =IF(H39>0,aux!DD14,"") -> 0492 | G39: =IF(H39>0,aux!DE14,"") -> Suriname | H39: =IF(aux!DF14>0,aux!DF14,0) -> 337.326 | I39: 0.001048121441
A40: =IF(C40>0,aux!CY15,"") ->  | B40: =IF(C40>0,aux!CZ15,"") ->  | C40: =IF(aux!DA15>0,aux!DA15,0) -> 0 | D40: 0 | F40: =IF(H40>0,aux!DD15,"") -> 0488 | G40: =IF(H40>0,aux!DE15,"") -> Guiana | H40: =IF(aux!DF15>0,aux!DF15,0) -> 163.179 | I40: 0.0005070211267
B41: Outros contributos para o aumento das importações | C41: =SUMIF(aux!DA16:DA252,">0") -> 0 | D41: 0 | G41: Outros contributos para o aumento das exportações | H41: =SUMIF(aux!DF16:DF252,">0") -> 0 | I41: 0
B42: Outros contributos para a redução das importações | C42: =SUMIF(aux!DA6:DA242,"<0") -> 0 | D42: =IF(SUM($C$42:$C$52)<>0,C42/SUM($C$42:$C$52),0) -> 0 | G42: Outros contributos para a redução das exportações | H42: =SUMIF(aux!DF6:DF242,"<0") -> 0 | I42: =IF(SUM($H$42:$H$52)<>0,H42/SUM($H$42:$H$52),0) -> 0
A43: =IF(C43<>0,aux!CY243,"") ->  | B43: =IF(C43<0,aux!CZ243,"") ->  | C43: =IF(aux!DA243<0,aux!DA243,0) -> 0 | D43: =IF(SUM($C$42:$C$52)<>0,C43/SUM($C$42:$C$52),0) -> 0 | F43: =IF(H43<>0,aux!DD243,"") ->  | G43: =IF(H43<>0,aux!DE243,"") ->  | H43: =IF(aux!DF243<0,aux!DF243,0) -> 0 | I43: =IF(SUM($H$42:$H$52)<>0,H43/SUM($H$42:$H$52),0) -> 0
A44: =IF(C44<>0,aux!CY244,"") ->  | B44: =IF(C44<0,aux!CZ244,"") ->  | C44: =IF(aux!DA244<0,aux!DA244,0) -> 0 | D44: 0 | F44: =IF(H44<>0,aux!DD244,"") ->  | G44: =IF(H44<>0,aux!DE244,"") ->  | H44: =IF(aux!DF244<0,aux!DF244,0) -> 0 | I44: 0
A45: =IF(C45<>0,aux!CY245,"") ->  | B45: =IF(C45<0,aux!CZ245,"") ->  | C45: =IF(aux!DA245<0,aux!DA245,0) -> 0 | D45: 0 | F45: =IF(H45<>0,aux!DD245,"") ->  | G45: =IF(H45<>0,aux!DE245,"") ->  | H45: =IF(aux!DF245<0,aux!DF245,0) -> 0 | I45: 0
A46: =IF(C46<>0,aux!CY246,"") ->  | B46: =IF(C46<0,aux!CZ246,"") ->  | C46: =IF(aux!DA246<0,aux!DA246,0) -> 0 | D46: 0 | F46: =IF(H46<>0,aux!DD246,"") ->  | G46: =IF(H46<>0,aux!DE246,"") ->  | H46: =IF(aux!DF246<0,aux!DF246,0) -> 0 | I46: 0
A47: =IF(C47<>0,aux!CY247,"") ->  | B47: =IF(C47<0,aux!CZ247,"") ->  | C47: =IF(aux!DA247<0,aux!DA247,0) -> 0 | D47: 0 | F47: =IF(H47<>0,aux!DD247,"") ->  | G47: =IF(H47<>0,aux!DE247,"") ->  | H47: =IF(aux!DF247<0,aux!DF247,0) -> 0 | I47: 0
A48: =IF(C48<>0,aux!CY248,"") ->  | B48: =IF(C48<0,aux!CZ248,"") ->  | C48: =IF(aux!DA248<0,aux!DA248,0) -> 0 | D48: 0 | F48: =IF(H48<>0,aux!DD248,"") ->  | G48: =IF(H48<>0,aux!DE248,"") ->  | H48: =IF(aux!DF248<0,aux!DF248,0) -> 0 | I48: 0
A49: =IF(C49<>0,aux!CY249,"") ->  | B49: =IF(C49<0,aux!CZ249,"") ->  | C49: =IF(aux!DA249<0,aux!DA249,0) -> 0 | D49: 0 | F49: =IF(H49<>0,aux!DD249,"") ->  | G49: =IF(H49<>0,aux!DE249,"") ->  | H49: =IF(aux!DF249<0,aux!DF249,0) -> 0 | I49: 0
A50: =IF(C50<>0,aux!CY250,"") -> 0484 | B50: =IF(C50<0,aux!CZ250,"") -> Venezuela | C50: =IF(aux!DA250<0,aux!DA250,0) -> -504.05 | D50: 0.01168921127 | F50: =IF(H50<>0,aux!DD250,"") ->  | G50: =IF(H50<>0,aux!DE250,"") ->  | H50: =IF(aux!DF250<0,aux!DF250,0) -> 0 | I50: 0
A51: =IF(C51<>0,aux!CY251,"") -> 0488 | B51: =IF(C51<0,aux!CZ251,"") -> Guiana | C51: =IF(aux!DA251<0,aux!DA251,0) -> -1916.199 | D51: 0.04443776401 | F51: =IF(H51<>0,aux!DD251,"") -> 0528 | G51: =IF(H51<>0,aux!DE251,"") -> Argentina | H51: =IF(aux!DF251<0,aux!DF251,0) -> -3118.935 | I51: 0.2667874292
A52: =IF(C52<>0,aux!CY252,"") -> 0528 | B52: =IF(C52<0,aux!CZ252,"") -> Argentina | C52: =IF(aux!DA252<0,aux!DA252,0) -> -40700.71 | D52: 0.9438730247 | F52: =IF(H52<>0,aux!DD252,"") -> 0484 | G52: =IF(H52<>0,aux!DE252,"") -> Venezuela | H52: =IF(aux!DF252<0,aux!DF252,0) -> -8571.777 | I52: 0.7332125708
A53: TOTAL | C53: =SUM(C31:C52) -> 231750.629 | F53: TOTAL | H53: =SUM(H31:H52) -> 310147.948

Sheet 5.1A
A1: Trocas comerciais Portugal-América do Sul (2009-2018) por país em milhares de euros | C1: Produtos agrícolas e agroalimentares
A2: Cód. País | B2: País | C2: Importações | O2: Exportações | AA2: Saldo período (exp-imp) | AB2: Evolução das importações | AC2: =+"Variação das Importações " & INDEX(C3:K3,1,aux!$BA$1) & "-"& L3 &"" -> Variação das Importações 2009-2018 | AG2: Evolução das exportações | AH2: ="Variação das Exportações " & INDEX(O3:W3,1,aux!BA1) & "-"& X3 &"" -> Variação das Exportações 2009-2018
C3: 2009 | D3: 2010 | E3: 2011 | F3: 2012 | G3: 2013 | H3: 2014 | I3: 2015 | J3: 2016 | K3: 2017 | L3: 2018 | M3: média período | N3: % Total | O3: 2009 | P3: 2010 | Q3: 2011 | R3: 2012 | S3: 2013 | T3: 2014 | U3: 2015 | V3: 2016 | W3: 2017 | X3: 2018 | Y3: média período | Z3: % Total | AC3: variação total em valor | AD3: % no total de variação | AE3: taxa de variação média anual | AF3: taxa de variação total | AH3: variação total em valor | AI3: % no total de variação | AJ3: taxa de variação média anual | AK3: taxa de variação total | CC3: filtro
A4: 0660 | B4: Afeganistão | C4: 0 | D4: 0 | E4: 0 | F4: 0 | G4: 0 | H4: 0 | I4: 0 | J4: 0 | K4: 0 | L4: 0 | M4: 0 | N4: 0 | O4: 0 | P4: 0 | Q4: 0 | R4: 0 | S4: 0 | T4: 0 | U4: 0 | V4: 0 | W4: 0 | X4: 0 | Y4: 0 | Z4: 0 | AA4: 0 | AC4: =L4-INDEX($C4:$L4,1,aux!$BA$1) -> 0 | AD4: =AC4/$AC$252 -> 0 | AE4: =+IF(INDEX($C4:$L4,1,aux!$BA$1)>0,(L4/INDEX($C4:$L4,1,aux!$BA$1))^(1/($L$3-INDEX($C$3:$L$3,1,aux!$BA$1)))-1,"n.d.") -> n.d. | AF4: =IF(INDEX($C4:$L4,1,aux!$BA$1)>0,(L4-INDEX($C4:$L4,1,aux!$BA$1))/INDEX($C4:$L4,1,aux!$BA$1),"n.d.") -> n.d. | AH4: =X4-INDEX($O4:$X4,1,aux!$BA$1) -> 0 | AI4: =AH4/$AH$252 -> 0 | AJ4: =+IF(INDEX($O4:$X4,1,aux!$BA$1)>0,(X4/INDEX($O4:$X4,1,aux!$BA$1))^(1/($X$3-INDEX($O$3:$X$3,1,aux!$BA$1)))-1,"n.d.") -> n.d. | AK4: =IF(INDEX($O4:$X4,1,aux!$BA$1)>0,(X4-INDEX($O4:$X4,1,aux!$BA$1))/INDEX($O4:$X4,1,aux!$BA$1),"n.d.") -> n.d. | AM4: =SUM(A4:AA4) -> 0 | CC4: =+IF(ISNA(MATCH('5.1'!A4,AUX_2d_pais!$G$2:$G$40000,0)),0,1) -> 0
A5: 0388 | B5: África do Sul | C5: 0 | D5: 0 | E5: 0 | F5: 0 | G5: 0 | H5: 0 | I5: 0 | J5: 0 | K5: 0 | L5: 0 | M5: 0 | N5: 0 | O5: 0 | P5: 0 | Q5: 0 | R5: 0 | S5: 0 | T5: 0 | U5: 0 | V5: 0 | W5: 0 | X5: 0 | Y5: 0 | Z5: 0 | AA5: 0 | AC5: =L5-INDEX($C5:$L5,1,aux!$BA$1) -> 0 | AD5: 0 | AE5: =+IF(INDEX($C5:$L5,1,aux!$BA$1)>0,(L5/INDEX($C5:$L5,1,aux!$BA$1))^(1/($L$3-INDEX($C$3:$L$3,1,aux!$BA$1)))-1,"n.d.") -> n.d. | AF5: =IF(INDEX($C5:$L5,1,aux!$BA$1)>0,(L5-INDEX($C5:$L5,1,aux!$BA$1))/INDEX($C5:$L5,1,aux!$BA$1),"n.d.") -> n.d. | AH5: =X5-INDEX($O5:$X5,1,aux!$BA$1) -> 0 | AI5: 0 | AJ5: =+IF(INDEX($O5:$X5,1,aux!$BA$1)>0,(X5/INDEX($O5:$X5,1,aux!$BA$1))^(1/($X$3-INDEX($O$3:$X$3,1,aux!$BA$1)))-1,"n.d.") -> n.d. | AK5: =IF(INDEX($O5:$X5,1,aux!$BA$1)>0,(X5-INDEX($O5:$X5,1,aux!$BA$1))/INDEX($O5:$X5,1,aux!$BA$1),"n.d.") -> n.d. | AM5: 0 | CC5: =+IF(ISNA(MATCH('5.1'!A5,AUX_2d_pais!$G$2:$G$40000,0)),0,1) -> 0
A6: 0070 | B6: Albânia | C6: 0 | D6: 0 | E6: 0 | F6: 0 | G6: 0 | H6: 0 | I6: 0 | J6: 0 | K6: 0 | L6: 0 | M6: 0 | N6: 0 | O6: 0 | P6: 0 | Q6: 0 | R6: 0 | S6: 0 | T6: 0 | U6: 0 | V6: 0 | W6: 0 | X6: 0 | Y6: 0 | Z6: 0 | AA6: 0 | AC6: =L6-INDEX($C6:$L6,1,aux!$BA$1) -> 0 | AD6: 0 | AE6: =+IF(INDEX($C6:$L6,1,aux!$BA$1)>0,(L6/INDEX($C6:$L6,1,aux!$BA$1))^(1/($L$3-INDEX($C$3:$L$3,1,aux!$BA$1)))-1,"n.d.") -> n.d. | AF6: =IF(INDEX($C6:$L6,1,aux!$BA$1)>0,(L6-INDEX($C6:$L6,1,aux!$BA$1))/INDEX($C6:$L6,1,aux!$BA$1),"n.d.") -> n.d. | AH6: =X6-INDEX($O6:$X6,1,aux!$BA$1) -> 0 | AI6: 0 | AJ6: =+IF(INDEX($O6:$X6,1,aux!$BA$1)>0,(X6/INDEX($O6:$X6,1,aux!$BA$1))^(1/($X$3-INDEX($O$3:$X$3,1,aux!$BA$1)))-1,"n.d.") -> n.d. | AK6: =IF(INDEX($O6:$X6,1,aux!$BA$1)>0,(X6-INDEX($O6:$X6,1,aux!$BA$1))/INDEX($O6:$X6,1,aux!$BA$1),"n.d.") -> n.d. | AM6: 0 | CC6: =+IF(ISNA(MATCH('5.1'!A6,AUX_2d_pais!$G$2:$G$40000,0)),0,1) -> 0
A7: 0004 | B7: Alemanha | C7: 0 | D7: 0 | E7: 0 | F7: 0 | G7: 0 | H7: 0 | I7: 0 | J7: 0 | K7: 0 | L7: 0 | M7: 0 | N7: 0 | O7: 0 | P7: 0 | Q7: 0 | R7: 0 | S7: 0 | T7: 0 | U7: 0 | V7: 0 | W7: 0 | X7: 0 | Y7: 0 | Z7: 0 | AA7: 0 | AC7: =L7-INDEX($C7:$L7,1,aux!$BA$1) -> 0 | AD7: 0 | AE7: =+IF(INDEX($C7:$L7,1,aux!$BA$1)>0,(L7/INDEX($C7:$L7,1,aux!$BA$1))^(1/($L$3-INDEX($C$3:$L$3,1,aux!$BA$1)))-1,"n.d.") -> n.d. | AF7: =IF(INDEX($C7:$L7,1,aux!$BA$1)>0,(L7-INDEX($C7:$L7,1,aux!$BA$1))/INDEX($C7:$L7,1,aux!$BA$1),"n.d.") -> n.d. | AH7: =X7-INDEX($O7:$X7,1,aux!$BA$1) -> 0 | AI7: 0 | AJ7: =+IF(INDEX($O7:$X7,1,aux!$BA$1)>0,(X7/INDEX($O7:$X7,1,aux!$BA$1))^(1/($X$3-INDEX($O$3:$X$3,1,aux!$BA$1)))-1,"n.d.") -> n.d. | AK7: =IF(INDEX($O7:$X7,1,aux!$BA$1)>0,(X7-INDEX($O7:$X7,1,aux!$BA$1))/INDEX($O7:$X7,1,aux!$BA$1),"n.d.") -> n.d. | AM7: 0 | CC7: =+IF(ISNA(MATCH('5.1'!A7,AUX_2d_pais!$G$2:$G$40000,0)),0,1) -> 0
A8: 0043 | B8: Andorra | C8: 0 | D8: 0 | E8: 0 | F8: 0 | G8: 0 | H8: 0 | I8: 0 | J8: 0 | K8: 0 | L8: 0 | M8: 0 | N8: 0 | O8: 0 | P8: 0 | Q8: 0 | R8: 0 | S8: 0 | T8: 0 | U8: 0 | V8: 0 | W8: 0 | X8: 0 | Y8: 0 | Z8: 0 | AA8: 0 | AC8: =L8-INDEX($C8:$L8,1,aux!$BA$1) -> 0 | AD8: 0 | AE8: =+IF(INDEX($C8:$L8,1,aux!$BA$1)>0,(L8/INDEX($C8:$L8,1,aux!$BA$1))^(1/($L$3-INDEX($C$3:$L$3,1,aux!$BA$1)))-1,"n.d.") -> n.d. | AF8: =IF(INDEX($C8:$L8,1,aux!$BA$1)>0,(L8-INDEX($C8:$L8,1,aux!$BA$1))/INDEX($C8:$L8,1,aux!$BA$1),"n.d.") -> n.d. | AH8: =X8-INDEX($O8:$X8,1,aux!$BA$1) -> 0 | AI8: 0 | AJ8: =+IF(INDEX($O8:$X8,1,aux!$BA$1)>0,(X8/INDEX($O8:$X8,1,aux!$BA$1))^(1/($X$3-INDEX($O$3:$X$3,1,aux!$BA$1)))-1,"n.d.") -> n.d. | AK8: =IF(INDEX($O8:$X8,1,aux!$BA$1)>0,(X8-INDEX($O8:$X8,1,aux!$BA$1))/INDEX($O8:$X8,1,aux!$BA$1),"n.d.") -> n.d. | AM8: 0 | CC8: =+IF(ISNA(MATCH('5.1'!A8,AUX_2d_pais!$G$2:$G$40000,0)),0,1) -> 0
A9: 0330 | B9: Angola | C9: 0 | D9: 0 | E9: 0 | F9: 0 | G9: 0 | H9: 0 | I9: 0 | J9: 0 | K9: 0 | L9: 0 | M9: 0 | N9: 0 | O9: 0 | P9: 0 | Q9: 0 | R9: 0 | S9: 0 | T9: 0 | U9: 0 | V9: 0 | W9: 0 | X9: 0 | Y9: 0 | Z9: 0 | AA9: 0 | AC9: =L9-INDEX($C9:$L9,1,aux!$BA$1) -> 0 | AD9: 0 | AE9: =+IF(INDEX($C9:$L9,1,aux!$BA$1)>0,(L9/INDEX($C9:$L9,1,aux!$BA$1))^(1/($L$3-INDEX($C$3:$L$3,1,aux!$BA$1)))-1,"n.d.") -> n.d. | AF9: =IF(INDEX($C9:$L9,1,aux!$BA$1)>0,(L9-INDEX($C9:$L9,1,aux!$BA$1))/INDEX($C9:$L9,1,aux!$BA$1),"n.d.") -> n.d. | AH9: =X9-INDEX($O9:$X9,1,aux!$BA$1) -> 0 | AI9: 0 | AJ9: =+IF(INDEX($O9:$X9,1,aux!$BA$1)>0,(X9/INDEX($O9:$X9,1,aux!$BA$1))^(1/($X$3-INDEX($O$3:$X$3,1,aux!$BA$1)))-1,"n.d.") -> n.d. | AK9: =IF(INDEX($O9:$X9,1,aux!$BA$1)>0,(X9-INDEX($O9:$X9,1,aux!$BA$1))/INDEX($O9:$X9,1,aux!$BA$1),"n.d.") -> n.d. | AM9: 0 | CC9: =+IF(ISNA(MATCH('5.1'!A9,AUX_2d_pais!$G$2:$G$40000,0)),0,1) -> 0
A10: 0446 | B10: Anguila | C10: 0 | D10: 0 | E10: 0 | F10: 0 | G10: 0 | H10: 0 | I10: 0 | J10: 0 | K10: 0 | L10: 0 | M10: 0 | N10: 0 | O10: 0 | P10: 0 | Q10: 0 | R10: 0 | S10: 0 | T10: 0 | U10: 0 | V10: 0 | W10: 0 | X10: 0 | Y10: 0 | Z10: 0 | AA10: 0 | AC10: =L10-INDEX($C10:$L10,1,aux!$BA$1) -> 0 | AD10: 0 | AE10: =+IF(INDEX($C10:$L10,1,aux!$BA$1)>0,(L10/INDEX($C10:$L10,1,aux!$BA$1))^(1/($L$3-INDEX($C$3:$L$3,1,aux!$BA$1)))-1,"n.d.") -> n.d. | AF10: =IF(INDEX($C10:$L10,1,aux!$BA$1)>0,(L10-INDEX($C10:$L10,1,aux!$BA$1))/INDEX($C10:$L10,1,aux!$BA$1),"n.d.") -> n.d. | AH10: =X10-INDEX($O10:$X10,1,aux!$BA$1) -> 0 | AI10: 0 | AJ10: =+IF(INDEX($O10:$X10,1,aux!$BA$1)>0,(X10/INDEX($O10:$X10,1,aux!$BA$1))^(1/($X$3-INDEX($O$3:$X$3,1,aux!$BA$1)))-1,"n.d.") -> n.d. | AK10: =IF(INDEX($O10:$X10,1,aux!$BA$1)>0,(X10-INDEX($O10:$X10,1,aux!$BA$1))/INDEX($O10:$X10,1,aux!$BA$1),"n.d.") -> n.d. | AM10: 0 | CC10: =+IF(ISNA(MATCH('5.1'!A10,AUX_2d_pais!$G$2:$G$40000,0)),0,1) -> 0
A11: 0891 | B11: Antárctica | C11: 0 | D11: 0 | E11: 0 | F11: 0 | G11: 0 | H11: 0 | I11: 0 | J11: 0 | K11: 0 | L11: 0 | M11: 0 | N11: 0 | O11: 0 | P11: 0 | Q11: 0 | R11: 0 | S11: 0 | T11: 0 | U11: 0 | V11: 0 | W11: 0 | X11: 0 | Y11: 0 | Z11: 0 | AA11: 0 | AC11: =L11-INDEX($C11:$L11,1,aux!$BA$1) -> 0 | AD11: 0 | AE11: =+IF(INDEX($C11:$L11,1,aux!$BA$1)>0,(L11/INDEX($C11:$L11,1,aux!$BA$1))^(1/($L$3-INDEX($C$3:$L$3,1,aux!$BA$1)))-1,"n.d.") -> n.d. | AF11: =IF(INDEX($C11:$L11,1,aux!$BA$1)>0,(L11-INDEX($C11:$L11,1,aux!$BA$1))/INDEX($C11:$L11,1,aux!$BA$1),"n.d.") -> n.d. | AH11: =X11-INDEX($O11:$X11,1,aux!$BA$1) -> 0 | AI11: 0 | AJ11: =+IF(INDEX($O11:$X11,1,aux!$BA$1)>0,(X11/INDEX($O11:$X11,1,aux!$BA$1))^(1/($X$3-INDEX($O$3:$X$3,1,aux!$BA$1)))-1,"n.d.") -> n.d. | AK11: =IF(INDEX($O11:$X11,1,aux!$BA$1)>0,(X11-INDEX($O11:$X11,1,aux!$BA$1))/INDEX($O11:$X11,1,aux!$BA$1),"n.d.") -> n.d. | AM11: 0 | CC11: =+IF(ISNA(MATCH('5.1'!A11,AUX_2d_pais!$G$2:$G$40000,0)),0,1) -> 0
A12: 0459 | B12: Antígua e Barbuda | C12: 0 | D12: 0 | E12: 0 | F12: 0 | G12: 0 | H12: 0 | I12: 0 | J12: 0 | K12: 0 | L12: 0 | M12: 0 | N12: 0 | O12: 0 | P12: 0 | Q12: 0 | R12: 0 | S12: 0 | T12: 0 | U12: 0 | V12: 0 | W12: 0 | X12: 0 | Y12: 0 | Z12: 0 | AA12: 0 | AC12: =L12-INDEX($C12:$L12,1,aux!$BA$1) -> 0 | AD12: 0 | AE12: =+IF(INDEX($C12:$L12,1,aux!$BA$1)>0,(L12/INDEX($C12:$L12,1,aux!$BA$1))^(1/($L$3-INDEX($C$3:$L$3,1,aux!$BA$1)))-1,"n.d.") -> n.d. | AF12: =IF(INDEX($C12:$L12,1,aux!$BA$1)>0,(L12-INDEX($C12:$L12,1,aux!$BA$1))/INDEX($C12:$L12,1,aux!$BA$1),"n.d.") -> n.d. | AH12: =X12-INDEX($O12:$X12,1,aux!$BA$1) -> 0 | AI12: 0 | AJ12: =+IF(INDEX($O12:$X12,1,aux!$BA$1)>0,(X12/INDEX($O12:$X12,1,aux!$BA$1))^(1/($X$3-INDEX($O$3:$X$3,1,aux!$BA$1)))-1,"n.d.") -> n.d. | AK12: =IF(INDEX($O12:$X12,1,aux!$BA$1)>0,(X12-INDEX($O12:$X12,1,aux!$BA$1))/INDEX($O12:$X12,1,aux!$BA$1),"n.d.") -> n.d. | AM12: 0 | CC12: =+IF(ISNA(MATCH('5.1'!A12,AUX_2d_pais!$G$2:$G$40000,0)),0,1) -> 0
A13: 0478 | B13: Antilhas Holandesas | C13: 0 | D13: 0 | E13: 0 | F13: 0 | G13: 0 | H13: 0 | I13: 0 | J13: 0 | K13: 0 | L13: 0 | M13: 0 | N13: 0 | O13: 0 | P13: 0 | Q13: 0 | R13: 0 | S13: 0 | T13: 0 | U13: 0 | V13: 0 | W13: 0 | X13: 0 | Y13: 0 | Z13: 0 | AA13: 0 | AC13: =L13-INDEX($C13:$L13,1,aux!$BA$1) -> 0 | AD13: 0 | AE13: =+IF(INDEX($C13:$L13,1,aux!$BA$1)>0,(L13/INDEX($C13:$L13,1,aux!$BA$1))^(1/($L$3-INDEX($C$3:$L$3,1,aux!$BA$1)))-1,"n.d.") -> n.d. | AF13: =IF(INDEX($C13:$L13,1,aux!$BA$1)>0,(L13-INDEX($C13:$L13,1,aux!$BA$1))/INDEX($C13:$L13,1,aux!$BA$1),"n.d.") -> n.d. | AH13: =X13-INDEX($O13:$X13,1,aux!$BA$1) -> 0 | AI13: 0 | AJ13: =+IF(INDEX($O13:$X13,1,aux!$BA$1)>0,(X13/INDEX($O13:$X13,1,aux!$BA$1))^(1/($X$3-INDEX($O$3:$X$3,1,aux!$BA$1)))-1,"n.d.") -> n.d. | AK13: =IF(INDEX($O13:$X13,1,aux!$BA$1)>0,(X13-INDEX($O13:$X13,1,aux!$BA$1))/INDEX($O13:$X13,1,aux!$BA$1),"n.d.") -> n.d. | AM13: 0 | CC13: =+IF(ISNA(MATCH('5.1'!A13,AUX_2d_pais!$G$2:$G$40000,0)),0,1) -> 0
A14: 0632 | B14: Arábia Saudita | C14: 0 | D14: 0 | E14: 0 | F14: 0 | G14: 0 | H14: 0 | I14: 0 | J14: 0 | K14: 0 | L14: 0 | M14: 0 | N14: 0 | O14: 0 | P14: 0 | Q14: 0 | R14: 0 | S14: 0 | T14: 0 | U14: 0 | V14: 0 | W14: 0 | X14: 0 | Y14: 0 | Z14: 0 | AA14: 0 | AC14: =L14-INDEX($C14:$L14,1,aux!$BA$1) -> 0 | AD14: 0 | AE14: =+IF(INDEX($C14:$L14,1,aux!$BA$1)>0,(L14/INDEX($C14:$L14,1,aux!$BA$1))^(1/($L$3-INDEX($C$3:$L$3,1,aux!$BA$1)))-1,"n.d.") -> n.d. | AF14: =IF(INDEX($C14:$L14,1,aux!$BA$1)>0,(L14-INDEX($C14:$L14,1,aux!$BA$1))/INDEX($C14:$L14,1,aux!$BA$1),"n.d.") -> n.d. | AH14: =X14-INDEX($O14:$X14,1,aux!$BA$1) -> 0 | AI14: 0 | AJ14: =+IF(INDEX($O14:$X14,1,aux!$BA$1)>0,(X14/INDEX($O14:$X14,1,aux!$BA$1))^(1/($X$3-INDEX($O$3:$X$3,1,aux!$BA$1)))-1,"n.d.") -> n.d. | AK14: =IF(INDEX($O14:$X14,1,aux!$BA$1)>0,(X14-INDEX($O14:$X14,1,aux!$BA$1))/INDEX($O14:$X14,1,aux!$BA$1),"n.d.") -> n.d. | AM14: 0 | CC14: =+IF(ISNA(MATCH('5.1'!A14,AUX_2d_pais!$G$2:$G$40000,0)),0,1) -> 0
A15: 0208 | B15: Argélia | C15: 0 | D15: 0 | E15: 0 | F15: 0 | G15: 0 | H15: 0 | I15: 0 | J15: 0 | K15: 0 | L15: 0 | M15: 0 | N15: 0 | O15: 0 | P15: 0 | Q15: 0 | R15: 0 | S15: 0 | T15: 0 | U15: 0 | V15: 0 | W15: 0 | X15: 0 | Y15: 0 | Z15: 0 | AA15: 0 | AC15: =L15-INDEX($C15:$L15,1,aux!$BA$1) -> 0 | AD15: 0 | AE15: =+IF(INDEX($C15:$L15,1,aux!$BA$1)>0,(L15/INDEX($C15:$L15,1,aux!$BA$1))^(1/($L$3-INDEX($C$3:$L$3,1,aux!$BA$1)))-1,"n.d.") -> n.d. | AF15: =IF(INDEX($C15:$L15,1,aux!$BA$1)>0,(L15-INDEX($C15:$L15,1,aux!$BA$1))/INDEX($C15:$L15,1,aux!$BA$1),"n.d.") -> n.d. | AH15: =X15-INDEX($O15:$X15,1,aux!$BA$1) -> 0 | AI15: 0 | AJ15: =+IF(INDEX($O15:$X15,1,aux!$BA$1)>0,(X15/INDEX($O15:$X15,1,aux!$BA$1))^(1/($X$3-INDEX($O$3:$X$3,1,aux!$BA$1)))-1,"n.d.") -> n.d. | AK15: =IF(INDEX($O15:$X15,1,aux!$BA$1)>0,(X15-INDEX($O15:$X15,1,aux!$BA$1))/INDEX($O15:$X15,1,aux!$BA$1),"n.d.") -> n.d. | AM15: 0 | CC15: =+IF(ISNA(MATCH('5.1'!A15,AUX_2d_pais!$G$2:$G$40000,0)),0,1) -> 0
A16: 0528 | B16: Argentina | C16: 85160.452 | D16: 72322.686 | E16: 124259.19 | F16: 73922.331 | G16: 49883.748 | H16: 33354.999 | I16: 29598.093 | J16: 84507.223 | K16: 77711.63 | L16: 36722.137 | M16: 66744.2489 | N16: 0.117373857 | O16: 260.432 | P16: 284.673 | Q16: 432.242 | R16: 99.974 | S16: 1747.29 | T16: 1585.348 | U16: 4706.503 | V16: 2663.567 | W16: 98.471 | X16: 149.696 | Y16: 1202.8196 | Z16: 0.004591304752 | AA16: -65541.4293 | AC16: =L16-INDEX($C16:$L16,1,aux!$BA$1) -> -48438.315 | AD16: -0.8079543066 | AE16: =+IF(INDEX($C16:$L16,1,aux!$BA$1)>0,(L16/INDEX($C16:$L16,1,aux!$BA$1))^(1/($L$3-INDEX($C$3:$L$3,1,aux!$BA$1)))-1,"n.d.") -> -0.08922731178 | AF16: =IF(INDEX($C16:$L16,1,aux!$BA$1)>0,(L16-INDEX($C16:$L16,1,aux!$BA$1))/INDEX($C16:$L16,1,aux!$BA$1),"n.d.") -> -0.5687888434 | AH16: =X16-INDEX($O16:$X16,1,aux!$BA$1) -> -110.736 | AI16: -0.0004826218416 | AJ16: =+IF(INDEX($O16:$X16,1,aux!$BA$1)>0,(X16/INDEX($O16:$X16,1,aux!$BA$1))^(1/($X$3-INDEX($O$3:$X$3,1,aux!$BA$1)))-1,"n.d.") -> -0.05967163055 | AK16: =IF(INDEX($O16:$X16,1,aux!$BA$1)>0,(X16-INDEX($O16:$X16,1,aux!$BA$1))/INDEX($O16:$X16,1,aux!$BA$1),"n.d.") -> -0.4252012042 | CC16: =+IF(ISNA(MATCH('5.1'!A16,AUX_2d_pais!$G$2:$G$40000,0)),0,1) -> 1
A17: 0077 | B17: Arménia | C17: 0 | D17: 0 | E17: 0 | F17: 0 | G17: 0 | H17: 0 | I17: 0 | J17: 0 | K17: 0 | L17: 0 | M17: 0 | N17: 0 | O17: 0 | P17: 0 | Q17: 0 | R17: 0 | S17: 0 | T17: 0 | U17: 0 | V17: 0 | W17: 0 | X17: 0 | Y17: 0 | Z17: 0 | AA17: 0 | AC17: =L17-INDEX($C17:$L17,1,aux!$BA$1) -> 0 | AD17: 0 | AE17: =+IF(INDEX($C17:$L17,1,aux!$BA$1)>0,(L17/INDEX($C17:$L17,1,aux!$BA$1))^(1/($L$3-INDEX($C$3:$L$3,1,aux!$BA$1)))-1,"n.d.") -> n.d. | AF17: =IF(INDEX($C17:$L17,1,aux!$BA$1)>0,(L17-INDEX($C17:$L17,1,aux!$BA$1))/INDEX($C17:$L17,1,aux!$BA$1),"n.d.") -> n.d. | AH17: =X17-INDEX($O17:$X17,1,aux!$BA$1) -> 0 | AI17: 0 | AJ17: =+IF(INDEX($O17:$X17,1,aux!$BA$1)>0,(X17/INDEX($O17:$X17,1,aux!$BA$1))^(1/($X$3-INDEX($O$3:$X$3,1,aux!$BA$1)))-1,"n.d.") -> n.d. | AK17: =IF(INDEX($O17:$X17,1,aux!$BA$1)>0,(X17-INDEX($O17:$X17,1,aux!$BA$1))/INDEX($O17:$X17,1,aux!$BA$1),"n.d.") -> n.d. | AM17: 0 | CC17: =+IF(ISNA(MATCH('5.1'!A17,AUX_2d_pais!$G$2:$G$40000,0)),0,1) -> 0
A18: 0474 | B18: Aruba | C18: 0 | D18: 0 | E18: 0 | F18: 0 | G18: 0 | H18: 0 | I18: 0 | J18: 0 | K18: 0 | L18: 0 | M18: 0 | N18: 0 | O18: 0 | P18: 0 | Q18: 0 | R18: 0 | S18: 0 | T18: 0 | U18: 0 | V18: 0 | W18: 0 | X18: 0 | Y18: 0 | Z18: 0 | AA18: 0 | AC18: =L18-INDEX($C18:$L18,1,aux!$BA$1) -> 0 | AD18: 0 | AE18: =+IF(INDEX($C18:$L18,1,aux!$BA$1)>0,(L18/INDEX($C18:$L18,1,aux!$BA$1))^(1/($L$3-INDEX($C$3:$L$3,1,aux!$BA$1)))-1,"n.d.") -> n.d. | AF18: =IF(INDEX($C18:$L18,1,aux!$BA$1)>0,(L18-INDEX($C18:$L18,1,aux!$BA$1))/INDEX($C18:$L18,1,aux!$BA$1),"n.d.") -> n.d. | AH18: =X18-INDEX($O18:$X18,1,aux!$BA$1) -> 0 | AI18: 0 | AJ18: =+IF(INDEX($O18:$X18,1,aux!$BA$1)>0,(X18/INDEX($O18:$X18,1,aux!$BA$1))^(1/($X$3-INDEX($O$3:$X$3,1,aux!$BA$1)))-1,"n.d.") -> n.d. | AK18: =IF(INDEX($O18:$X18,1,aux!$BA$1)>0,(X18-INDEX($O18:$X18,1,aux!$BA$1))/INDEX($O18:$X18,1,aux!$BA$1),"n.d.") -> n.d. | AM18: 0 | CC18: =+IF(ISNA(MATCH('5.1'!A18,AUX_2d_pais!$G$2:$G$40000,0)),0,1) -> 0
A19: 0800 | B19: Austrália | C19: 0 | D19: 0 | E19: 0 | F19: 0 | G19: 0 | H19: 0 | I19: 0 | J19: 0 | K19: 0 | L19: 0 | M19: 0 | N19: 0 | O19: 0 | P19: 0 | Q19: 0 | R19: 0 | S19: 0 | T19: 0 | U19: 0 | V19: 0 | W19: 0 | X19: 0 | Y19: 0 | Z19: 0 | AA19: 0 | AC19: =L19-INDEX($C19:$L19,1,aux!$BA$1) -> 0 | AD19: 0 | AE19: =+IF(INDEX($C19:$L19,1,aux!$BA$1)>0,(L19/INDEX($C19:$L19,1,aux!$BA$1))^(1/($L$3-INDEX($C$3:$L$3,1,aux!$BA$1)))-1,"n.d.") -> n.d. | AF19: =IF(INDEX($C19:$L19,1,aux!$BA$1)>0,(L19-INDEX($C19:$L19,1,aux!$BA$1))/INDEX($C19:$L19,1,aux!$BA$1),"n.d.") -> n.d. | AH19: =X19-INDEX($O19:$X19,1,aux!$BA$1) -> 0 | AI19: 0 | AJ19: =+IF(INDEX($O19:$X19,1,aux!$BA$1)>0,(X19/INDEX($O19:$X19,1,aux!$BA$1))^(1/($X$3-INDEX($O$3:$X$3,1,aux!$BA$1)))-1,"n.d.") -> n.d. | AK19: =IF(INDEX($O19:$X19,1,aux!$BA$1)>0,(X19-INDEX($O19:$X19,1,aux!$BA$1))/INDEX($O19:$X19,1,aux!$BA$1),"n.d.") -> n.d. | AM19: 0 | CC19: =+IF(ISNA(MATCH('5.1'!A19,AUX_2d_pais!$G$2:$G$40000,0)),0,1) -> 0
A20: 0038 | B20: Áustria | C20: 0 | D20: 0 | E20: 0 | F20: 0 | G20: 0 | H20: 0 | I20: 0 | J20: 0 | K20: 0 | L20: 0 | M20: 0 | N20: 0 | O20: 0 | P20: 0 | Q20: 0 | R20: 0 | S20: 0 | T20: 0 | U20: 0 | V20: 0 | W20: 0 | X20: 0 | Y20: 0 | Z20: 0 | AA20: 0 | AC20: =L20-INDEX($C20:$L20,1,aux!$BA$1) -> 0 | AD20: 0 | AE20: =+IF(INDEX($C20:$L20,1,aux!$BA$1)>0,(L20/INDEX($C20:$L20,1,aux!$BA$1))^(1/($L$3-INDEX($C$3:$L$3,1,aux!$BA$1)))-1,"n.d.") -> n.d. | AF20: =IF(INDEX($C20:$L20,1,aux!$BA$1)>0,(L20-INDEX($C20:$L20,1,aux!$BA$1))/INDEX($C20:$L20,1,aux!$BA$1),"n.d.") -> n.d. | AH20: =X20-INDEX($O20:$X20,1,aux!$BA$1) -> 0 | AI20: 0 | AJ20: =+IF(INDEX($O20:$X20,1,aux!$BA$1)>0,(X20/INDEX($O20:$X20,1,aux!$BA$1))^(1/($X$3-INDEX($O$3:$X$3,1,aux!$BA$1)))-1,"n.d.") -> n.d. | AK20: =IF(INDEX($O20:$X20,1,aux!$BA$1)>0,(X20-INDEX($O20:$X20,1,aux!$BA$1))/INDEX($O20:$X20,1,aux!$BA$1),"n.d.") -> n.d. | AM20: 0 | CC20: =+IF(ISNA(MATCH('5.1'!A20,AUX_2d_pais!$G$2:$G$40000,0)),0,1) -> 0
A21: 0078 | B21: Azerbaijão | C21: 0 | D21: 0 | E21: 0 | F21: 0 | G21: 0 | H21: 0 | I21: 0 | J21: 0 | K21: 0 | L21: 0 | M21: 0 | N21: 0 | O21: 0 | P21: 0 | Q21: 0 | R21: 0 | S21: 0 | T21: 0 | U21: 0 | V21: 0 | W21: 0 | X21: 0 | Y21: 0 | Z21: 0 | AA21: 0 | AC21: =L21-INDEX($C21:$L21,1,aux!$BA$1) -> 0 | AD21: 0 | AE21: =+IF(INDEX($C21:$L21,1,aux!$BA$1)>0,(L21/INDEX($C21:$L21,1,aux!$BA$1))^(1/($L$3-INDEX($C$3:$L$3,1,aux!$BA$1)))-1,"n.d.") -> n.d. | AF21: =IF(INDEX($C21:$L21,1,aux!$BA$1)>0,(L21-INDEX($C21:$L21,1,aux!$BA$1))/INDEX($C21:$L21,1,aux!$BA$1),"n.d.") -> n.d. | AH21: =X21-INDEX($O21:$X21,1,aux!$BA$1) -> 0 | AI21: 0 | AJ21: =+IF(INDEX($O21:$X21,1,aux!$BA$1)>0,(X21/INDEX($O21:$X21,1,aux!$BA$1))^(1/($X$3-INDEX($O$3:$X$3,1,aux!$BA$1)))-1,"n.d.") -> n.d. | AK21: =IF(INDEX($O21:$X21,1,aux!$BA$1)>0,(X21-INDEX($O21:$X21,1,aux!$BA$1))/INDEX($O21:$X21,1,aux!$BA$1),"n.d.") -> n.d. | AM21: 0 | CC21: =+IF(ISNA(MATCH('5.1'!A21,AUX_2d_pais!$G$2:$G$40000,0)),0,1) -> 0
A22: 0453 | B22: Bahamas | C22: 0 | D22: 0 | E22: 0 | F22: 0 | G22: 0 | H22: 0 | I22: 0 | J22: 0 | K22: 0 | L22: 0 | M22: 0 | N22: 0 | O22: 0 | P22: 0 | Q22: 0 | R22: 0 | S22: 0 | T22: 0 | U22: 0 | V22: 0 | W22: 0 | X22: 0 | Y22: 0 | Z22: 0 | AA22: 0 | AC22: =L22-INDEX($C22:$L22,1,aux!$BA$1) -> 0 | AD22: 0 | AE22: =+IF(INDEX($C22:$L22,1,aux!$BA$1)>0,(L22/INDEX($C22:$L22,1,aux!$BA$1))^(1/($L$3-INDEX($C$3:$L$3,1,aux!$BA$1)))-1,"n.d.") -> n.d. | AF22: =IF(INDEX($C22:$L22,1,aux!$BA$1)>0,(L22-INDEX($C22:$L22,1,aux!$BA$1))/INDEX($C22:$L22,1,aux!$BA$1),"n.d.") -> n.d. | AH22: =X22-INDEX($O22:$X22,1,aux!$BA$1) -> 0 | AI22: 0 | AJ22: =+IF(INDEX($O22:$X22,1,aux!$BA$1)>0,(X22/INDEX($O22:$X22,1,aux!$BA$1))^(1/($X$3-INDEX($O$3:$X$3,1,aux!$BA$1)))-1,"n.d.") -> n.d. | AK22: =IF(INDEX($O22:$X22,1,aux!$BA$1)>0,(X22-INDEX($O22:$X22,1,aux!$BA$1))/INDEX($O22:$X22,1,aux!$BA$1),"n.d.") -> n.d. | AM22: 0 | CC22: =+IF(ISNA(MATCH('5.1'!A22,AUX_2d_pais!$G$2:$G$40000,0)),0,1) -> 0
A23: 0666 | B23: Bangladesh | C23: 0 | D23: 0 | E23: 0 | F23: 0 | G23: 0 | H23: 0 | I23: 0 | J23: 0 | K23: 0 | L23: 0 | M23: 0 | N23: 0 | O23: 0 | P23: 0 | Q23: 0 | R23: 0 | S23: 0 | T23: 0 | U23: 0 | V23: 0 | W23: 0 | X23: 0 | Y23: 0 | Z23: 0 | AA23: 0 | AC23: =L23-INDEX($C23:$L23,1,aux!$BA$1) -> 0 | AD23: 0 | AE23: =+IF(INDEX($C23:$L23,1,aux!$BA$1)>0,(L23/INDEX($C23:$L23,1,aux!$BA$1))^(1/($L$3-INDEX($C$3:$L$3,1,aux!$BA$1)))-1,"n.d.") -> n.d. | AF23: =IF(INDEX($C23:$L23,1,aux!$BA$1)>0,(L23-INDEX($C23:$L23,1,aux!$BA$1))/INDEX($C23:$L23,1,aux!$BA$1),"n.d.") -> n.d. | AH23: =X23-INDEX($O23:$X23,1,aux!$BA$1) -> 0 | AI23: 0 | AJ23: =+IF(INDEX($O23:$X23,1,aux!$BA$1)>0,(X23/INDEX($O23:$X23,1,aux!$BA$1))^(1/($X$3-INDEX($O$3:$X$3,1,aux!$BA$1)))-1,"n.d.") -> n.d. | AK23: =IF(INDEX($O23:$X23,1,aux!$BA$1)>0,(X23-INDEX($O23:$X23,1,aux!$BA$1))/INDEX($O23:$X23,1,aux!$BA$1),"n.d.") -> n.d. | AM23: 0 | CC23: =+IF(ISNA(MATCH('5.1'!A23,AUX_2d_pais!$G$2:$G$40000,0)),0,1) -> 0
A24: 0469 | B24: Barbados | C24: 0 | D24: 0 | E24: 0 | F24: 0 | G24: 0 | H24: 0 | I24: 0 | J24: 0 | K24: 0 | L24: 0 | M24: 0 | N24: 0 | O24: 0 | P24: 0 | Q24: 0 | R24: 0 | S24: 0 | T24: 0 | U24: 0 | V24: 0 | W24: 0 | X24: 0 | Y24: 0 | Z24: 0 | AA24: 0 | AC24: =L24-INDEX($C24:$L24,1,aux!$BA$1) -> 0 | AD24: 0 | AE24: =+IF(INDEX($C24:$L24,1,aux!$BA$1)>0,(L24/INDEX($C24:$L24,1,aux!$BA$1))^(1/($L$3-INDEX($C$3:$L$3,1,aux!$BA$1)))-1,"n.d.") -> n.d. | AF24: =IF(INDEX($C24:$L24,1,aux!$BA$1)>0,(L24-INDEX($C24:$L24,1,aux!$BA$1))/INDEX($C24:$L24,1,aux!$BA$1),"n.d.") -> n.d. | AH24: =X24-INDEX($O24:$X24,1,aux!$BA$1) -> 0 | AI24: 0 | AJ24: =+IF(INDEX($O24:$X24,1,aux!$BA$1)>0,(X24/INDEX($O24:$X24,1,aux!$BA$1))^(1/($X$3-INDEX($O$3:$X$3,1,aux!$BA$1)))-1,"n.d.") -> n.d. | AK24: =IF(INDEX($O24:$X24,1,aux!$BA$1)>0,(X24-INDEX($O24:$X24,1,aux!$BA$1))/INDEX($O24:$X24,1,aux!$BA$1),"n.d.") -> n.d. | AM24: 0 | CC24: =+IF(ISNA(MATCH('5.1'!A24,AUX_2d_pais!$G$2:$G$40000,0)),0,1) -> 0
A25: 0640 | B25: Barém | C25: 0 | D25: 0 | E25: 0 | F25: 0 | G25: 0 | H25: 0 | I25: 0 | J25: 0 | K25: 0 | L25: 0 | M25: 0 | N25: 0 | O25: 0 | P25: 0 | Q25: 0 | R25: 0 | S25: 0 | T25: 0 | U25: 0 | V25: 0 | W25: 0 | X25: 0 | Y25: 0 | Z25: 0 | AA25: 0 | AC25: =L25-INDEX($C25:$L25,1,aux!$BA$1) -> 0 | AD25: 0 | AE25: =+IF(INDEX($C25:$L25,1,aux!$BA$1)>0,(L25/INDEX($C25:$L25,1,aux!$BA$1))^(1/($L$3-INDEX($C$3:$L$3,1,aux!$BA$1)))-1,"n.d.") -> n.d. | AF25: =IF(INDEX($C25:$L25,1,aux!$BA$1)>0,(L25-INDEX($C25:$L25,1,aux!$BA$1))/INDEX($C25:$L25,1,aux!$BA$1),"n.d.") -> n.d. | AH25: =X25-INDEX($O25:$X25,1,aux!$BA$1) -> 0 | AI25: 0 | AJ25: =+IF(INDEX($O25:$X25,1,aux!$BA$1)>0,(X25/INDEX($O25:$X25,1,aux!$BA$1))^(1/($X$3-INDEX($O$3:$X$3,1,aux!$BA$1)))-1,"n.d.") -> n.d. | AK25: =IF(INDEX($O25:$X25,1,aux!$BA$1)>0,(X25-INDEX($O25:$X25,1,aux!$BA$1))/INDEX($O25:$X25,1,aux!$BA$1),"n.d.") -> n.d. | AM25: 0 | CC25: =+IF(ISNA(MATCH('5.1'!A25,AUX_2d_pais!$G$2:$G$40000,0)),0,1) -> 0
A26: 0073 | B26: Belarus | C26: 0 | D26: 0 | E26: 0 | F26: 0 | G26: 0 | H26: 0 | I26: 0 | J26: 0 | K26: 0 | L26: 0 | M26: 0 | N26: 0 | O26: 0 | P26: 0 | Q26: 0 | R26: 0 | S26: 0 | T26: 0 | U26: 0 | V26: 0 | W26: 0 | X26: 0 | Y26: 0 | Z26: 0 | AA26: 0 | AC26: =L26-INDEX($C26:$L26,1,aux!$BA$1) -> 0 | AD26: 0 | AE26: =+IF(INDEX($C26:$L26,1,aux!$BA$1)>0,(L26/INDEX($C26:$L26,1,aux!$BA$1))^(1/($L$3-INDEX($C$3:$L$3,1,aux!$BA$1)))-1,"n.d.") -> n.d. | AF26: =IF(INDEX($C26:$L26,1,aux!$BA$1)>0,(L26-INDEX($C26:$L26,1,aux!$BA$1))/INDEX($C26:$L26,1,aux!$BA$1),"n.d.") -> n.d. | AH26: =X26-INDEX($O26:$X26,1,aux!$BA$1) -> 0 | AI26: 0 | AJ26: =+IF(INDEX($O26:$X26,1,aux!$BA$1)>0,(X26/INDEX($O26:$X26,1,aux!$BA$1))^(1/($X$3-INDEX($O$3:$X$3,1,aux!$BA$1)))-1,"n.d.") -> n.d. | AK26: =IF(INDEX($O26:$X26,1,aux!$BA$1)>0,(X26-INDEX($O26:$X26,1,aux!$BA$1))/INDEX($O26:$X26,1,aux!$BA$1),"n.d.") -> n.d. | AM26: 0 | CC26: =+IF(ISNA(MATCH('5.1'!A26,AUX_2d_pais!$G$2:$G$40000,0)),0,1) -> 0
A27: 0017 | B27: Bélgica | C27: 0 | D27: 0 | E27: 0 | F27: 0 | G27: 0 | H27: 0 | I27: 0 | J27: 0 | K27: 0 | L27: 0 | M27: 0 | N27: 0 | O27: 0 | P27: 0 | Q27: 0 | R27: 0 | S27: 0 | T27: 0 | U27: 0 | V27: 0 | W27: 0 | X27: 0 | Y27: 0 | Z27: 0 | AA27: 0 | AC27: =L27-INDEX($C27:$L27,1,aux!$BA$1) -> 0 | AD27: 0 | AE27: =+IF(INDEX($C27:$L27,1,aux!$BA$1)>0,(L27/INDEX($C27:$L27,1,aux!$BA$1))^(1/($L$3-INDEX($C$3:$L$3,1,aux!$BA$1)))-1,"n.d.") -> n.d. | AF27: =IF(INDEX($C27:$L27,1,aux!$BA$1)>0,(L27-INDEX($C27:$L27,1,aux!$BA$1))/INDEX($C27:$L27,1,aux!$BA$1),"n.d.") -> n.d. | AH27: =X27-INDEX($O27:$X27,1,aux!$BA$1) -> 0 | AI27: 0 | AJ27: =+IF(INDEX($O27:$X27,1,aux!$BA$1)>0,(X27/INDEX($O27:$X27,1,aux!$BA$1))^(1/($X$3-INDEX($O$3:$X$3,1,aux!$BA$1)))-1,"n.d.") -> n.d. | AK27: =IF(INDEX($O27:$X27,1,aux!$BA$1)>0,(X27-INDEX($O27:$X27,1,aux!$BA$1))/INDEX($O27:$X27,1,aux!$BA$1),"n.d.") -> n.d. | AM27: 0 | CC27: =+IF(ISNA(MATCH('5.1'!A27,AUX_2d_pais!$G$2:$G$40000,0)),0,1) -> 0
A28: 0421 | B28: Belize | C28: 0 | D28: 0 | E28: 0 | F28: 0 | G28: 0 | H28: 0 | I28: 0 | J28: 0 | K28: 0 | L28: 0 | M28: 0 | N28: 0 | O28: 0 | P28: 0 | Q28: 0 | R28: 0 | S28: 0 | T28: 0 | U28: 0 | V28: 0 | W28: 0 | X28: 0 | Y28: 0 | Z28: 0 | AA28: 0 | AC28: =L28-INDEX($C28:$L28,1,aux!$BA$1) -> 0 | AD28: 0 | AE28: =+IF(INDEX($C28:$L28,1,aux!$BA$1)>0,(L28/INDEX($C28:$L28,1,aux!$BA$1))^(1/($L$3-INDEX($C$3:$L$3,1,aux!$BA$1)))-1,"n.d.") -> n.d. | AF28: =IF(INDEX($C28:$L28,1,aux!$BA$1)>0,(L28-INDEX($C28:$L28,1,aux!$BA$1))/INDEX($C28:$L28,1,aux!$BA$1),"n.d.") -> n.d. | AH28: =X28-INDEX($O28:$X28,1,aux!$BA$1) -> 0 | AI28: 0 | AJ28: =+IF(INDEX($O28:$X28,1,aux!$BA$1)>0,(X28/INDEX($O28:$X28,1,aux!$BA$1))^(1/($X$3-INDEX($O$3:$X$3,1,aux!$BA$1)))-1,"n.d.") -> n.d. | AK28: =IF(INDEX($O28:$X28,1,aux!$BA$1)>0,(X28-INDEX($O28:$X28,1,aux!$BA$1))/INDEX($O28:$X28,1,aux!$BA$1),"n.d.") -> n.d. | AM28: 0 | CC28: =+IF(ISNA(MATCH('5.1'!A28,AUX_2d_pais!$G$2:$G$40000,0)),0,1) -> 0
A29: 0284 | B29: Benim | C29: 0 | D29: 0 | E29: 0 | F29: 0 | G29: 0 | H29: 0 | I29: 0 | J29: 0 | K29: 0 | L29: 0 | M29: 0 | N29: 0 | O29: 0 | P29: 0 | Q29: 0 | R29: 0 | S29: 0 | T29: 0 | U29: 0 | V29: 0 | W29: 0 | X29: 0 | Y29: 0 | Z29: 0 | AA29: 0 | AC29: =L29-INDEX($C29:$L29,1,aux!$BA$1) -> 0 | AD29: 0 | AE29: =+IF(INDEX($C29:$L29,1,aux!$BA$1)>0,(L29/INDEX($C29:$L29,1,aux!$BA$1))^(1/($L$3-INDEX($C$3:$L$3,1,aux!$BA$1)))-1,"n.d.") -> n.d. | AF29: =IF(INDEX($C29:$L29,1,aux!$BA$1)>0,(L29-INDEX($C29:$L29,1,aux!$BA$1))/INDEX($C29:$L29,1,aux!$BA$1),"n.d.") -> n.d. | AH29: =X29-INDEX($O29:$X29,1,aux!$BA$1) -> 0 | AI29: 0 | AJ29: =+IF(INDEX($O29:$X29,1,aux!$BA$1)>0,(X29/INDEX($O29:$X29,1,aux!$BA$1))^(1/($X$3-INDEX($O$3:$X$3,1,aux!$BA$1)))-1,"n.d.") -> n.d. | AK29: =IF(INDEX($O29:$X29,1,aux!$BA$1)>0,(X29-INDEX($O29:$X29,1,aux!$BA$1))/INDEX($O29:$X29,1,aux!$BA$1),"n.d.") -> n.d. | AM29: 0 | CC29: =+IF(ISNA(MATCH('5.1'!A29,AUX_2d_pais!$G$2:$G$40000,0)),0,1) -> 0
A30: 0413 | B30: Bermudas | C30: 0 | D30: 0 | E30: 0 | F30: 0 | G30: 0 | H30: 0 | I30: 0 | J30: 0 | K30: 0 | L30: 0 | M30: 0 | N30: 0 | O30: 0 | P30: 0 | Q30: 0 | R30: 0 | S30: 0 | T30: 0 | U30: 0 | V30: 0 | W30: 0 | X30: 0 | Y30: 0 | Z30: 0 | AA30: 0 | AC30: =L30-INDEX($C30:$L30,1,aux!$BA$1) -> 0 | AD30: 0 | AE30: =+IF(INDEX($C30:$L30,1,aux!$BA$1)>0,(L30/INDEX($C30:$L30,1,aux!$BA$1))^(1/($L$3-INDEX($C$3:$L$3,1,aux!$BA$1)))-1,"n.d.") -> n.d. | AF30: =IF(INDEX($C30:$L30,1,aux!$BA$1)>0,(L30-INDEX($C30:$L30,1,aux!$BA$1))/INDEX($C30:$L30,1,aux!$BA$1),"n.d.") -> n.d. | AH30: =X30-INDEX($O30:$X30,1,aux!$BA$1) -> 0 | AI30: 0 | AJ30: =+IF(INDEX($O30:$X30,1,aux!$BA$1)>0,(X30/INDEX($O30:$X30,1,aux!$BA$1))^(1/($X$3-INDEX($O$3:$X$3,1,aux!$BA$1)))-1,"n.d.") -> n.d. | AK30: =IF(INDEX($O30:$X30,1,aux!$BA$1)>0,(X30-INDEX($O30:$X30,1,aux!$BA$1))/INDEX($O30:$X30,1,aux!$BA$1),"n.d.") -> n.d. | AM30: 0 | CC30: =+IF(ISNA(MATCH('5.1'!A30,AUX_2d_pais!$G$2:$G$40000,0)),0,1) -> 0
A31: 0516 | B31: Bolívia | C31: 319.695 | D31: 209.741 | E31: 248.372 | F31: 538.554 | G31: 9996.544 | H31: 235.677 | I31: 660.334 | J31: 456.826 | K31: 114.126 | L31: 351.67 | M31: 1313.1539 | N31: 0.002309261706 | O31: 359.372 | P31: 513.871 | Q31: 639.415 | R31: 676.236 | S31: 699.706 | T31: 836.874 | U31: 501.108 | V31: 475.517 | W31: 613.971 | X31: 237.602 | Y31: 555.3672 | Z31: 0.002119902323 | AA31: -757.7867 | AC31: =L31-INDEX($C31:$L31,1,aux!$BA$1) -> 31.975 | AD31: 0.0005333451206 | AE31: =+IF(INDEX($C31:$L31,1,aux!$BA$1)>0,(L31/INDEX($C31:$L31,1,aux!$BA$1))^(1/($L$3-INDEX($C$3:$L$3,1,aux!$BA$1)))-1,"n.d.") -> 0.01064804896 | AF31: =IF(INDEX($C31:$L31,1,aux!$BA$1)>0,(L31-INDEX($C31:$L31,1,aux!$BA$1))/INDEX($C31:$L31,1,aux!$BA$1),"n.d.") -> 0.1000172039 | AH31: =X31-INDEX($O31:$X31,1,aux!$BA$1) -> -121.77 | AI31: -0.0005307114367 | AJ31: =+IF(INDEX($O31:$X31,1,aux!$BA$1)>0,(X31/INDEX($O31:$X31,1,aux!$BA$1))^(1/($X$3-INDEX($O$3:$X$3,1,aux!$BA$1)))-1,"n.d.") -> -0.04493268203 | AK31: =IF(INDEX($O31:$X31,1,aux!$BA$1)>0,(X31-INDEX($O31:$X31,1,aux!$BA$1))/INDEX($O31:$X31,1,aux!$BA$1),"n.d.") -> -0.3388410895 | CC31: =+IF(ISNA(MATCH('5.1'!A31,AUX_2d_pais!$G$2:$G$40000,0)),0,1) -> 1
A32: 0477 | B32: Bonaire, Santo Eustáquio e Saba | C32: 0 | D32: 0 | E32: 0 | F32: 0 | G32: 0 | H32: 0 | I32: 0 | J32: 0 | K32: 0 | L32: 0 | M32: 0 | N32: 0 | O32: 0 | P32: 0 | Q32: 0 | R32: 0 | S32: 0 | T32: 0 | U32: 0 | V32: 0 | W32: 0 | X32: 0 | Y32: 0 | Z32: 0 | AA32: 0 | AC32: =L32-INDEX($C32:$L32,1,aux!$BA$1) -> 0 | AD32: 0 | AE32: =+IF(INDEX($C32:$L32,1,aux!$BA$1)>0,(L32/INDEX($C32:$L32,1,aux!$BA$1))^(1/($L$3-INDEX($C$3:$L$3,1,aux!$BA$1)))-1,"n.d.") -> n.d. | AF32: =IF(INDEX($C32:$L32,1,aux!$BA$1)>0,(L32-INDEX($C32:$L32,1,aux!$BA$1))/INDEX($C32:$L32,1,aux!$BA$1),"n.d.") -> n.d. | AH32: =X32-INDEX($O32:$X32,1,aux!$BA$1) -> 0 | AI32: 0 | AJ32: =+IF(INDEX($O32:$X32,1,aux!$BA$1)>0,(X32/INDEX($O32:$X32,1,aux!$BA$1))^(1/($X$3-INDEX($O$3:$X$3,1,aux!$BA$1)))-1,"n.d.") -> n.d. | AK32: =IF(INDEX($O32:$X32,1,aux!$BA$1)>0,(X32-INDEX($O32:$X32,1,aux!$BA$1))/INDEX($O32:$X32,1,aux!$BA$1),"n.d.") -> n.d. | AM32: 0 | CC32: =+IF(ISNA(MATCH('5.1'!A32,AUX_2d_pais!$G$2:$G$40000,0)),0,1) -> 0
A33: 0093 | B33: Bósnia-Herzegovina | C33: 0 | D33: 0 | E33: 0 | F33: 0 | G33: 0 | H33: 0 | I33: 0 | J33: 0 | K33: 0 | L33: 0 | M33: 0 | N33: 0 | O33: 0 | P33: 0 | Q33: 0 | R33: 0 | S33: 0 | T33: 0 | U33: 0 | V33: 0 | W33: 0 | X33: 0 | Y33: 0 | Z33: 0 | AA33: 0 | AC33: =L33-INDEX($C33:$L33,1,aux!$BA$1) -> 0 | AD33: 0 | AE33: =+IF(INDEX($C33:$L33,1,aux!$BA$1)>0,(L33/INDEX($C33:$L33,1,aux!$BA$1))^(1/($L$3-INDEX($C$3:$L$3,1,aux!$BA$1)))-1,"n.d.") -> n.d. | AF33: =IF(INDEX($C33:$L33,1,aux!$BA$1)>0,(L33-INDEX($C33:$L33,1,aux!$BA$1))/INDEX($C33:$L33,1,aux!$BA$1),"n.d.") -> n.d. | AH33: =X33-INDEX($O33:$X33,1,aux!$BA$1) -> 0 | AI33: 0 | AJ33: =+IF(INDEX($O33:$X33,1,aux!$BA$1)>0,(X33/INDEX($O33:$X33,1,aux!$BA$1))^(1/($X$3-INDEX($O$3:$X$3,1,aux!$BA$1)))-1,"n.d.") -> n.d. | AK33: =IF(INDEX($O33:$X33,1,aux!$BA$1)>0,(X33-INDEX($O33:$X33,1,aux!$BA$1))/INDEX($O33:$X33,1,aux!$BA$1),"n.d.") -> n.d. | AM33: 0 | CC33: =+IF(ISNA(MATCH('5.1'!A33,AUX_2d_pais!$G$2:$G$40000,0)),0,1) -> 0
A34: 0391 | B34: Botswana | C34: 0 | D34: 0 | E34: 0 | F34: 0 | G34: 0 | H34: 0 | I34: 0 | J34: 0 | K34: 0 | L34: 0 | M34: 0 | N34: 0 | O34: 0 | P34: 0 | Q34: 0 | R34: 0 | S34: 0 | T34: 0 | U34: 0 | V34: 0 | W34: 0 | X34: 0 | Y34: 0 | Z34: 0 | AA34: 0 | AC34: =L34-INDEX($C34:$L34,1,aux!$BA$1) -> 0 | AD34: 0 | AE34: =+IF(INDEX($C34:$L34,1,aux!$BA$1)>0,(L34/INDEX($C34:$L34,1,aux!$BA$1))^(1/($L$3-INDEX($C$3:$L$3,1,aux!$BA$1)))-1,"n.d.") -> n.d. | AF34: =IF(INDEX($C34:$L34,1,aux!$BA$1)>0,(L34-INDEX($C34:$L34,1,aux!$BA$1))/INDEX($C34:$L34,1,aux!$BA$1),"n.d.") -> n.d. | AH34: =X34-INDEX($O34:$X34,1,aux!$BA$1) -> 0 | AI34: 0 | AJ34: =+IF(INDEX($O34:$X34,1,aux!$BA$1)>0,(X34/INDEX($O34:$X34,1,aux!$BA$1))^(1/($X$3-INDEX($O$3:$X$3,1,aux!$BA$1)))-1,"n.d.") -> n.d. | AK34: =IF(INDEX($O34:$X34,1,aux!$BA$1)>0,(X34-INDEX($O34:$X34,1,aux!$BA$1))/INDEX($O34:$X34,1,aux!$BA$1),"n.d.") -> n.d. | AM34: 0 | CC34: =+IF(ISNA(MATCH('5.1'!A34,AUX_2d_pais!$G$2:$G$40000,0)),0,1) -> 0
A35: 0892 | B35: Bouvet, Ilha | C35: 0 | D35: 0 | E35: 0 | F35: 0 | G35: 0 | H35: 0 | I35: 0 | J35: 0 | K35: 0 | L35: 0 | M35: 0 | N35: 0 | O35: 0 | P35: 0 | Q35: 0 | R35: 0 | S35: 0 | T35: 0 | U35: 0 | V35: 0 | W35: 0 | X35: 0 | Y35: 0 | Z35: 0 | AA35: 0 | AC35: =L35-INDEX($C35:$L35,1,aux!$BA$1) -> 0 | AD35: 0 | AE35: =+IF(INDEX($C35:$L35,1,aux!$BA$1)>0,(L35/INDEX($C35:$L35,1,aux!$BA$1))^(1/($L$3-INDEX($C$3:$L$3,1,aux!$BA$1)))-1,"n.d.") -> n.d. | AF35: =IF(INDEX($C35:$L35,1,aux!$BA$1)>0,(L35-INDEX($C35:$L35,1,aux!$BA$1))/INDEX($C35:$L35,1,aux!$BA$1),"n.d.") -> n.d. | AH35: =X35-INDEX($O35:$X35,1,aux!$BA$1) -> 0 | AI35: 0 | AJ35: =+IF(INDEX($O35:$X35,1,aux!$BA$1)>0,(X35/INDEX($O35:$X35,1,aux!$BA$1))^(1/($X$3-INDEX($O$3:$X$3,1,aux!$BA$1)))-1,"n.d.") -> n.d. | AK35: =IF(INDEX($O35:$X35,1,aux!$BA$1)>0,(X35-INDEX($O35:$X35,1,aux!$BA$1))/INDEX($O35:$X35,1,aux!$BA$1),"n.d.") -> n.d. | AM35: 0 | CC35: =+IF(ISNA(MATCH('5.1'!A35,AUX_2d_pais!$G$2:$G$40000,0)),0,1) -> 0
A36: 0508 | B36: Brasil | C36: 306295.092 | D36: 361063.752 | E36: 413498.023 | F36: 424754.097 | G36: 473574.245 | H36: 262797.571 | I36: 327676.138 | J36: 227417.466 | K36: 327222.502 | L36: 348456.859 | M36: 347275.5745 | N36: 0.610705406 | O36: 119249.916 | P36: 164977.96 | Q36: 188590.468 | R36: 219452.279 | S36: 241195.25 | T36: 252424.352 | U36: 232970.951 | V36: 226293.688 | W36: 313410.428 | X36: 337750.364 | Y36: 229631.5656 | Z36: 0.87653086 | AA36: -117644.0089 | AC36: =L36-INDEX($C36:$L36,1,aux!$BA$1) -> 42161.767 | AD36: =AC36/$AC$252 -> 0.7032610697 | AE36: =+IF(INDEX($C36:$L36,1,aux!$BA$1)>0,(L36/INDEX($C36:$L36,1,aux!$BA$1))^(1/($L$3-INDEX($C$3:$L$3,1,aux!$BA$1)))-1,"n.d.") -> 0.01443265288 | AF36: =IF(INDEX($C36:$L36,1,aux!$BA$1)>0,(L36-INDEX($C36:$L36,1,aux!$BA$1))/INDEX($C36:$L36,1,aux!$BA$1),"n.d.") -> 0.1376508083 | AH36: =X36-INDEX($O36:$X36,1,aux!$BA$1) -> 218500.448 | AI36: =AH36/$AH$252 -> 0.9522927377 | AJ36: =+IF(INDEX($O36:$X36,1,aux!$BA$1)>0,(X36/INDEX($O36:$X36,1,aux!$BA$1))^(1/($X$3-INDEX($O$3:$X$3,1,aux!$BA$1)))-1,"n.d.") -> 0.1226322836 | AK36: =IF(INDEX($O36:$X36,1,aux!$BA$1)>0,(X36-INDEX($O36:$X36,1,aux!$BA$1))/INDEX($O36:$X36,1,aux!$BA$1),"n.d.") -> 1.832290163 | CC36: =+IF(ISNA(MATCH('5.1'!A36,AUX_2d_pais!$G$2:$G$40000,0)),0,1) -> 1
A37: 0703 | B37: Brunei Darussalam | C37: 0 | D37: 0 | E37: 0 | F37: 0 | G37: 0 | H37: 0 | I37: 0 | J37: 0 | K37: 0 | L37: 0 | M37: 0 | N37: 0 | O37: 0 | P37: 0 | Q37: 0 | R37: 0 | S37: 0 | T37: 0 | U37: 0 | V37: 0 | W37: 0 | X37: 0 | Y37: 0 | Z37: 0 | AA37: 0 | AC37: =L37-INDEX($C37:$L37,1,aux!$BA$1) -> 0 | AD37: 0 | AE37: =+IF(INDEX($C37:$L37,1,aux!$BA$1)>0,(L37/INDEX($C37:$L37,1,aux!$BA$1))^(1/($L$3-INDEX($C$3:$L$3,1,aux!$BA$1)))-1,"n.d.") -> n.d. | AF37: =IF(INDEX($C37:$L37,1,aux!$BA$1)>0,(L37-INDEX($C37:$L37,1,aux!$BA$1))/INDEX($C37:$L37,1,aux!$BA$1),"n.d.") -> n.d. | AH37: =X37-INDEX($O37:$X37,1,aux!$BA$1) -> 0 | AI37: 0 | AJ37: =+IF(INDEX($O37:$X37,1,aux!$BA$1)>0,(X37/INDEX($O37:$X37,1,aux!$BA$1))^(1/($X$3-INDEX($O$3:$X$3,1,aux!$BA$1)))-1,"n.d.") -> n.d. | AK37: =IF(INDEX($O37:$X37,1,aux!$BA$1)>0,(X37-INDEX($O37:$X37,1,aux!$BA$1))/INDEX($O37:$X37,1,aux!$BA$1),"n.d.") -> n.d. | AM37: 0 | CC37: =+IF(ISNA(MATCH('5.1'!A37,AUX_2d_pais!$G$2:$G$40000,0)),0,1) -> 0
A38: 0068 | B38: Bulgária | C38: 0 | D38: 0 | E38: 0 | F38: 0 | G38: 0 | H38: 0 | I38: 0 | J38: 0 | K38: 0 | L38: 0 | M38: 0 | N38: 0 | O38: 0 | P38: 0 | Q38: 0 | R38: 0 | S38: 0 | T38: 0 | U38: 0 | V38: 0 | W38: 0 | X38: 0 | Y38: 0 | Z38: 0 | AA38: 0 | AC38: =L38-INDEX($C38:$L38,1,aux!$BA$1) -> 0 | AD38: 0 | AE38: =+IF(INDEX($C38:$L38,1,aux!$BA$1)>0,(L38/INDEX($C38:$L38,1,aux!$BA$1))^(1/($L$3-INDEX($C$3:$L$3,1,aux!$BA$1)))-1,"n.d.") -> n.d. | AF38: =IF(INDEX($C38:$L38,1,aux!$BA$1)>0,(L38-INDEX($C38:$L38,1,aux!$BA$1))/INDEX($C38:$L38,1,aux!$BA$1),"n.d.") -> n.d. | AH38: =X38-INDEX($O38:$X38,1,aux!$BA$1) -> 0 | AI38: 0 | AJ38: =+IF(INDEX($O38:$X38,1,aux!$BA$1)>0,(X38/INDEX($O38:$X38,1,aux!$BA$1))^(1/($X$3-INDEX($O$3:$X$3,1,aux!$BA$1)))-1,"n.d.") -> n.d. | AK38: =IF(INDEX($O38:$X38,1,aux!$BA$1)>0,(X38-INDEX($O38:$X38,1,aux!$BA$1))/INDEX($O38:$X38,1,aux!$BA$1),"n.d.") -> n.d. | AM38: 0 | CC38: =+IF(ISNA(MATCH('5.1'!A38,AUX_2d_pais!$G$2:$G$40000,0)),0,1) -> 0
A39: 0236 | B39: Burquina Faso | C39: 0 | D39: 0 | E39: 0 | F39: 0 | G39: 0 | H39: 0 | I39: 0 | J39: 0 | K39: 0 | L39: 0 | M39: 0 | N39: 0 | O39: 0 | P39: 0 | Q39: 0 | R39: 0 | S39: 0 | T39: 0 | U39: 0 | V39: 0 | W39: 0 | X39: 0 | Y39: 0 | Z39: 0 | AA39: 0 | AC39: =L39-INDEX($C39:$L39,1,aux!$BA$1) -> 0 | AD39: 0 | AE39: =+IF(INDEX($C39:$L39,1,aux!$BA$1)>0,(L39/INDEX($C39:$L39,1,aux!$BA$1))^(1/($L$3-INDEX($C$3:$L$3,1,aux!$BA$1)))-1,"n.d.") -> n.d. | AF39: =IF(INDEX($C39:$L39,1,aux!$BA$1)>0,(L39-INDEX($C39:$L39,1,aux!$BA$1))/INDEX($C39:$L39,1,aux!$BA$1),"n.d.") -> n.d. | AH39: =X39-INDEX($O39:$X39,1,aux!$BA$1) -> 0 | AI39: 0 | AJ39: =+IF(INDEX($O39:$X39,1,aux!$BA$1)>0,(X39/INDEX($O39:$X39,1,aux!$BA$1))^(1/($X$3-INDEX($O$3:$X$3,1,aux!$BA$1)))-1,"n.d.") -> n.d. | AK39: =IF(INDEX($O39:$X39,1,aux!$BA$1)>0,(X39-INDEX($O39:$X39,1,aux!$BA$1))/INDEX($O39:$X39,1,aux!$BA$1),"n.d.") -> n.d. | AM39: 0 | CC39: =+IF(ISNA(MATCH('5.1'!A39,AUX_2d_pais!$G$2:$G$40000,0)),0,1) -> 0
A40: 0328 | B40: Burundi | C40: 0 | D40: 0 | E40: 0 | F40: 0 | G40: 0 | H40: 0 | I40: 0 | J40: 0 | K40: 0 | L40: 0 | M40: 0 | N40: 0 | O40: 0 | P40: 0 | Q40: 0 | R40: 0 | S40: 0 | T40: 0 | U40: 0 | V40: 0 | W40: 0 | X40: 0 | Y40: 0 | Z40: 0 | AA40: 0 | AC40: =L40-INDEX($C40:$L40,1,aux!$BA$1) -> 0 | AD40: 0 | AE40: =+IF(INDEX($C40:$L40,1,aux!$BA$1)>0,(L40/INDEX($C40:$L40,1,aux!$BA$1))^(1/($L$3-INDEX($C$3:$L$3,1,aux!$BA$1)))-1,"n.d.") -> n.d. | AF40: =IF(INDEX($C40:$L40,1,aux!$BA$1)>0,(L40-INDEX($C40:$L40,1,aux!$BA$1))/INDEX($C40:$L40,1,aux!$BA$1),"n.d.") -> n.d. | AH40: =X40-INDEX($O40:$X40,1,aux!$BA$1) -> 0 | AI40: 0 | AJ40: =+IF(INDEX($O40:$X40,1,aux!$BA$1)>0,(X40/INDEX($O40:$X40,1,aux!$BA$1))^(1/($X$3-INDEX($O$3:$X$3,1,aux!$BA$1)))-1,"n.d.") -> n.d. | AK40: =IF(INDEX($O40:$X40,1,aux!$BA$1)>0,(X40-INDEX($O40:$X40,1,aux!$BA$1))/INDEX($O40:$X40,1,aux!$BA$1),"n.d.") -> n.d. | AM40: 0 | CC40: =+IF(ISNA(MATCH('5.1'!A40,AUX_2d_pais!$G$2:$G$40000,0)),0,1) -> 0
